Workbook

Sheet README
B3: ="FRAME Report: "&FAllYR&"/"&RIGHT(SpringYR,2)&" Budget" -> FRAME Report: 2024/25 Budget
B5: All pages of the FRAME report containing the tables of financial and statistical data are included in this file.
B7: In most cases, formulas have been left intact to show how statistics such as percentages and average costs per pupil are derived.
B10: Each worksheet tab is numbered to match the corresponding page found in the published document so for example to see page 15, click the worksheet tab - 15 - .
B13: This file is unprotected for data analysis by the user. Data can also be copied to other files or additional data copied to this one. In cases of dispute however, the published FRAME reports and the corresponding files located on the Manitoba Govenment web site remain the final authority.
B20: http://www.edu.gov.mb.ca/k12/finance/frame_report/index.html

Sheet VersionNotes (hidden)
A1: FILE WORKFLOW, NOTES, and VERSION DETAILS
A2: Hide this worksheet for publication
A5: File Preparation workflow and notes
A6: May 31 2024 | B6: updated links to
C7: 25b division files
C8: 25bProvsum
A9: June 2024 | B9: Updates to Other Linked files
D11: 2022-23 FRAME Budget FINAL | E11: updated to 23/4 F Bdgt June 3/24
D12: 2023-2024 Summary | E12: created & updated Sept 4/24
D13: 2023-24 BUDGET Data | E13: updated June 3/24
D14: 2023F Assessment 17-Jan-2023v2 | E14: updated June 3/24
D17: 9) 23-24TBMOD2_23_01_24 includes $20m Add'l operating v5 | E17: updated June 3/23
D18: Age and Area 2023-24 v2 | E18: updated June 3/24
D19: CPI | E19: link removed file not updated - used MB Stat Econ Forecast July 9724
D20: DSF2022-23E2 | E20: updated June 3/24
D21: Enrolment Statistic for FRAME Reports Budget | E21: updated Sept 4/24
D22: Splevy23 | E22: updated June 3/24
D23: TRAF Pension Projections 23-24 | E23: Updated Sept 20/24
A25: June 4 2024 | B25: updated tax info per MB Estimates of Expenditures per Budget 2024
A28: Sept 20 2024 | B28: Prep Supp Info doc
B32: Re-work Prov funding to pull out
B35: Why is capital components deducted from EPTCA total to determine MEPTC
A58: Final Report Version Control

Sheet PrvFunding (hidden)
B1: DRAFT - SUBJECT TO FINAL RECONCILIATION WITH FRAME REPORT
A3: PROVINCIAL CONTRIBUTION TO PUBLIC EDUCATION
G5: Tot Exp | H5: Prov Govt
G6: =C33 -> 3009606582 | H6: =D33 -> 1684968798
G7: Net Trans to Cap | H7: TIG
G8: ='- 44 -'!$B$48 -> 24289010 | H8: 37392862
G12: W:\FSP Estimates\Treasury\YY-YY
G13: Sheet: 16-5(e)
C14: 2024/2025 ($ millions)
G15: Principal | H15: 99878572.53
C16: Total Expenditure | D16: Provincial | E16: Provincial | G16: Interest | H16: 57592769.74 | J16: Prior Year
C17: on Public Education | D17: Contribution | E17: Contribution as % | H17: =SUM(H15:H16) -> 157471342.3 | J17: Total Pub Exp | K17: Prv Cont | L17: Change
A19: 1 | B19: FRAME Operating Fund | C19: =C33/1000000 -> 3009.606582 | D19: =D33/1000000 -> 1684.968798 | E19: =D19/C19 -> 0.5598634745 | J19: 2793.945717 | K19: 1623.21258 | L19: =D19-K19 -> 61.756218 | N19: =L19 -> 61.756218 | O19: Ops Funding
A20: 2 | B20: School division capital (net transfers to capital fund) | C20: =G8/1000000 -> 24.28901 | D20: 0 | E20: 0 | G20: =D68*1000 -> 270000000 | H20: ='- 41 -'!G47 -> 109085927 | J20: 16.284056 | K20: 0 | L20: 0 | N20: =L21 -> 5.765049129 | O20: Cap Funding
A21: 3 | B21: Provincial Capital Grant Funding and Other | C21: =H17/1000000 -> 157.4713423 | D21: =C21 -> 157.4713423 | E21: =D21/C21 -> 1 | G21: (Total EPTC | H21: (EPTC from | J21: 151.7062931 | K21: 151.7062931 | L21: 5.765049129 | N21: =SUM(N19:N20) -> 67.52126713 | O21: Net grants funding
A22: 4 | B22: Manitoba Education Property Tax Credit (1) | C22: n/a | D22: =((G20-H20)/1000000) -> 160.914073 | E22: 1 | G22: from Estimates) | H22: FRAME) | J22: n/a | K22: 71.216448 | L22: =D22-K22 -> 89.697625
A23: 5 | B23: Farmland School Tax Rebate | C23: n/a | D23: =G28/1000 -> 22.831 | E23: 1 | J23: n/a | K23: 22.831 | L23: 0 | N23: =L22+L23+L24+L26 -> -0.637375 | O23: Tax Cr & Rebates
A24: 6 | B24: School Tax Assistance | C24: n/a | D24: =G29/1000 -> 0.15 | E24: 1 | J24: n/a | K24: 0.185 | L24: -0.035 | N24: =L25 -> -4.214 | O24: TRAF
A25: 7 | B25: Teachers' Retirement Allowances Fund | C25: =D25 -> 225.051 | D25: =G30/1000 -> 225.051 | E25: =D25/C25 -> 1 | J25: 229.265 | K25: 229.265 | L25: -4.214
A26: 8 | B26: Education Property Tax Rebate | C26: n/a | D26: =D48 -> 372.8 | E26: 1 | J26: n/a | K26: 463.1 | L26: -90.3
B27: Adjusted Total | C27: =SUM(C19:C26) -> 3416.417934 | D27: =SUM(D19:D26) -> 2624.186213 | E27: =D27/C27 -> 0.7681104197 | G27: =G20 -> 270000000 | H27: EPTC | J27: =SUM(J19:J26) -> 3191.201066 | K27: =SUM(K19:K26) -> 2561.516321 | L27: 62.66989213
G28: =D35 -> 22831 | H28: Farmland | K28: 0.8026809556 | L28: =ROUND(E27-K28,3) -> -0.035
G29: =D41 -> 150 | H29: School Tax Assistance for Tenants and Homeowners
G30: =D44 -> 225051 | H30: Teachers’ Retirement Allowances Fund
A33: 1 | B33: FRAME Operating Fund | C33: ='- 3 -'!$B$48+('- 3 -'!$B$50)*0 -> 3009606582 | D33: ='- 41 -'!$I$47+('- 41 -'!$I$49)*0 -> 1684968798
A35: 5 | B35: Farmland School Tax Rebate | D35: 22831
B36: p. 33 (34 of 174) : 3.2(g) Agriculture, Risk Management Credit and Income Support Prgms | D36: unchanged from prior year (2023)
A38: 4 | B38: Manitoba Education Property Tax Credit and School Tax Rebate (1) | D38: =D75 -> 160914.073
A41: 6 | B41: School Tax Assistance (Pensioners) | D41: 150 | E41: 185
B42: N2(g)(1) p. 168 (170 of 174)
A44: 7 | B44: Teachers' Retirement Allowances Fund | D44: 225051
B45: email fr. Michel St. Amant - Finance (TBS) - budget (previous year - projection used)
B46: ..\..\..\Frame\REPORTS\Provincial Contribution\TRAF Pension Projections 24-25.xlsx
A48: 8 | B48: Education Property Tax Rebate | D48: 372.8
B49: S 1 (a) (1) p. 168 (170 of 174) S 1 (a) (1)
B52: 2024 MANITOBA ESTIMATES OF EXPENDITURE (gov.mb.ca)
D62: =YEAR -> 2024 | E62: =PriorYEAR -> 2023/24
G63: Teams call from Carlos Matias - not to include School Tax Rebate - Mar21/22
E64: 0 | G64: Component | H64: Change
D65: 91500 | E65: 90000 | G65: Renters Tax Credit | H65: =D65-E65 -> 1500
D66: 6500 | E66: 10900 | G66: EPTC | H66: =D66-E66 -> -4400
D67: 172000 | E67: 103000 | G67: HEPTR | H67: 69000
D68: =SUM(D64:D67) -> 270000 | E68: =SUM(E64:E67) -> 203900 | G68: EPTCA | H68: 66100
G71: Income tax | H71: estimated by our Branch
D72: =D68-D73 -> 160914.073 | E72: =E68-E73 -> 94814.073 | G72: EPTCA (w/o XW)
D73: ='- 41 -'!G47/1000 -> 109085.927 | E73: 109085.927 | G73: p. 41 ($155,862,579 + $305,781 = $156,168,360 EPTCA)
D74: =SUM(D71:D73) -> 270000 | E74: =SUM(E71:E73) -> 203900
D75: =+D71+D72 -> 160914.073 | E75: =+E71+E72 -> 94814.073
D76: =+E27 -> 0.7681104197 | E76: 0.675
G84: EPTC = HOATC

Sheet viii
A1: =IF(Lang=1,H1,I1) -> PROVINCIAL CONTRIBUTION TO PUBLIC EDUCATION | H1: PROVINCIAL CONTRIBUTION TO PUBLIC EDUCATION | I1: CONTRIBUTION PROVINCIALE À L'ÉDUCATION PUBLIQUE
A3: ="The total cost of public education in Manitoba includes direct expenditures for the operation of schools (e.g. educator and administrator salaries, teaching supplies, pupil transportation, utilities, building maintenance)"&" and capital expenditures for school building construction and major building repairs and renovations."&" Also included are provincial expenditures for pensions for retired teachers and the provincial education tax credit programs for homeowners, tenants and farmers which results in reduced property tax bills."&" The total provincial contribution to public education accounts for "&ROUND(PrvCntPer*100,1)&"% of the total of these expenditures." -> The total cost of public education in Manitoba includes direct expenditures for the operation of schools (e.g. educator and administrator salaries, teaching supplies, pupil transportation, utilities, building maintenance) and capital expenditures for school building construction and major building repairs and renovations. Also included are provincial expenditures for pensions for retired teachers and the provincial education tax credit programs for homeowners, tenants and farmers which results in reduced property tax bills. The total provincial contribution to public education accounts for 76.8% of the total of these expenditures.
L7: .
A12: Categories | C12: =FAllYR&"/"&SpringYR&" ($ millions)" -> 2024/2025 ($ millions)
C13: Total Expenditure on Public Education | D13: Provincial Contribution | E13: Provincial Contribution as %
A16: 1 | B16: FRAME Operating Fund | C16: =PrvFunding!C19 -> 3009.606582 | D16: =PrvFunding!D19 -> 1684.968798 | E16: =D16/C16 -> 0.5598634745
A17: 2 | B17: School division capital (net transfers to capital fund) | C17: =PrvFunding!C20 -> 24.28901 | D17: 0 | E17: 0
A18: 3 | B18: Provincial Capital Grant Funding and Other | C18: =PrvFunding!C21 -> 157.4713423 | D18: =PrvFunding!D21 -> 157.4713423 | E18: =D18/C18 -> 1
A19: 4 | B19: Manitoba Education Property Tax Credit (1) | C19: n/a | D19: =PrvFunding!D22 -> 160.914073 | E19: n/a | P19: =IF('- 3 -'!$I$48=0,"","check updated file with W drive") -> 
A20: 5 | B20: Farmland School Tax Rebate | C20: n/a | D20: =PrvFunding!D23 -> 22.831 | E20: n/a | P20: =IF('- 43 -'!$I$63298=0,"","check updated file with W drive") -> 
A21: 6 | B21: School Tax Assistance for Tenants and Homeowners (55+) | C21: n/a | D21: =PrvFunding!D24 -> 0.15 | E21: n/a
A22: 7 | B22: Teachers' Retirement Allowances Fund | C22: =PrvFunding!C25 -> 225.051 | D22: =PrvFunding!D25 -> 225.051 | E22: =D22/C22 -> 1
A23: 8 | B23: Education Property Tax Rebate | C23: =PrvFunding!C26 -> n/a | D23: =PrvFunding!D26 -> 372.8 | E23: n/a
B24: Adjusted Total | C24: =SUM(C16:C23) -> 3416.417934 | D24: =SUM(D16:D23) -> 2624.186213 | E24: =D24/C24 -> 0.7681104197
A26: (1) | B26: The portion of the Education Property Tax Credit (EPTC) delivered through the income tax system directly to homeowners and renters.
B27: ="EPTC reported by school divisions of $"&ROUND('- 41 -'!G47/1000000,1)&" million is adjusted by $"&ROUND(D19,1)&" million to equal the Total EPTC as per the Manitoba "&YEAR&" Estimates of Expenditure of $"&ROUND(PrvFunding!D68/1000,1)&" million. See page 41 for more information." -> EPTC reported by school divisions of $109.1 million is adjusted by $160.9 million to equal the Total EPTC as per the Manitoba 2024 Estimates of Expenditure of $270 million. See page 41 for more information.
B29: Note: In-year additional funding for the $500 million Manitoba School Tax Rebate is not included in the Provincial Contribution in this FRAME Report, as the details were not finalized until after the school divisions' 2024/25 Budget submissions. Rather, the Rebate is included in municipal revenue.
A31: Source:
A33: 1 | B33: ="FRAME "&FAllYR&"/"&SpringYR&" Budget page 3, page 41" -> FRAME 2024/2025 Budget page 3, page 41
A34: 2 | B34: ="FRAME "&FAllYR&"/"&SpringYR&" Budget page 44" -> FRAME 2024/2025 Budget page 44
A35: 3 | B35: 2024/2025 Funding Announcement February 2024
A36: 4 | B36: Manitoba 2024 Estimates of Expenditure for the fiscal year ending March 31, 2025
A37: 5 | B37: =B36 -> Manitoba 2024 Estimates of Expenditure for the fiscal year ending March 31, 2025
A38: 6 | B38: =B37 -> Manitoba 2024 Estimates of Expenditure for the fiscal year ending March 31, 2025
A39: 7 | B39: Department of Finance
A40: 8 | B40: Department of Finance
C46: `

Sheet - 1 -
U3: YEAR | V3: 2010 | W3: 2011 | X3: 2012 | Y3: 2013 | Z3: 2014 | AA3: 2015 | AB3: 2016 | AC3: 2017 | AD3: 2018 | AE3: 2019 | AF3: 2020 | AG3: 2021 | AH3: 2022 | AI3: =+AH3+1 -> 2023 | AJ3: 2024 | AK3: 2025
U4: ENROLMENT | V4: 179.784 | W4: 181.147 | X4: 181.561 | Y4: 181.278 | Z4: 181.901 | AA4: 183.13 | AB4: 185.225 | AC4: 186.8 | AD4: 188.5 | AE4: 189.9 | AF4: 180.9 | AG4: 183.1 | AH4: 179.6 | AI4: 183.4 | AJ4: =+'- 8 -'!E48/1000 -> 188.89936
V7: PRIOR YEARS DATA
U8: YEAR | V8: 1968 | W8: 1969 | X8: 1970 | Y8: 1971 | Z8: 1972 | AA8: 1973 | AB8: 1974 | AC8: 1975 | AD8: 1976 | AE8: 1977 | AF8: 1978 | AG8: 1979 | AH8: 1980 | AI8: 1981 | AJ8: 1982 | AK8: 1983 | AL8: 1984 | AM8: 1985 | AN8: 1986 | AO8: 1987 | AP8: 1988 | AQ8: 1989 | AR8: 1990 | AS8: 1991 | AT8: 1992 | AU8: 1993 | AV8: 1994 | AW8: 1995 | AX8: 1996 | AY8: 1997 | AZ8: 1998 | BA8: 1999 | BB8: 2000 | BC8: 2001 | BD8: 2002 | BE8: 2003 | BF8: 2004 | BG8: 2005 | BH8: 2006 | BI8: 2007 | BJ8: 2008 | BK8: 2009
U9: ENROLMENT | V9: 232.2 | W9: 245.5 | X9: 247.5 | Y9: 245.6 | Z9: 239.7 | AA9: 231.4 | AB9: 227.5 | AC9: 225.6 | AD9: 223.2 | AE9: 219.2 | AF9: 213.4 | AG9: 206.7 | AH9: 202.4 | AI9: 199.1 | AJ9: 199 | AK9: 198.2 | AL9: 198 | AM9: 197.6 | AN9: 197.7 | AO9: 198.3 | AP9: 197.7 | AQ9: 196.7 | AR9: 196.4 | AS9: 195.9 | AT9: 195.6 | AU9: 195.2 | AV9: 194.2 | AW9: 194.7 | AX9: 194.7 | AY9: 194.3 | AZ9: 194.7 | BA9: 191.8 | BB9: 191.9 | BC9: 190.7 | BD9: 188.8 | BE9: 188.1 | BF9: 186.3 | BG9: 184.3 | BH9: 182 | BI9: 181.2 | BJ9: 179.892 | BK9: 179.593

Sheet - 2 -
S24: - 2 -
F99: W:\Edusfb\CPI/CPI.xlsx
H101: TOTAL | I101: CPI
H102: EXPENSES | I102: 2002 = 100 | J102: CPI ADJUSTED | K102: Actual | L102: Adjusted
H103: CURRENT | J103: CONSTANT | K103: $millions | L103: $millions
F105: Actual | G105: 10/11 | H105: 1875139076 | I105: 116.6583333 | J105: 1607376878 | K105: 1875.139076 | L105: 1607.376878
F106: Actual | G106: 11/12 | H106: 1945942424 | I106: 119.4166667 | J106: 1629540062 | K106: 1945.942424 | L106: 1629.540062
F107: Actual | G107: 12/13 | H107: 2017420276 | I107: 121.4833333 | J107: 1660656010 | K107: 2017.420276 | L107: 1660.65601
F108: Actual | G108: 13/14 | H108: 2086402489 | I108: 124.4 | J108: 1677172419 | K108: 2086.402489 | L108: 1677.172419
F109: Actual | G109: 14/15 | H109: 2156918416 | I109: 125.7833333 | J109: 1714788723 | K109: 2156.918416 | L109: 1714.788723
F110: Actual | G110: 15/16 | H110: 2235012397 | I110: 127.725 | J110: 1749862906 | K110: 2235.012397 | L110: 1749.862906
F111: Actual | G111: 16/17 | H111: 2313048846 | I111: 129.325 | J111: 1788555071 | K111: 2313.048846 | L111: 1788.555071
F112: Actual | G112: 17/18 | H112: 2377682744 | I112: 132.1333333 | J112: 1799457173 | K112: 2377.682744 | L112: 1799.457173 | N112: =I112-I111 -> 2.808333333
F113: Actual | G113: 18/19 | H113: 2418150519 | I113: 135.2916667 | J113: 1787361024 | K113: 2418.150519 | L113: 1787.361024 | N113: 3.158333333
F114: Actual | G114: 19/20 | H114: 2431876352 | I114: 137.4 | J114: 1769924565 | K114: 2431.876352 | L114: 1769.924565 | N114: 2.108333333
F115: Actual | G115: 20/21 | H115: 2502532235 | I115: 138.9416667 | J115: 1801138776 | K115: 2502.532235 | L115: 1801.138776 | N115: 1.541666667
F116: Actual | G116: 21/22 | H116: 2545291671 | I116: 147.2083333 | J116: 1729040478 | K116: 2545.291671 | L116: 1729.040478 | N116: =I116-I115 -> 8.266666667
F117: Actual | G117: 22/23 | H117: 2663111725 | I117: 156.0583333 | J117: 1706484792 | K117: 2663.111725 | L117: 1706.484792 | N117: =I117-I116 -> 8.85
F118: Actual | G118: 23/24 | H118: 2793945717 | I118: 158.9 | J118: 1758304416 | K118: 2793.945717 | L118: 1758.304416 | N118: =I118-I117 -> 2.841666667
F119: Budget | G119: 24/25 | H119: ='- 3 -'!B48 -> 3009606582 | I119: =I118+I121 -> 160.8 | J119: =H119*(100/I119) -> 1871645884 | K119: =H119/1000000 -> 3009.606582 | L119: =J119/1000000 -> 1871.645884 | N119: 1.9
B121: Manitoba Finance Survey of Economic Forecasts, June 09 2024 | H121: Pg 2 | I121: 1.9 | J121: MB CPI increase over PY
B136: The latest CPI data is found here
B137: Province of Manitoba | Manitoba Bureau of Statistics (gov.mb.ca)
B139: The latest CPI forecast is found here
B140: Province of Manitoba | Manitoba Bureau of Statistics (gov.mb.ca)

Sheet - 3 -
A2: =IF(Lang=1,BA2,BB2) -> RECONCILIATION OF EXPENSES | BA2: RECONCILIATION OF EXPENSES | BB2: CONCILIATION DES DÉPENSES
A3: =IF(Lang=1,BA3,BB3) -> OPERATING FUND 2024/2025 BUDGET | BA3: ="OPERATING FUND "&YEAR&"/"&YEAR+1&" BUDGET" -> OPERATING FUND 2024/2025 BUDGET | BB3: ="FONDS DE FONCTIONNEMENT – BUDGET "&YEAR&" - "&YEAR+1 -> FONDS DE FONCTIONNEMENT – BUDGET 2024 - 2025
C6: LESS OPERATING FUND TRANSFERS (2) | D6: EXPENSES NET OF TRANSFERS (3) | E6: LESS NON K-12 EDUCATION & SERVICES (4) | F6: TOTAL EXPENSES FOR PER PUPIL COSTS (5)
B8: TOTAL EXPENSES (1)
A9: DIVISION / DISTRICT
A11: BEAUTIFUL PLAINS | B11: 28629413 | C11: =-Data!L11 -> -98510 | D11: =B11+C11 -> 28530903 | E11: =-'- 15 -'!H11-'- 16 -'!B11 -> -28560 | F11: =D11+E11 -> 28502343
A12: BORDER LAND | B12: 40587010 | C12: =-Data!L12 -> -565000 | D12: =B12+C12 -> 40022010 | E12: =-'- 15 -'!H12-'- 16 -'!B12 -> -412723 | F12: =D12+E12 -> 39609287
A13: BRANDON | B13: 132429365 | C13: =-Data!L13 -> -84500 | D13: 132344865 | E13: =-'- 15 -'!H13-'- 16 -'!B13 -> -415680 | F13: 131929185
A14: DSFM | B14: 119297743 | C14: =-Data!L14 -> -740185 | D14: 118557558 | E14: =-'- 15 -'!H14-'- 16 -'!B14 -> -972790 | F14: 117584768
A15: EVERGREEN | B15: 24897928 | C15: =-Data!L15 -> -70500 | D15: 24827428 | E15: =-'- 15 -'!H15-'- 16 -'!B15 -> 0 | F15: 24827428
A16: FLIN FLON | B16: 18136636 | C16: =-Data!L16 -> -3900 | D16: 18132736 | E16: =-'- 15 -'!H16-'- 16 -'!B16 -> -104041 | F16: 18028695
A17: FORT LA BOSSE | B17: 22861785 | C17: =-Data!L17 -> -60650 | D17: 22801135 | E17: =-'- 15 -'!H17-'- 16 -'!B17 -> -258090 | F17: 22543045
A18: FRONTIER | B18: 178751938 | C18: =-Data!L18 -> -2206310 | D18: 176545628 | E18: =-'- 15 -'!H18-'- 16 -'!B18 -> -5625668 | F18: 170919960
A19: GARDEN VALLEY | B19: 59323665 | C19: =-Data!L19 -> -508000 | D19: 58815665 | E19: =-'- 15 -'!H19-'- 16 -'!B19 -> -54073 | F19: 58761592
A20: HANOVER | B20: 118628500 | C20: =-Data!L20 -> -2981400 | D20: 115647100 | E20: =-'- 15 -'!H20-'- 16 -'!B20 -> -126300 | F20: 115520800
A21: INTERLAKE | B21: 44833000 | C21: =-Data!L21 -> -260086 | D21: 44572914 | E21: =-'- 15 -'!H21-'- 16 -'!B21 -> 0 | F21: 44572914
A22: KELSEY | B22: 24144442 | C22: =-Data!L22 -> -11000 | D22: 24133442 | E22: =-'- 15 -'!H22-'- 16 -'!B22 -> -705251 | F22: 23428191
A23: LAKESHORE | B23: 18301211 | C23: =-Data!L23 -> -80700 | D23: 18220511 | E23: =-'- 15 -'!H23-'- 16 -'!B23 -> -396200 | F23: 17824311
A24: LORD SELKIRK | B24: 69315399 | C24: =-Data!L24 -> -182000 | D24: 69133399 | E24: =-'- 15 -'!H24-'- 16 -'!B24 -> -811232 | F24: 68322167
A25: LOUIS RIEL | B25: 244505098 | C25: =-Data!L25 -> -1063500 | D25: 243441598 | E25: =-'- 15 -'!H25-'- 16 -'!B25 -> -3524304 | F25: 239917294
A26: MOUNTAIN VIEW | B26: 49815034 | C26: =-Data!L26 -> -5000 | D26: 49810034 | E26: =-'- 15 -'!H26-'- 16 -'!B26 -> -121671 | F26: 49688363
A27: MYSTERY LAKE | B27: 50186474 | C27: =-Data!L27 -> -9200 | D27: 50177274 | E27: =-'- 15 -'!H27-'- 16 -'!B27 -> -41968 | F27: 50135306
A28: PARK WEST | B28: 34788869 | C28: =-Data!L28 -> -110000 | D28: 34678869 | E28: =-'- 15 -'!H28-'- 16 -'!B28 -> -359019 | F28: 34319850
A29: PEMBINA TRAILS | B29: 223347192 | C29: =-Data!L29 -> -2473000 | D29: 220874192 | E29: =-'- 15 -'!H29-'- 16 -'!B29 -> -146172 | F29: 220728020
A30: PINE CREEK | B30: 19627253 | C30: =-Data!L30 -> 0 | D30: 19627253 | E30: =-'- 15 -'!H30-'- 16 -'!B30 -> -14790 | F30: 19612463
A31: PORTAGE LA PRAIRIE | B31: 49785391 | C31: =-Data!L31 -> -45000 | D31: 49740391 | E31: =-'- 15 -'!H31-'- 16 -'!B31 -> -57023 | F31: 49683368
A32: PRAIRIE ROSE | B32: 37060043 | C32: =-Data!L32 -> -216750 | D32: 36843293 | E32: =-'- 15 -'!H32-'- 16 -'!B32 -> -326443 | F32: 36516850
A33: PRAIRIE SPIRIT | B33: 33073134 | C33: =-Data!L33 -> -80500 | D33: 32992634 | E33: =-'- 15 -'!H33-'- 16 -'!B33 -> -31087 | F33: 32961547
A34: RED RIVER VALLEY | B34: 38269327 | C34: =-Data!L34 -> -396475 | D34: 37872852 | E34: =-'- 15 -'!H34-'- 16 -'!B34 -> -59860 | F34: 37812992
A35: RIVER EAST TRANSCONA | B35: 251167382 | C35: =-Data!L35 -> -57800 | D35: 251109582 | E35: =-'- 15 -'!H35-'- 16 -'!B35 -> -2432163 | F35: 248677419
A36: ROLLING RIVER | B36: 28346425 | C36: =-Data!L36 -> -411150 | D36: 27935275 | E36: =-'- 15 -'!H36-'- 16 -'!B36 -> -25890 | F36: 27909385
A37: SEINE RIVER | B37: 65670449 | C37: =-Data!L37 -> -661500 | D37: 65008949 | E37: =-'- 15 -'!H37-'- 16 -'!B37 -> -322314 | F37: 64686635
A38: SEVEN OAKS | B38: 181211019 | C38: =-Data!L38 -> -1195250 | D38: 180015769 | E38: =-'- 15 -'!H38-'- 16 -'!B38 -> -5358483 | F38: 174657286
A39: SOUTHWEST HORIZON | B39: 26585000 | C39: =-Data!L39 -> -301000 | D39: 26284000 | E39: =-'- 15 -'!H39-'- 16 -'!B39 -> -192500 | F39: 26091500
A40: ST. JAMES-ASSINIBOIA | B40: 130209877 | C40: =-Data!L40 -> -391000 | D40: 129818877 | E40: =-'- 15 -'!H40-'- 16 -'!B40 -> -1078354 | F40: 128740523
A41: SUNRISE | B41: 81040512 | C41: =-Data!L41 -> -765000 | D41: 80275512 | E41: =-'- 15 -'!H41-'- 16 -'!B41 -> -1091175 | F41: 79184337
A42: SWAN VALLEY | B42: 27518400 | C42: =-Data!L42 -> -62600 | D42: 27455800 | E42: =-'- 15 -'!H42-'- 16 -'!B42 -> -100508 | F42: 27355292
A43: TURTLE MOUNTAIN | B43: 16076853 | C43: =-Data!L43 -> -26000 | D43: 16050853 | E43: =-'- 15 -'!H43-'- 16 -'!B43 -> -223863 | F43: 15826990
A44: TURTLE RIVER | B44: 12909720 | C44: =-Data!L44 -> -155984 | D44: 12753736 | E44: =-'- 15 -'!H44-'- 16 -'!B44 -> -29521 | F44: 12724215
A45: WESTERN | B45: 30795895 | C45: =-Data!L45 -> -114500 | D45: 30681395 | E45: =-'- 15 -'!H45-'- 16 -'!B45 -> -526009 | F45: 30155386
A46: WINNIPEG | B46: 477479200 | C46: =-Data!L46 -> -2389450 | D46: 475089750 | E46: =-'- 15 -'!H46-'- 16 -'!B46 -> -9439674 | F46: 465650076
A48: PROVINCE | B48: =SUM(B11:B46) -> 3009606582 | C48: =SUM(C11:C46) -> -18783400 | D48: =SUM(D11:D46) -> 2990823182 | E48: =SUM(E11:E46) -> -35413399 | F48: =SUM(F11:F46) -> 2955409783 | I48: 0
A50: WHITESHELL | B50: 4249020 | C50: =-Data!L50 -> -29100 | D50: =B50+C50 -> 4219920 | E50: =-'- 15 -'!H50-'- 16 -'!B50 -> -273996 | F50: =D50+E50 -> 3945924
A52: (1) Total operating expenses as reported on the Schedule of Revenues and Expenses in each school division's budget.
A53: (2) Operating fund transfers are payments to other school divisions, organizations and individuals. These are removed to provide more
A54: accurate per pupil costs.
A55: (3) As reported on pages 10 and 13 (on a provincial basis).
A56: (4) Expenses for Adult Learning Centres and Community Education and Services (Functions 300 and 400).
A57: (5) As reported on page 4.

Sheet - 4 -
A2: =IF(Lang=1,BA2,BB2) -> OPERATING FUND EXPENSE PER PUPIL | BA2: OPERATING FUND EXPENSE PER PUPIL | BB2: DÉPENSES DU FONDS DE FONCTIONNEMENT PAR ÉLÈVE
A3: 2023/24 and 2024/25 BUDGET
B7: =YEAR-1&"/"&YEAR&" BUDGET" -> 2023/2024 BUDGET | D7: =YEAR&"/"&YEAR+1&" BUDGET" -> 2024/2025 BUDGET
A9: DIVISION / DISTRICT | B9: EXPENSES (1) | C9: PER PUPIL | D9: EXPENSES (1) | E9: PER PUPIL
A11: BEAUTIFUL PLAINS | B11: 26439316 | C11: 12730 | D11: ='- 3 -'!F11 -> 28502343 | E11: =ROUND(D11/'- 7 -'!E11,0) -> 12741 | F11: =IF(B11=D11,"Check","") -> 
A12: BORDER LAND | B12: 37552410 | C12: 18084 | D12: ='- 3 -'!F12 -> 39609287 | E12: =ROUND(D12/'- 7 -'!E12,0) -> 19469 | F12: =IF(B12=D12,"Check","") -> 
A13: BRANDON | B13: 121649387 | C13: 13364 | D13: ='- 3 -'!F13 -> 131929185 | E13: =ROUND(D13/'- 7 -'!E13,0) -> 13945
A14: DSFM | B14: 108774242 | C14: 17902 | D14: ='- 3 -'!F14 -> 117584768 | E14: =ROUND(D14/'- 7 -'!E14,0) -> 19036
A15: EVERGREEN | B15: 23380700 | C15: 16748 | D15: ='- 3 -'!F15 -> 24827428 | E15: =ROUND(D15/'- 7 -'!E15,0) -> 17785
A16: FLIN FLON | B16: 16735757 | C16: 19759 | D16: ='- 3 -'!F16 -> 18028695 | E16: =ROUND(D16/'- 7 -'!E16,0) -> 22621
A17: FORT LA BOSSE | B17: 21244928 | C17: 14042 | D17: ='- 3 -'!F17 -> 22543045 | E17: =ROUND(D17/'- 7 -'!E17,0) -> 14460
A18: FRONTIER | B18: 160656229 | C18: 25854 | D18: ='- 3 -'!F18 -> 170919960 | E18: =ROUND(D18/'- 7 -'!E18,0) -> 26287
A19: GARDEN VALLEY | B19: 56003040 | C19: 13271 | D19: ='- 3 -'!F19 -> 58761592 | E19: =ROUND(D19/'- 7 -'!E19,0) -> 13830
A20: HANOVER | B20: 102234500 | C20: 12589 | D20: ='- 3 -'!F20 -> 115520800 | E20: =ROUND(D20/'- 7 -'!E20,0) -> 13560
A21: INTERLAKE | B21: 40973964 | C21: 14379 | D21: ='- 3 -'!F21 -> 44572914 | E21: =ROUND(D21/'- 7 -'!E21,0) -> 15574
A22: KELSEY | B22: 20974255 | C22: 14667 | D22: ='- 3 -'!F22 -> 23428191 | E22: =ROUND(D22/'- 7 -'!E22,0) -> 16360
A23: LAKESHORE | B23: 16649329 | C23: 18246 | D23: ='- 3 -'!F23 -> 17824311 | E23: =ROUND(D23/'- 7 -'!E23,0) -> 18281
A24: LORD SELKIRK | B24: 62789898 | C24: 16695 | D24: ='- 3 -'!F24 -> 68322167 | E24: =ROUND(D24/'- 7 -'!E24,0) -> 18137
A25: LOUIS RIEL | B25: 218783086 | C25: 13531 | D25: ='- 3 -'!F25 -> 239917294 | E25: =ROUND(D25/'- 7 -'!E25,0) -> 14107
A26: MOUNTAIN VIEW | B26: 46031890 | C26: 15187 | D26: ='- 3 -'!F26 -> 49688363 | E26: =ROUND(D26/'- 7 -'!E26,0) -> 15967
A27: MYSTERY LAKE | B27: 46320536 | C27: 16816 | D27: ='- 3 -'!F27 -> 50135306 | E27: =ROUND(D27/'- 7 -'!E27,0) -> 17776
A28: PARK WEST | B28: 32222646 | C28: 15210 | D28: ='- 3 -'!F28 -> 34319850 | E28: =ROUND(D28/'- 7 -'!E28,0) -> 15657
A29: PEMBINA TRAILS | B29: 203837562 | C29: 13011 | D29: ='- 3 -'!F29 -> 220728020 | E29: =ROUND(D29/'- 7 -'!E29,0) -> 13327
A30: PINE CREEK | B30: 17273579 | C30: 15979 | D30: ='- 3 -'!F30 -> 19612463 | E30: =ROUND(D30/'- 7 -'!E30,0) -> 18270
A31: PORTAGE LA PRAIRIE | B31: 46240094 | C31: 13426 | D31: ='- 3 -'!F31 -> 49683368 | E31: =ROUND(D31/'- 7 -'!E31,0) -> 14699
A32: PRAIRIE ROSE | B32: 34442904 | C32: 14632 | D32: ='- 3 -'!F32 -> 36516850 | E32: =ROUND(D32/'- 7 -'!E32,0) -> 15781
A33: PRAIRIE SPIRIT | B33: 31249690 | C33: 14548 | D33: ='- 3 -'!F33 -> 32961547 | E33: =ROUND(D33/'- 7 -'!E33,0) -> 15331
A34: RED RIVER VALLEY | B34: 35351019 | C34: 15539 | D34: ='- 3 -'!F34 -> 37812992 | E34: =ROUND(D34/'- 7 -'!E34,0) -> 16132
A35: RIVER EAST TRANSCONA | B35: 222579603 | C35: 13047 | D35: ='- 3 -'!F35 -> 248677419 | E35: =ROUND(D35/'- 7 -'!E35,0) -> 13696
A36: ROLLING RIVER | B36: 26721265 | C36: 15088 | D36: ='- 3 -'!F36 -> 27909385 | E36: =ROUND(D36/'- 7 -'!E36,0) -> 15925
A37: SEINE RIVER | B37: 59905852 | C37: 12976 | D37: ='- 3 -'!F37 -> 64686635 | E37: =ROUND(D37/'- 7 -'!E37,0) -> 14637
A38: SEVEN OAKS | B38: 162367335 | C38: 13728 | D38: ='- 3 -'!F38 -> 174657286 | E38: =ROUND(D38/'- 7 -'!E38,0) -> 14767
A39: SOUTHWEST HORIZON | B39: 25303800 | C39: 17548 | D39: ='- 3 -'!F39 -> 26091500 | E39: =ROUND(D39/'- 7 -'!E39,0) -> 18316
A40: ST. JAMES-ASSINIBOIA | B40: 121962953 | C40: 15310 | D40: ='- 3 -'!F40 -> 128740523 | E40: =ROUND(D40/'- 7 -'!E40,0) -> 15980
A41: SUNRISE | B41: 72957063 | C41: 15860 | D41: ='- 3 -'!F41 -> 79184337 | E41: =ROUND(D41/'- 7 -'!E41,0) -> 17164
A42: SWAN VALLEY | B42: 25183050 | C42: 18807 | D42: ='- 3 -'!F42 -> 27355292 | E42: =ROUND(D42/'- 7 -'!E42,0) -> 19737
A43: TURTLE MOUNTAIN | B43: 14708008 | C43: 14224 | D43: ='- 3 -'!F43 -> 15826990 | E43: =ROUND(D43/'- 7 -'!E43,0) -> 15030
A44: TURTLE RIVER | B44: 12169007 | C44: 20855 | D44: ='- 3 -'!F44 -> 12724215 | E44: =ROUND(D44/'- 7 -'!E44,0) -> 21049
A45: WESTERN | B45: 26345665 | C45: 12308 | D45: ='- 3 -'!F45 -> 30155386 | E45: =ROUND(D45/'- 7 -'!E45,0) -> 13284
A46: WINNIPEG | B46: 441630147 | C46: 16152 | D46: ='- 3 -'!F46 -> 465650076 | E46: =ROUND(D46/'- 7 -'!E46,0) -> 16389
A48: PROVINCE | B48: 2739644709 | C48: 14941 | D48: =SUM(D11:D46) -> 2955409783 | E48: =ROUND(D48/'- 7 -'!E48,0) -> 15645
A50: WHITESHELL | B50: 3767411 | C50: 21904 | D50: ='- 3 -'!F50 -> 3945924 | E50: =ROUND(D50/'- 7 -'!E50,0) -> 22875
A52: (1) Operating fund transfers (i.e. payments to other school divisions, organizations and individuals) are excluded to provide more accurate per pupil costs. Also excluded are expenditures on educational services not provided to K-12 pupils: Function 300 (Adult Learning Centres) and Function 400 (Community Education and Services).

Sheet - 5 -
AA3: =FAllYR&"/"&RIGHT(SpringYR,2)&" OPERATING FUND EXPENSE PER PUPIL" -> 2024/25 OPERATING FUND EXPENSE PER PUPIL
S24: - 5 -
W33: .
B50: FROM PAGE 4, columns A (names) and E (values), sorted lowest to highest
B51: BEAUTIFUL PLAINS | E51: 12741
B52: WESTERN | E52: 13284
B53: PEMBINA TRAILS | E53: 13327
B54: HANOVER | E54: 13560
B55: RIVER EAST TRANSCONA | E55: 13696
B56: GARDEN VALLEY | E56: 13830
B57: BRANDON | E57: 13945
B58: LOUIS RIEL | E58: 14107
B59: FORT LA BOSSE | E59: 14460
B60: SEINE RIVER | E60: 14637
B61: PORTAGE LA PRAIRIE | E61: 14699
B62: SEVEN OAKS | E62: 14767
B63: TURTLE MOUNTAIN | E63: 15030
B64: PRAIRIE SPIRIT | E64: 15331
B65: INTERLAKE | E65: 15574
B66: PARK WEST | E66: 15629
B67: PRAIRIE ROSE | E67: 15781
B68: ROLLING RIVER | E68: 15925
B69: MOUNTAIN VIEW | E69: 15967
B70: ST. JAMES-ASSINIBOIA | E70: 15980
B71: RED RIVER VALLEY | E71: 16132
B72: KELSEY | E72: 16360
B73: WINNIPEG | E73: 16389
B74: SUNRISE | E74: 17164
B75: MYSTERY LAKE | E75: 17776
B76: EVERGREEN | E76: 17785
B77: LORD SELKIRK | E77: 18137
B78: PINE CREEK | E78: 18270
B79: LAKESHORE | E79: 18281
B80: SOUTHWEST HORIZON | E80: 18316
B81: DSFM | E81: 19036
B82: BORDER LAND | E82: 19469
B83: SWAN VALLEY | E83: 19737
B84: TURTLE RIVER | E84: 21049
B85: FLIN FLON | E85: 22621
B86: FRONTIER | E86: 26287

Sheet - 6 -
B2: =IF(Lang=1,BA2,BB2) -> FRAME STUDENT STATISTICS | H2: PAGE 1 OF 2 | BA2: FRAME STUDENT STATISTICS | BB2: STATISTIQUES SUR LES ÉLÈVES (SYSTÈME COMPTABLE FRAME)
B3: =IF(Lang=1,BA3,BB3) -> ESTIMATE SEPTEMBER 29, 2024 | BA3: ="ESTIMATE SEPTEMBER 29, "&YEAR -> ESTIMATE SEPTEMBER 29, 2024 | BB3: ="PRÉVISIONS AU 29 SEPTEMBRE "&YEAR -> PRÉVISIONS AU 29 SEPTEMBRE 2024
B6: REGULAR INSTRUCTION
B7: SINGLE TRACK (1) | E7: DUAL TRACK (2)
B8: ENGLISH LANGUAGE | C8: FRANÇAIS | D8: FRENCH IMMERSION | E8: ENGLISH LANGUAGE | F8: FRANÇAIS | G8: FRENCH IMMERSION | H8: OTHER BILINGUAL
A9: DIVISION / DISTRICT
A11: BEAUTIFUL PLAINS | B11: 2237 | C11: 0 | D11: 0 | E11: 0 | F11: 0 | G11: 0 | H11: 0
A12: BORDER LAND | B12: 1273.5 | C12: 0 | D12: 0 | E12: 513 | F12: 0 | G12: 129 | H12: 0
A13: BRANDON | B13: 7574 | C13: 0 | D13: 332 | E13: 753 | F13: 0 | G13: 374.5 | H13: 0
A14: DSFM | B14: 0 | C14: 6148.3 | D14: 0 | E14: 0 | F14: 0 | G14: 0 | H14: 0
A15: EVERGREEN | B15: 1376 | C15: 0 | D15: 0 | E15: 0 | F15: 0 | G15: 0 | H15: 0
A16: FLIN FLON | B16: 515 | C16: 0 | D16: 0 | E16: 195.5 | F16: 0 | G16: 86.5 | H16: 0
A17: FORT LA BOSSE | B17: 1494 | C17: 0 | D17: 0 | E17: 0 | F17: 0 | G17: 0 | H17: 0
A18: FRONTIER | B18: 6385 | C18: 0 | D18: 0 | E18: 0 | F18: 0 | G18: 0 | H18: 0
A19: GARDEN VALLEY | B19: 4149 | C19: 0 | D19: 0 | E19: 0 | F19: 0 | G19: 0 | H19: 0
A20: HANOVER | B20: 8023.642857 | C20: 0 | D20: 0 | E20: 0 | F20: 0 | G20: 0 | H20: 0
A21: INTERLAKE | B21: 1555.5 | C21: 0 | D21: 0 | E21: 879.5 | F21: 0 | G21: 427 | H21: 0
A22: KELSEY | B22: 813.6 | C22: 0 | D22: 0 | E22: 436 | F22: 0 | G22: 168 | H22: 0
A23: LAKESHORE | B23: 960 | C23: 0 | D23: 0 | E23: 0 | F23: 0 | G23: 0 | H23: 0
A24: LORD SELKIRK | B24: 2714 | C24: 0 | D24: 203 | E24: 490 | F24: 0 | G24: 69 | H24: 83
A25: LOUIS RIEL | B25: 11028 | C25: 0 | D25: 5117 | E25: 283 | F25: 433 | G25: 0 | H25: 0
A26: MOUNTAIN VIEW | B26: 2395.5 | C26: 0 | D26: 129 | E26: 309 | F26: 0 | G26: 50 | H26: 74
A27: MYSTERY LAKE | B27: 2322.6 | C27: 0 | D27: 0 | E27: 150.5 | F27: 0 | G27: 191.5 | H27: 0
A28: PARK WEST | B28: 2192 | C28: 0 | D28: 0 | E28: 0 | F28: 0 | G28: 0 | H28: 0
A29: PEMBINA TRAILS | B29: 10473 | C29: 0 | D29: 1416 | E29: 2759.5 | F29: 0 | G29: 1913.5 | H29: 0
A30: PINE CREEK | B30: 998.5 | C30: 0 | D30: 0 | E30: 0 | F30: 0 | G30: 0 | H30: 0
A31: PORTAGE LA PRAIRIE | B31: 2892 | C31: 0 | D31: 394 | E31: 0 | F31: 0 | G31: 0 | H31: 0
A32: PRAIRIE ROSE | B32: 1710 | C32: 0 | D32: 113.5 | E32: 301 | F32: 0 | G32: 189.5 | H32: 0
A33: PRAIRIE SPIRIT | B33: 1691 | C33: 0 | D33: 0 | E33: 249 | F33: 115 | G33: 95 | H33: 0
A34: RED RIVER VALLEY | B34: 1759.5 | C34: 0 | D34: 354.5 | E34: 77.5 | F34: 124 | G34: 0 | H34: 0
A35: RIVER EAST TRANSCONA | B35: 9281 | C35: 0 | D35: 1605.5 | E35: 3971.5 | F35: 0 | G35: 1931 | H35: 553
A36: ROLLING RIVER | B36: 1746.5 | C36: 0 | D36: 0 | E36: 0 | F36: 0 | G36: 0 | H36: 0
A37: SEINE RIVER | B37: 2306 | C37: 0 | D37: 592 | E37: 795.5 | F37: 0 | G37: 726 | H37: 0
A38: SEVEN OAKS | B38: 7161 | C38: 0 | D38: 1269.5 | E38: 1438.5 | F38: 0 | G38: 1413 | H38: 348.5
A39: SOUTHWEST HORIZON | B39: 1424.5 | C39: 0 | D39: 0 | E39: 0 | F39: 0 | G39: 0 | H39: 0
A40: ST. JAMES-ASSINIBOIA | B40: 5528.71 | C40: 0 | D40: 1289.5 | E40: 535.71 | F40: 0 | G40: 461 | H40: 0
A41: SUNRISE | B41: 2091 | C41: 0 | D41: 0 | E41: 1667 | F41: 0 | G41: 793.5 | H41: 62
A42: SWAN VALLEY | B42: 928.6 | C42: 0 | D42: 0 | E42: 221 | F42: 47 | G42: 0 | H42: 0
A43: TURTLE MOUNTAIN | B43: 1014 | C43: 0 | D43: 0 | E43: 0 | F43: 0 | G43: 0 | H43: 0
A44: TURTLE RIVER | B44: 579.5 | C44: 0 | D44: 25 | E44: 0 | F44: 0 | G44: 0 | H44: 0
A45: WESTERN | B45: 1125.5 | C45: 0 | D45: 0 | E45: 764.5 | F45: 0 | G45: 352 | H45: 0
A46: WINNIPEG | B46: 17899.4 | C46: 0 | D46: 1376 | E46: 4982 | F46: 0 | G46: 2858.5 | H46: 599.5
A48: PROVINCE | B48: =SUM(B11:B46) -> 127618.0529 | C48: =SUM(C11:C46) -> 6148.3 | D48: 14216.5 | E48: 21772.21 | F48: 719 | G48: 12228.5 | H48: 1720
A50: WHITESHELL | B50: 172.5 | C50: 0 | D50: 0 | E50: 0 | F50: 0 | G50: 0 | H50: 0
A52: (1) 90% or more of Regular Instruction enrolment is in one language program.
A53: (2) No one language program comprises 90% or more of Regular Instruction enrolment.

Sheet - 7 -
B2: =+'- 6 -'!B2 -> FRAME STUDENT STATISTICS | F2: PAGE 2 OF 2
B3: =+STATDATE -> ESTIMATE SEPTEMBER 29, 2024
B6: REGULAR INSTRUCTION (1) | E6: TOTAL
B8: SENIOR YEARS TECHNOLOGY | C8: TOTAL | E8: K-12 FTE ENROLMENT
A9: DIVISION / DISTRICT
A11: BEAUTIFUL PLAINS | B11: 0 | C11: =SUM('- 6 -'!$B11:H11,B11) -> 2237 | E11: =C11 -> 2237
A12: BORDER LAND | B12: 119 | C12: =SUM('- 6 -'!$B12:H12,B12) -> 2034.5 | E12: =C12 -> 2034.5
A13: BRANDON | B13: 427 | C13: =SUM('- 6 -'!$B13:H13,B13) -> 9460.5 | E13: 9460.5
A14: DSFM | B14: 28.72 | C14: =SUM('- 6 -'!$B14:H14,B14) -> 6177.02 | E14: 6177.02
A15: EVERGREEN | B15: 20 | C15: =SUM('- 6 -'!$B15:H15,B15) -> 1396 | E15: 1396
A16: FLIN FLON | B16: 0 | C16: =SUM('- 6 -'!$B16:H16,B16) -> 797 | E16: 797
A17: FORT LA BOSSE | B17: 65 | C17: =SUM('- 6 -'!$B17:H17,B17) -> 1559 | E17: 1559
A18: FRONTIER | B18: 117 | C18: =SUM('- 6 -'!$B18:H18,B18) -> 6502 | E18: 6502
A19: GARDEN VALLEY | B19: 100 | C19: =SUM('- 6 -'!$B19:H19,B19) -> 4249 | E19: 4249
A20: HANOVER | B20: 495.3571429 | C20: =SUM('- 6 -'!$B20:H20,B20) -> 8519 | E20: 8519
A21: INTERLAKE | B21: 0 | C21: =SUM('- 6 -'!$B21:H21,B21) -> 2862 | E21: 2862
A22: KELSEY | B22: 14.4 | C22: =SUM('- 6 -'!$B22:H22,B22) -> 1432 | E22: 1432
A23: LAKESHORE | B23: 15 | C23: =SUM('- 6 -'!$B23:H23,B23) -> 975 | E23: 975
A24: LORD SELKIRK | B24: 208 | C24: =SUM('- 6 -'!$B24:H24,B24) -> 3767 | E24: 3767
A25: LOUIS RIEL | B25: 146 | C25: =SUM('- 6 -'!$B25:H25,B25) -> 17007 | E25: 17007
A26: MOUNTAIN VIEW | B26: 154.4 | C26: =SUM('- 6 -'!$B26:H26,B26) -> 3111.9 | E26: 3111.9
A27: MYSTERY LAKE | B27: 155.85 | C27: =SUM('- 6 -'!$B27:H27,B27) -> 2820.45 | E27: 2820.45
A28: PARK WEST | B28: 0 | C28: =SUM('- 6 -'!$B28:H28,B28) -> 2192 | E28: 2192
A29: PEMBINA TRAILS | B29: 0 | C29: =SUM('- 6 -'!$B29:H29,B29) -> 16562 | E29: 16562
A30: PINE CREEK | B30: 75 | C30: =SUM('- 6 -'!$B30:H30,B30) -> 1073.5 | E30: 1073.5
A31: PORTAGE LA PRAIRIE | B31: 94 | C31: =SUM('- 6 -'!$B31:H31,B31) -> 3380 | E31: 3380
A32: PRAIRIE ROSE | B32: 0 | C32: =SUM('- 6 -'!$B32:H32,B32) -> 2314 | E32: 2314
A33: PRAIRIE SPIRIT | B33: 0 | C33: =SUM('- 6 -'!$B33:H33,B33) -> 2150 | E33: 2150
A34: RED RIVER VALLEY | B34: 28.5 | C34: =SUM('- 6 -'!$B34:H34,B34) -> 2344 | E34: 2344
A35: RIVER EAST TRANSCONA | B35: 815 | C35: =SUM('- 6 -'!$B35:H35,B35) -> 18157 | E35: 18157
A36: ROLLING RIVER | B36: 6 | C36: =SUM('- 6 -'!$B36:H36,B36) -> 1752.5 | E36: 1752.5
A37: SEINE RIVER | B37: 0 | C37: =SUM('- 6 -'!$B37:H37,B37) -> 4419.5 | E37: 4419.5
A38: SEVEN OAKS | B38: 197 | C38: =SUM('- 6 -'!$B38:H38,B38) -> 11827.5 | E38: 11827.5
A39: SOUTHWEST HORIZON | B39: 0 | C39: =SUM('- 6 -'!$B39:H39,B39) -> 1424.5 | E39: 1424.5
A40: ST. JAMES-ASSINIBOIA | B40: 241.57 | C40: =SUM('- 6 -'!$B40:H40,B40) -> 8056.49 | E40: 8056.49
A41: SUNRISE | B41: 0 | C41: =SUM('- 6 -'!$B41:H41,B41) -> 4613.5 | E41: 4613.5
A42: SWAN VALLEY | B42: 189.4 | C42: =SUM('- 6 -'!$B42:H42,B42) -> 1386 | E42: 1386
A43: TURTLE MOUNTAIN | B43: 39 | C43: =SUM('- 6 -'!$B43:H43,B43) -> 1053 | E43: 1053
A44: TURTLE RIVER | B44: 0 | C44: =SUM('- 6 -'!$B44:H44,B44) -> 604.5 | E44: 604.5
A45: WESTERN | B45: 28 | C45: =SUM('- 6 -'!$B45:H45,B45) -> 2270 | E45: 2270
A46: WINNIPEG | B46: 697.6 | C46: =SUM('- 6 -'!$B46:H46,B46) -> 28413 | E46: 28413
A48: PROVINCE | B48: =SUM(B11:B46) -> 4476.797143 | C48: =SUM(C11:C46) -> 188899.36 | E48: =SUM(E11:E46) -> 188899.36
A50: WHITESHELL | B50: 0 | C50: =SUM('- 6 -'!$B50:H50,B50) -> 172.5 | E50: =C50 -> 172.5
A52: (1) Special Placement students are not reported separately. They are included in Regular Instruction Enrolment. As a result, total enrolment in Regular Instruction is equal to Total K-12 FTE enrolment.

Sheet - 8 -
A2: =IF(Lang=1,BA2,BB2) -> ENROLMENTS - HEADCOUNT, FRAME AND ELIGIBLE | BA2: ENROLMENTS - HEADCOUNT, FRAME AND ELIGIBLE | BB2: INSCRIPTIONS – ÉLÈVES PRÉSENTS, SELON LE SYSTÈME COMPTABLE FRAME, ET ADMISSIBLES
BA3: ACTUAL AND ESTIMATES AS OF SEPTEMBER 29 | BB3: CHIFFRES RÉELS ET PRÉVISIONS AU 29 SEPTEMBRE
B5: HEADCOUNT (1) | E5: FRAME (2) | F5: ELIGIBLE (3) | G5: ELIGIBLE (3)
B6: ="ACTUAL SEP. 29, "&FAllYR-1 -> ACTUAL SEP. 29, 2023 | E6: ="ESTIMATE SEP. 29, "&FAllYR -> ESTIMATE SEP. 29, 2024 | F6: ="SEP. 29, "&FAllYR-1 -> SEP. 29, 2023 | G6: ="SEP. 29, "&FAllYR-2 -> SEP. 29, 2022
B8: N-12 ENROLMENT | C8: NURSERY ENROLMENT | D8: K-12 ENROLMENT | E8: K-12 FTE ENROLMENT | F8: K-12 ENROLMENT | G8: K-12 ENROLMENT
A9: DIVISION / DISTRICT
A11: BEAUTIFUL PLAINS | B11: 2260 | C11: 0 | D11: 2260 | E11: ='- 7 -'!E11 -> 2237 | F11: 2172.9 | G11: 2055
A12: BORDER LAND | B12: 2123 | C12: 0 | D12: 2123 | E12: ='- 7 -'!E12 -> 2034.5 | F12: 1966.6 | G12: 2158.1
A13: BRANDON | B13: 9692 | C13: 0 | D13: 9692 | E13: ='- 7 -'!E13 -> 9460.5 | F13: 9302.7 | G13: 8998.3
A14: DSFM | B14: 6092 | C14: 35 | D14: 6057 | E14: ='- 7 -'!E14 -> 6177.02 | F14: 5791.5 | G14: 5645.6
A15: EVERGREEN | B15: 1450 | C15: 0 | D15: 1450 | E15: ='- 7 -'!E15 -> 1396 | F15: 1403.1 | G15: 1444.3
A16: FLIN FLON | B16: 850 | C16: 0 | D16: 850 | E16: ='- 7 -'!E16 -> 797 | F16: 812.4 | G16: 936.1
A17: FORT LA BOSSE | B17: 1578 | C17: 0 | D17: 1578 | E17: ='- 7 -'!E17 -> 1559 | F17: 1429 | G17: 1406.5
A18: FRONTIER | B18: 6825 | C18: 394 | D18: 6431 | E18: ='- 7 -'!E18 -> 6502 | F18: 1895.6 | G18: 2036.7
A19: GARDEN VALLEY | B19: 4239 | C19: 0 | D19: 4239 | E19: ='- 7 -'!E19 -> 4249 | F19: 4079.3 | G19: 4359.3
A20: HANOVER | B20: 8748 | C20: 0 | D20: 8748 | E20: ='- 7 -'!E20 -> 8519 | F20: 8420.1 | G20: 8248.3
A21: INTERLAKE | B21: 2988 | C21: 0 | D21: 2988 | E21: ='- 7 -'!E21 -> 2862 | F21: 2889 | G21: 2918.1
A22: KELSEY | B22: 1449 | C22: 0 | D22: 1449 | E22: ='- 7 -'!E22 -> 1432 | F22: 1388.5 | G22: 1418.5
A23: LAKESHORE | B23: 1008 | C23: 0 | D23: 1008 | E23: ='- 7 -'!E23 -> 975 | F23: 957 | G23: 913
A24: LORD SELKIRK | B24: 3914 | C24: 0 | D24: 3914 | E24: ='- 7 -'!E24 -> 3767 | F24: 3714.6 | G24: 3715.1
A25: LOUIS RIEL | B25: 17159 | C25: 0 | D25: 17159 | E25: ='- 7 -'!E25 -> 17007 | F25: 16236.3 | G25: 15439.2
A26: MOUNTAIN VIEW | B26: 3131 | C26: 0 | D26: 3131 | E26: ='- 7 -'!E26 -> 3111.9 | F26: 2905.8 | G26: 3012.9
A27: MYSTERY LAKE | B27: 2912 | C27: 0 | D27: 2912 | E27: ='- 7 -'!E27 -> 2820.45 | F27: 2773.5 | G27: 2984.1
A28: PARK WEST | B28: 2213 | C28: 23 | D28: 2190 | E28: ='- 7 -'!E28 -> 2192 | F28: 1591.5 | G28: 1547.2
A29: PEMBINA TRAILS | B29: 16728 | C29: 0 | D29: 16728 | E29: ='- 7 -'!E29 -> 16562 | F29: 15982.5 | G29: 15232.1
A30: PINE CREEK | B30: 1111 | C30: 0 | D30: 1111 | E30: ='- 7 -'!E30 -> 1073.5 | F30: 1036.7 | G30: 1037.4
A31: PORTAGE LA PRAIRIE | B31: 3418 | C31: 0 | D31: 3418 | E31: ='- 7 -'!E31 -> 3380 | F31: 3031.7 | G31: 3075.5
A32: PRAIRIE ROSE | B32: 2351 | C32: 0 | D32: 2351 | E32: ='- 7 -'!E32 -> 2314 | F32: 2266 | G32: 2329.7
A33: PRAIRIE SPIRIT | B33: 2252 | C33: 0 | D33: 2252 | E33: ='- 7 -'!E33 -> 2150 | F33: 2090 | G33: 2092.5
A34: RED RIVER VALLEY | B34: 2352 | C34: 0 | D34: 2352 | E34: ='- 7 -'!E34 -> 2344 | F34: 2269.6 | G34: 2345.5
A35: RIVER EAST TRANSCONA | B35: 18470 | C35: 0 | D35: 18470 | E35: ='- 7 -'!E35 -> 18157 | F35: 17680.1 | G35: 16960.9
A36: ROLLING RIVER | B36: 1796 | C36: 0 | D36: 1796 | E36: ='- 7 -'!E36 -> 1752.5 | F36: 1620.1 | G36: 1658.5
A37: SEINE RIVER | B37: 4777 | C37: 0 | D37: 4777 | E37: ='- 7 -'!E37 -> 4419.5 | F37: 4596.7 | G37: 4461
A38: SEVEN OAKS | B38: 12284 | C38: 0 | D38: 12284 | E38: ='- 7 -'!E38 -> 11827.5 | F38: 11739.5 | G38: 11438.6
A39: SOUTHWEST HORIZON | B39: 1492 | C39: 0 | D39: 1492 | E39: ='- 7 -'!E39 -> 1424.5 | F39: 1431.5 | G39: 1457.2
A40: ST. JAMES-ASSINIBOIA | B40: 8330 | C40: 0 | D40: 8330 | E40: ='- 7 -'!E40 -> 8056.49 | F40: 7935.8 | G40: 8061.9
A41: SUNRISE | B41: 4770 | C41: 0 | D41: 4770 | E41: ='- 7 -'!E41 -> 4613.5 | F41: 4559.5 | G41: 4605.9
A42: SWAN VALLEY | B42: 1472 | C42: 0 | D42: 1472 | E42: ='- 7 -'!E42 -> 1386 | F42: 1328.3 | G42: 1308
A43: TURTLE MOUNTAIN | B43: 1099 | C43: 0 | D43: 1099 | E43: ='- 7 -'!E43 -> 1053 | F43: 1057 | G43: 1029
A44: TURTLE RIVER | B44: 645 | C44: 7 | D44: 638 | E44: ='- 7 -'!E44 -> 604.5 | F44: 611.5 | G44: 675.5
A45: WESTERN | B45: 2219 | C45: 0 | D45: 2219 | E45: ='- 7 -'!E45 -> 2270 | F45: 2138.8 | G45: 2139.1
A46: WINNIPEG | B46: 30775 | C46: 1298 | D46: 29477 | E46: ='- 7 -'!E46 -> 28413 | F46: 27813.7 | G46: 28543.1
A48: PROVINCE | B48: =SUM(B11:B46) -> 194972 | C48: 1757 | D48: 193215 | E48: 188899.36 | F48: 178918.4 | G48: 177687.7
A50: WHITESHELL | B50: 195 | C50: 15 | D50: 180 | E50: ='- 7 -'!E50 -> 172.5 | F50: 179090.9 | G50: 177894.7
A52: (1) Pupils taught in schools, whether or not they are counted for grant purposes.
A53: (2) The total number of pupils enrolled in schools adjusted for full time equivalence (FTE). Full time equivalent means pupils are counted on the basis of time attending school - eg. Kindergarten as 1/2. This total is the same as reported on page 7.
A55: ="(3) Provincially supported pupils (actual September 29, "&FAllYR-1&" for "&FAllYR&"/"&RIGHT(SpringYR,2)&" and actual September 29, "&FAllYR-2&" for "&FAllYR-1&"/"&RIGHT(FAllYR,2)&")." -> (3) Provincially supported pupils (actual September 29, 2023 for 2024/25 and actual September 29, 2022 for 2023/24).

Sheet - 9 -
B2: =IF(Lang=1,BA2,BB2) -> PUPIL / TEACHER RATIOS | BA2: PUPIL / TEACHER RATIOS | BB2: RAPPORTS ÉLÈVES-ENSEIGNANT
B3: =STATDATE -> ESTIMATE SEPTEMBER 29, 2024
B7: FRAME PUPIL / TEACHER RATIOS
B8: REGULAR INSTRUCTION (1) | C8: EDUCATOR (2)
A9: DIVISION / DISTRICT
A11: BEAUTIFUL PLAINS | B11: 16.20662175 | C11: 14.15106275
A12: BORDER LAND | B12: 11.69925244 | C12: 9.5016813
A13: BRANDON | B13: 16.4929133 | C13: 12.99804902
A14: DSFM | B14: 14.91673509 | C14: 11.79833827
A15: EVERGREEN | B15: 15.75620767 | C15: 12.56525653
A16: FLIN FLON | B16: 13.33891213 | C16: 10.41830065
A17: FORT LA BOSSE | B17: 15.12857836 | C17: 13.10084034
A18: FRONTIER | B18: 14.09306408 | C18: 11.22980143
A19: GARDEN VALLEY | B19: 17.23033252 | C19: 14.00461437
A20: HANOVER | B20: 18.10049931 | C20: 14.63733129
A21: INTERLAKE | B21: 16.98717949 | C21: 12.70137132
A22: KELSEY | B22: 16.25610171 | C22: 12.37255918
A23: LAKESHORE | B23: 14.55223881 | C23: 11.64874552
A24: LORD SELKIRK | B24: 14.29601518 | C24: 11.57296467
A25: LOUIS RIEL | B25: 18.41840216 | C25: 14.02095682
A26: MOUNTAIN VIEW | B26: 16.42596991 | C26: 13.2805565
A27: MYSTERY LAKE | B27: 14.94278146 | C27: 12.01469649
A28: PARK WEST | B28: 14.8607147 | C28: 12.17270582
A29: PEMBINA TRAILS | B29: 18.28749259 | C29: 14.71881701
A30: PINE CREEK | B30: 13.19120177 | C30: 10.91731923
A31: PORTAGE LA PRAIRIE | B31: 15.79808366 | C31: 12.55059225
A32: PRAIRIE ROSE | B32: 14.6030544 | C32: 11.5290718
A33: PRAIRIE SPIRIT | B33: 15.99773799 | C33: 12.99062258
A34: RED RIVER VALLEY | B34: 16.16551724 | C34: 12.82556358
A35: RIVER EAST TRANSCONA | B35: 17.86279969 | C35: 14.04753431
A36: ROLLING RIVER | B36: 16.21559102 | C36: 13.28406291
A37: SEINE RIVER | B37: 17.20814871 | C37: 13.91836992
A38: SEVEN OAKS | B38: 16.83749733 | C38: 13.77372773
A39: SOUTHWEST HORIZON | B39: 13.61073954 | C39: 11.4298323
A40: ST. JAMES-ASSINIBOIA | B40: 17.53774653 | C40: 13.40491839
A41: SUNRISE | B41: 16.03691602 | C41: 12.50338772
A42: SWAN VALLEY | B42: 15.44289694 | C42: 12.06686401
A43: TURTLE MOUNTAIN | B43: 16.09107579 | C43: 13.221999
A44: TURTLE RIVER | B44: 11.52745995 | C44: 10.00496524
A45: WESTERN | B45: 17.4066406 | C45: 13.76758855
A46: WINNIPEG | B46: 17.73208101 | C46: 13.17014156
A48: PROVINCE | B48: 16.74557176 | C48: 13.19008909
A50: WHITESHELL | B50: 10.51829268 | C50: 8.810010215
A52: (1) Based on object code 330 instructional-teaching personnel and FTE students in Function 100. Included are teachers in physical education, music, EAL, etc. in addition to regular classroom teachers. School-based administrative personnel and Special Placement classroom teachers are excluded.
A55: (2) Based on total instructional-teaching (excluding Community Education and Adult Learning Centres) as well as school-based administrative staff - eg. department heads, coordinators, principals and vice-principals - and K-12 FTE enrolment. Division administrators (Function 500) are excluded.

Sheet - 10 -
F2: =IF(Lang=1,BA2,BB2) -> TOTAL EXPENSE BY FUNCTION AND OBJECT | BA2: TOTAL EXPENSE BY FUNCTION AND OBJECT | BB2: DÉPENSES PAR FONCTION ET PAR OBJET
F3: =OPYEAR -> OPERATING FUND 2024/2025 BUDGET
C5: OBJECT
C7: SALARIES | D7: EMPLOYEE BENEFITS | E7: SERVICES | F7: SUPPLIES AND MATERIALS | G7: DEBT SERVICES | H7: BAD DEBT EXPENSE | I7: TRANSFERS | K7: TOTALS
A8: FUNCTION | N8: =IF($N$22=0,"","Variance") -> 
A10: 100 | B10: REGULAR INSTRUCTION | C10: ='- 12 -'!B22 -> 1423130661 | D10: ='- 12 -'!B23 -> 97117841 | E10: ='- 12 -'!B40 -> 38677290 | F10: ='- 12 -'!B46 -> 89886653 | K10: =SUM(C10:F10) -> 1648812445 | N10: =IF($N$22=0,"",K10-'- 12 -'!$B$51) -> 
A11: 200 | B11: STUDENT SUPPORT SERVICES | C11: ='- 12 -'!D22 -> 514110720 | D11: ='- 12 -'!D23 -> 57844079 | E11: ='- 12 -'!D40 -> 12680757 | F11: ='- 12 -'!D46 -> 5429202 | K11: =SUM(C11:F11) -> 590064758 | N11: =IF($N$22=0,"",K11-'- 12 -'!$D$51) -> 
A12: 300 | B12: ADULT LEARNING CENTRES | C12: ='- 12 -'!F22 -> 10699053 | D12: ='- 12 -'!F23 -> 795247 | E12: ='- 12 -'!F40 -> 1091476 | F12: ='- 12 -'!F46 -> 444606 | I12: ='- 12 -'!F48 -> 27000 | J12: (1) | K12: =SUM(C12:F12,I12) -> 13057382 | N12: =IF($N$22=0,"",K12-'- 12 -'!$F$51) -> 
A13: 400 | B13: COMMUNITY EDUCATION & SERVICES | C13: ='- 12 -'!H22 -> 17132865 | D13: ='- 12 -'!H23 -> 1930254 | E13: ='- 12 -'!H40 -> 1641346 | F13: ='- 12 -'!H46 -> 1651552 | K13: =SUM(C13:F13) -> 22356017 | N13: =IF($N$22=0,"",K13-'- 12 -'!$H$51) -> 
A14: 500 | B14: DIVISIONAL ADMINISTRATION | C14: ='- 12 -'!J22 -> 59354777 | D14: ='- 12 -'!J23 -> 9304334 | E14: ='- 12 -'!J40 -> 21468190 | F14: ='- 12 -'!J46 -> 2829045 | I14: ='- 12 -'!J48 -> -27000 | J14: (1) | K14: =SUM(C14:F14,I14) -> 92929346 | N14: =IF($N$22=0,"",K14-'- 12 -'!$J$51) -> 
L15: - 10 -
A16: 600 | B16: INSTRUCTIONAL AND OTHER SUPPORT SERVICES | C16: ='- 13 -'!B22 -> 63048382 | D16: ='- 13 -'!B23 -> 7127537 | E16: ='- 13 -'!B40 -> 20556418 | F16: ='- 13 -'!B46 -> 19906635 | K16: =SUM(C16:F16) -> 110638972 | N16: =IF($N$22=0,"",K16-'- 13 -'!$B$54) -> 
A17: 700 | B17: TRANSPORTATION OF PUPILS | C17: ='- 13 -'!D22 -> 57838332 | D17: ='- 13 -'!D23 -> 9758787 | E17: ='- 13 -'!D40 -> 38490362 | F17: ='- 13 -'!D46 -> 25908536 | K17: =SUM(C17:F17) -> 131996017 | N17: =IF($N$22=0,"",K17-'- 13 -'!$D$54) -> 
A18: 800 | B18: OPERATIONS AND MAINTENANCE | C18: ='- 13 -'!F22 -> 146016476 | D18: ='- 13 -'!F23 -> 26969443 | E18: ='- 13 -'!F40 -> 128417934 | F18: ='- 13 -'!F46 -> 28566994 | I18: ='- 13 -'!F52 -> 0 | K18: =SUM(C18:F18,I18) -> 329970847 | N18: =IF($N$22=0,"",K18-'- 13 -'!$F$54) -> 
A19: 900 | B19: FISCAL | G19: 5208413 | H19: 8000 | I19: 45780985 | J19: (2) | K19: =SUM(G19:I19) -> 50997398 | N19: =IF($N$22=0,"",K19-'- 13 -'!$H$54) -> 
B22: TOTALS | C22: =SUM(C10:C19) -> 2291331266 | D22: =SUM(D10:D19) -> 210847522 | E22: =SUM(E10:E19) -> 263023773 | F22: =SUM(F10:F19) -> 174623223 | G22: =G19 -> 5208413 | H22: =H19 -> 8000 | I22: =SUM(I10:I19) -> 45780985 | K22: =SUM(K10:K19) -> 2990823182
A25: (1) | B25: Reallocation of administration costs associated with Adult Learning Centre operations from Function 500 to Function 300.
A26: (2) | B26: Reallocation of school building costs associated with Adult Learning Centre operations to Function 300
A27: (2) | B27: Health and Post Secondary Education Tax Levy

Sheet - 11 -
U23: - 11 -
G25: 2794500

Sheet - 12 -
F2: =IF(Lang=1,BA2,BB2) -> EXPENSE BY 2ND LEVEL OBJECT | K2: PAGE 1 OF 2 | BA2: EXPENSE BY 2ND LEVEL OBJECT | BB2: DÉPENSES PAR OBJET DE DEUXIÈME CATÉGORIE EXPRIMÉES
F3: =OPYEAR -> OPERATING FUND 2024/2025 BUDGET | BA3: AS A PERCENTAGE OF TOTAL OPERATING FUND EXPENSES | BB3: EN POURCENTAGE DU TOTAL DES DÉPENSES DU FONDS DE FONCTIONNEMENT
B7: FUNCTION
B9: REGULAR INSTRUCTION | D9: STUDENT SUPPORT SERVICES | F9: ADULT LEARNING CENTRES | H9: COMMUNITY EDUCATION | J9: DIVISIONAL ADMINISTRATION
A11: OBJECT | B11: AMOUNT | C11: % | D11: AMOUNT | E11: % | F11: AMOUNT | G11: % | H11: AMOUNT | I11: % | J11: AMOUNT | K11: %
A13: SALARIES
A14: TRUSTEES REMUNERATION | J14: 4640455
A15: EXECUTIVE MANAGERIAL, & SUPERVISORY | B15: 119268094 | C15: =B15/'- 13 -'!$J$54*100 -> 3.987801576 | D15: 8762251 | E15: =D15/'- 13 -'!$J$54*100 -> 0.2929712145 | F15: 1147311 | G15: =F15/'- 13 -'!$J$54*100 -> 0.03836104411 | H15: 849359 | I15: =H15/'- 13 -'!$J$54*100 -> 0.02839883699 | J15: 24746533 | K15: =J15/'- 13 -'!$J$54*100 -> 0.827415447
A16: INSTRUCTIONAL - TEACHING | B16: 1208341564 | C16: =B16/'- 13 -'!$J$54*100 -> 40.40163829 | D16: 210543050 | E16: =D16/'- 13 -'!$J$54*100 -> 7.039635485 | F16: 8341625 | G16: =F16/'- 13 -'!$J$54*100 -> 0.2789073273 | H16: 9466955 | I16: =H16/'- 13 -'!$J$54*100 -> 0.3165334232 | K16: =J16/'- 13 -'!$J$54*100 -> 0
A17: INSTRUCTIONAL - OTHER | B17: 24070642 | C17: =B17/'- 13 -'!$J$54*100 -> 0.8048166185 | D17: 220388898 | E17: =D17/'- 13 -'!$J$54*100 -> 7.368837427 | F17: 507049 | G17: =F17/'- 13 -'!$J$54*100 -> 0.01695349304 | H17: 4154641 | I17: =H17/'- 13 -'!$J$54*100 -> 0.1389129596 | K17: =J17/'- 13 -'!$J$54*100 -> 0
A18: TECHNICAL, SPECIALIZED AND SERVICE | B18: 8929296 | C18: =B18/'- 13 -'!$J$54*100 -> 0.2985564661 | D18: 14109451 | E18: =D18/'- 13 -'!$J$54*100 -> 0.4717581128 | F18: 20513 | G18: =F18/'- 13 -'!$J$54*100 -> 0.0006858646851 | H18: 1503452 | I18: =H18/'- 13 -'!$J$54*100 -> 0.05026883599 | J18: 9547984 | K18: =J18/'- 13 -'!$J$54*100 -> 0.3192426773
A19: SECRETARIAL, CLERICAL AND OTHER | B19: 47377903 | C19: =B19/'- 13 -'!$J$54*100 -> 1.584109127 | D19: 2736178 | E19: =D19/'- 13 -'!$J$54*100 -> 0.09148578279 | F19: 682555 | G19: =F19/'- 13 -'!$J$54*100 -> 0.02282164336 | H19: 656073 | I19: =H19/'- 13 -'!$J$54*100 -> 0.02193620151 | J19: 18191082 | K19: =J19/'- 13 -'!$J$54*100 -> 0.6082299385
A20: CLINICIAN | D20: 57399133 | E20: =D20/'- 13 -'!$J$54*100 -> 1.919175073 | H20: 502385
A21: INFORMATION TECHNOLOGY | B21: 15143162 | C21: =B21/'- 13 -'!$J$54*100 -> 0.5063208715 | D21: 171759 | E21: =D21/'- 13 -'!$J$54*100 -> 0.005742867082 | F21: 0 | G21: =F21/'- 13 -'!$J$54*100 -> 0 | H21: 0 | I21: =H21/'- 13 -'!$J$54*100 -> 0 | J21: 2228723 | K21: =J21/'- 13 -'!$J$54*100 -> 0.07451871489
A22: TOTAL SALARIES | B22: =SUM(B14:B21) -> 1423130661 | C22: =B22/'- 13 -'!$J$54*100 -> 47.58324295 | D22: =SUM(D14:D21) -> 514110720 | E22: =D22/'- 13 -'!$J$54*100 -> 17.18960596 | F22: =SUM(F14:F21) -> 10699053 | G22: =F22/'- 13 -'!$J$54*100 -> 0.3577293724 | H22: =SUM(H14:H21) -> 17132865 | I22: =H22/'- 13 -'!$J$54*100 -> 0.5728478067 | J22: =SUM(J14:J21) -> 59354777 | K22: =J22/'- 13 -'!$J$54*100 -> 1.984563225
A23: EMPLOYEE BENEFITS AND ALLOWANCES | B23: 97117841 | C23: =B23/'- 13 -'!$J$54*100 -> 3.247194337 | D23: 57844079 | E23: =D23/'- 13 -'!$J$54*100 -> 1.934052115 | F23: 795247 | G23: =F23/'- 13 -'!$J$54*100 -> 0.02658956921 | H23: 1930254 | I23: =H23/'- 13 -'!$J$54*100 -> 0.06453922156 | J23: 9304334 | K23: =J23/'- 13 -'!$J$54*100 -> 0.3110960907
A24: SERVICES
A25: PROFESSIONAL, TECHNICAL & SPECIALIZED | B25: 7846503 | C25: =B25/'- 13 -'!$J$54*100 -> 0.2623526208 | D25: 7513530 | E25: =D25/'- 13 -'!$J$54*100 -> 0.2512194651 | F25: 44307 | G25: =F25/'- 13 -'!$J$54*100 -> 0.001481431609 | H25: 777200 | I25: =H25/'- 13 -'!$J$54*100 -> 0.02598615674 | J25: 5677200 | K25: =J25/'- 13 -'!$J$54*100 -> 0.1898206499
A26: COMMUNICATIONS | B26: 3631713 | C26: =B26/'- 13 -'!$J$54*100 -> 0.1214285425 | D26: 299039 | E26: =D26/'- 13 -'!$J$54*100 -> 0.00999855163 | F26: 68005 | G26: =F26/'- 13 -'!$J$54*100 -> 0.002273788715 | H26: 9348 | I26: =H26/'- 13 -'!$J$54*100 -> 0.0003125560901 | J26: 1124506 | K26: =J26/'- 13 -'!$J$54*100 -> 0.037598545 | L26: - 12 -
A27: UTILITY SERVICES | C27: =B27/'- 13 -'!$J$54*100 -> 0 | E27: =D27/'- 13 -'!$J$54*100 -> 0 | F27: 62634 | G27: =F27/'- 13 -'!$J$54*100 -> 0.002094206049 | I27: =H27/'- 13 -'!$J$54*100 -> 0 | K27: =J27/'- 13 -'!$J$54*100 -> 0
A28: TRAVEL AND MEETINGS | B28: 2778575 | C28: =B28/'- 13 -'!$J$54*100 -> 0.09290335239 | D28: 2597429 | E28: =D28/'- 13 -'!$J$54*100 -> 0.08684662522 | F28: 71376 | G28: =F28/'- 13 -'!$J$54*100 -> 0.002386500159 | H28: 80759 | I28: =H28/'- 13 -'!$J$54*100 -> 0.002700226496 | J28: 2242214 | K28: =J28/'- 13 -'!$J$54*100 -> 0.07496979472
A29: TRANSPORTATION OF PUPILS | C29: =B29/'- 13 -'!$J$54*100 -> 0 | E29: =D29/'- 13 -'!$J$54*100 -> 0 | G29: =F29/'- 13 -'!$J$54*100 -> 0 | I29: =H29/'- 13 -'!$J$54*100 -> 0 | K29: =J29/'- 13 -'!$J$54*100 -> 0
A30: TUITION | B30: 1056418 | C30: =B30/'- 13 -'!$J$54*100 -> 0.03532198113 | D30: 941211 | E30: =D30/'- 13 -'!$J$54*100 -> 0.03146996471 | F30: 0 | G30: =F30/'- 13 -'!$J$54*100 -> 0 | I30: =H30/'- 13 -'!$J$54*100 -> 0 | K30: =J30/'- 13 -'!$J$54*100 -> 0
A31: PRINTING AND BINDING | B31: 466485 | C31: =B31/'- 13 -'!$J$54*100 -> 0.01559721092 | D31: 19750 | E31: =D31/'- 13 -'!$J$54*100 -> 0.0006603533141 | F31: 4443 | G31: =F31/'- 13 -'!$J$54*100 -> 0.000148554419 | H31: 31700 | I31: =H31/'- 13 -'!$J$54*100 -> 0.001059908864 | J31: 171703 | K31: =J31/'- 13 -'!$J$54*100 -> 0.005740994688
A32: INSURANCE AND BOND PREMIUMS | B32: 168510 | C32: =B32/'- 13 -'!$J$54*100 -> 0.005634234782 | D32: 39708 | E32: =D32/'- 13 -'!$J$54*100 -> 0.001327661235 | F32: 8671 | G32: =F32/'- 13 -'!$J$54*100 -> 0.0002899201816 | H32: 1453 | I32: =H32/'- 13 -'!$J$54*100 -> 4.858194255e-05 | J32: 2860294 | K32: =J32/'- 13 -'!$J$54*100 -> 0.09563567707
A33: MAINTENANCE AND REPAIR SERVICES | B33: 2746076 | C33: =B33/'- 13 -'!$J$54*100 -> 0.09181672847 | D33: 81550 | E33: =D33/'- 13 -'!$J$54*100 -> 0.002726674064 | F33: 51840 | G33: =F33/'- 13 -'!$J$54*100 -> 0.001733302066 | H33: 4230 | I33: =H33/'- 13 -'!$J$54*100 -> 0.0001414326338 | J33: 197388 | K33: =J33/'- 13 -'!$J$54*100 -> 0.006599788352
A34: RENTALS | B34: 3593705 | C34: =B34/'- 13 -'!$J$54*100 -> 0.1201577218 | D34: 365788 | E34: =D34/'- 13 -'!$J$54*100 -> 0.01223034522 | F34: 692077 | G34: =F34/'- 13 -'!$J$54*100 -> 0.02314001724 | H34: 668536 | I34: =H34/'- 13 -'!$J$54*100 -> 0.02235290953 | J34: 461576 | K34: =J34/'- 13 -'!$J$54*100 -> 0.01543307551
A35: PROPERTY TAXES | C35: =B35/'- 13 -'!$J$54*100 -> 0 | E35: =D35/'- 13 -'!$J$54*100 -> 0 | F35: 16000 | G35: =F35/'- 13 -'!$J$54*100 -> 0.0005349697734 | I35: =H35/'- 13 -'!$J$54*100 -> 0 | K35: =J35/'- 13 -'!$J$54*100 -> 0
A36: ADVERTISING | B36: 309376 | C36: =B36/'- 13 -'!$J$54*100 -> 0.01034417554 | D36: 25720 | E36: =D36/'- 13 -'!$J$54*100 -> 0.0008599639108 | F36: 24458 | G36: =F36/'- 13 -'!$J$54*100 -> 0.0008177681699 | H36: 27910 | I36: =H36/'- 13 -'!$J$54*100 -> 0.0009331878985 | J36: 578295 | K36: =J36/'- 13 -'!$J$54*100 -> 0.01933564657
A37: DUES AND FEES | B37: 781487 | C37: =B37/'- 13 -'!$J$54*100 -> 0.02612949521 | D37: 194726 | E37: =D37/'- 13 -'!$J$54*100 -> 0.006510782756 | F37: 0 | G37: =F37/'- 13 -'!$J$54*100 -> 0 | H37: 7410 | I37: =H37/'- 13 -'!$J$54*100 -> 0.0002477578763 | J37: 3399361 | K37: =J37/'- 13 -'!$J$54*100 -> 0.1136597115
A38: PROFESSIONAL AND STAFF DEVELOPMENT | B38: 460552 | C38: =B38/'- 13 -'!$J$54*100 -> 0.01539883744 | D38: 357943 | E38: =D38/'- 13 -'!$J$54*100 -> 0.01196804285 | F38: 40188 | G38: =F38/'- 13 -'!$J$54*100 -> 0.001343710328 | H38: 26500 | I38: =H38/'- 13 -'!$J$54*100 -> 0.0008860436872 | J38: 1338990 | K38: =J38/'- 13 -'!$J$54*100 -> 0.04476994856
A39: INFORMATION TECHNOLOGY SERVICES | B39: 14837890 | C39: =B39/'- 13 -'!$J$54*100 -> 0.4961139157 | D39: 244363 | E39: =D39/'- 13 -'!$J$54*100 -> 0.008170426171 | F39: 7477 | G39: =F39/'- 13 -'!$J$54*100 -> 0.0002499980622 | H39: 6300 | I39: =H39/'- 13 -'!$J$54*100 -> 0.0002106443483 | J39: 3416663 | K39: =J39/'- 13 -'!$J$54*100 -> 0.1142382144
A40: TOTAL SERVICES | B40: =SUM(B25:B39) -> 38677290 | C40: =B40/'- 13 -'!$J$54*100 -> 1.293198817 | D40: =SUM(D25:D39) -> 12680757 | E40: =D40/'- 13 -'!$J$54*100 -> 0.4239888562 | F40: =SUM(F25:F39) -> 1091476 | G40: =F40/'- 13 -'!$J$54*100 -> 0.03649416678 | H40: =SUM(H25:H39) -> 1641346 | I40: =H40/'- 13 -'!$J$54*100 -> 0.05487940611 | J40: =SUM(J25:J39) -> 21468190 | K40: =J40/'- 13 -'!$J$54*100 -> 0.7178020462
A41: SUPPLIES AND EQUIPMENT
A42: SUPPLIES | B42: 45366797 | C42: =B42/'- 13 -'!$J$54*100 -> 1.516866569 | D42: 3643691 | E42: =D42/'- 13 -'!$J$54*100 -> 0.1218290343 | F42: 145544 | G42: =F42/'- 13 -'!$J$54*100 -> 0.004866352544 | H42: 1557653 | I42: =H42/'- 13 -'!$J$54*100 -> 0.05208107953 | J42: 1197518 | K42: =J42/'- 13 -'!$J$54*100 -> 0.04003974582
A43: CURRICULAR AND MEDIA MATERIALS | B43: 11217652 | C43: =B43/'- 13 -'!$J$54*100 -> 0.3750690468 | D43: 701118 | E43: =D43/'- 13 -'!$J$54*100 -> 0.0234423086 | F43: 112766 | G43: =F43/'- 13 -'!$J$54*100 -> 0.003770400092 | H43: 65184 | I43: =H43/'- 13 -'!$J$54*100 -> 0.002179466857 | J43: 88385 | K43: =J43/'- 13 -'!$J$54*100 -> 0.002955206464
A44: MINOR EQUIPMENT | B44: 10911992 | C44: =B44/'- 13 -'!$J$54*100 -> 0.364849118 | D44: 454522 | E44: =D44/'- 13 -'!$J$54*100 -> 0.01519722071 | F44: 63659 | G44: =F44/'- 13 -'!$J$54*100 -> 0.00212847755 | H44: 23760 | I44: =H44/'- 13 -'!$J$54*100 -> 0.0007944301135 | J44: 302531 | K44: =J44/'- 13 -'!$J$54*100 -> 0.01011530878
A45: INFORMATION TECHNOLOGY EQUIPMENT | B45: 22390212 | C45: =B45/'- 13 -'!$J$54*100 -> 0.748630415 | D45: 629871 | E45: =D45/'- 13 -'!$J$54*100 -> 0.02106012163 | F45: 122637 | G45: =F45/'- 13 -'!$J$54*100 -> 0.004100443006 | H45: 4955 | I45: =H45/'- 13 -'!$J$54*100 -> 0.0001656734517 | J45: 1240611 | K45: =J45/'- 13 -'!$J$54*100 -> 0.0414805866
A46: TOTAL SUPPLIES AND EQUIPMENT | B46: =SUM(B42:B45) -> 89886653 | C46: =B46/'- 13 -'!$J$54*100 -> 3.005415149 | D46: =SUM(D42:D45) -> 5429202 | E46: =D46/'- 13 -'!$J$54*100 -> 0.1815286852 | F46: =SUM(F42:F45) -> 444606 | G46: =F46/'- 13 -'!$J$54*100 -> 0.01486567319 | H46: =SUM(H42:H45) -> 1651552 | I46: =H46/'- 13 -'!$J$54*100 -> 0.05522064995 | J46: =SUM(J42:J45) -> 2829045 | K46: =J46/'- 13 -'!$J$54*100 -> 0.09459084766
A47: TRANSFERS
A48: RECHARGE (1) | F48: 27000 | J48: -27000 | M48: =F48+J48+'- 13 -'!F48 -> 0
A49: TOTAL TRANSFERS | F49: =F48 -> 27000 | J49: =J48 -> -27000
A51: PROVINCE | B51: =SUM(B47,B46,B40,B23,B22) -> 1648812445 | C51: =B51/'- 13 -'!$J$54*100 -> 55.12905126 | D51: =SUM(D47,D46,D40,D23,D22) -> 590064758 | E51: =D51/'- 13 -'!$J$54*100 -> 19.72917562 | F51: =SUM(F49,F46,F40,F23,F22) -> 13057382 | G51: =F51/'- 13 -'!$J$54*100 -> 0.4365815431 | H51: =SUM(H47,H46,H40,H23,H22) -> 22356017 | I51: =H51/'- 13 -'!$J$54*100 -> 0.7474870843 | J51: =SUM(J49,J46,J40,J23,J22) -> 92929346 | K51: =J51/'- 13 -'!$J$54*100 -> 3.107149448
A52: (1) Reallocation of administration costs associated with Adult Learning Centre operations from Function 500 to Function 300.

Sheet - 13 -
F2: =+'- 12 -'!F2 -> EXPENSE BY 2ND LEVEL OBJECT | K2: PAGE 2 OF 2
F3: =+'- 12 -'!F3 -> OPERATING FUND 2024/2025 BUDGET
B7: FUNCTION
B9: INSTRUCTIONAL & OTHER SUPPORT SERVICES | D9: TRANSPORTATION OF PUPILS | F9: OPERATIONS AND MAINTENANCE | H9: FISCAL | J9: TOTAL
A11: OBJECT | B11: AMOUNT | C11: % | D11: AMOUNT | E11: % | F11: AMOUNT | G11: % | H11: AMOUNT | I11: % | J11: AMOUNT | K11: %
A13: SALARIES | M13: SALARIES | N13: =K22 -> 76.61206051
A14: TRUSTEES REMUNERATION | J14: =SUM(F14,D14,B14,'- 12 -'!J14,'- 12 -'!H14,'- 12 -'!F14,'- 12 -'!D14,'- 12 -'!B14) -> 4640455 | K14: =J14/$J$54*100 -> 0.1551564475 | M14: EMPLOYEE BENEFITS | N14: =K23 -> 7.049815692
A15: EXECUTIVE MANAGERIAL, & SUPERVISORY | B15: 5799137 | C15: =B15/$J$54*100 -> 0.1938976879 | D15: 4000685 | E15: =D15/$J$54*100 -> 0.1337653467 | F15: 6428101 | G15: =F15/$J$54*100 -> 0.2149274835 | J15: =SUM(F15,D15,B15,'- 12 -'!J15,'- 12 -'!H15,'- 12 -'!F15,'- 12 -'!D15,'- 12 -'!B15) -> 171001471 | K15: 5.717538637 | M15: SERVICES | N15: =K40 -> 8.794360515
A16: INSTRUCTIONAL - TEACHING | B16: 29670419 | C16: =B16/$J$54*100 -> 0.9920485831 | E16: =D16/$J$54*100 -> 0 | G16: =F16/$J$54*100 -> 0 | J16: =SUM(F16,D16,B16,'- 12 -'!J16,'- 12 -'!H16,'- 12 -'!F16,'- 12 -'!D16,'- 12 -'!B16) -> 1466363613 | K16: 49.02876311 | M16: SUPPLIES & MATERIALS | N16: =K46 -> 5.838634128
A17: INSTRUCTIONAL - OTHER | B17: 17495995 | C17: =B17/$J$54*100 -> 0.5849892801 | D17: 497633 | E17: =D17/$J$54*100 -> 0.01663866333 | G17: =F17/$J$54*100 -> 0 | J17: =SUM(F17,D17,B17,'- 12 -'!J17,'- 12 -'!H17,'- 12 -'!F17,'- 12 -'!D17,'- 12 -'!B17) -> 267114858 | K17: 8.931148441 | M17: TRANSFERS | N17: =K52-N18 -> 1.530982683 | Q17: =N49 -> 0
A18: TECHNICAL, SPECIALIZED AND SERVICE | B18: 7113512 | C18: =B18/$J$54*100 -> 0.2378446189 | D18: 50974488 | E18: =D18/$J$54*100 -> 1.704363143 | F18: 137258656 | G18: =F18/$J$54*100 -> 4.589327006 | J18: =SUM(F18,D18,B18,'- 12 -'!J18,'- 12 -'!H18,'- 12 -'!F18,'- 12 -'!D18,'- 12 -'!B18) -> 229457352 | K18: 7.672046725 | M18: DEBT SERVICES | N18: =K49 -> 0.1741464702 | Q18: =N52-Q17 -> 0
A19: SECRETARIAL, CLERICAL AND OTHER | B19: 2709117 | C19: =B19/$J$54*100 -> 0.09058098173 | D19: 2365526 | E19: =D19/$J$54*100 -> 0.07909280676 | F19: 2329719 | G19: =F19/$J$54*100 -> 0.07789557785 | J19: =SUM(F19,D19,B19,'- 12 -'!J19,'- 12 -'!H19,'- 12 -'!F19,'- 12 -'!D19,'- 12 -'!B19) -> 77048153 | K19: 2.57615206
A20: CLINICIAN | J20: =SUM(F20,D20,B20,'- 12 -'!J20,'- 12 -'!H20,'- 12 -'!F20,'- 12 -'!D20,'- 12 -'!B20) -> 57901518 | K20: 1.935972623 | N20: =SUM(N13:N18) -> 100
A21: INFORMATION TECHNOLOGY | B21: 260202 | C21: =B21/'- 13 -'!$J$54*100 -> 0.008700012811 | D21: 0 | E21: =D21/'- 13 -'!$J$54*100 -> 0 | F21: 0 | G21: =F21/'- 13 -'!$J$54*100 -> 0 | J21: =SUM(F21,D21,B21,'- 12 -'!J21,'- 12 -'!H21,'- 12 -'!F21,'- 12 -'!D21,'- 12 -'!B21) -> 17803846 | K21: 0.5952824663
A22: TOTAL SALARIES | B22: =SUM(B14:B21) -> 63048382 | C22: =B22/$J$54*100 -> 2.108061165 | D22: =SUM(D14:D21) -> 57838332 | E22: =D22/$J$54*100 -> 1.93385996 | F22: =SUM(F14:F21) -> 146016476 | G22: =F22/$J$54*100 -> 4.882150068 | J22: =SUM(F22,D22,B22,'- 12 -'!J22,'- 12 -'!H22,'- 12 -'!F22,'- 12 -'!D22,'- 12 -'!B22) -> 2291331266 | K22: 76.61206051
A23: EMPLOYEE BENEFITS AND ALLOWANCES | B23: 7127537 | C23: =B23/$J$54*100 -> 0.2383135534 | D23: 9758787 | E23: =D23/$J$54*100 -> 0.3262910044 | F23: 26969443 | G23: =F23/$J$54*100 -> 0.9017398007 | J23: =SUM(F23,D23,B23,'- 12 -'!J23,'- 12 -'!H23,'- 12 -'!F23,'- 12 -'!D23,'- 12 -'!B23) -> 210847522 | K23: 7.049815692
A24: SERVICES | M24: REGULAR INSTRUCTION | N24: ='- 12 -'!C51 -> 55.12905126
A25: PROFESSIONAL, TECHNICAL & SPECIALIZED | B25: 3765910 | C25: =B25/$J$54*100 -> 0.1259155012 | D25: 572500 | E25: =D25/$J$54*100 -> 0.01914188721 | F25: 5849701 | G25: =F25/$J$54*100 -> 0.1955883262 | J25: =SUM(F25,D25,B25,'- 12 -'!J25,'- 12 -'!H25,'- 12 -'!F25,'- 12 -'!D25,'- 12 -'!B25) -> 32046851 | K25: =J25/$J$54*100 -> 1.071506039 | L25: - 13 - | M25: STUDENT SUPPORT SERVICES | N25: ='- 12 -'!E51 -> 19.72917562
A26: COMMUNICATIONS | B26: 95670 | C26: 0.003198784889 | D26: 446405 | E26: 0.01492582386 | F26: 722129 | G26: 0.02414482422 | J26: =SUM(F26,D26,B26,'- 12 -'!J26,'- 12 -'!H26,'- 12 -'!F26,'- 12 -'!D26,'- 12 -'!B26) -> 6396815 | K26: 0.2138814169 | M26: ADULT LEARNING CENTRES | N26: ='- 12 -'!G51 -> 0.4365815431
A27: UTILITY SERVICES | C27: 0 | E27: 0 | F27: 57151851 | G27: 1.910907049 | J27: =SUM(F27,D27,B27,'- 12 -'!J27,'- 12 -'!H27,'- 12 -'!F27,'- 12 -'!D27,'- 12 -'!B27) -> 57214485 | K27: 1.913001255 | M27: COMMUNITY EDUCATION | N27: ='- 12 -'!I51 -> 0.7474870843
A28: TRAVEL AND MEETINGS | B28: 1252573 | C28: 0.04188054337 | D28: 3965158 | E28: 0.1325774798 | F28: 926207 | G28: 0.03096829681 | J28: =SUM(F28,D28,B28,'- 12 -'!J28,'- 12 -'!H28,'- 12 -'!F28,'- 12 -'!D28,'- 12 -'!B28) -> 13914291 | K28: 0.465232819 | M28: DIVISIONAL ADMINISTRATION | N28: ='- 12 -'!K51 -> 3.107149448
A29: TRANSPORTATION OF PUPILS | C29: 0 | D29: 25469339 | E29: 0.8515829071 | G29: 0 | J29: =SUM(F29,D29,B29,'- 12 -'!J29,'- 12 -'!H29,'- 12 -'!F29,'- 12 -'!D29,'- 12 -'!B29) -> 25469339 | K29: 0.8515829071 | M29: INSTRUCTIONAL & PUPIL SUPPORT SERVICES | N29: =C54 -> 3.699281611
A30: TUITION | B30: 6600 | C30: 0.0002206750315 | E30: 0 | G30: 0 | J30: =SUM(F30,D30,B30,'- 12 -'!J30,'- 12 -'!H30,'- 12 -'!F30,'- 12 -'!D30,'- 12 -'!B30) -> 2004229 | K30: 0.06701262088 | M30: TRANSPORTATION OF PUPILS | N30: =E54 -> 4.413367457
A31: PRINTING AND BINDING | B31: 22350 | C31: 0.0007472859022 | D31: 12600 | E31: 0.0004212886966 | F31: 6500 | G31: 0.0002173314704 | J31: =SUM(F31,D31,B31,'- 12 -'!J31,'- 12 -'!H31,'- 12 -'!F31,'- 12 -'!D31,'- 12 -'!B31) -> 735531 | K31: 0.02459292828 | M31: OPERATIONS & MAINTENANCE | N31: =G54 -> 11.03277683
A32: INSURANCE AND BOND PREMIUMS | B32: 336135 | C32: 0.01123887905 | D32: 1701759 | E32: 0.05689935166 | F32: 15900447 | G32: 0.531641158 | J32: =SUM(F32,D32,B32,'- 12 -'!J32,'- 12 -'!H32,'- 12 -'!F32,'- 12 -'!D32,'- 12 -'!B32) -> 21016977 | K32: 0.702715464 | M32: FISCAL | N32: =I54 -> 1.705129153
A33: MAINTENANCE AND REPAIR SERVICES | B33: 57350 | C33: 0.001917532282 | D33: 3736452 | E33: 0.124930555 | F33: 37730861 | G33: 1.261554385 | J33: =SUM(F33,D33,B33,'- 12 -'!J33,'- 12 -'!H33,'- 12 -'!F33,'- 12 -'!D33,'- 12 -'!B33) -> 44605747 | K33: 1.491420398
A34: RENTALS | B34: 213824 | C34: 0.007149336052 | D34: 1503518 | E34: 0.05027104274 | F34: 3447404 | G34: 0.1152660585 | J34: =SUM(F34,D34,B34,'- 12 -'!J34,'- 12 -'!H34,'- 12 -'!F34,'- 12 -'!D34,'- 12 -'!B34) -> 10946428 | K34: 0.3660005067 | N34: =SUM(N24:N32) -> 100
A35: PROPERTY TAXES | C35: 0 | E35: 0 | F35: 5728783 | G35: 0.191545359 | J35: =SUM(F35,D35,B35,'- 12 -'!J35,'- 12 -'!H35,'- 12 -'!F35,'- 12 -'!D35,'- 12 -'!B35) -> 5744783 | K35: 0.1920803287
A36: ADVERTISING | B36: 16440 | C36: =B36/J54 -> 5.496814422e-06 | D36: 31715 | E36: =D36/J54 -> 1.060410398e-05 | F36: 44450 | G36: =F36/J54 -> 1.486212902e-05 | J36: =SUM(F36,D36,B36,'- 12 -'!J36,'- 12 -'!H36,'- 12 -'!F36,'- 12 -'!D36,'- 12 -'!B36) -> 1058364 | K36: 0.03538704683
A37: DUES AND FEES | B37: 165514 | C37: =B37/$J$54*100 -> 0.005534061692 | D37: 78520 | E37: =D37/$J$54*100 -> 0.002625364163 | F37: 133652 | G37: =F37/$J$54*100 -> 0.00446873626 | J37: =SUM(F37,D37,B37,'- 12 -'!J37,'- 12 -'!H37,'- 12 -'!F37,'- 12 -'!D37,'- 12 -'!B37) -> 4760670 | K37: 0.1591759095
A38: PROFESSIONAL AND STAFF DEVELOPMENT | B38: 13640200 | C38: =B38/'- 13 -'!$J$54*100 -> 0.456068419 | D38: 283409 | E38: =D38/'- 13 -'!$J$54*100 -> 0.009475953032 | F38: 372899 | G38: =F38/'- 13 -'!$J$54*100 -> 0.01246810585 | J38: =SUM(F38,D38,B38,'- 12 -'!J38,'- 12 -'!H38,'- 12 -'!F38,'- 12 -'!D38,'- 12 -'!B38) -> 16520681 | K38: 0.5523790607
A39: INFORMATION TECHNOLOGY SERVICES | B39: 983852 | C39: =B39/$J$54*100 -> 0.03289569259 | D39: 688987 | E39: =D39/$J$54*100 -> 0.0230367012 | F39: 403050 | G39: =F39/$J$54*100 -> 0.01347622295 | J39: =SUM(F39,D39,B39,'- 12 -'!J39,'- 12 -'!H39,'- 12 -'!F39,'- 12 -'!D39,'- 12 -'!B39) -> 20588582 | K39: 0.6883918155
A40: TOTAL SERVICES | B40: =SUM(B25:B39) -> 20556418 | C40: =B40/$J$54*100 -> 0.6873163925 | D40: =SUM(D25:D39) -> 38490362 | E40: =D40/$J$54*100 -> 1.286948765 | F40: =SUM(F25:F39) -> 128417934 | G40: =F40/$J$54*100 -> 4.293732066 | J40: =SUM(F40,D40,B40,'- 12 -'!J40,'- 12 -'!H40,'- 12 -'!F40,'- 12 -'!D40,'- 12 -'!B40) -> 263023773 | K40: 8.794360515
A41: SUPPLIES AND EQUIPMENT
A42: SUPPLIES | B42: 16295471 | C42: =B42/$J$54*100 -> 0.5448490268 | D42: 25228933 | E42: =D42/$J$54*100 -> 0.8435447857 | F42: 23874347 | G42: =F42/$J$54*100 -> 0.7982533753 | J42: =SUM(F42,D42,B42,'- 12 -'!J42,'- 12 -'!H42,'- 12 -'!F42,'- 12 -'!D42,'- 12 -'!B42) -> 117309954 | K42: =J42/$J$54*100 -> 3.922329969
A43: CURRICULAR AND MEDIA MATERIALS | B43: 2948231 | C43: =B43/$J$54*100 -> 0.09857590438 | D43: 13920 | E43: =D43/$J$54*100 -> 0.0004654237029 | F43: 184680 | G43: =F43/$J$54*100 -> 0.00617488861 | J43: =SUM(F43,D43,B43,'- 12 -'!J43,'- 12 -'!H43,'- 12 -'!F43,'- 12 -'!D43,'- 12 -'!B43) -> 15331936 | K43: =J43/$J$54*100 -> 0.5126326455
A44: MINOR EQUIPMENT | B44: 309509 | C44: =B44/$J$54*100 -> 0.01034862248 | D44: 451653 | E44: =D44/$J$54*100 -> 0.01510129394 | F44: 4355365 | G44: =F44/$J$54*100 -> 0.1456242892 | J44: =SUM(F44,D44,B44,'- 12 -'!J44,'- 12 -'!H44,'- 12 -'!F44,'- 12 -'!D44,'- 12 -'!B44) -> 16872991 | K44: =J44/$J$54*100 -> 0.5641587608
A45: INFORMATION TECHNOLOGY EQUIPMENT | B45: 353424 | C45: =B45/$J$54*100 -> 0.01181694732 | D45: 214030 | E45: =D45/$J$54*100 -> 0.007156223788 | F45: 152602 | G45: =F45/$J$54*100 -> 0.005102341085 | J45: =SUM(F45,D45,B45,'- 12 -'!J45,'- 12 -'!H45,'- 12 -'!F45,'- 12 -'!D45,'- 12 -'!B45) -> 25108342 | K45: =J45/$J$54*100 -> 0.8395127519
A46: TOTAL SUPPLIES AND EQUIPMENT | B46: =SUM(B42:B45) -> 19906635 | C46: =B46/$J$54*100 -> 0.665590501 | D46: =SUM(D42:D45) -> 25908536 | E46: =D46/$J$54*100 -> 0.8662677271 | F46: =SUM(F42:F45) -> 28566994 | G46: =F46/$J$54*100 -> 0.9551548942 | J46: =SUM(F46,D46,B46,'- 12 -'!J46,'- 12 -'!H46,'- 12 -'!F46,'- 12 -'!D46,'- 12 -'!B46) -> 174623223 | K46: =J46/$J$54*100 -> 5.838634128
A47: TRANSFERS
A48: RECHARGE | F48: 0 | J48: ='- 12 -'!F48+'- 12 -'!J48+'- 13 -'!F48 -> 0
A49: DEBT SERVICES | H49: ='- 10 -'!G19 -> 5208413 | I49: =H49/$J$54*100 -> 0.1741464702 | J49: =H49 -> 5208413 | K49: =J49/$J$54*100 -> 0.1741464702
A50: BAD DEBT EXPENSE | H50: ='- 10 -'!H19 -> 8000 | J50: =H50 -> 8000
A51: OTHER GOVERNMENT AUTHORITIES | H51: ='- 10 -'!I19 -> 45780985 | I51: =H51/$J$54*100 -> 1.530715198 | J51: =H51 -> 45780985 | K51: =J51/$J$54*100 -> 1.530715198
A52: TOTAL TRANSFERS | F52: =F48 -> 0 | H52: =SUM(H49:H51) -> 50997398 | I52: =H52/$J$54*100 -> 1.705129153 | J52: =SUM(J48:J51) -> 50997398 | K52: =J52/$J$54*100 -> 1.705129153
A54: PROVINCE | B54: =SUM(B52,B46,B40,B23,B22) -> 110638972 | C54: =B54/$J$54*100 -> 3.699281611 | D54: =SUM(D52,D46,D40,D23,D22) -> 131996017 | E54: =D54/$J$54*100 -> 4.413367457 | F54: =SUM(F52,F46,F40,F23,F22) -> 329970847 | G54: =F54/$J$54*100 -> 11.03277683 | H54: =SUM(H52,H46,H40,H23,H22) -> 50997398 | I54: =H54/$J$54*100 -> 1.705129153 | J54: =SUM(J52,J46,J40,J23,J22) -> 2990823182 | K54: =J54/$J$54*100 -> 100
M56: =J54-'- 3 -'!D48 -> 0

Sheet - 14 -
U23: - 14 -
G25: 2794500

Sheet - 15 -
B2: =IF(Lang=1,BA2,BB2) -> ANALYSIS OF EXPENSE BY FUNCTION | I2: PAGE 1 OF 3 | BA2: ANALYSIS OF EXPENSE BY FUNCTION | BB2: ANALYSE DES DÉPENSES PAR FONCTION
B3: =OPYEAR -> OPERATING FUND 2024/2025 BUDGET
B6: REGULAR INSTRUCTION | E6: STUDENT SUPPORT SERVICES | H6: ADULT LEARNING CENTRES
D8: PER PUPIL | G8: PER PUPIL
A9: DIVISION / DISTRICT | B9: AMOUNT | C9: % | E9: AMOUNT | F9: % | H9: AMOUNT | I9: %
A11: BEAUTIFUL PLAINS | B11: =SUM('- 18 -'!B11,'- 18 -'!E11,'- 19 -'!B11,'- 19 -'!E11,'- 19 -'!H11,'- 20 -'!B11) -> 18580334 | C11: =B11/'- 3 -'!D11*100 -> 65.1235399 | D11: =B11/'- 7 -'!C11 -> 8305.915959 | E11: =SUM('- 21 -'!B11,'- 21 -'!E11,'- 21 -'!H11,'- 22 -'!B11,'- 22 -'!E11,'- 22 -'!H11) -> 3651907 | F11: =E11/'- 3 -'!D11*100 -> 12.79982971 | G11: =E11/'- 7 -'!E11 -> 1632.502012 | H11: =SUM('- 23 -'!D11,'- 23 -'!B11) -> 0 | I11: =H11/'- 3 -'!D11*100 -> 0
A12: BORDER LAND | B12: =SUM('- 18 -'!B12,'- 18 -'!E12,'- 19 -'!B12,'- 19 -'!E12,'- 19 -'!H12,'- 20 -'!B12) -> 23282734 | C12: =B12/'- 3 -'!D12*100 -> 58.1748243 | D12: =B12/'- 7 -'!C12 -> 11443.95871 | E12: =SUM('- 21 -'!B12,'- 21 -'!E12,'- 21 -'!H12,'- 22 -'!B12,'- 22 -'!E12,'- 22 -'!H12) -> 6293527 | F12: =E12/'- 3 -'!D12*100 -> 15.72516473 | G12: =E12/'- 7 -'!E12 -> 3093.40231 | H12: =SUM('- 23 -'!D12,'- 23 -'!B12) -> 360000 | I12: =H12/'- 3 -'!D12*100 -> 0.8995050473
A13: BRANDON | B13: =SUM('- 18 -'!B13,'- 18 -'!E13,'- 19 -'!B13,'- 19 -'!E13,'- 19 -'!H13,'- 20 -'!B13) -> 80619995 | C13: =B13/'- 3 -'!D13*100 -> 60.91660224 | D13: =B13/'- 7 -'!C13 -> 8521.747793 | E13: =SUM('- 21 -'!B13,'- 21 -'!E13,'- 21 -'!H13,'- 22 -'!B13,'- 22 -'!E13,'- 22 -'!H13) -> 26422670 | F13: =E13/'- 3 -'!D13*100 -> 19.96501338 | G13: =E13/'- 7 -'!E13 -> 2792.946462 | H13: =SUM('- 23 -'!D13,'- 23 -'!B13) -> 0 | I13: =H13/'- 3 -'!D13*100 -> 0
A14: DSFM | B14: =SUM('- 18 -'!B14,'- 18 -'!E14,'- 19 -'!B14,'- 19 -'!E14,'- 19 -'!H14,'- 20 -'!B14) -> 64065876 | C14: =B14/'- 3 -'!D14*100 -> 54.03778307 | D14: =B14/'- 7 -'!C14 -> 10371.64782 | E14: =SUM('- 21 -'!B14,'- 21 -'!E14,'- 21 -'!H14,'- 22 -'!B14,'- 22 -'!E14,'- 22 -'!H14) -> 15967829 | F14: =E14/'- 3 -'!D14*100 -> 13.46841928 | G14: =E14/'- 7 -'!E14 -> 2585.037607 | H14: =SUM('- 23 -'!D14,'- 23 -'!B14) -> 260748 | I14: =H14/'- 3 -'!D14*100 -> 0.2199336798
A15: EVERGREEN | B15: =SUM('- 18 -'!B15,'- 18 -'!E15,'- 19 -'!B15,'- 19 -'!E15,'- 19 -'!H15,'- 20 -'!B15) -> 13666587 | C15: =B15/'- 3 -'!D15*100 -> 55.04632618 | D15: =B15/'- 7 -'!C15 -> 9789.818768 | E15: =SUM('- 21 -'!B15,'- 21 -'!E15,'- 21 -'!H15,'- 22 -'!B15,'- 22 -'!E15,'- 22 -'!H15) -> 3984162 | F15: =E15/'- 3 -'!D15*100 -> 16.04742142 | G15: =E15/'- 7 -'!E15 -> 2853.984241 | H15: =SUM('- 23 -'!D15,'- 23 -'!B15) -> 0 | I15: =H15/'- 3 -'!D15*100 -> 0
A16: FLIN FLON | B16: =SUM('- 18 -'!B16,'- 18 -'!E16,'- 19 -'!B16,'- 19 -'!E16,'- 19 -'!H16,'- 20 -'!B16) -> 10052787 | C16: =B16/'- 3 -'!D16*100 -> 55.43998986 | D16: =B16/'- 7 -'!C16 -> 12613.28356 | E16: =SUM('- 21 -'!B16,'- 21 -'!E16,'- 21 -'!H16,'- 22 -'!B16,'- 22 -'!E16,'- 22 -'!H16) -> 3564783 | F16: =E16/'- 3 -'!D16*100 -> 19.65937738 | G16: =E16/'- 7 -'!E16 -> 4472.751568 | H16: =SUM('- 23 -'!D16,'- 23 -'!B16) -> 94000 | I16: =H16/'- 3 -'!D16*100 -> 0.5183994296
A17: FORT LA BOSSE | B17: =SUM('- 18 -'!B17,'- 18 -'!E17,'- 19 -'!B17,'- 19 -'!E17,'- 19 -'!H17,'- 20 -'!B17) -> 13839880 | C17: =B17/'- 3 -'!D17*100 -> 60.69820647 | D17: =B17/'- 7 -'!C17 -> 8877.408595 | E17: =SUM('- 21 -'!B17,'- 21 -'!E17,'- 21 -'!H17,'- 22 -'!B17,'- 22 -'!E17,'- 22 -'!H17) -> 2768410 | F17: =E17/'- 3 -'!D17*100 -> 12.14154471 | G17: =E17/'- 7 -'!E17 -> 1775.760103 | H17: =SUM('- 23 -'!D17,'- 23 -'!B17) -> 0 | I17: =H17/'- 3 -'!D17*100 -> 0
A18: FRONTIER | B18: =SUM('- 18 -'!B18,'- 18 -'!E18,'- 19 -'!B18,'- 19 -'!E18,'- 19 -'!H18,'- 20 -'!B18) -> 70227428 | C18: =B18/'- 3 -'!D18*100 -> 39.77862765 | D18: =B18/'- 7 -'!C18 -> 10800.89634 | E18: =SUM('- 21 -'!B18,'- 21 -'!E18,'- 21 -'!H18,'- 22 -'!B18,'- 22 -'!E18,'- 22 -'!H18) -> 30833513 | F18: =E18/'- 3 -'!D18*100 -> 17.46489752 | G18: =E18/'- 7 -'!E18 -> 4742.158259 | H18: =SUM('- 23 -'!D18,'- 23 -'!B18) -> 2753192 | I18: =H18/'- 3 -'!D18*100 -> 1.559479003
A19: GARDEN VALLEY | B19: =SUM('- 18 -'!B19,'- 18 -'!E19,'- 19 -'!B19,'- 19 -'!E19,'- 19 -'!H19,'- 20 -'!B19) -> 34103637 | C19: =B19/'- 3 -'!D19*100 -> 57.98393506 | D19: =B19/'- 7 -'!C19 -> 8026.273711 | E19: =SUM('- 21 -'!B19,'- 21 -'!E19,'- 21 -'!H19,'- 22 -'!B19,'- 22 -'!E19,'- 22 -'!H19) -> 10918640 | F19: =E19/'- 3 -'!D19*100 -> 18.56416994 | G19: =E19/'- 7 -'!E19 -> 2569.696399 | H19: =SUM('- 23 -'!D19,'- 23 -'!B19) -> 0 | I19: =H19/'- 3 -'!D19*100 -> 0
A20: HANOVER | B20: =SUM('- 18 -'!B20,'- 18 -'!E20,'- 19 -'!B20,'- 19 -'!E20,'- 19 -'!H20,'- 20 -'!B20) -> 68693100 | C20: =B20/'- 3 -'!D20*100 -> 59.39889543 | D20: =B20/'- 7 -'!C20 -> 8063.516845 | E20: =SUM('- 21 -'!B20,'- 21 -'!E20,'- 21 -'!H20,'- 22 -'!B20,'- 22 -'!E20,'- 22 -'!H20) -> 23617700 | F20: =E20/'- 3 -'!D20*100 -> 20.42221552 | G20: =E20/'- 7 -'!E20 -> 2772.35591 | H20: =SUM('- 23 -'!D20,'- 23 -'!B20) -> 0 | I20: =H20/'- 3 -'!D20*100 -> 0
A21: INTERLAKE | B21: =SUM('- 18 -'!B21,'- 18 -'!E21,'- 19 -'!B21,'- 19 -'!E21,'- 19 -'!H21,'- 20 -'!B21) -> 24799564 | C21: =B21/'- 3 -'!D21*100 -> 55.63819319 | D21: =B21/'- 7 -'!C21 -> 8665.116702 | E21: =SUM('- 21 -'!B21,'- 21 -'!E21,'- 21 -'!H21,'- 22 -'!B21,'- 22 -'!E21,'- 22 -'!H21) -> 8927100 | F21: =E21/'- 3 -'!D21*100 -> 20.02808253 | G21: =E21/'- 7 -'!E21 -> 3119.18239 | H21: =SUM('- 23 -'!D21,'- 23 -'!B21) -> 0 | I21: =H21/'- 3 -'!D21*100 -> 0
A22: KELSEY | B22: =SUM('- 18 -'!B22,'- 18 -'!E22,'- 19 -'!B22,'- 19 -'!E22,'- 19 -'!H22,'- 20 -'!B22) -> 12317100 | C22: =B22/'- 3 -'!D22*100 -> 51.03747737 | D22: =B22/'- 7 -'!C22 -> 8601.326816 | E22: =SUM('- 21 -'!B22,'- 21 -'!E22,'- 21 -'!H22,'- 22 -'!B22,'- 22 -'!E22,'- 22 -'!H22) -> 5059785 | F22: =E22/'- 3 -'!D22*100 -> 20.96586554 | G22: =E22/'- 7 -'!E22 -> 3533.369413 | H22: =SUM('- 23 -'!D22,'- 23 -'!B22) -> 650900 | I22: =H22/'- 3 -'!D22*100 -> 2.697087303
A23: LAKESHORE | B23: =SUM('- 18 -'!B23,'- 18 -'!E23,'- 19 -'!B23,'- 19 -'!E23,'- 19 -'!H23,'- 20 -'!B23) -> 9611134 | C23: =B23/'- 3 -'!D23*100 -> 52.74898163 | D23: =B23/'- 7 -'!C23 -> 9857.573333 | E23: =SUM('- 21 -'!B23,'- 21 -'!E23,'- 21 -'!H23,'- 22 -'!B23,'- 22 -'!E23,'- 22 -'!H23) -> 3098750 | F23: =E23/'- 3 -'!D23*100 -> 17.00693246 | G23: =E23/'- 7 -'!E23 -> 3178.205128 | H23: =SUM('- 23 -'!D23,'- 23 -'!B23) -> 285000 | I23: =H23/'- 3 -'!D23*100 -> 1.564171279
A24: LORD SELKIRK | B24: =SUM('- 18 -'!B24,'- 18 -'!E24,'- 19 -'!B24,'- 19 -'!E24,'- 19 -'!H24,'- 20 -'!B24) -> 41908093 | C24: =B24/'- 3 -'!D24*100 -> 60.61917048 | D24: =B24/'- 7 -'!C24 -> 11125.05787 | E24: =SUM('- 21 -'!B24,'- 21 -'!E24,'- 21 -'!H24,'- 22 -'!B24,'- 22 -'!E24,'- 22 -'!H24) -> 11327733 | F24: =E24/'- 3 -'!D24*100 -> 16.38532629 | G24: =E24/'- 7 -'!E24 -> 3007.096629 | H24: =SUM('- 23 -'!D24,'- 23 -'!B24) -> 401277 | I24: =H24/'- 3 -'!D24*100 -> 0.5804386965
A25: LOUIS RIEL | B25: =SUM('- 18 -'!B25,'- 18 -'!E25,'- 19 -'!B25,'- 19 -'!E25,'- 19 -'!H25,'- 20 -'!B25) -> 131703694 | C25: =B25/'- 3 -'!D25*100 -> 54.10073508 | D25: =B25/'- 7 -'!C25 -> 7744.087376 | E25: =SUM('- 21 -'!B25,'- 21 -'!E25,'- 21 -'!H25,'- 22 -'!B25,'- 22 -'!E25,'- 22 -'!H25) -> 53724927 | F25: =E25/'- 3 -'!D25*100 -> 22.06891815 | G25: =E25/'- 7 -'!E25 -> 3158.989063 | H25: =SUM('- 23 -'!D25,'- 23 -'!B25) -> 757406 | I25: =H25/'- 3 -'!D25*100 -> 0.3111243133
A26: MOUNTAIN VIEW | B26: =SUM('- 18 -'!B26,'- 18 -'!E26,'- 19 -'!B26,'- 19 -'!E26,'- 19 -'!H26,'- 20 -'!B26) -> 27908244 | C26: =B26/'- 3 -'!D26*100 -> 56.02936147 | D26: =B26/'- 7 -'!C26 -> 8968.232912 | E26: =SUM('- 21 -'!B26,'- 21 -'!E26,'- 21 -'!H26,'- 22 -'!B26,'- 22 -'!E26,'- 22 -'!H26) -> 7511341 | F26: =E26/'- 3 -'!D26*100 -> 15.07997565 | G26: =E26/'- 7 -'!E26 -> 2413.74755 | H26: =SUM('- 23 -'!D26,'- 23 -'!B26) -> 0 | I26: =H26/'- 3 -'!D26*100 -> 0
A27: MYSTERY LAKE | B27: =SUM('- 18 -'!B27,'- 18 -'!E27,'- 19 -'!B27,'- 19 -'!E27,'- 19 -'!H27,'- 20 -'!B27) -> 28545800 | C27: =B27/'- 3 -'!D27*100 -> 56.889898 | D27: =B27/'- 7 -'!C27 -> 10121.00906 | E27: =SUM('- 21 -'!B27,'- 21 -'!E27,'- 21 -'!H27,'- 22 -'!B27,'- 22 -'!E27,'- 22 -'!H27) -> 10016137 | F27: =E27/'- 3 -'!D27*100 -> 19.9615009 | G27: =E27/'- 7 -'!E27 -> 3551.254942 | H27: =SUM('- 23 -'!D27,'- 23 -'!B27) -> 0 | I27: =H27/'- 3 -'!D27*100 -> 0
A28: PARK WEST | B28: =SUM('- 18 -'!B28,'- 18 -'!E28,'- 19 -'!B28,'- 19 -'!E28,'- 19 -'!H28,'- 20 -'!B28) -> 20471452 | C28: =B28/'- 3 -'!D28*100 -> 59.03148687 | D28: =B28/'- 7 -'!C28 -> 9339.166058 | E28: =SUM('- 21 -'!B28,'- 21 -'!E28,'- 21 -'!H28,'- 22 -'!B28,'- 22 -'!E28,'- 22 -'!H28) -> 4833414 | F28: =E28/'- 3 -'!D28*100 -> 13.93763447 | G28: =E28/'- 7 -'!E28 -> 2205.024635 | H28: =SUM('- 23 -'!D28,'- 23 -'!B28) -> 134634 | I28: =H28/'- 3 -'!D28*100 -> 0.3882306542
A29: PEMBINA TRAILS | B29: =SUM('- 18 -'!B29,'- 18 -'!E29,'- 19 -'!B29,'- 19 -'!E29,'- 19 -'!H29,'- 20 -'!B29) -> 127183730 | C29: =B29/'- 3 -'!D29*100 -> 57.58197861 | D29: =B29/'- 7 -'!C29 -> 7679.249487 | E29: =SUM('- 21 -'!B29,'- 21 -'!E29,'- 21 -'!H29,'- 22 -'!B29,'- 22 -'!E29,'- 22 -'!H29) -> 44924126 | F29: =E29/'- 3 -'!D29*100 -> 20.33923728 | G29: =E29/'- 7 -'!E29 -> 2712.481947 | H29: =SUM('- 23 -'!D29,'- 23 -'!B29) -> 0 | I29: =H29/'- 3 -'!D29*100 -> 0
A30: PINE CREEK | B30: =SUM('- 18 -'!B30,'- 18 -'!E30,'- 19 -'!B30,'- 19 -'!E30,'- 19 -'!H30,'- 20 -'!B30) -> 12052019 | C30: =B30/'- 3 -'!D30*100 -> 61.40451239 | D30: =B30/'- 7 -'!C30 -> 11226.84583 | E30: =SUM('- 21 -'!B30,'- 21 -'!E30,'- 21 -'!H30,'- 22 -'!B30,'- 22 -'!E30,'- 22 -'!H30) -> 2470425 | F30: =E30/'- 3 -'!D30*100 -> 12.58670788 | G30: =E30/'- 7 -'!E30 -> 2301.280857 | H30: =SUM('- 23 -'!D30,'- 23 -'!B30) -> 0 | I30: =H30/'- 3 -'!D30*100 -> 0
A31: PORTAGE LA PRAIRIE | B31: =SUM('- 18 -'!B31,'- 18 -'!E31,'- 19 -'!B31,'- 19 -'!E31,'- 19 -'!H31,'- 20 -'!B31) -> 29408104 | C31: =B31/'- 3 -'!D31*100 -> 59.12318623 | D31: =B31/'- 7 -'!C31 -> 8700.622485 | E31: =SUM('- 21 -'!B31,'- 21 -'!E31,'- 21 -'!H31,'- 22 -'!B31,'- 22 -'!E31,'- 22 -'!H31) -> 9319044 | F31: =E31/'- 3 -'!D31*100 -> 18.73536539 | G31: =E31/'- 7 -'!E31 -> 2757.113609 | H31: =SUM('- 23 -'!D31,'- 23 -'!B31) -> 0 | I31: =H31/'- 3 -'!D31*100 -> 0
A32: PRAIRIE ROSE | B32: =SUM('- 18 -'!B32,'- 18 -'!E32,'- 19 -'!B32,'- 19 -'!E32,'- 19 -'!H32,'- 20 -'!B32) -> 20625866 | C32: =B32/'- 3 -'!D32*100 -> 55.98268863 | D32: =B32/'- 7 -'!C32 -> 8913.511668 | E32: =SUM('- 21 -'!B32,'- 21 -'!E32,'- 21 -'!H32,'- 22 -'!B32,'- 22 -'!E32,'- 22 -'!H32) -> 6283060 | F32: =E32/'- 3 -'!D32*100 -> 17.05347022 | G32: =E32/'- 7 -'!E32 -> 2715.237684 | H32: =SUM('- 23 -'!D32,'- 23 -'!B32) -> 295814 | I32: =H32/'- 3 -'!D32*100 -> 0.80289783
A33: PRAIRIE SPIRIT | B33: =SUM('- 18 -'!B33,'- 18 -'!E33,'- 19 -'!B33,'- 19 -'!E33,'- 19 -'!H33,'- 20 -'!B33) -> 18780530 | C33: =B33/'- 3 -'!D33*100 -> 56.92340296 | D33: =B33/'- 7 -'!C33 -> 8735.130233 | E33: =SUM('- 21 -'!B33,'- 21 -'!E33,'- 21 -'!H33,'- 22 -'!B33,'- 22 -'!E33,'- 22 -'!H33) -> 5044530 | F33: =E33/'- 3 -'!D33*100 -> 15.28986743 | G33: =E33/'- 7 -'!E33 -> 2346.293023 | H33: =SUM('- 23 -'!D33,'- 23 -'!B33) -> 0 | I33: =H33/'- 3 -'!D33*100 -> 0
A34: RED RIVER VALLEY | B34: =SUM('- 18 -'!B34,'- 18 -'!E34,'- 19 -'!B34,'- 19 -'!E34,'- 19 -'!H34,'- 20 -'!B34) -> 21411919 | C34: =B34/'- 3 -'!D34*100 -> 56.53632581 | D34: =B34/'- 7 -'!C34 -> 9134.77773 | E34: =SUM('- 21 -'!B34,'- 21 -'!E34,'- 21 -'!H34,'- 22 -'!B34,'- 22 -'!E34,'- 22 -'!H34) -> 6613594 | F34: =E34/'- 3 -'!D34*100 -> 17.46262468 | G34: =E34/'- 7 -'!E34 -> 2821.499147 | H34: =SUM('- 23 -'!D34,'- 23 -'!B34) -> 0 | I34: =H34/'- 3 -'!D34*100 -> 0
A35: RIVER EAST TRANSCONA | B35: =SUM('- 18 -'!B35,'- 18 -'!E35,'- 19 -'!B35,'- 19 -'!E35,'- 19 -'!H35,'- 20 -'!B35) -> 146676088 | C35: =B35/'- 3 -'!D35*100 -> 58.41118719 | D35: =B35/'- 7 -'!C35 -> 8078.211599 | E35: =SUM('- 21 -'!B35,'- 21 -'!E35,'- 21 -'!H35,'- 22 -'!B35,'- 22 -'!E35,'- 22 -'!H35) -> 50523268 | F35: =E35/'- 3 -'!D35*100 -> 20.12000801 | G35: =E35/'- 7 -'!E35 -> 2782.577959 | H35: =SUM('- 23 -'!D35,'- 23 -'!B35) -> 1737257 | I35: =H35/'- 3 -'!D35*100 -> 0.6918322217
A36: ROLLING RIVER | B36: =SUM('- 18 -'!B36,'- 18 -'!E36,'- 19 -'!B36,'- 19 -'!E36,'- 19 -'!H36,'- 20 -'!B36) -> 16326785 | C36: =B36/'- 3 -'!D36*100 -> 58.44504842 | D36: =B36/'- 7 -'!C36 -> 9316.282454 | E36: =SUM('- 21 -'!B36,'- 21 -'!E36,'- 21 -'!H36,'- 22 -'!B36,'- 22 -'!E36,'- 22 -'!H36) -> 3905005 | F36: =E36/'- 3 -'!D36*100 -> 13.97875983 | G36: =E36/'- 7 -'!E36 -> 2228.248217 | H36: =SUM('- 23 -'!D36,'- 23 -'!B36) -> 0 | I36: =H36/'- 3 -'!D36*100 -> 0
A37: SEINE RIVER | B37: =SUM('- 18 -'!B37,'- 18 -'!E37,'- 19 -'!B37,'- 19 -'!E37,'- 19 -'!H37,'- 20 -'!B37) -> 35547622 | C37: =B37/'- 3 -'!D37*100 -> 54.6811209 | D37: =B37/'- 7 -'!C37 -> 8043.358298 | E37: =SUM('- 21 -'!B37,'- 21 -'!E37,'- 21 -'!H37,'- 22 -'!B37,'- 22 -'!E37,'- 22 -'!H37) -> 14131500 | F37: =E37/'- 3 -'!D37*100 -> 21.73777644 | G37: =E37/'- 7 -'!E37 -> 3197.533658 | H37: =SUM('- 23 -'!D37,'- 23 -'!B37) -> 322314 | I37: =H37/'- 3 -'!D37*100 -> 0.4957994322
A38: SEVEN OAKS | B38: =SUM('- 18 -'!B38,'- 18 -'!E38,'- 19 -'!B38,'- 19 -'!E38,'- 19 -'!H38,'- 20 -'!B38) -> 105688508 | C38: =B38/'- 3 -'!D38*100 -> 58.71069439 | D38: =B38/'- 7 -'!C38 -> 8935.828197 | E38: =SUM('- 21 -'!B38,'- 21 -'!E38,'- 21 -'!H38,'- 22 -'!B38,'- 22 -'!E38,'- 22 -'!H38) -> 31547508 | F38: =E38/'- 3 -'!D38*100 -> 17.52485806 | G38: =E38/'- 7 -'!E38 -> 2667.301458 | H38: =SUM('- 23 -'!D38,'- 23 -'!B38) -> 2501085 | I38: =H38/'- 3 -'!D38*100 -> 1.38936995
A39: SOUTHWEST HORIZON | B39: =SUM('- 18 -'!B39,'- 18 -'!E39,'- 19 -'!B39,'- 19 -'!E39,'- 19 -'!H39,'- 20 -'!B39) -> 14797100 | C39: =B39/'- 3 -'!D39*100 -> 56.29698676 | D39: =B39/'- 7 -'!C39 -> 10387.57459 | E39: =SUM('- 21 -'!B39,'- 21 -'!E39,'- 21 -'!H39,'- 22 -'!B39,'- 22 -'!E39,'- 22 -'!H39) -> 4287550 | F39: =E39/'- 3 -'!D39*100 -> 16.31239537 | G39: =E39/'- 7 -'!E39 -> 3009.86311 | H39: =SUM('- 23 -'!D39,'- 23 -'!B39) -> 0 | I39: =H39/'- 3 -'!D39*100 -> 0
A40: ST. JAMES-ASSINIBOIA | B40: =SUM('- 18 -'!B40,'- 18 -'!E40,'- 19 -'!B40,'- 19 -'!E40,'- 19 -'!H40,'- 20 -'!B40) -> 71333663 | C40: =B40/'- 3 -'!D40*100 -> 54.94860582 | D40: =B40/'- 7 -'!C40 -> 8854.186252 | E40: =SUM('- 21 -'!B40,'- 21 -'!E40,'- 21 -'!H40,'- 22 -'!B40,'- 22 -'!E40,'- 22 -'!H40) -> 30367489 | F40: =E40/'- 3 -'!D40*100 -> 23.39219819 | G40: =E40/'- 7 -'!E40 -> 3769.320014 | H40: =SUM('- 23 -'!D40,'- 23 -'!B40) -> 0 | I40: =H40/'- 3 -'!D40*100 -> 0
A41: SUNRISE | B41: =SUM('- 18 -'!B41,'- 18 -'!E41,'- 19 -'!B41,'- 19 -'!E41,'- 19 -'!H41,'- 20 -'!B41) -> 43681496 | C41: =B41/'- 3 -'!D41*100 -> 54.414472 | D41: =B41/'- 7 -'!C41 -> 9468.190311 | E41: =SUM('- 21 -'!B41,'- 21 -'!E41,'- 21 -'!H41,'- 22 -'!B41,'- 22 -'!E41,'- 22 -'!H41) -> 15346293 | F41: =E41/'- 3 -'!D41*100 -> 19.11702911 | G41: =E41/'- 7 -'!E41 -> 3326.388425 | H41: =SUM('- 23 -'!D41,'- 23 -'!B41) -> 1030545 | I41: =H41/'- 3 -'!D41*100 -> 1.283760109
A42: SWAN VALLEY | B42: =SUM('- 18 -'!B42,'- 18 -'!E42,'- 19 -'!B42,'- 19 -'!E42,'- 19 -'!H42,'- 20 -'!B42) -> 13662985 | C42: =B42/'- 3 -'!D42*100 -> 49.76356544 | D42: =B42/'- 7 -'!C42 -> 9857.853535 | E42: =SUM('- 21 -'!B42,'- 21 -'!E42,'- 21 -'!H42,'- 22 -'!B42,'- 22 -'!E42,'- 22 -'!H42) -> 6500969 | F42: =E42/'- 3 -'!D42*100 -> 23.67794419 | G42: =E42/'- 7 -'!E42 -> 4690.453824 | H42: =SUM('- 23 -'!D42,'- 23 -'!B42) -> 0 | I42: =H42/'- 3 -'!D42*100 -> 0
A43: TURTLE MOUNTAIN | B43: =SUM('- 18 -'!B43,'- 18 -'!E43,'- 19 -'!B43,'- 19 -'!E43,'- 19 -'!H43,'- 20 -'!B43) -> 8997886 | C43: =B43/'- 3 -'!D43*100 -> 56.0586157 | D43: =B43/'- 7 -'!C43 -> 8545.00095 | E43: =SUM('- 21 -'!B43,'- 21 -'!E43,'- 21 -'!H43,'- 22 -'!B43,'- 22 -'!E43,'- 22 -'!H43) -> 2879435 | F43: =E43/'- 3 -'!D43*100 -> 17.93945157 | G43: =E43/'- 7 -'!E43 -> 2734.506173 | H43: =SUM('- 23 -'!D43,'- 23 -'!B43) -> 208540 | I43: =H43/'- 3 -'!D43*100 -> 1.299245591
A44: TURTLE RIVER | B44: =SUM('- 18 -'!B44,'- 18 -'!E44,'- 19 -'!B44,'- 19 -'!E44,'- 19 -'!H44,'- 20 -'!B44) -> 7180375 | C44: =B44/'- 3 -'!D44*100 -> 56.30016961 | D44: =B44/'- 7 -'!C44 -> 11878.20513 | E44: =SUM('- 21 -'!B44,'- 21 -'!E44,'- 21 -'!H44,'- 22 -'!B44,'- 22 -'!E44,'- 22 -'!H44) -> 1888618 | F44: =E44/'- 3 -'!D44*100 -> 14.80835106 | G44: =E44/'- 7 -'!E44 -> 3124.264682 | H44: =SUM('- 23 -'!D44,'- 23 -'!B44) -> 0 | I44: =H44/'- 3 -'!D44*100 -> 0
A45: WESTERN | B45: =SUM('- 18 -'!B45,'- 18 -'!E45,'- 19 -'!B45,'- 19 -'!E45,'- 19 -'!H45,'- 20 -'!B45) -> 18091165 | C45: =B45/'- 3 -'!D45*100 -> 58.96461031 | D45: =B45/'- 7 -'!C45 -> 7969.676211 | E45: =SUM('- 21 -'!B45,'- 21 -'!E45,'- 21 -'!H45,'- 22 -'!B45,'- 22 -'!E45,'- 22 -'!H45) -> 5391134 | F45: =E45/'- 3 -'!D45*100 -> 17.57134576 | G45: =E45/'- 7 -'!E45 -> 2374.948899 | H45: =SUM('- 23 -'!D45,'- 23 -'!B45) -> 478670 | I45: =H45/'- 3 -'!D45*100 -> 1.560131148
A46: WINNIPEG | B46: =SUM('- 18 -'!B46,'- 18 -'!E46,'- 19 -'!B46,'- 19 -'!E46,'- 19 -'!H46,'- 20 -'!B46) -> 242969165 | C46: =B46/'- 3 -'!D46*100 -> 51.14174006 | D46: =B46/'- 7 -'!C46 -> 8551.337944 | E46: =SUM('- 21 -'!B46,'- 21 -'!E46,'- 21 -'!H46,'- 22 -'!B46,'- 22 -'!E46,'- 22 -'!H46) -> 116118882 | F46: =E46/'- 3 -'!D46*100 -> 24.44146227 | G46: =E46/'- 7 -'!E46 -> 4086.8223 | H46: =SUM('- 23 -'!D46,'- 23 -'!B46) -> 786000 | I46: =H46/'- 3 -'!D46*100 -> 0.1654424243
A48: PROVINCE | B48: =SUM(B11:B46) -> 1648812445 | C48: =B48/'- 3 -'!D48*100 -> 55.12905126 | D48: =B48/'- 7 -'!C48 -> 8728.523194 | E48: =SUM(E11:E46) -> 590064758 | F48: =E48/'- 3 -'!D48*100 -> 19.72917562 | G48: =E48/'- 7 -'!E48 -> 3123.699085 | H48: =SUM(H11:H46) -> 13057382 | I48: =H48/'- 3 -'!D48*100 -> 0.4365815431
A50: WHITESHELL | B50: =SUM('- 18 -'!B50,'- 18 -'!E50,'- 19 -'!B50,'- 19 -'!E50,'- 19 -'!H50,'- 20 -'!B50) -> 2450802 | C50: =B50/'- 3 -'!D50*100 -> 58.07697776 | D50: =B50/'- 7 -'!C50 -> 14207.54783 | E50: =SUM('- 21 -'!B50,'- 21 -'!E50,'- 21 -'!H50,'- 22 -'!B50,'- 22 -'!E50,'- 22 -'!H50) -> 541142 | F50: =E50/'- 3 -'!D50*100 -> 12.82351324 | G50: =E50/'- 7 -'!E50 -> 3137.055072 | H50: =SUM('- 23 -'!D50,'- 23 -'!B50) -> 0 | I50: =H50/'- 3 -'!D50*100 -> 0

Sheet - 16 -
B2: =AEXP_BF -> ANALYSIS OF EXPENSE BY FUNCTION | I2: PAGE 2 OF 3
B3: =+'- 15 -'!B3 -> OPERATING FUND 2024/2025 BUDGET
B6: COMMUNITY EDUCATION AND SERVICES | D6: DIVISIONAL ADMINISTRATION | G6: INSTRUCTIONAL & OTHER SUPPORT SERVICES
F8: PER PUPIL | I8: PER PUPIL
A9: DIVISION / DISTRICT | B9: AMOUNT | C9: % | D9: AMOUNT | E9: % | G9: AMOUNT | H9: %
A11: BEAUTIFUL PLAINS | B11: =SUM('- 24 -'!H11,'- 24 -'!F11,'- 24 -'!D11,'- 24 -'!B11) -> 28560 | C11: =B11/'- 3 -'!D11*100 -> 0.1001019842 | D11: =SUM('- 25 -'!B11,'- 25 -'!E11,'- 25 -'!H11,'- 26 -'!B11) -> 851551 | E11: =D11/'- 3 -'!D11*100 -> 2.98466193 | F11: =D11/'- 7 -'!E11 -> 380.6665177 | G11: =SUM('- 27 -'!B11,'- 27 -'!E11,'- 27 -'!H11,'- 28 -'!B11,'- 28 -'!E11) -> 626576 | H11: =G11/'- 3 -'!D11*100 -> 2.196130981 | I11: =G11/'- 7 -'!E11 -> 280.0965579
A12: BORDER LAND | B12: =SUM('- 24 -'!H12,'- 24 -'!F12,'- 24 -'!D12,'- 24 -'!B12) -> 52723 | C12: =B12/'- 3 -'!D12*100 -> 0.1317350128 | D12: =SUM('- 25 -'!B12,'- 25 -'!E12,'- 25 -'!H12,'- 26 -'!B12) -> 1226816 | E12: =D12/'- 3 -'!D12*100 -> 3.065353289 | F12: =D12/'- 7 -'!E12 -> 603.006144 | G12: =SUM('- 27 -'!B12,'- 27 -'!E12,'- 27 -'!H12,'- 28 -'!B12,'- 28 -'!E12) -> 848070 | H12: =G12/'- 3 -'!D12*100 -> 2.119009015 | I12: =G12/'- 7 -'!E12 -> 416.8444335
A13: BRANDON | B13: =SUM('- 24 -'!H13,'- 24 -'!F13,'- 24 -'!D13,'- 24 -'!B13) -> 415680 | C13: =B13/'- 3 -'!D13*100 -> 0.314088499 | D13: =SUM('- 25 -'!B13,'- 25 -'!E13,'- 25 -'!H13,'- 26 -'!B13) -> 3418760 | E13: =D13/'- 3 -'!D13*100 -> 2.583220739 | F13: =D13/'- 7 -'!E13 -> 361.3720205 | G13: =SUM('- 27 -'!B13,'- 27 -'!E13,'- 27 -'!H13,'- 28 -'!B13,'- 28 -'!E13) -> 4518533 | H13: =G13/'- 3 -'!D13*100 -> 3.414211046 | I13: =G13/'- 7 -'!E13 -> 477.6209503
A14: DSFM | B14: =SUM('- 24 -'!H14,'- 24 -'!F14,'- 24 -'!D14,'- 24 -'!B14) -> 712042 | C14: =B14/'- 3 -'!D14*100 -> 0.6005876066 | D14: =SUM('- 25 -'!B14,'- 25 -'!E14,'- 25 -'!H14,'- 26 -'!B14) -> 4347563 | E14: =D14/'- 3 -'!D14*100 -> 3.667048372 | F14: =D14/'- 7 -'!E14 -> 703.8285452 | G14: =SUM('- 27 -'!B14,'- 27 -'!E14,'- 27 -'!H14,'- 28 -'!B14,'- 28 -'!E14) -> 4396332 | H14: =G14/'- 3 -'!D14*100 -> 3.708183666 | I14: =G14/'- 7 -'!E14 -> 711.7237762
A15: EVERGREEN | B15: =SUM('- 24 -'!H15,'- 24 -'!F15,'- 24 -'!D15,'- 24 -'!B15) -> 0 | C15: =B15/'- 3 -'!D15*100 -> 0 | D15: =SUM('- 25 -'!B15,'- 25 -'!E15,'- 25 -'!H15,'- 26 -'!B15) -> 856884 | E15: =D15/'- 3 -'!D15*100 -> 3.451360326 | F15: =D15/'- 7 -'!E15 -> 613.8137536 | G15: =SUM('- 27 -'!B15,'- 27 -'!E15,'- 27 -'!H15,'- 28 -'!B15,'- 28 -'!E15) -> 692440 | H15: =G15/'- 3 -'!D15*100 -> 2.789012217 | I15: =G15/'- 7 -'!E15 -> 496.017192
A16: FLIN FLON | B16: =SUM('- 24 -'!H16,'- 24 -'!F16,'- 24 -'!D16,'- 24 -'!B16) -> 10041 | C16: =B16/'- 3 -'!D16*100 -> 0.05537498588 | D16: =SUM('- 25 -'!B16,'- 25 -'!E16,'- 25 -'!H16,'- 26 -'!B16) -> 748862 | E16: =D16/'- 3 -'!D16*100 -> 4.12988972 | F16: =D16/'- 7 -'!E16 -> 939.6010038 | G16: =SUM('- 27 -'!B16,'- 27 -'!E16,'- 27 -'!H16,'- 28 -'!B16,'- 28 -'!E16) -> 325162 | H16: =G16/'- 3 -'!D16*100 -> 1.793231865 | I16: =G16/'- 7 -'!E16 -> 407.9824341
A17: FORT LA BOSSE | B17: =SUM('- 24 -'!H17,'- 24 -'!F17,'- 24 -'!D17,'- 24 -'!B17) -> 258090 | C17: =B17/'- 3 -'!D17*100 -> 1.131917337 | D17: =SUM('- 25 -'!B17,'- 25 -'!E17,'- 25 -'!H17,'- 26 -'!B17) -> 852937 | E17: =D17/'- 3 -'!D17*100 -> 3.740765536 | F17: =D17/'- 7 -'!E17 -> 547.1051956 | G17: =SUM('- 27 -'!B17,'- 27 -'!E17,'- 27 -'!H17,'- 28 -'!B17,'- 28 -'!E17) -> 655470 | H17: =G17/'- 3 -'!D17*100 -> 2.874725315 | I17: =G17/'- 7 -'!E17 -> 420.4425914
A18: FRONTIER | B18: =SUM('- 24 -'!H18,'- 24 -'!F18,'- 24 -'!D18,'- 24 -'!B18) -> 2872476 | C18: =B18/'- 3 -'!D18*100 -> 1.627044539 | D18: =SUM('- 25 -'!B18,'- 25 -'!E18,'- 25 -'!H18,'- 26 -'!B18) -> 8871251 | E18: =D18/'- 3 -'!D18*100 -> 5.024905516 | F18: =D18/'- 7 -'!E18 -> 1364.388034 | G18: =SUM('- 27 -'!B18,'- 27 -'!E18,'- 27 -'!H18,'- 28 -'!B18,'- 28 -'!E18) -> 14155181 | H18: =G18/'- 3 -'!D18*100 -> 8.017859836 | I18: =G18/'- 7 -'!E18 -> 2177.050292
A19: GARDEN VALLEY | B19: =SUM('- 24 -'!H19,'- 24 -'!F19,'- 24 -'!D19,'- 24 -'!B19) -> 54073 | C19: =B19/'- 3 -'!D19*100 -> 0.09193639144 | D19: =SUM('- 25 -'!B19,'- 25 -'!E19,'- 25 -'!H19,'- 26 -'!B19) -> 1742070 | E19: =D19/'- 3 -'!D19*100 -> 2.961914993 | F19: =D19/'- 7 -'!E19 -> 409.995293 | G19: =SUM('- 27 -'!B19,'- 27 -'!E19,'- 27 -'!H19,'- 28 -'!B19,'- 28 -'!E19) -> 2081598 | H19: =G19/'- 3 -'!D19*100 -> 3.539189772 | I19: =G19/'- 7 -'!E19 -> 489.903036
A20: HANOVER | B20: =SUM('- 24 -'!H20,'- 24 -'!F20,'- 24 -'!D20,'- 24 -'!B20) -> 126300 | C20: =B20/'- 3 -'!D20*100 -> 0.1092115583 | D20: =SUM('- 25 -'!B20,'- 25 -'!E20,'- 25 -'!H20,'- 26 -'!B20) -> 2603100 | E20: =D20/'- 3 -'!D20*100 -> 2.250899504 | F20: =D20/'- 7 -'!E20 -> 305.5640333 | G20: =SUM('- 27 -'!B20,'- 27 -'!E20,'- 27 -'!H20,'- 28 -'!B20,'- 28 -'!E20) -> 2194800 | H20: =G20/'- 3 -'!D20*100 -> 1.897842661 | I20: =G20/'- 7 -'!E20 -> 257.6358728
A21: INTERLAKE | B21: =SUM('- 24 -'!H21,'- 24 -'!F21,'- 24 -'!D21,'- 24 -'!B21) -> 0 | C21: =B21/'- 3 -'!D21*100 -> 0 | D21: =SUM('- 25 -'!B21,'- 25 -'!E21,'- 25 -'!H21,'- 26 -'!B21) -> 1443300 | E21: =D21/'- 3 -'!D21*100 -> 3.238065162 | F21: =D21/'- 7 -'!E21 -> 504.2976939 | G21: =SUM('- 27 -'!B21,'- 27 -'!E21,'- 27 -'!H21,'- 28 -'!B21,'- 28 -'!E21) -> 1410850 | H21: =G21/'- 3 -'!D21*100 -> 3.165263101 | I21: =G21/'- 7 -'!E21 -> 492.9594689
A22: KELSEY | B22: =SUM('- 24 -'!H22,'- 24 -'!F22,'- 24 -'!D22,'- 24 -'!B22) -> 54351 | C22: =B22/'- 3 -'!D22*100 -> 0.2252103119 | D22: =SUM('- 25 -'!B22,'- 25 -'!E22,'- 25 -'!H22,'- 26 -'!B22) -> 945908 | E22: =D22/'- 3 -'!D22*100 -> 3.919490639 | F22: =D22/'- 7 -'!E22 -> 660.5502793 | G22: =SUM('- 27 -'!B22,'- 27 -'!E22,'- 27 -'!H22,'- 28 -'!B22,'- 28 -'!E22) -> 1184268 | H22: =G22/'- 3 -'!D22*100 -> 4.90716575 | I22: =G22/'- 7 -'!E22 -> 827.0027933
A23: LAKESHORE | B23: =SUM('- 24 -'!H23,'- 24 -'!F23,'- 24 -'!D23,'- 24 -'!B23) -> 111200 | C23: =B23/'- 3 -'!D23*100 -> 0.6103012149 | D23: =SUM('- 25 -'!B23,'- 25 -'!E23,'- 25 -'!H23,'- 26 -'!B23) -> 633800 | E23: =D23/'- 3 -'!D23*100 -> 3.478497392 | F23: =D23/'- 7 -'!E23 -> 650.0512821 | G23: =SUM('- 27 -'!B23,'- 27 -'!E23,'- 27 -'!H23,'- 28 -'!B23,'- 28 -'!E23) -> 499000 | H23: =G23/'- 3 -'!D23*100 -> 2.738671819 | I23: =G23/'- 7 -'!E23 -> 511.7948718
A24: LORD SELKIRK | B24: =SUM('- 24 -'!H24,'- 24 -'!F24,'- 24 -'!D24,'- 24 -'!B24) -> 409955 | C24: =B24/'- 3 -'!D24*100 -> 0.59299124 | D24: =SUM('- 25 -'!B24,'- 25 -'!E24,'- 25 -'!H24,'- 26 -'!B24) -> 2079918 | E24: =D24/'- 3 -'!D24*100 -> 3.008557412 | F24: =D24/'- 7 -'!E24 -> 552.1417574 | G24: =SUM('- 27 -'!B24,'- 27 -'!E24,'- 27 -'!H24,'- 28 -'!B24,'- 28 -'!E24) -> 1461856 | H24: =G24/'- 3 -'!D24*100 -> 2.114543797 | I24: =G24/'- 7 -'!E24 -> 388.0690204
A25: LOUIS RIEL | B25: =SUM('- 24 -'!H25,'- 24 -'!F25,'- 24 -'!D25,'- 24 -'!B25) -> 2766898 | C25: =B25/'- 3 -'!D25*100 -> 1.136575681 | D25: =SUM('- 25 -'!B25,'- 25 -'!E25,'- 25 -'!H25,'- 26 -'!B25) -> 8111230 | E25: =D25/'- 3 -'!D25*100 -> 3.331899752 | F25: =D25/'- 7 -'!E25 -> 476.9347916 | G25: =SUM('- 27 -'!B25,'- 27 -'!E25,'- 27 -'!H25,'- 28 -'!B25,'- 28 -'!E25) -> 11449239 | H25: =G25/'- 3 -'!D25*100 -> 4.703074205 | I25: =G25/'- 7 -'!E25 -> 673.207444
A26: MOUNTAIN VIEW | B26: =SUM('- 24 -'!H26,'- 24 -'!F26,'- 24 -'!D26,'- 24 -'!B26) -> 121671 | C26: =B26/'- 3 -'!D26*100 -> 0.2442700601 | D26: =SUM('- 25 -'!B26,'- 25 -'!E26,'- 25 -'!H26,'- 26 -'!B26) -> 1495989 | E26: =D26/'- 3 -'!D26*100 -> 3.003388835 | F26: =D26/'- 7 -'!E26 -> 480.7317073 | G26: =SUM('- 27 -'!B26,'- 27 -'!E26,'- 27 -'!H26,'- 28 -'!B26,'- 28 -'!E26) -> 1839335 | H26: =G26/'- 3 -'!D26*100 -> 3.692699748 | I26: =G26/'- 7 -'!E26 -> 591.0649442
A27: MYSTERY LAKE | B27: =SUM('- 24 -'!H27,'- 24 -'!F27,'- 24 -'!D27,'- 24 -'!B27) -> 41968 | C27: =B27/'- 3 -'!D27*100 -> 0.08363945797 | D27: =SUM('- 25 -'!B27,'- 25 -'!E27,'- 25 -'!H27,'- 26 -'!B27) -> 2043649 | E27: =D27/'- 3 -'!D27*100 -> 4.072857764 | F27: =D27/'- 7 -'!E27 -> 724.5826021 | G27: =SUM('- 27 -'!B27,'- 27 -'!E27,'- 27 -'!H27,'- 28 -'!B27,'- 28 -'!E27) -> 1918083 | H27: =G27/'- 3 -'!D27*100 -> 3.822613002 | I27: =G27/'- 7 -'!E27 -> 680.0627559
A28: PARK WEST | B28: =SUM('- 24 -'!H28,'- 24 -'!F28,'- 24 -'!D28,'- 24 -'!B28) -> 224385 | C28: =B28/'- 3 -'!D28*100 -> 0.6470366724 | D28: =SUM('- 25 -'!B28,'- 25 -'!E28,'- 25 -'!H28,'- 26 -'!B28) -> 1310684 | E28: =D28/'- 3 -'!D28*100 -> 3.779488887 | F28: =D28/'- 7 -'!E28 -> 597.939781 | G28: =SUM('- 27 -'!B28,'- 27 -'!E28,'- 27 -'!H28,'- 28 -'!B28,'- 28 -'!E28) -> 999294 | H28: =G28/'- 3 -'!D28*100 -> 2.881564563 | I28: =G28/'- 7 -'!E28 -> 455.8822993
A29: PEMBINA TRAILS | B29: =SUM('- 24 -'!H29,'- 24 -'!F29,'- 24 -'!D29,'- 24 -'!B29) -> 146172 | C29: =B29/'- 3 -'!D29*100 -> 0.0661788499 | D29: =SUM('- 25 -'!B29,'- 25 -'!E29,'- 25 -'!H29,'- 26 -'!B29) -> 6693266 | E29: =D29/'- 3 -'!D29*100 -> 3.030352229 | F29: =D29/'- 7 -'!E29 -> 404.133921 | G29: =SUM('- 27 -'!B29,'- 27 -'!E29,'- 27 -'!H29,'- 28 -'!B29,'- 28 -'!E29) -> 9092317 | H29: =G29/'- 3 -'!D29*100 -> 4.116513984 | I29: =G29/'- 7 -'!E29 -> 548.9866562
A30: PINE CREEK | B30: =SUM('- 24 -'!H30,'- 24 -'!F30,'- 24 -'!D30,'- 24 -'!B30) -> 14790 | C30: =B30/'- 3 -'!D30*100 -> 0.07535440645 | D30: =SUM('- 25 -'!B30,'- 25 -'!E30,'- 25 -'!H30,'- 26 -'!B30) -> 641648 | E30: =D30/'- 3 -'!D30*100 -> 3.26916864 | F30: =D30/'- 7 -'!E30 -> 597.7158826 | G30: =SUM('- 27 -'!B30,'- 27 -'!E30,'- 27 -'!H30,'- 28 -'!B30,'- 28 -'!E30) -> 544498 | H30: =G30/'- 3 -'!D30*100 -> 2.774193617 | I30: =G30/'- 7 -'!E30 -> 507.2175128
A31: PORTAGE LA PRAIRIE | B31: =SUM('- 24 -'!H31,'- 24 -'!F31,'- 24 -'!D31,'- 24 -'!B31) -> 57023 | C31: =B31/'- 3 -'!D31*100 -> 0.1146412379 | D31: =SUM('- 25 -'!B31,'- 25 -'!E31,'- 25 -'!H31,'- 26 -'!B31) -> 1158462 | E31: =D31/'- 3 -'!D31*100 -> 2.329016674 | F31: =D31/'- 7 -'!E31 -> 342.7402367 | G31: =SUM('- 27 -'!B31,'- 27 -'!E31,'- 27 -'!H31,'- 28 -'!B31,'- 28 -'!E31) -> 2490405 | H31: =G31/'- 3 -'!D31*100 -> 5.006806239 | I31: =G31/'- 7 -'!E31 -> 736.806213
A32: PRAIRIE ROSE | B32: =SUM('- 24 -'!H32,'- 24 -'!F32,'- 24 -'!D32,'- 24 -'!B32) -> 30629 | C32: =B32/'- 3 -'!D32*100 -> 0.08313317705 | D32: =SUM('- 25 -'!B32,'- 25 -'!E32,'- 25 -'!H32,'- 26 -'!B32) -> 1201830 | E32: =D32/'- 3 -'!D32*100 -> 3.262004838 | F32: =D32/'- 7 -'!E32 -> 519.3733794 | G32: =SUM('- 27 -'!B32,'- 27 -'!E32,'- 27 -'!H32,'- 28 -'!B32,'- 28 -'!E32) -> 1092788 | H32: =G32/'- 3 -'!D32*100 -> 2.966043236 | I32: =G32/'- 7 -'!E32 -> 472.2506482
A33: PRAIRIE SPIRIT | B33: =SUM('- 24 -'!H33,'- 24 -'!F33,'- 24 -'!D33,'- 24 -'!B33) -> 31087 | C33: =B33/'- 3 -'!D33*100 -> 0.09422406226 | D33: =SUM('- 25 -'!B33,'- 25 -'!E33,'- 25 -'!H33,'- 26 -'!B33) -> 954285 | E33: =D33/'- 3 -'!D33*100 -> 2.89241835 | F33: =D33/'- 7 -'!E33 -> 443.8534884 | G33: =SUM('- 27 -'!B33,'- 27 -'!E33,'- 27 -'!H33,'- 28 -'!B33,'- 28 -'!E33) -> 1053415 | H33: =G33/'- 3 -'!D33*100 -> 3.192879356 | I33: =G33/'- 7 -'!E33 -> 489.9604651
A34: RED RIVER VALLEY | B34: =SUM('- 24 -'!H34,'- 24 -'!F34,'- 24 -'!D34,'- 24 -'!B34) -> 59860 | C34: =B34/'- 3 -'!D34*100 -> 0.1580551684 | D34: =SUM('- 25 -'!B34,'- 25 -'!E34,'- 25 -'!H34,'- 26 -'!B34) -> 1328393 | E34: =D34/'- 3 -'!D34*100 -> 3.507507172 | F34: =D34/'- 7 -'!E34 -> 566.7205631 | G34: =SUM('- 27 -'!B34,'- 27 -'!E34,'- 27 -'!H34,'- 28 -'!B34,'- 28 -'!E34) -> 894095 | H34: =G34/'- 3 -'!D34*100 -> 2.360780751 | I34: =G34/'- 7 -'!E34 -> 381.4398464
A35: RIVER EAST TRANSCONA | B35: =SUM('- 24 -'!H35,'- 24 -'!F35,'- 24 -'!D35,'- 24 -'!B35) -> 694906 | C35: =B35/'- 3 -'!D35*100 -> 0.276734163 | D35: =SUM('- 25 -'!B35,'- 25 -'!E35,'- 25 -'!H35,'- 26 -'!B35) -> 6787331 | E35: =D35/'- 3 -'!D35*100 -> 2.702935884 | F35: =D35/'- 7 -'!E35 -> 373.8134604 | G35: =SUM('- 27 -'!B35,'- 27 -'!E35,'- 27 -'!H35,'- 28 -'!B35,'- 28 -'!E35) -> 9317576 | H35: =G35/'- 3 -'!D35*100 -> 3.71056171 | I35: =G35/'- 7 -'!E35 -> 513.1671532
A36: ROLLING RIVER | B36: =SUM('- 24 -'!H36,'- 24 -'!F36,'- 24 -'!D36,'- 24 -'!B36) -> 25890 | C36: =B36/'- 3 -'!D36*100 -> 0.09267852205 | D36: =SUM('- 25 -'!B36,'- 25 -'!E36,'- 25 -'!H36,'- 26 -'!B36) -> 964420 | E36: =D36/'- 3 -'!D36*100 -> 3.452337591 | F36: =D36/'- 7 -'!E36 -> 550.3109843 | G36: =SUM('- 27 -'!B36,'- 27 -'!E36,'- 27 -'!H36,'- 28 -'!B36,'- 28 -'!E36) -> 543025 | H36: =G36/'- 3 -'!D36*100 -> 1.94386846 | I36: =G36/'- 7 -'!E36 -> 309.8573466
A37: SEINE RIVER | B37: =SUM('- 24 -'!H37,'- 24 -'!F37,'- 24 -'!D37,'- 24 -'!B37) -> 0 | C37: =B37/'- 3 -'!D37*100 -> 0 | D37: =SUM('- 25 -'!B37,'- 25 -'!E37,'- 25 -'!H37,'- 26 -'!B37) -> 2011664 | E37: =D37/'- 3 -'!D37*100 -> 3.094441659 | F37: =D37/'- 7 -'!E37 -> 455.1790927 | G37: =SUM('- 27 -'!B37,'- 27 -'!E37,'- 27 -'!H37,'- 28 -'!B37,'- 28 -'!E37) -> 1587900 | H37: =G37/'- 3 -'!D37*100 -> 2.442586789 | I37: =G37/'- 7 -'!E37 -> 359.2940378
A38: SEVEN OAKS | B38: =SUM('- 24 -'!H38,'- 24 -'!F38,'- 24 -'!D38,'- 24 -'!B38) -> 2857398 | C38: =B38/'- 3 -'!D38*100 -> 1.587304277 | D38: =SUM('- 25 -'!B38,'- 25 -'!E38,'- 25 -'!H38,'- 26 -'!B38) -> 5014910 | E38: =D38/'- 3 -'!D38*100 -> 2.785817058 | F38: =D38/'- 7 -'!E38 -> 424.0042274 | G38: =SUM('- 27 -'!B38,'- 27 -'!E38,'- 27 -'!H38,'- 28 -'!B38,'- 28 -'!E38) -> 7734746 | H38: =G38/'- 3 -'!D38*100 -> 4.296704696 | I38: =G38/'- 7 -'!E38 -> 653.9628831
A39: SOUTHWEST HORIZON | B39: =SUM('- 24 -'!H39,'- 24 -'!F39,'- 24 -'!D39,'- 24 -'!B39) -> 192500 | C39: =B39/'- 3 -'!D39*100 -> 0.7323847207 | D39: =SUM('- 25 -'!B39,'- 25 -'!E39,'- 25 -'!H39,'- 26 -'!B39) -> 860200 | E39: =D39/'- 3 -'!D39*100 -> 3.272713438 | F39: =D39/'- 7 -'!E39 -> 603.8610039 | G39: =SUM('- 27 -'!B39,'- 27 -'!E39,'- 27 -'!H39,'- 28 -'!B39,'- 28 -'!E39) -> 546550 | H39: =G39/'- 3 -'!D39*100 -> 2.079401918 | I39: =G39/'- 7 -'!E39 -> 383.6784837
A40: ST. JAMES-ASSINIBOIA | B40: =SUM('- 24 -'!H40,'- 24 -'!F40,'- 24 -'!D40,'- 24 -'!B40) -> 1078354 | C40: =B40/'- 3 -'!D40*100 -> 0.8306603977 | D40: =SUM('- 25 -'!B40,'- 25 -'!E40,'- 25 -'!H40,'- 26 -'!B40) -> 3937732 | E40: =D40/'- 3 -'!D40*100 -> 3.033250704 | F40: =D40/'- 7 -'!E40 -> 488.7652067 | G40: =SUM('- 27 -'!B40,'- 27 -'!E40,'- 27 -'!H40,'- 28 -'!B40,'- 28 -'!E40) -> 4998454 | H40: =G40/'- 3 -'!D40*100 -> 3.850329101 | I40: =G40/'- 7 -'!E40 -> 620.4257685
A41: SUNRISE | B41: =SUM('- 24 -'!H41,'- 24 -'!F41,'- 24 -'!D41,'- 24 -'!B41) -> 60630 | C41: =B41/'- 3 -'!D41*100 -> 0.07552739122 | D41: =SUM('- 25 -'!B41,'- 25 -'!E41,'- 25 -'!H41,'- 26 -'!B41) -> 2420340 | E41: =D41/'- 3 -'!D41*100 -> 3.015041499 | F41: =D41/'- 7 -'!E41 -> 524.6212203 | G41: =SUM('- 27 -'!B41,'- 27 -'!E41,'- 27 -'!H41,'- 28 -'!B41,'- 28 -'!E41) -> 1786827 | H41: =G41/'- 3 -'!D41*100 -> 2.225868083 | I41: =G41/'- 7 -'!E41 -> 387.3039991
A42: SWAN VALLEY | B42: =SUM('- 24 -'!H42,'- 24 -'!F42,'- 24 -'!D42,'- 24 -'!B42) -> 100508 | C42: =B42/'- 3 -'!D42*100 -> 0.3660720139 | D42: =SUM('- 25 -'!B42,'- 25 -'!E42,'- 25 -'!H42,'- 26 -'!B42) -> 923305 | E42: =D42/'- 3 -'!D42*100 -> 3.362877789 | F42: =D42/'- 7 -'!E42 -> 666.1652237 | G42: =SUM('- 27 -'!B42,'- 27 -'!E42,'- 27 -'!H42,'- 28 -'!B42,'- 28 -'!E42) -> 678539 | H42: =G42/'- 3 -'!D42*100 -> 2.471386738 | I42: =G42/'- 7 -'!E42 -> 489.5663781
A43: TURTLE MOUNTAIN | B43: =SUM('- 24 -'!H43,'- 24 -'!F43,'- 24 -'!D43,'- 24 -'!B43) -> 15323 | C43: =B43/'- 3 -'!D43*100 -> 0.09546533134 | D43: =SUM('- 25 -'!B43,'- 25 -'!E43,'- 25 -'!H43,'- 26 -'!B43) -> 491973 | E43: =D43/'- 3 -'!D43*100 -> 3.065089438 | F43: =D43/'- 7 -'!E43 -> 467.2108262 | G43: =SUM('- 27 -'!B43,'- 27 -'!E43,'- 27 -'!H43,'- 28 -'!B43,'- 28 -'!E43) -> 588809 | H43: =G43/'- 3 -'!D43*100 -> 3.668396938 | I43: =G43/'- 7 -'!E43 -> 559.1728395
A44: TURTLE RIVER | B44: =SUM('- 24 -'!H44,'- 24 -'!F44,'- 24 -'!D44,'- 24 -'!B44) -> 29521 | C44: =B44/'- 3 -'!D44*100 -> 0.2314694298 | D44: =SUM('- 25 -'!B44,'- 25 -'!E44,'- 25 -'!H44,'- 26 -'!B44) -> 461805 | E44: =D44/'- 3 -'!D44*100 -> 3.620938994 | F44: =D44/'- 7 -'!E44 -> 763.9454094 | G44: =SUM('- 27 -'!B44,'- 27 -'!E44,'- 27 -'!H44,'- 28 -'!B44,'- 28 -'!E44) -> 238406 | H44: =G44/'- 3 -'!D44*100 -> 1.869303238 | I44: =G44/'- 7 -'!E44 -> 394.3854425
A45: WESTERN | B45: =SUM('- 24 -'!H45,'- 24 -'!F45,'- 24 -'!D45,'- 24 -'!B45) -> 47339 | C45: =B45/'- 3 -'!D45*100 -> 0.1542922022 | D45: =SUM('- 25 -'!B45,'- 25 -'!E45,'- 25 -'!H45,'- 26 -'!B45) -> 917303 | E45: =D45/'- 3 -'!D45*100 -> 2.989769533 | F45: =D45/'- 7 -'!E45 -> 404.0982379 | G45: =SUM('- 27 -'!B45,'- 27 -'!E45,'- 27 -'!H45,'- 28 -'!B45,'- 28 -'!E45) -> 795757 | H45: =G45/'- 3 -'!D45*100 -> 2.593614143 | I45: =G45/'- 7 -'!E45 -> 350.5537445
A46: WINNIPEG | B46: =SUM('- 24 -'!H46,'- 24 -'!F46,'- 24 -'!D46,'- 24 -'!B46) -> 8653674 | C46: =B46/'- 3 -'!D46*100 -> 1.821481941 | D46: =SUM('- 25 -'!B46,'- 25 -'!E46,'- 25 -'!H46,'- 26 -'!B46) -> 12576207 | E46: =D46/'- 3 -'!D46*100 -> 2.64712236 | F46: =D46/'- 7 -'!E46 -> 442.6215817 | G46: =SUM('- 27 -'!B46,'- 27 -'!E46,'- 27 -'!H46,'- 28 -'!B46,'- 28 -'!E46) -> 15398778 | H46: =G46/'- 3 -'!D46*100 -> 3.241235577 | I46: =G46/'- 7 -'!E46 -> 541.9624116
A48: PROVINCE | B48: =SUM(B11:B46) -> 22356017 | C48: =B48/'- 3 -'!D48*100 -> 0.7474870843 | D48: =SUM(D11:D46) -> 92929346 | E48: =D48/'- 3 -'!D48*100 -> 3.107149448 | F48: =D48/'- 7 -'!E48 -> 491.9516191 | G48: =SUM(G11:G46) -> 110638972 | H48: =G48/'- 3 -'!D48*100 -> 3.699281611 | I48: =G48/'- 7 -'!E48 -> 585.7032655
A50: WHITESHELL | B50: =SUM('- 24 -'!H50,'- 24 -'!F50,'- 24 -'!D50,'- 24 -'!B50) -> 273996 | C50: =B50/'- 3 -'!D50*100 -> 6.492919297 | D50: =SUM('- 25 -'!B50,'- 25 -'!E50,'- 25 -'!H50,'- 26 -'!B50) -> 179894 | E50: =D50/'- 3 -'!D50*100 -> 4.26297181 | F50: =D50/'- 7 -'!E50 -> 1042.863768 | G50: =SUM('- 27 -'!B50,'- 27 -'!E50,'- 27 -'!H50,'- 28 -'!B50,'- 28 -'!E50) -> 135524 | H50: =G50/'- 3 -'!D50*100 -> 3.211530076 | I50: =G50/'- 7 -'!E50 -> 785.6463768

Sheet - 17 -
B2: =AEXP_BF -> ANALYSIS OF EXPENSE BY FUNCTION | J2: PAGE 3 OF 3
B3: =+'- 16 -'!B3 -> OPERATING FUND 2024/2025 BUDGET
B6: TRANSPORTATION OF PUPILS | E6: OPERATIONS AND MAINTENANCE | H6: FISCAL
D8: PER PUPIL | G8: PER PUPIL | J8: PER PUPIL
A9: DIVISION / DISTRICT | B9: AMOUNT | C9: % | E9: AMOUNT | F9: % | H9: AMOUNT | I9: %
A11: BEAUTIFUL PLAINS | B11: =SUM('- 30 -'!D11,'- 30 -'!B11,'- 29 -'!F11,'- 29 -'!D11,'- 29 -'!B11) -> 1702737 | C11: =B11/'- 3 -'!D11*100 -> 5.968044545 | D11: =B11/'- 7 -'!E11 -> 761.1698704 | E11: =SUM('- 32 -'!D11,'- 32 -'!B11,'- 31 -'!F11,'- 31 -'!D11,'- 31 -'!B11) -> 2596279 | F11: =E11/'- 3 -'!D11*100 -> 9.09988373 | G11: =E11/'- 7 -'!E11 -> 1160.60751 | H11: =SUM('- 33 -'!B11,'- 33 -'!D11) -> 492959 | I11: =H11/'- 3 -'!D11*100 -> 1.727807213 | J11: =H11/'- 7 -'!E11 -> 220.3661153
A12: BORDER LAND | B12: =SUM('- 30 -'!D12,'- 30 -'!B12,'- 29 -'!F12,'- 29 -'!D12,'- 29 -'!B12) -> 2949506 | C12: =B12/'- 3 -'!D12*100 -> 7.369709817 | D12: =B12/'- 7 -'!E12 -> 1449.7449 | E12: =SUM('- 32 -'!D12,'- 32 -'!B12,'- 31 -'!F12,'- 31 -'!D12,'- 31 -'!B12) -> 4333874 | F12: =E12/'- 3 -'!D12*100 -> 10.82872649 | G12: =E12/'- 7 -'!E12 -> 2130.191202 | H12: =SUM('- 33 -'!B12,'- 33 -'!D12) -> 674760 | I12: =H12/'- 3 -'!D12*100 -> 1.685972294 | J12: =H12/'- 7 -'!E12 -> 331.6588842
A13: BRANDON | B13: =SUM('- 30 -'!D13,'- 30 -'!B13,'- 29 -'!F13,'- 29 -'!D13,'- 29 -'!B13) -> 3038040 | C13: =B13/'- 3 -'!D13*100 -> 2.295548074 | D13: =B13/'- 7 -'!E13 -> 321.1289044 | E13: =SUM('- 32 -'!D13,'- 32 -'!B13,'- 31 -'!F13,'- 31 -'!D13,'- 31 -'!B13) -> 11633625 | F13: =E13/'- 3 -'!D13*100 -> 8.790386389 | G13: =E13/'- 7 -'!E13 -> 1229.70509 | H13: =SUM('- 33 -'!B13,'- 33 -'!D13) -> 2277562 | I13: =H13/'- 3 -'!D13*100 -> 1.720929633 | J13: =H13/'- 7 -'!E13 -> 240.7443581
A14: DSFM | B14: =SUM('- 30 -'!D14,'- 30 -'!B14,'- 29 -'!F14,'- 29 -'!D14,'- 29 -'!B14) -> 13686034 | C14: =B14/'- 3 -'!D14*100 -> 11.54378871 | D14: =B14/'- 7 -'!E14 -> 2215.63699 | E14: =SUM('- 32 -'!D14,'- 32 -'!B14,'- 31 -'!F14,'- 31 -'!D14,'- 31 -'!B14) -> 13385979 | F14: =E14/'- 3 -'!D14*100 -> 11.29070067 | G14: =E14/'- 7 -'!E14 -> 2167.060978 | H14: =SUM('- 33 -'!B14,'- 33 -'!D14) -> 1735155 | I14: =H14/'- 3 -'!D14*100 -> 1.463554943 | J14: =H14/'- 7 -'!E14 -> 280.90487
A15: EVERGREEN | B15: =SUM('- 30 -'!D15,'- 30 -'!B15,'- 29 -'!F15,'- 29 -'!D15,'- 29 -'!B15) -> 2058123 | C15: =B15/'- 3 -'!D15*100 -> 8.289714907 | D15: =B15/'- 7 -'!E15 -> 1474.300143 | E15: =SUM('- 32 -'!D15,'- 32 -'!B15,'- 31 -'!F15,'- 31 -'!D15,'- 31 -'!B15) -> 3194232 | F15: =E15/'- 3 -'!D15*100 -> 12.86573865 | G15: =E15/'- 7 -'!E15 -> 2288.131805 | H15: =SUM('- 33 -'!B15,'- 33 -'!D15) -> 375000 | I15: =H15/'- 3 -'!D15*100 -> 1.510426291 | J15: =H15/'- 7 -'!E15 -> 268.6246418
A16: FLIN FLON | B16: =SUM('- 30 -'!D16,'- 30 -'!B16,'- 29 -'!F16,'- 29 -'!D16,'- 29 -'!B16) -> 568440 | C16: =B16/'- 3 -'!D16*100 -> 3.134882678 | D16: =B16/'- 7 -'!E16 -> 713.2245922 | E16: =SUM('- 32 -'!D16,'- 32 -'!B16,'- 31 -'!F16,'- 31 -'!D16,'- 31 -'!B16) -> 2463597 | F16: =E16/'- 3 -'!D16*100 -> 13.58646042 | G16: =E16/'- 7 -'!E16 -> 3091.087829 | H16: =SUM('- 33 -'!B16,'- 33 -'!D16) -> 305064 | I16: =H16/'- 3 -'!D16*100 -> 1.682393655 | J16: =H16/'- 7 -'!E16 -> 382.7653701
A17: FORT LA BOSSE | B17: =SUM('- 30 -'!D17,'- 30 -'!B17,'- 29 -'!F17,'- 29 -'!D17,'- 29 -'!B17) -> 1743646 | C17: =B17/'- 3 -'!D17*100 -> 7.647189493 | D17: =B17/'- 7 -'!E17 -> 1118.438743 | E17: =SUM('- 32 -'!D17,'- 32 -'!B17,'- 31 -'!F17,'- 31 -'!D17,'- 31 -'!B17) -> 2200702 | F17: =E17/'- 3 -'!D17*100 -> 9.651721285 | G17: =E17/'- 7 -'!E17 -> 1411.611289 | H17: =SUM('- 33 -'!B17,'- 33 -'!D17) -> 482000 | I17: =H17/'- 3 -'!D17*100 -> 2.113929855 | J17: =H17/'- 7 -'!E17 -> 309.1725465
A18: FRONTIER | B18: =SUM('- 30 -'!D18,'- 30 -'!B18,'- 29 -'!F18,'- 29 -'!D18,'- 29 -'!B18) -> 14845523 | C18: =B18/'- 3 -'!D18*100 -> 8.408887361 | D18: =B18/'- 7 -'!E18 -> 2283.224085 | E18: =SUM('- 32 -'!D18,'- 32 -'!B18,'- 31 -'!F18,'- 31 -'!D18,'- 31 -'!B18) -> 30154689 | F18: =E18/'- 3 -'!D18*100 -> 17.08039408 | G18: =E18/'- 7 -'!E18 -> 4637.755921 | H18: =SUM('- 33 -'!B18,'- 33 -'!D18) -> 1832375 | I18: =H18/'- 3 -'!D18*100 -> 1.03790449 | J18: =H18/'- 7 -'!E18 -> 281.8171332
A19: GARDEN VALLEY | B19: =SUM('- 30 -'!D19,'- 30 -'!B19,'- 29 -'!F19,'- 29 -'!D19,'- 29 -'!B19) -> 3073287 | C19: =B19/'- 3 -'!D19*100 -> 5.225286495 | D19: =B19/'- 7 -'!E19 -> 723.2965404 | E19: =SUM('- 32 -'!D19,'- 32 -'!B19,'- 31 -'!F19,'- 31 -'!D19,'- 31 -'!B19) -> 5871560 | F19: =E19/'- 3 -'!D19*100 -> 9.982986675 | G19: =E19/'- 7 -'!E19 -> 1381.868675 | H19: =SUM('- 33 -'!B19,'- 33 -'!D19) -> 970800 | I19: =H19/'- 3 -'!D19*100 -> 1.650580674 | J19: =H19/'- 7 -'!E19 -> 228.4772888
A20: HANOVER | B20: =SUM('- 30 -'!D20,'- 30 -'!B20,'- 29 -'!F20,'- 29 -'!D20,'- 29 -'!B20) -> 4985400 | C20: =B20/'- 3 -'!D20*100 -> 4.310873338 | D20: =B20/'- 7 -'!E20 -> 585.2095316 | E20: =SUM('- 32 -'!D20,'- 32 -'!B20,'- 31 -'!F20,'- 31 -'!D20,'- 31 -'!B20) -> 11037300 | F20: =E20/'- 3 -'!D20*100 -> 9.543948789 | G20: =E20/'- 7 -'!E20 -> 1295.609813 | H20: =SUM('- 33 -'!B20,'- 33 -'!D20) -> 2389400 | I20: =H20/'- 3 -'!D20*100 -> 2.066113201 | J20: =H20/'- 7 -'!E20 -> 280.4789295
A21: INTERLAKE | B21: =SUM('- 30 -'!D21,'- 30 -'!B21,'- 29 -'!F21,'- 29 -'!D21,'- 29 -'!B21) -> 2981600 | C21: =B21/'- 3 -'!D21*100 -> 6.689264247 | D21: =B21/'- 7 -'!E21 -> 1041.788959 | E21: =SUM('- 32 -'!D21,'- 32 -'!B21,'- 31 -'!F21,'- 31 -'!D21,'- 31 -'!B21) -> 4169500 | F21: =E21/'- 3 -'!D21*100 -> 9.354335685 | G21: =E21/'- 7 -'!E21 -> 1456.848358 | H21: =SUM('- 33 -'!B21,'- 33 -'!D21) -> 841000 | I21: =H21/'- 3 -'!D21*100 -> 1.886796093 | J21: =H21/'- 7 -'!E21 -> 293.8504542
A22: KELSEY | B22: =SUM('- 30 -'!D22,'- 30 -'!B22,'- 29 -'!F22,'- 29 -'!D22,'- 29 -'!B22) -> 604706 | C22: =B22/'- 3 -'!D22*100 -> 2.505676563 | D22: =B22/'- 7 -'!E22 -> 422.2807263 | E22: =SUM('- 32 -'!D22,'- 32 -'!B22,'- 31 -'!F22,'- 31 -'!D22,'- 31 -'!B22) -> 2913653 | F22: =E22/'- 3 -'!D22*100 -> 12.07309343 | G22: =E22/'- 7 -'!E22 -> 2034.673883 | H22: =SUM('- 33 -'!B22,'- 33 -'!D22) -> 402771 | I22: =H22/'- 3 -'!D22*100 -> 1.668933093 | J22: =H22/'- 7 -'!E22 -> 281.2646648
A23: LAKESHORE | B23: =SUM('- 30 -'!D23,'- 30 -'!B23,'- 29 -'!F23,'- 29 -'!D23,'- 29 -'!B23) -> 1902600 | C23: =B23/'- 3 -'!D23*100 -> 10.44207816 | D23: =B23/'- 7 -'!E23 -> 1951.384615 | E23: =SUM('- 32 -'!D23,'- 32 -'!B23,'- 31 -'!F23,'- 31 -'!D23,'- 31 -'!B23) -> 1814027 | F23: =E23/'- 3 -'!D23*100 -> 9.955961169 | G23: =E23/'- 7 -'!E23 -> 1860.540513 | H23: =SUM('- 33 -'!B23,'- 33 -'!D23) -> 265000 | I23: =H23/'- 3 -'!D23*100 -> 1.454404874 | J23: =H23/'- 7 -'!E23 -> 271.7948718
A24: LORD SELKIRK | B24: =SUM('- 30 -'!D24,'- 30 -'!B24,'- 29 -'!F24,'- 29 -'!D24,'- 29 -'!B24) -> 3187351 | C24: =B24/'- 3 -'!D24*100 -> 4.610435833 | D24: =B24/'- 7 -'!E24 -> 846.1245023 | E24: =SUM('- 32 -'!D24,'- 32 -'!B24,'- 31 -'!F24,'- 31 -'!D24,'- 31 -'!B24) -> 7054516 | F24: =E24/'- 3 -'!D24*100 -> 10.20420824 | G24: =E24/'- 7 -'!E24 -> 1872.714627 | H24: =SUM('- 33 -'!B24,'- 33 -'!D24) -> 1302700 | I24: =H24/'- 3 -'!D24*100 -> 1.884328008 | J24: =H24/'- 7 -'!E24 -> 345.8189541
A25: LOUIS RIEL | B25: =SUM('- 30 -'!D25,'- 30 -'!B25,'- 29 -'!F25,'- 29 -'!D25,'- 29 -'!B25) -> 6953482 | C25: =B25/'- 3 -'!D25*100 -> 2.856324497 | D25: =B25/'- 7 -'!E25 -> 408.8599988 | E25: =SUM('- 32 -'!D25,'- 32 -'!B25,'- 31 -'!F25,'- 31 -'!D25,'- 31 -'!B25) -> 23735831 | F25: =E25/'- 3 -'!D25*100 -> 9.750113044 | G25: =E25/'- 7 -'!E25 -> 1395.650673 | H25: =SUM('- 33 -'!B25,'- 33 -'!D25) -> 4238891 | I25: =H25/'- 3 -'!D25*100 -> 1.741235284 | J25: =H25/'- 7 -'!E25 -> 249.2438996
A26: MOUNTAIN VIEW | B26: =SUM('- 30 -'!D26,'- 30 -'!B26,'- 29 -'!F26,'- 29 -'!D26,'- 29 -'!B26) -> 3488597 | C26: =B26/'- 3 -'!D26*100 -> 7.003803691 | D26: =B26/'- 7 -'!E26 -> 1121.050484 | E26: =SUM('- 32 -'!D26,'- 32 -'!B26,'- 31 -'!F26,'- 31 -'!D26,'- 31 -'!B26) -> 6513344 | F26: =E26/'- 3 -'!D26*100 -> 13.07636931 | G26: =E26/'- 7 -'!E26 -> 2093.044121 | H26: =SUM('- 33 -'!B26,'- 33 -'!D26) -> 931513 | I26: =H26/'- 3 -'!D26*100 -> 1.870131227 | J26: =H26/'- 7 -'!E26 -> 299.338989
A27: MYSTERY LAKE | B27: =SUM('- 30 -'!D27,'- 30 -'!B27,'- 29 -'!F27,'- 29 -'!D27,'- 29 -'!B27) -> 499500 | C27: =B27/'- 3 -'!D27*100 -> 0.995470579 | D27: =B27/'- 7 -'!E27 -> 177.099399 | E27: =SUM('- 32 -'!D27,'- 32 -'!B27,'- 31 -'!F27,'- 31 -'!D27,'- 31 -'!B27) -> 6297314 | F27: =E27/'- 3 -'!D27*100 -> 12.55013176 | G27: =E27/'- 7 -'!E27 -> 2232.733784 | H27: =SUM('- 33 -'!B27,'- 33 -'!D27) -> 814823 | I27: =H27/'- 3 -'!D27*100 -> 1.623888536 | J27: =H27/'- 7 -'!E27 -> 288.8982255
A28: PARK WEST | B28: =SUM('- 30 -'!D28,'- 30 -'!B28,'- 29 -'!F28,'- 29 -'!D28,'- 29 -'!B28) -> 2230787 | C28: =B28/'- 3 -'!D28*100 -> 6.432698252 | D28: =B28/'- 7 -'!E28 -> 1017.694799 | E28: =SUM('- 32 -'!D28,'- 32 -'!B28,'- 31 -'!F28,'- 31 -'!D28,'- 31 -'!B28) -> 3947619 | F28: =E28/'- 3 -'!D28*100 -> 11.38335567 | G28: =E28/'- 7 -'!E28 -> 1800.921077 | H28: =SUM('- 33 -'!B28,'- 33 -'!D28) -> 526600 | I28: =H28/'- 3 -'!D28*100 -> 1.518503963 | J28: =H28/'- 7 -'!E28 -> 240.2372263
A29: PEMBINA TRAILS | B29: =SUM('- 30 -'!D29,'- 30 -'!B29,'- 29 -'!F29,'- 29 -'!D29,'- 29 -'!B29) -> 5265486 | C29: =B29/'- 3 -'!D29*100 -> 2.383929943 | D29: =B29/'- 7 -'!E29 -> 317.9257336 | E29: =SUM('- 32 -'!D29,'- 32 -'!B29,'- 31 -'!F29,'- 31 -'!D29,'- 31 -'!B29) -> 23822697 | F29: =E29/'- 3 -'!D29*100 -> 10.78564081 | G29: =E29/'- 7 -'!E29 -> 1438.39494 | H29: =SUM('- 33 -'!B29,'- 33 -'!D29) -> 3746398 | I29: =H29/'- 3 -'!D29*100 -> 1.696168288 | J29: =H29/'- 7 -'!E29 -> 226.2044439
A30: PINE CREEK | B30: =SUM('- 30 -'!D30,'- 30 -'!B30,'- 29 -'!F30,'- 29 -'!D30,'- 29 -'!B30) -> 1776707 | C30: =B30/'- 3 -'!D30*100 -> 9.052244856 | D30: =B30/'- 7 -'!E30 -> 1655.060084 | E30: =SUM('- 32 -'!D30,'- 32 -'!B30,'- 31 -'!F30,'- 31 -'!D30,'- 31 -'!B30) -> 1802302 | F30: =E30/'- 3 -'!D30*100 -> 9.182650267 | G30: =E30/'- 7 -'!E30 -> 1678.902655 | H30: =SUM('- 33 -'!B30,'- 33 -'!D30) -> 324864 | I30: =H30/'- 3 -'!D30*100 -> 1.655167944 | J30: =H30/'- 7 -'!E30 -> 302.6213321
A31: PORTAGE LA PRAIRIE | B31: =SUM('- 30 -'!D31,'- 30 -'!B31,'- 29 -'!F31,'- 29 -'!D31,'- 29 -'!B31) -> 1433918 | C31: =B31/'- 3 -'!D31*100 -> 2.882804037 | D31: =B31/'- 7 -'!E31 -> 424.2360947 | E31: =SUM('- 32 -'!D31,'- 32 -'!B31,'- 31 -'!F31,'- 31 -'!D31,'- 31 -'!B31) -> 5041435 | F31: =E31/'- 3 -'!D31*100 -> 10.13549532 | G31: =E31/'- 7 -'!E31 -> 1491.548817 | H31: =SUM('- 33 -'!B31,'- 33 -'!D31) -> 832000 | I31: =H31/'- 3 -'!D31*100 -> 1.672684881 | J31: =H31/'- 7 -'!E31 -> 246.1538462
A32: PRAIRIE ROSE | B32: =SUM('- 30 -'!D32,'- 30 -'!B32,'- 29 -'!F32,'- 29 -'!D32,'- 29 -'!B32) -> 2738849 | C32: =B32/'- 3 -'!D32*100 -> 7.43377906 | D32: =B32/'- 7 -'!E32 -> 1183.599395 | E32: =SUM('- 32 -'!D32,'- 32 -'!B32,'- 31 -'!F32,'- 31 -'!D32,'- 31 -'!B32) -> 3814460 | F32: =E32/'- 3 -'!D32*100 -> 10.35320051 | G32: =E32/'- 7 -'!E32 -> 1648.426966 | H32: =SUM('- 33 -'!B32,'- 33 -'!D32) -> 759997 | I32: =H32/'- 3 -'!D32*100 -> 2.062782499 | J32: =H32/'- 7 -'!E32 -> 328.4343129
A33: PRAIRIE SPIRIT | B33: =SUM('- 30 -'!D33,'- 30 -'!B33,'- 29 -'!F33,'- 29 -'!D33,'- 29 -'!B33) -> 2828842 | C33: =B33/'- 3 -'!D33*100 -> 8.574162342 | D33: =B33/'- 7 -'!E33 -> 1315.740465 | E33: =SUM('- 32 -'!D33,'- 32 -'!B33,'- 31 -'!F33,'- 31 -'!D33,'- 31 -'!B33) -> 3733945 | F33: =E33/'- 3 -'!D33*100 -> 11.31751105 | G33: =E33/'- 7 -'!E33 -> 1736.718605 | H33: =SUM('- 33 -'!B33,'- 33 -'!D33) -> 566000 | I33: =H33/'- 3 -'!D33*100 -> 1.715534443 | J33: =H33/'- 7 -'!E33 -> 263.255814
A34: RED RIVER VALLEY | B34: =SUM('- 30 -'!D34,'- 30 -'!B34,'- 29 -'!F34,'- 29 -'!D34,'- 29 -'!B34) -> 3357065 | C34: =B34/'- 3 -'!D34*100 -> 8.864040659 | D34: =B34/'- 7 -'!E34 -> 1432.194966 | E34: =SUM('- 32 -'!D34,'- 32 -'!B34,'- 31 -'!F34,'- 31 -'!D34,'- 31 -'!B34) -> 3457921 | F34: =E34/'- 3 -'!D34*100 -> 9.13034223 | G34: =E34/'- 7 -'!E34 -> 1475.22227 | H34: =SUM('- 33 -'!B34,'- 33 -'!D34) -> 750005 | I34: =H34/'- 3 -'!D34*100 -> 1.980323531 | J34: =H34/'- 7 -'!E34 -> 319.9680034
A35: RIVER EAST TRANSCONA | B35: =SUM('- 30 -'!D35,'- 30 -'!B35,'- 29 -'!F35,'- 29 -'!D35,'- 29 -'!B35) -> 6431864 | C35: =B35/'- 3 -'!D35*100 -> 2.561377367 | D35: =B35/'- 7 -'!E35 -> 354.2360522 | E35: =SUM('- 32 -'!D35,'- 32 -'!B35,'- 31 -'!F35,'- 31 -'!D35,'- 31 -'!B35) -> 25200299 | F35: =E35/'- 3 -'!D35*100 -> 10.03557841 | G35: =E35/'- 7 -'!E35 -> 1387.910943 | H35: =SUM('- 33 -'!B35,'- 33 -'!D35) -> 3740993 | I35: =H35/'- 3 -'!D35*100 -> 1.489785045 | J35: =H35/'- 7 -'!E35 -> 206.0358539
A36: ROLLING RIVER | B36: =SUM('- 30 -'!D36,'- 30 -'!B36,'- 29 -'!F36,'- 29 -'!D36,'- 29 -'!B36) -> 2076405 | C36: =B36/'- 3 -'!D36*100 -> 7.43291412 | D36: =B36/'- 7 -'!E36 -> 1184.824536 | E36: =SUM('- 32 -'!D36,'- 32 -'!B36,'- 31 -'!F36,'- 31 -'!D36,'- 31 -'!B36) -> 3385745 | F36: =E36/'- 3 -'!D36*100 -> 12.11996302 | G36: =E36/'- 7 -'!E36 -> 1931.951498 | H36: =SUM('- 33 -'!B36,'- 33 -'!D36) -> 708000 | I36: =H36/'- 3 -'!D36*100 -> 2.534430035 | J36: =H36/'- 7 -'!E36 -> 403.9942939
A37: SEINE RIVER | B37: =SUM('- 30 -'!D37,'- 30 -'!B37,'- 29 -'!F37,'- 29 -'!D37,'- 29 -'!B37) -> 4226284 | C37: =B37/'- 3 -'!D37*100 -> 6.501080336 | D37: =B37/'- 7 -'!E37 -> 956.2810273 | E37: =SUM('- 32 -'!D37,'- 32 -'!B37,'- 31 -'!F37,'- 31 -'!D37,'- 31 -'!B37) -> 6021665 | F37: =E37/'- 3 -'!D37*100 -> 9.262824723 | G37: =E37/'- 7 -'!E37 -> 1362.521778 | H37: =SUM('- 33 -'!B37,'- 33 -'!D37) -> 1160000 | I37: =H37/'- 3 -'!D37*100 -> 1.784369718 | J37: =H37/'- 7 -'!E37 -> 262.4731304
A38: SEVEN OAKS | B38: =SUM('- 30 -'!D38,'- 30 -'!B38,'- 29 -'!F38,'- 29 -'!D38,'- 29 -'!B38) -> 4923121 | C38: =B38/'- 3 -'!D38*100 -> 2.734827636 | D38: =B38/'- 7 -'!E38 -> 416.2435849 | E38: =SUM('- 32 -'!D38,'- 32 -'!B38,'- 31 -'!F38,'- 31 -'!D38,'- 31 -'!B38) -> 16558220 | F38: =E38/'- 3 -'!D38*100 -> 9.198205297 | G38: =E38/'- 7 -'!E38 -> 1399.976326 | H38: =SUM('- 33 -'!B38,'- 33 -'!D38) -> 3190273 | I38: =H38/'- 3 -'!D38*100 -> 1.772218633 | J38: =H38/'- 7 -'!E38 -> 269.7335024
A39: SOUTHWEST HORIZON | B39: =SUM('- 30 -'!D39,'- 30 -'!B39,'- 29 -'!F39,'- 29 -'!D39,'- 29 -'!B39) -> 2384000 | C39: =B39/'- 3 -'!D39*100 -> 9.070156749 | D39: =B39/'- 7 -'!E39 -> 1673.569674 | E39: =SUM('- 32 -'!D39,'- 32 -'!B39,'- 31 -'!F39,'- 31 -'!D39,'- 31 -'!B39) -> 2767900 | F39: =E39/'- 3 -'!D39*100 -> 10.53074114 | G39: =E39/'- 7 -'!E39 -> 1943.067743 | H39: =SUM('- 33 -'!B39,'- 33 -'!D39) -> 448200 | I39: =H39/'- 3 -'!D39*100 -> 1.705219906 | J39: =H39/'- 7 -'!E39 -> 314.6367146
A40: ST. JAMES-ASSINIBOIA | B40: =SUM('- 30 -'!D40,'- 30 -'!B40,'- 29 -'!F40,'- 29 -'!D40,'- 29 -'!B40) -> 3201802 | C40: =B40/'- 3 -'!D40*100 -> 2.466360882 | D40: =B40/'- 7 -'!E40 -> 397.4189753 | E40: =SUM('- 32 -'!D40,'- 32 -'!B40,'- 31 -'!F40,'- 31 -'!D40,'- 31 -'!B40) -> 12608148 | F40: =E40/'- 3 -'!D40*100 -> 9.712106815 | G40: =E40/'- 7 -'!E40 -> 1564.967871 | H40: =SUM('- 33 -'!B40,'- 33 -'!D40) -> 2293235 | I40: =H40/'- 3 -'!D40*100 -> 1.766488089 | J40: =H40/'- 7 -'!E40 -> 284.6444295
A41: SUNRISE | B41: =SUM('- 30 -'!D41,'- 30 -'!B41,'- 29 -'!F41,'- 29 -'!D41,'- 29 -'!B41) -> 6299123 | C41: =B41/'- 3 -'!D41*100 -> 7.84687988 | D41: =B41/'- 7 -'!E41 -> 1365.367508 | E41: =SUM('- 32 -'!D41,'- 32 -'!B41,'- 31 -'!F41,'- 31 -'!D41,'- 31 -'!B41) -> 7791115 | F41: =E41/'- 3 -'!D41*100 -> 9.705469085 | G41: =E41/'- 7 -'!E41 -> 1688.764496 | H41: =SUM('- 33 -'!B41,'- 33 -'!D41) -> 1859143 | I41: =H41/'- 3 -'!D41*100 -> 2.31595284 | J41: =H41/'- 7 -'!E41 -> 402.9788664
A42: SWAN VALLEY | B42: =SUM('- 30 -'!D42,'- 30 -'!B42,'- 29 -'!F42,'- 29 -'!D42,'- 29 -'!B42) -> 2233321 | C42: =B42/'- 3 -'!D42*100 -> 8.134241217 | D42: =B42/'- 7 -'!E42 -> 1611.342713 | E42: =SUM('- 32 -'!D42,'- 32 -'!B42,'- 31 -'!F42,'- 31 -'!D42,'- 31 -'!B42) -> 2900573 | F42: =E42/'- 3 -'!D42*100 -> 10.56451824 | G42: =E42/'- 7 -'!E42 -> 2092.765512 | H42: =SUM('- 33 -'!B42,'- 33 -'!D42) -> 455600 | I42: =H42/'- 3 -'!D42*100 -> 1.659394372 | J42: =H42/'- 7 -'!E42 -> 328.7157287
A43: TURTLE MOUNTAIN | B43: =SUM('- 30 -'!D43,'- 30 -'!B43,'- 29 -'!F43,'- 29 -'!D43,'- 29 -'!B43) -> 1318371 | C43: =B43/'- 3 -'!D43*100 -> 8.213713003 | D43: =B43/'- 7 -'!E43 -> 1252.014245 | E43: =SUM('- 32 -'!D43,'- 32 -'!B43,'- 31 -'!F43,'- 31 -'!D43,'- 31 -'!B43) -> 1254516 | F43: =E43/'- 3 -'!D43*100 -> 7.815883679 | G43: =E43/'- 7 -'!E43 -> 1191.373219 | H43: =SUM('- 33 -'!B43,'- 33 -'!D43) -> 296000 | I43: =H43/'- 3 -'!D43*100 -> 1.844138751 | J43: =H43/'- 7 -'!E43 -> 281.1016144
A44: TURTLE RIVER | B44: =SUM('- 30 -'!D44,'- 30 -'!B44,'- 29 -'!F44,'- 29 -'!D44,'- 29 -'!B44) -> 1432438 | C44: =B44/'- 3 -'!D44*100 -> 11.23151679 | D44: =B44/'- 7 -'!E44 -> 2369.624483 | E44: =SUM('- 32 -'!D44,'- 32 -'!B44,'- 31 -'!F44,'- 31 -'!D44,'- 31 -'!B44) -> 1316584 | F44: =E44/'- 3 -'!D44*100 -> 10.32312414 | G44: =E44/'- 7 -'!E44 -> 2177.971878 | H44: =SUM('- 33 -'!B44,'- 33 -'!D44) -> 205989 | I44: =H44/'- 3 -'!D44*100 -> 1.615126736 | J44: =H44/'- 7 -'!E44 -> 340.7593052
A45: WESTERN | B45: =SUM('- 30 -'!D45,'- 30 -'!B45,'- 29 -'!F45,'- 29 -'!D45,'- 29 -'!B45) -> 1306020 | C45: =B45/'- 3 -'!D45*100 -> 4.256716489 | D45: =B45/'- 7 -'!E45 -> 575.339207 | E45: =SUM('- 32 -'!D45,'- 32 -'!B45,'- 31 -'!F45,'- 31 -'!D45,'- 31 -'!B45) -> 3076538 | F45: =E45/'- 3 -'!D45*100 -> 10.02737327 | G45: =E45/'- 7 -'!E45 -> 1355.303084 | H45: =SUM('- 33 -'!B45,'- 33 -'!D45) -> 577469 | I45: =H45/'- 3 -'!D45*100 -> 1.882147145 | J45: =H45/'- 7 -'!E45 -> 254.39163
A46: WINNIPEG | B46: =SUM('- 30 -'!D46,'- 30 -'!B46,'- 29 -'!F46,'- 29 -'!D46,'- 29 -'!B46) -> 8263042 | C46: =B46/'- 3 -'!D46*100 -> 1.739259161 | D46: =B46/'- 7 -'!E46 -> 290.8190617 | E46: =SUM('- 32 -'!D46,'- 32 -'!B46,'- 31 -'!F46,'- 31 -'!D46,'- 31 -'!B46) -> 62099143 | F46: =E46/'- 3 -'!D46*100 -> 13.07103405 | G46: =E46/'- 7 -'!E46 -> 2185.589097 | H46: =SUM('- 33 -'!B46,'- 33 -'!D46) -> 8224859 | I46: =H46/'- 3 -'!D46*100 -> 1.731222153 | J46: =H46/'- 7 -'!E46 -> 289.475205
A48: PROVINCE | B48: =SUM(B11:B46) -> 131996017 | C48: =B48/'- 3 -'!D48*100 -> 4.413367457 | D48: =B48/'- 7 -'!E48 -> 698.7637068 | E48: =SUM(E11:E46) -> 329970847 | F48: =E48/'- 3 -'!D48*100 -> 11.03277683 | G48: =E48/'- 7 -'!E48 -> 1746.807649 | H48: =SUM(H11:H46) -> 50997398 | I48: =H48/'- 3 -'!D48*100 -> 1.705129153 | J48: =H48/'- 7 -'!E48 -> 269.9712588
A50: WHITESHELL | B50: =SUM('- 30 -'!D50,'- 30 -'!B50,'- 29 -'!F50,'- 29 -'!D50,'- 29 -'!B50) -> 48750 | C50: =B50/'- 3 -'!D50*100 -> 1.15523517 | D50: =B50/'- 7 -'!E50 -> 282.6086957 | E50: =SUM('- 32 -'!D50,'- 32 -'!B50,'- 31 -'!F50,'- 31 -'!D50,'- 31 -'!B50) -> 589812 | F50: =E50/'- 3 -'!D50*100 -> 13.97685264 | G50: =E50/'- 7 -'!E50 -> 3419.2 | H50: =SUM('- 33 -'!B50,'- 33 -'!D50) -> 0 | I50: =H50/'- 3 -'!D50*100 -> 0 | J50: =H50/'- 7 -'!E50 -> 0
B52: =B48-'- 10 -'!K17 -> 0

Sheet - 18 -
B2: =IF(Lang=1,BA2,BB2) -> ANALYSIS OF EXPENSE BY PROGRAM | G2: PAGE 1 OF 16 | BA2: ANALYSIS OF EXPENSE BY PROGRAM | BB2: ANALYSE DES DÉPENSES PAR PROGRAMME
B3: =OPYEAR -> OPERATING FUND 2024/2025 BUDGET
B5: FUNCTION 100: REGULAR INSTRUCTION
B6: ADMINISTRATION | E6: SENIOR YEARS TECHNOLOGY EDUCATION
D8: PER PUPIL | G8: PER PUPIL
A9: DIVISION / DISTRICT | B9: AMOUNT | C9: % | E9: AMOUNT | F9: %
A11: BEAUTIFUL PLAINS | B11: 1965314 | C11: =B11/'- 3 -'!$D11*100 -> 6.888369429 | D11: =B11/'- 7 -'!$C11 -> 878.5489495 | E11: 0 | F11: =E11/'- 3 -'!$D11*100 -> 0 | G11: =IF('- 7 -'!$B11=0,"",E11/'- 7 -'!$B11) -> 
A12: BORDER LAND | B12: 3176642 | C12: =B12/'- 3 -'!$D12*100 -> 7.937237535 | D12: =B12/'- 7 -'!$C12 -> 1561.387073 | E12: 1185970 | F12: =E12/'- 3 -'!$D12*100 -> 2.963294447 | G12: =IF('- 7 -'!$B12=0,"",E12/'- 7 -'!$B12) -> 9966.134454
A13: BRANDON | B13: 9180740 | C13: =B13/'- 3 -'!$D13*100 -> 6.936982406 | D13: =B13/'- 7 -'!$C13 -> 970.4286243 | E13: 3996251 | F13: =E13/'- 3 -'!$D13*100 -> 3.019573899 | G13: =IF('- 7 -'!$B13=0,"",E13/'- 7 -'!$B13) -> 9358.901639
A14: DSFM | B14: 8413785 | C14: =B14/'- 3 -'!$D14*100 -> 7.096793441 | D14: =B14/'- 7 -'!$C14 -> 1362.110694 | E14: 301544 | F14: =E14/'- 3 -'!$D14*100 -> 0.2543439702 | G14: =IF('- 7 -'!$B14=0,"",E14/'- 7 -'!$B14) -> 10499.4429
A15: EVERGREEN | B15: 1918823 | C15: =B15/'- 3 -'!$D15*100 -> 7.728641888 | D15: =B15/'- 7 -'!$C15 -> 1374.515043 | E15: 252230 | F15: =E15/'- 3 -'!$D15*100 -> 1.015932863 | G15: =IF('- 7 -'!$B15=0,"",E15/'- 7 -'!$B15) -> 12611.5
A16: FLIN FLON | B16: 1559427 | C16: =B16/'- 3 -'!$D16*100 -> 8.600064546 | D16: =B16/'- 7 -'!$C16 -> 1956.621079 | E16: 0 | F16: =E16/'- 3 -'!$D16*100 -> 0 | G16: =IF('- 7 -'!$B16=0,"",E16/'- 7 -'!$B16) -> 
A17: FORT LA BOSSE | B17: 1508520 | C17: =B17/'- 3 -'!$D17*100 -> 6.615986441 | D17: =B17/'- 7 -'!$C17 -> 967.6202694 | E17: 243300 | F17: =E17/'- 3 -'!$D17*100 -> 1.067052145 | G17: =IF('- 7 -'!$B17=0,"",E17/'- 7 -'!$B17) -> 3743.076923
A18: FRONTIER | B18: 9117181 | C18: =B18/'- 3 -'!$D18*100 -> 5.164206615 | D18: =B18/'- 7 -'!$C18 -> 1402.211781 | E18: 0 | F18: =E18/'- 3 -'!$D18*100 -> 0 | G18: =IF('- 7 -'!$B18=0,"",E18/'- 7 -'!$B18) -> 0
A19: GARDEN VALLEY | B19: 3764171 | C19: =B19/'- 3 -'!$D19*100 -> 6.399946341 | D19: =B19/'- 7 -'!$C19 -> 885.8957402 | E19: 1328907 | F19: =E19/'- 3 -'!$D19*100 -> 2.259443976 | G19: =IF('- 7 -'!$B19=0,"",E19/'- 7 -'!$B19) -> 13289.07
A20: HANOVER | B20: 7554700 | C20: =B20/'- 3 -'!$D20*100 -> 6.532545996 | D20: =B20/'- 7 -'!$C20 -> 886.8059631 | E20: 3518300 | F20: =E20/'- 3 -'!$D20*100 -> 3.042272569 | G20: =IF('- 7 -'!$B20=0,"",E20/'- 7 -'!$B20) -> 7102.552271
A21: INTERLAKE | B21: 3356255 | C21: =B21/'- 3 -'!$D21*100 -> 7.52980835 | D21: =B21/'- 7 -'!$C21 -> 1172.695667 | E21: 0 | F21: =E21/'- 3 -'!$D21*100 -> 0 | G21: =IF('- 7 -'!$B21=0,"",E21/'- 7 -'!$B21) -> 
A22: KELSEY | B22: 1724470 | C22: =B22/'- 3 -'!$D22*100 -> 7.145561748 | D22: =B22/'- 7 -'!$C22 -> 1204.238827 | E22: 46500 | F22: =E22/'- 3 -'!$D22*100 -> 0.1926786904 | G22: =IF('- 7 -'!$B22=0,"",E22/'- 7 -'!$B22) -> 3229.166667
A23: LAKESHORE | B23: 1203600 | C23: =B23/'- 3 -'!$D23*100 -> 6.605742287 | D23: =B23/'- 7 -'!$C23 -> 1234.461538 | E23: 157500 | F23: =E23/'- 3 -'!$D23*100 -> 0.8644104438 | G23: =IF('- 7 -'!$B23=0,"",E23/'- 7 -'!$B23) -> 10500
A24: LORD SELKIRK | B24: 5814990 | C24: =B24/'- 3 -'!$D24*100 -> 8.411260092 | D24: =B24/'- 7 -'!$C24 -> 1543.666047 | E24: 2134296 | F24: =E24/'- 3 -'!$D24*100 -> 3.08721404 | G24: =IF('- 7 -'!$B24=0,"",E24/'- 7 -'!$B24) -> 10261.03846
A25: LOUIS RIEL | B25: 17495272 | C25: =B25/'- 3 -'!$D25*100 -> 7.186640305 | D25: =B25/'- 7 -'!$C25 -> 1028.710061 | E25: 2373957 | F25: =E25/'- 3 -'!$D25*100 -> 0.9751648936 | G25: =IF('- 7 -'!$B25=0,"",E25/'- 7 -'!$B25) -> 16259.97945
A26: MOUNTAIN VIEW | B26: 4358814 | C26: =B26/'- 3 -'!$D26*100 -> 8.750875376 | D26: =B26/'- 7 -'!$C26 -> 1400.692182 | E26: 1193373 | F26: =E26/'- 3 -'!$D26*100 -> 2.395848595 | G26: =IF('- 7 -'!$B26=0,"",E26/'- 7 -'!$B26) -> 7729.099741
A27: MYSTERY LAKE | B27: 3244830 | C27: =B27/'- 3 -'!$D27*100 -> 6.46673233 | D27: =B27/'- 7 -'!$C27 -> 1150.465351 | E27: 1385483 | F27: =E27/'- 3 -'!$D27*100 -> 2.761176305 | G27: =IF('- 7 -'!$B27=0,"",E27/'- 7 -'!$B27) -> 8889.849214
A28: PARK WEST | B28: 2620669 | C28: =B28/'- 3 -'!$D28*100 -> 7.556962137 | D28: =B28/'- 7 -'!$C28 -> 1195.560675 | E28: 0 | F28: =E28/'- 3 -'!$D28*100 -> 0 | G28: =IF('- 7 -'!$B28=0,"",E28/'- 7 -'!$B28) -> 
A29: PEMBINA TRAILS | B29: 17515643 | C29: =B29/'- 3 -'!$D29*100 -> 7.930144686 | D29: =B29/'- 7 -'!$C29 -> 1057.580184 | E29: 0 | F29: =E29/'- 3 -'!$D29*100 -> 0 | G29: =IF('- 7 -'!$B29=0,"",E29/'- 7 -'!$B29) -> 
A30: PINE CREEK | B30: 1361410 | C30: =B30/'- 3 -'!$D30*100 -> 6.936324711 | D30: =B30/'- 7 -'!$C30 -> 1268.197485 | E30: 453749 | F30: =E30/'- 3 -'!$D30*100 -> 2.311831411 | G30: =IF('- 7 -'!$B30=0,"",E30/'- 7 -'!$B30) -> 6049.986667
A31: PORTAGE LA PRAIRIE | B31: 3945869 | C31: =B31/'- 3 -'!$D31*100 -> 7.932927186 | D31: =B31/'- 7 -'!$C31 -> 1167.416864 | E31: 817501 | F31: =E31/'- 3 -'!$D31*100 -> 1.643535532 | G31: =IF('- 7 -'!$B31=0,"",E31/'- 7 -'!$B31) -> 8696.819149
A32: PRAIRIE ROSE | B32: 2934220 | C32: =B32/'- 3 -'!$D32*100 -> 7.964054679 | D32: =B32/'- 7 -'!$C32 -> 1268.029386 | E32: 0 | F32: =E32/'- 3 -'!$D32*100 -> 0 | G32: =IF('- 7 -'!$B32=0,"",E32/'- 7 -'!$B32) -> 
A33: PRAIRIE SPIRIT | B33: 3115670 | C33: =B33/'- 3 -'!$D33*100 -> 9.443532153 | D33: =B33/'- 7 -'!$C33 -> 1449.148837 | E33: 0 | F33: =E33/'- 3 -'!$D33*100 -> 0 | G33: =IF('- 7 -'!$B33=0,"",E33/'- 7 -'!$B33) -> 
A34: RED RIVER VALLEY | B34: 3169659 | C34: =B34/'- 3 -'!$D34*100 -> 8.369211276 | D34: =B34/'- 7 -'!$C34 -> 1352.243601 | E34: 397265 | F34: =E34/'- 3 -'!$D34*100 -> 1.048943977 | G34: =IF('- 7 -'!$B34=0,"",E34/'- 7 -'!$B34) -> 13939.12281
A35: RIVER EAST TRANSCONA | B35: 18810891 | C35: =B35/'- 3 -'!$D35*100 -> 7.491108404 | D35: =B35/'- 7 -'!$C35 -> 1036.013163 | E35: 4612683 | F35: =E35/'- 3 -'!$D35*100 -> 1.836920345 | G35: =IF('- 7 -'!$B35=0,"",E35/'- 7 -'!$B35) -> 5659.733742
A36: ROLLING RIVER | B36: 2374450 | C36: =B36/'- 3 -'!$D36*100 -> 8.499826832 | D36: =B36/'- 7 -'!$C36 -> 1354.89301 | E36: 151185 | F36: =E36/'- 3 -'!$D36*100 -> 0.5411974645 | G36: =IF('- 7 -'!$B36=0,"",E36/'- 7 -'!$B36) -> 25197.5
A37: SEINE RIVER | B37: 5276659 | C37: =B37/'- 3 -'!$D37*100 -> 8.116819424 | D37: =B37/'- 7 -'!$C37 -> 1193.949316 | E37: 0 | F37: =E37/'- 3 -'!$D37*100 -> 0 | G37: =IF('- 7 -'!$B37=0,"",E37/'- 7 -'!$B37) -> 
A38: SEVEN OAKS | B38: 13694644 | C38: =B38/'- 3 -'!$D38*100 -> 7.607469099 | D38: =B38/'- 7 -'!$C38 -> 1157.864637 | E38: 1760510 | F38: =E38/'- 3 -'!$D38*100 -> 0.977975435 | G38: =IF('- 7 -'!$B38=0,"",E38/'- 7 -'!$B38) -> 8936.598985
A39: SOUTHWEST HORIZON | B39: 1702900 | C39: =B39/'- 3 -'!$D39*100 -> 6.478846447 | D39: =B39/'- 7 -'!$C39 -> 1195.436995 | E39: 0 | F39: =E39/'- 3 -'!$D39*100 -> 0 | G39: =IF('- 7 -'!$B39=0,"",E39/'- 7 -'!$B39) -> 
A40: ST. JAMES-ASSINIBOIA | B40: 10294828 | C40: =B40/'- 3 -'!$D40*100 -> 7.93014717 | D40: =B40/'- 7 -'!$C40 -> 1277.83042 | E40: 2086387 | F40: =E40/'- 3 -'!$D40*100 -> 1.607152248 | G40: =IF('- 7 -'!$B40=0,"",E40/'- 7 -'!$B40) -> 8636.780229
A41: SUNRISE | B41: 5384371 | C41: =B41/'- 3 -'!$D41*100 -> 6.707364258 | D41: =B41/'- 7 -'!$C41 -> 1167.090279 | E41: 0 | F41: =E41/'- 3 -'!$D41*100 -> 0 | G41: =IF('- 7 -'!$B41=0,"",E41/'- 7 -'!$B41) -> 
A42: SWAN VALLEY | B42: 2336527 | C42: =B42/'- 3 -'!$D42*100 -> 8.510139934 | D42: =B42/'- 7 -'!$C42 -> 1685.805916 | E42: 1370597 | F42: =E42/'- 3 -'!$D42*100 -> 4.992012617 | G42: =IF('- 7 -'!$B42=0,"",E42/'- 7 -'!$B42) -> 7236.520591
A43: TURTLE MOUNTAIN | B43: 1103044 | C43: =B43/'- 3 -'!$D43*100 -> 6.872183055 | D43: =B43/'- 7 -'!$C43 -> 1047.525166 | E43: 102574 | F43: =E43/'- 3 -'!$D43*100 -> 0.6390563791 | G43: =IF('- 7 -'!$B43=0,"",E43/'- 7 -'!$B43) -> 2630.102564
A44: TURTLE RIVER | B44: 762401 | C44: =B44/'- 3 -'!$D44*100 -> 5.977864055 | D44: =B44/'- 7 -'!$C44 -> 1261.209264 | E44: 0 | F44: =E44/'- 3 -'!$D44*100 -> 0 | G44: =IF('- 7 -'!$B44=0,"",E44/'- 7 -'!$B44) -> 
A45: WESTERN | B45: 2366295 | C45: =B45/'- 3 -'!$D45*100 -> 7.712475264 | D45: =B45/'- 7 -'!$C45 -> 1042.420705 | E45: 375919 | F45: =E45/'- 3 -'!$D45*100 -> 1.225234381 | G45: =IF('- 7 -'!$B45=0,"",E45/'- 7 -'!$B45) -> 13425.67857
A46: WINNIPEG | B46: 32437689 | C46: =B46/'- 3 -'!$D46*100 -> 6.827697082 | D46: =B46/'- 7 -'!$C46 -> 1141.649562 | E46: 7799086 | F46: =E46/'- 3 -'!$D46*100 -> 1.641602666 | G46: =IF('- 7 -'!$B46=0,"",E46/'- 7 -'!$B46) -> 11179.88245
A48: PROVINCE | B48: =SUM(B11:B46) -> 216565373 | C48: =B48/'- 3 -'!$D48*100 -> 7.240995533 | D48: =B48/'- 7 -'!$C48 -> 1146.459009 | E48: =SUM(E11:E46) -> 38045067 | F48: =E48/'- 3 -'!$D48*100 -> 1.272060055 | G48: =E48/'- 7 -'!$B48 -> 8498.278074
A50: WHITESHELL | B50: 333255 | C50: =B50/'- 3 -'!$D50*100 -> 7.897187624 | D50: =B50/'- 7 -'!$C50 -> 1931.913043 | E50: 0 | F50: =E50/'- 3 -'!$D50*100 -> 0 | G50: =IF('- 7 -'!$B50=0,"",E50/'- 7 -'!$B50) -> 

Sheet - 19 -
B2: =AEXP_BP -> ANALYSIS OF EXPENSE BY PROGRAM | J2: PAGE 2 OF 16
B3: =OPYEAR -> OPERATING FUND 2024/2025 BUDGET
B5: FUNCTION 100: REGULAR INSTRUCTION (CONT'D)
B6: SINGLE TRACK SCHOOLS (1)
B7: ENGLISH LANGUAGE | E7: FRANÇAIS | H7: FRENCH IMMERSION
D8: PER PUPIL | G8: PER PUPIL | J8: PER PUPIL
A9: DIVISION / DISTRICT | B9: AMOUNT | C9: % | E9: AMOUNT | F9: % | H9: AMOUNT | I9: %
A11: BEAUTIFUL PLAINS | B11: 16615020 | C11: =B11/'- 3 -'!$D11*100 -> 58.23517047 | D11: =B11/'- 6 -'!$B11 -> 7427.367009 | E11: 0 | F11: =E11/'- 3 -'!$D11*100 -> 0 | G11: =IF('- 6 -'!$C11=0,"",E11/'- 6 -'!$C11) ->  | H11: 0 | I11: =H11/'- 3 -'!$D11*100 -> 0 | J11: =IF('- 6 -'!$D11=0,"",H11/'- 6 -'!$D11) -> 
A12: BORDER LAND | B12: 14160614 | C12: =B12/'- 3 -'!$D12*100 -> 35.38206602 | D12: =B12/'- 6 -'!$B12 -> 11119.44562 | E12: 0 | F12: =E12/'- 3 -'!$D12*100 -> 0 | G12: =IF('- 6 -'!$C12=0,"",E12/'- 6 -'!$C12) ->  | H12: 0 | I12: =H12/'- 3 -'!$D12*100 -> 0 | J12: =IF('- 6 -'!$D12=0,"",H12/'- 6 -'!$D12) -> 
A13: BRANDON | B13: 57188720 | C13: =B13/'- 3 -'!$D13*100 -> 43.2118919 | D13: =B13/'- 6 -'!$B13 -> 7550.662794 | E13: 0 | F13: =E13/'- 3 -'!$D13*100 -> 0 | G13: =IF('- 6 -'!$C13=0,"",E13/'- 6 -'!$C13) ->  | H13: 2341931 | I13: =H13/'- 3 -'!$D13*100 -> 1.769566957 | J13: =IF('- 6 -'!$D13=0,"",H13/'- 6 -'!$D13) -> 7054.009036
A14: DSFM | B14: 0 | C14: =B14/'- 3 -'!$D14*100 -> 0 | E14: 55350547 | F14: =E14/'- 3 -'!$D14*100 -> 46.68664565 | G14: =IF('- 6 -'!$C14=0,"",E14/'- 6 -'!$C14) -> 9002.57746 | H14: 0 | I14: =H14/'- 3 -'!$D14*100 -> 0 | J14: =IF('- 6 -'!$D14=0,"",H14/'- 6 -'!$D14) -> 
A15: EVERGREEN | B15: 11495534 | C15: =B15/'- 3 -'!$D15*100 -> 46.30175143 | D15: =B15/'- 6 -'!$B15 -> 8354.3125 | E15: 0 | F15: =E15/'- 3 -'!$D15*100 -> 0 | G15: =IF('- 6 -'!$C15=0,"",E15/'- 6 -'!$C15) ->  | H15: 0 | I15: =H15/'- 3 -'!$D15*100 -> 0 | J15: =IF('- 6 -'!$D15=0,"",H15/'- 6 -'!$D15) -> 
A16: FLIN FLON | B16: 5709685 | C16: =B16/'- 3 -'!$D16*100 -> 31.48827072 | D16: =B16/'- 6 -'!$B16 -> 11086.76699 | E16: 0 | F16: =E16/'- 3 -'!$D16*100 -> 0 | G16: =IF('- 6 -'!$C16=0,"",E16/'- 6 -'!$C16) ->  | H16: 0 | I16: =H16/'- 3 -'!$D16*100 -> 0 | J16: =IF('- 6 -'!$D16=0,"",H16/'- 6 -'!$D16) -> 
A17: FORT LA BOSSE | B17: 12088060 | C17: =B17/'- 3 -'!$D17*100 -> 53.01516789 | D17: =B17/'- 6 -'!$B17 -> 8091.07095 | E17: 0 | F17: =E17/'- 3 -'!$D17*100 -> 0 | G17: =IF('- 6 -'!$C17=0,"",E17/'- 6 -'!$C17) ->  | H17: 0 | I17: =H17/'- 3 -'!$D17*100 -> 0 | J17: =IF('- 6 -'!$D17=0,"",H17/'- 6 -'!$D17) -> 
A18: FRONTIER | B18: 61110247 | C18: =B18/'- 3 -'!$D18*100 -> 34.61442104 | D18: =B18/'- 6 -'!$B18 -> 9570.907909 | E18: 0 | F18: =E18/'- 3 -'!$D18*100 -> 0 | G18: =IF('- 6 -'!$C18=0,"",E18/'- 6 -'!$C18) ->  | H18: 0 | I18: =H18/'- 3 -'!$D18*100 -> 0 | J18: =IF('- 6 -'!$D18=0,"",H18/'- 6 -'!$D18) -> 
A19: GARDEN VALLEY | B19: 29010559 | C19: =B19/'- 3 -'!$D19*100 -> 49.32454475 | D19: =B19/'- 6 -'!$B19 -> 6992.181007 | E19: 0 | F19: =E19/'- 3 -'!$D19*100 -> 0 | G19: =IF('- 6 -'!$C19=0,"",E19/'- 6 -'!$C19) ->  | H19: 0 | I19: =H19/'- 3 -'!$D19*100 -> 0 | J19: =IF('- 6 -'!$D19=0,"",H19/'- 6 -'!$D19) -> 
A20: HANOVER | B20: 57620100 | C20: =B20/'- 3 -'!$D20*100 -> 49.82407687 | D20: =B20/'- 6 -'!$B20 -> 7181.289226 | E20: 0 | F20: =E20/'- 3 -'!$D20*100 -> 0 | G20: =IF('- 6 -'!$C20=0,"",E20/'- 6 -'!$C20) ->  | H20: 0 | I20: =H20/'- 3 -'!$D20*100 -> 0 | J20: =IF('- 6 -'!$D20=0,"",H20/'- 6 -'!$D20) -> 
A21: INTERLAKE | B21: 13032340 | C21: =B21/'- 3 -'!$D21*100 -> 29.23824994 | D21: =B21/'- 6 -'!$B21 -> 8378.23208 | E21: 0 | F21: =E21/'- 3 -'!$D21*100 -> 0 | G21: =IF('- 6 -'!$C21=0,"",E21/'- 6 -'!$C21) ->  | H21: 0 | I21: =H21/'- 3 -'!$D21*100 -> 0 | J21: =IF('- 6 -'!$D21=0,"",H21/'- 6 -'!$D21) -> 
A22: KELSEY | B22: 5537349 | C22: =B22/'- 3 -'!$D22*100 -> 22.94471298 | D22: =B22/'- 6 -'!$B22 -> 6805.984513 | E22: 0 | F22: =E22/'- 3 -'!$D22*100 -> 0 | G22: =IF('- 6 -'!$C22=0,"",E22/'- 6 -'!$C22) ->  | H22: 0 | I22: =H22/'- 3 -'!$D22*100 -> 0 | J22: =IF('- 6 -'!$D22=0,"",H22/'- 6 -'!$D22) -> 
A23: LAKESHORE | B23: 8250034 | C23: =B23/'- 3 -'!$D23*100 -> 45.2788289 | D23: =B23/'- 6 -'!$B23 -> 8593.785417 | E23: 0 | F23: =E23/'- 3 -'!$D23*100 -> 0 | G23: =IF('- 6 -'!$C23=0,"",E23/'- 6 -'!$C23) ->  | H23: 0 | I23: =H23/'- 3 -'!$D23*100 -> 0 | J23: =IF('- 6 -'!$D23=0,"",H23/'- 6 -'!$D23) -> 
A24: LORD SELKIRK | B24: 26450949 | C24: =B24/'- 3 -'!$D24*100 -> 38.26073849 | D24: =B24/'- 6 -'!$B24 -> 9746.11238 | E24: 0 | F24: =E24/'- 3 -'!$D24*100 -> 0 | G24: =IF('- 6 -'!$C24=0,"",E24/'- 6 -'!$C24) ->  | H24: 1929142 | I24: =H24/'- 3 -'!$D24*100 -> 2.790463116 | J24: =IF('- 6 -'!$D24=0,"",H24/'- 6 -'!$D24) -> 9503.162562
A25: LOUIS RIEL | B25: 76021901 | C25: =B25/'- 3 -'!$D25*100 -> 31.22798307 | D25: =B25/'- 6 -'!$B25 -> 6893.53473 | E25: 0 | F25: =E25/'- 3 -'!$D25*100 -> 0 | G25: =IF('- 6 -'!$C25=0,"",E25/'- 6 -'!$C25) ->  | H25: 31488378 | I25: =H25/'- 3 -'!$D25*100 -> 12.93467438 | J25: =IF('- 6 -'!$D25=0,"",H25/'- 6 -'!$D25) -> 6153.6795
A26: MOUNTAIN VIEW | B26: 18345305 | C26: =B26/'- 3 -'!$D26*100 -> 36.83054101 | D26: =B26/'- 6 -'!$B26 -> 7658.236276 | E26: 0 | F26: =E26/'- 3 -'!$D26*100 -> 0 | G26: =IF('- 6 -'!$C26=0,"",E26/'- 6 -'!$C26) ->  | H26: 1166283 | I26: =H26/'- 3 -'!$D26*100 -> 2.341461963 | J26: =IF('- 6 -'!$D26=0,"",H26/'- 6 -'!$D26) -> 9040.953488
A27: MYSTERY LAKE | B27: 21187921 | C27: =B27/'- 3 -'!$D27*100 -> 42.2261301 | D27: =B27/'- 6 -'!$B27 -> 9122.501076 | E27: 0 | F27: =E27/'- 3 -'!$D27*100 -> 0 | G27: =IF('- 6 -'!$C27=0,"",E27/'- 6 -'!$C27) ->  | H27: 0 | I27: =H27/'- 3 -'!$D27*100 -> 0 | J27: =IF('- 6 -'!$D27=0,"",H27/'- 6 -'!$D27) -> 
A28: PARK WEST | B28: 17850783 | C28: =B28/'- 3 -'!$D28*100 -> 51.47452473 | D28: =B28/'- 6 -'!$B28 -> 8143.605383 | E28: 0 | F28: =E28/'- 3 -'!$D28*100 -> 0 | G28: =IF('- 6 -'!$C28=0,"",E28/'- 6 -'!$C28) ->  | H28: 0 | I28: =H28/'- 3 -'!$D28*100 -> 0 | J28: =IF('- 6 -'!$D28=0,"",H28/'- 6 -'!$D28) -> 
A29: PEMBINA TRAILS | B29: 70722195 | C29: =B29/'- 3 -'!$D29*100 -> 32.0192207 | D29: =B29/'- 6 -'!$B29 -> 6752.811515 | E29: 0 | F29: =E29/'- 3 -'!$D29*100 -> 0 | G29: =IF('- 6 -'!$C29=0,"",E29/'- 6 -'!$C29) ->  | H29: 9822231 | I29: =H29/'- 3 -'!$D29*100 -> 4.446979935 | J29: =IF('- 6 -'!$D29=0,"",H29/'- 6 -'!$D29) -> 6936.603814
A30: PINE CREEK | B30: 10236860 | C30: =B30/'- 3 -'!$D30*100 -> 52.15635627 | D30: =B30/'- 6 -'!$B30 -> 10252.23836 | E30: 0 | F30: =E30/'- 3 -'!$D30*100 -> 0 | G30: =IF('- 6 -'!$C30=0,"",E30/'- 6 -'!$C30) ->  | H30: 0 | I30: =H30/'- 3 -'!$D30*100 -> 0 | J30: =IF('- 6 -'!$D30=0,"",H30/'- 6 -'!$D30) -> 
A31: PORTAGE LA PRAIRIE | B31: 22431654 | C31: =B31/'- 3 -'!$D31*100 -> 45.09746214 | D31: =B31/'- 6 -'!$B31 -> 7756.450207 | E31: 0 | F31: =E31/'- 3 -'!$D31*100 -> 0 | G31: =IF('- 6 -'!$C31=0,"",E31/'- 6 -'!$C31) ->  | H31: 2213080 | I31: =H31/'- 3 -'!$D31*100 -> 4.449261366 | J31: =IF('- 6 -'!$D31=0,"",H31/'- 6 -'!$D31) -> 5616.954315
A32: PRAIRIE ROSE | B32: 13419662 | C32: =B32/'- 3 -'!$D32*100 -> 36.42362261 | D32: =B32/'- 6 -'!$B32 -> 7847.755556 | E32: 0 | F32: =E32/'- 3 -'!$D32*100 -> 0 | G32: =IF('- 6 -'!$C32=0,"",E32/'- 6 -'!$C32) ->  | H32: 807125 | I32: =H32/'- 3 -'!$D32*100 -> 2.190697232 | J32: =IF('- 6 -'!$D32=0,"",H32/'- 6 -'!$D32) -> 7111.23348
A33: PRAIRIE SPIRIT | B33: 12326440 | C33: =B33/'- 3 -'!$D33*100 -> 37.36118795 | D33: =B33/'- 6 -'!$B33 -> 7289.438202 | E33: 0 | F33: =E33/'- 3 -'!$D33*100 -> 0 | G33: =IF('- 6 -'!$C33=0,"",E33/'- 6 -'!$C33) ->  | H33: 0 | I33: =H33/'- 3 -'!$D33*100 -> 0 | J33: =IF('- 6 -'!$D33=0,"",H33/'- 6 -'!$D33) -> 
A34: RED RIVER VALLEY | B34: 13439179 | C34: =B34/'- 3 -'!$D34*100 -> 35.48499331 | D34: =B34/'- 6 -'!$B34 -> 7638.067065 | E34: 0 | F34: =E34/'- 3 -'!$D34*100 -> 0 | G34: =IF('- 6 -'!$C34=0,"",E34/'- 6 -'!$C34) ->  | H34: 2612084 | I34: =H34/'- 3 -'!$D34*100 -> 6.896982567 | J34: =IF('- 6 -'!$D34=0,"",H34/'- 6 -'!$D34) -> 7368.361072
A35: RIVER EAST TRANSCONA | B35: 78127576 | C35: =B35/'- 3 -'!$D35*100 -> 31.11294096 | D35: =B35/'- 6 -'!$B35 -> 8418.012714 | E35: 0 | F35: =E35/'- 3 -'!$D35*100 -> 0 | G35: =IF('- 6 -'!$C35=0,"",E35/'- 6 -'!$C35) ->  | H35: 11337951 | I35: =H35/'- 3 -'!$D35*100 -> 4.515140724 | J35: =IF('- 6 -'!$D35=0,"",H35/'- 6 -'!$D35) -> 7061.943943
A36: ROLLING RIVER | B36: 13801150 | C36: =B36/'- 3 -'!$D36*100 -> 49.40402412 | D36: =B36/'- 6 -'!$B36 -> 7902.17578 | E36: 0 | F36: =E36/'- 3 -'!$D36*100 -> 0 | G36: =IF('- 6 -'!$C36=0,"",E36/'- 6 -'!$C36) ->  | H36: 0 | I36: =H36/'- 3 -'!$D36*100 -> 0 | J36: =IF('- 6 -'!$D36=0,"",H36/'- 6 -'!$D36) -> 
A37: SEINE RIVER | B37: 15581301 | C37: =B37/'- 3 -'!$D37*100 -> 23.96793248 | D37: =B37/'- 6 -'!$B37 -> 6756.852125 | E37: 0 | F37: =E37/'- 3 -'!$D37*100 -> 0 | G37: =IF('- 6 -'!$C37=0,"",E37/'- 6 -'!$C37) ->  | H37: 5171091 | I37: =H37/'- 3 -'!$D37*100 -> 7.954429474 | J37: =IF('- 6 -'!$D37=0,"",H37/'- 6 -'!$D37) -> 8734.951014
A38: SEVEN OAKS | B38: 57599509 | C38: =B38/'- 3 -'!$D38*100 -> 31.99692411 | D38: =B38/'- 6 -'!$B38 -> 8043.500768 | E38: 0 | F38: =E38/'- 3 -'!$D38*100 -> 0 | G38: =IF('- 6 -'!$C38=0,"",E38/'- 6 -'!$C38) ->  | H38: 7774378 | I38: =H38/'- 3 -'!$D38*100 -> 4.318720545 | J38: =IF('- 6 -'!$D38=0,"",H38/'- 6 -'!$D38) -> 6123.968492
A39: SOUTHWEST HORIZON | B39: 13094200 | C39: =B39/'- 3 -'!$D39*100 -> 49.81814031 | D39: =B39/'- 6 -'!$B39 -> 9192.137592 | E39: 0 | F39: =E39/'- 3 -'!$D39*100 -> 0 | G39: =IF('- 6 -'!$C39=0,"",E39/'- 6 -'!$C39) ->  | H39: 0 | I39: =H39/'- 3 -'!$D39*100 -> 0 | J39: =IF('- 6 -'!$D39=0,"",H39/'- 6 -'!$D39) -> 
A40: ST. JAMES-ASSINIBOIA | B40: 43698286 | C40: =B40/'- 3 -'!$D40*100 -> 33.66096442 | D40: =B40/'- 6 -'!$B40 -> 7903.884631 | E40: 0 | F40: =E40/'- 3 -'!$D40*100 -> 0 | G40: =IF('- 6 -'!$C40=0,"",E40/'- 6 -'!$C40) ->  | H40: 9400073 | I40: =H40/'- 3 -'!$D40*100 -> 7.240913816 | J40: =IF('- 6 -'!$D40=0,"",H40/'- 6 -'!$D40) -> 7289.703761
A41: SUNRISE | B41: 18879339 | C41: =B41/'- 3 -'!$D41*100 -> 23.51817949 | D41: =B41/'- 6 -'!$B41 -> 9028.856528 | E41: 0 | F41: =E41/'- 3 -'!$D41*100 -> 0 | G41: =IF('- 6 -'!$C41=0,"",E41/'- 6 -'!$C41) ->  | H41: 0 | I41: =H41/'- 3 -'!$D41*100 -> 0 | J41: =IF('- 6 -'!$D41=0,"",H41/'- 6 -'!$D41) -> 
A42: SWAN VALLEY | B42: 7925329 | C42: =B42/'- 3 -'!$D42*100 -> 28.86577335 | D42: =B42/'- 6 -'!$B42 -> 8534.707086 | E42: 0 | F42: =E42/'- 3 -'!$D42*100 -> 0 | G42: =IF('- 6 -'!$C42=0,"",E42/'- 6 -'!$C42) ->  | H42: 0 | I42: =H42/'- 3 -'!$D42*100 -> 0 | J42: =IF('- 6 -'!$D42=0,"",H42/'- 6 -'!$D42) -> 
A43: TURTLE MOUNTAIN | B43: 7792268 | C43: =B43/'- 3 -'!$D43*100 -> 48.54737627 | D43: =B43/'- 6 -'!$B43 -> 7684.682446 | E43: 0 | F43: =E43/'- 3 -'!$D43*100 -> 0 | G43: =IF('- 6 -'!$C43=0,"",E43/'- 6 -'!$C43) ->  | H43: 0 | I43: =H43/'- 3 -'!$D43*100 -> 0 | J43: =IF('- 6 -'!$D43=0,"",H43/'- 6 -'!$D43) -> 
A44: TURTLE RIVER | B44: 6027316 | C44: =B44/'- 3 -'!$D44*100 -> 47.25921879 | D44: =B44/'- 6 -'!$B44 -> 10400.89042 | E44: 0 | F44: =E44/'- 3 -'!$D44*100 -> 0 | G44: =IF('- 6 -'!$C44=0,"",E44/'- 6 -'!$C44) ->  | H44: 390658 | I44: =H44/'- 3 -'!$D44*100 -> 3.063086769 | J44: =IF('- 6 -'!$D44=0,"",H44/'- 6 -'!$D44) -> 15626.32
A45: WESTERN | B45: 8374647 | C45: =B45/'- 3 -'!$D45*100 -> 27.29552225 | D45: =B45/'- 6 -'!$B45 -> 7440.823634 | E45: 0 | F45: =E45/'- 3 -'!$D45*100 -> 0 | G45: =IF('- 6 -'!$C45=0,"",E45/'- 6 -'!$C45) ->  | H45: 0 | I45: =H45/'- 3 -'!$D45*100 -> 0 | J45: =IF('- 6 -'!$D45=0,"",H45/'- 6 -'!$D45) -> 
A46: WINNIPEG | B46: 141798763 | C46: =B46/'- 3 -'!$D46*100 -> 29.8467317 | D46: =B46/'- 6 -'!$B46 -> 7921.984145 | E46: 0 | F46: =E46/'- 3 -'!$D46*100 -> 0 | G46: =IF('- 6 -'!$C46=0,"",E46/'- 6 -'!$C46) ->  | H46: 9982903 | I46: =H46/'- 3 -'!$D46*100 -> 2.101266761 | J46: =IF('- 6 -'!$D46=0,"",H46/'- 6 -'!$D46) -> 7255.016715
A48: PROVINCE | B48: =SUM(B11:B46) -> 1006950795 | C48: =B48/'- 3 -'!$D48*100 -> 33.66801492 | D48: =B48/'- 6 -'!$B48 -> 7890.347584 | E48: =SUM(E11:E46) -> 55350547 | F48: =E48/'- 3 -'!$D48*100 -> 1.850679349 | G48: =E48/'- 6 -'!$C48 -> 9002.57746 | H48: =SUM(H11:H46) -> 96437308 | I48: =H48/'- 3 -'!$D48*100 -> 3.224440301 | J48: =H48/'- 6 -'!$D48 -> 6783.477509
A50: WHITESHELL | B50: 2117547 | C50: =B50/'- 3 -'!$D50*100 -> 50.17979014 | D50: =B50/'- 6 -'!$B50 -> 12275.63478 | E50: 0 | F50: =E50/'- 3 -'!$D50*100 -> 0 | G50: =IF('- 6 -'!$C50=0,"",E50/'- 6 -'!$C50) ->  | H50: 0 | I50: =H50/'- 3 -'!$D50*100 -> 0 | J50: =IF('- 6 -'!$D50=0,"",H50/'- 6 -'!$D50) -> 
A52: (1) 90% or more of Regular Instruction enrolment is in one language.

Sheet - 20 -
B2: =AEXP_BP -> ANALYSIS OF EXPENSE BY PROGRAM | I2: PAGE 3 OF 16
B3: =OPYEAR -> OPERATING FUND 2024/2025 BUDGET
B5: FUNCTION 100: REGULAR INSTRUCTION (CONT'D)
B6: DUAL TRACK SCHOOLS (1)
D7: PER PUPIL | E7: NO. OF FTE PUPILS | F7: % IN DUAL TRACK SCHOOLS
F8: ENGLISH | G8: FRANÇAIS | H8: FRENCH IMMERSION | I8: OTHER
A9: DIVISION / DISTRICT | B9: AMOUNT | C9: %
A11: BEAUTIFUL PLAINS | B11: 0 | C11: =B11/'- 3 -'!$D11*100 -> 0 | D11: =IF(E11=0,"",B11/E11) ->  | E11: =SUM('- 6 -'!$E11:H11) -> 0 | F11: =IF(E11=0,"",'- 6 -'!$E11/E11*100) ->  | G11: =IF(E11=0,"",'- 6 -'!$F11/E11*100) ->  | H11: =IF(E11=0,"",'- 6 -'!$G11/E11*100) ->  | I11: =IF(E11=0,"",'- 6 -'!$H11/E11*100) -> 
A12: BORDER LAND | B12: 4759508 | C12: =B12/'- 3 -'!$D12*100 -> 11.8922263 | D12: =IF(E12=0,"",B12/E12) -> 7413.563863 | E12: =SUM('- 6 -'!$E12:H12) -> 642 | F12: =IF(E12=0,"",'- 6 -'!$E12/E12*100) -> 79.90654206 | G12: =IF(E12=0,"",'- 6 -'!$F12/E12*100) -> 0 | H12: =IF(E12=0,"",'- 6 -'!$G12/E12*100) -> 20.09345794 | I12: =IF(E12=0,"",'- 6 -'!$H12/E12*100) -> 0
A13: BRANDON | B13: 7912353 | C13: =B13/'- 3 -'!$D13*100 -> 5.97858708 | D13: 7017.607982 | E13: =SUM('- 6 -'!$E13:H13) -> 1127.5 | F13: =IF(E13=0,"",'- 6 -'!$E13/E13*100) -> 66.78492239 | G13: =IF(E13=0,"",'- 6 -'!$F13/E13*100) -> 0 | H13: =IF(E13=0,"",'- 6 -'!$G13/E13*100) -> 33.21507761 | I13: =IF(E13=0,"",'- 6 -'!$H13/E13*100) -> 0
A14: DSFM | B14: 0 | C14: =B14/'- 3 -'!$D14*100 -> 0 | E14: =SUM('- 6 -'!$E14:H14) -> 0 | F14: =IF(E14=0,"",'- 6 -'!$E14/E14*100) ->  | G14: =IF(E14=0,"",'- 6 -'!$F14/E14*100) ->  | H14: =IF(E14=0,"",'- 6 -'!$G14/E14*100) ->  | I14: =IF(E14=0,"",'- 6 -'!$H14/E14*100) -> 
A15: EVERGREEN | B15: 0 | C15: =B15/'- 3 -'!$D15*100 -> 0 | E15: =SUM('- 6 -'!$E15:H15) -> 0 | F15: =IF(E15=0,"",'- 6 -'!$E15/E15*100) ->  | G15: =IF(E15=0,"",'- 6 -'!$F15/E15*100) ->  | H15: =IF(E15=0,"",'- 6 -'!$G15/E15*100) ->  | I15: =IF(E15=0,"",'- 6 -'!$H15/E15*100) -> 
A16: FLIN FLON | B16: 2783675 | C16: =B16/'- 3 -'!$D16*100 -> 15.3516546 | D16: 9871.187943 | E16: =SUM('- 6 -'!$E16:H16) -> 282 | F16: =IF(E16=0,"",'- 6 -'!$E16/E16*100) -> 69.32624113 | G16: =IF(E16=0,"",'- 6 -'!$F16/E16*100) -> 0 | H16: =IF(E16=0,"",'- 6 -'!$G16/E16*100) -> 30.67375887 | I16: =IF(E16=0,"",'- 6 -'!$H16/E16*100) -> 0
A17: FORT LA BOSSE | B17: 0 | C17: =B17/'- 3 -'!$D17*100 -> 0 | E17: =SUM('- 6 -'!$E17:H17) -> 0 | F17: =IF(E17=0,"",'- 6 -'!$E17/E17*100) ->  | G17: =IF(E17=0,"",'- 6 -'!$F17/E17*100) ->  | H17: =IF(E17=0,"",'- 6 -'!$G17/E17*100) ->  | I17: =IF(E17=0,"",'- 6 -'!$H17/E17*100) -> 
A18: FRONTIER | B18: 0 | C18: =B18/'- 3 -'!$D18*100 -> 0 | E18: =SUM('- 6 -'!$E18:H18) -> 0 | F18: =IF(E18=0,"",'- 6 -'!$E18/E18*100) ->  | G18: =IF(E18=0,"",'- 6 -'!$F18/E18*100) ->  | H18: =IF(E18=0,"",'- 6 -'!$G18/E18*100) ->  | I18: =IF(E18=0,"",'- 6 -'!$H18/E18*100) -> 
A19: GARDEN VALLEY | B19: 0 | C19: =B19/'- 3 -'!$D19*100 -> 0 | E19: =SUM('- 6 -'!$E19:H19) -> 0 | F19: =IF(E19=0,"",'- 6 -'!$E19/E19*100) ->  | G19: =IF(E19=0,"",'- 6 -'!$F19/E19*100) ->  | H19: =IF(E19=0,"",'- 6 -'!$G19/E19*100) ->  | I19: =IF(E19=0,"",'- 6 -'!$H19/E19*100) -> 
A20: HANOVER | B20: 0 | C20: =B20/'- 3 -'!$D20*100 -> 0 | E20: =SUM('- 6 -'!$E20:H20) -> 0 | F20: =IF(E20=0,"",'- 6 -'!$E20/E20*100) ->  | G20: =IF(E20=0,"",'- 6 -'!$F20/E20*100) ->  | H20: =IF(E20=0,"",'- 6 -'!$G20/E20*100) ->  | I20: =IF(E20=0,"",'- 6 -'!$H20/E20*100) -> 
A21: INTERLAKE | B21: 8410969 | C21: =B21/'- 3 -'!$D21*100 -> 18.8701349 | D21: 6437.787218 | E21: =SUM('- 6 -'!$E21:H21) -> 1306.5 | F21: =IF(E21=0,"",'- 6 -'!$E21/E21*100) -> 67.31725985 | G21: =IF(E21=0,"",'- 6 -'!$F21/E21*100) -> 0 | H21: =IF(E21=0,"",'- 6 -'!$G21/E21*100) -> 32.68274015 | I21: =IF(E21=0,"",'- 6 -'!$H21/E21*100) -> 0
A22: KELSEY | B22: 5008781 | C22: =B22/'- 3 -'!$D22*100 -> 20.75452395 | D22: 8292.683775 | E22: =SUM('- 6 -'!$E22:H22) -> 604 | F22: =IF(E22=0,"",'- 6 -'!$E22/E22*100) -> 72.18543046 | G22: =IF(E22=0,"",'- 6 -'!$F22/E22*100) -> 0 | H22: =IF(E22=0,"",'- 6 -'!$G22/E22*100) -> 27.81456954 | I22: =IF(E22=0,"",'- 6 -'!$H22/E22*100) -> 0
A23: LAKESHORE | B23: 0 | C23: =B23/'- 3 -'!$D23*100 -> 0 | E23: =SUM('- 6 -'!$E23:H23) -> 0 | F23: =IF(E23=0,"",'- 6 -'!$E23/E23*100) ->  | G23: =IF(E23=0,"",'- 6 -'!$F23/E23*100) ->  | H23: =IF(E23=0,"",'- 6 -'!$G23/E23*100) ->  | I23: =IF(E23=0,"",'- 6 -'!$H23/E23*100) -> 
A24: LORD SELKIRK | B24: 5578716 | C24: =B24/'- 3 -'!$D24*100 -> 8.069494746 | D24: 8689.588785 | E24: =SUM('- 6 -'!$E24:H24) -> 642 | F24: =IF(E24=0,"",'- 6 -'!$E24/E24*100) -> 76.32398754 | G24: =IF(E24=0,"",'- 6 -'!$F24/E24*100) -> 0 | H24: =IF(E24=0,"",'- 6 -'!$G24/E24*100) -> 10.74766355 | I24: =IF(E24=0,"",'- 6 -'!$H24/E24*100) -> 12.92834891
A25: LOUIS RIEL | B25: 4324186 | C25: =B25/'- 3 -'!$D25*100 -> 1.776272435 | D25: 6039.365922 | E25: =SUM('- 6 -'!$E25:H25) -> 716 | F25: =IF(E25=0,"",'- 6 -'!$E25/E25*100) -> 39.52513966 | G25: =IF(E25=0,"",'- 6 -'!$F25/E25*100) -> 60.47486034 | H25: =IF(E25=0,"",'- 6 -'!$G25/E25*100) -> 0 | I25: =IF(E25=0,"",'- 6 -'!$H25/E25*100) -> 0
A26: MOUNTAIN VIEW | B26: 2844469 | C26: =B26/'- 3 -'!$D26*100 -> 5.710634528 | D26: 6569.212471 | E26: =SUM('- 6 -'!$E26:H26) -> 433 | F26: =IF(E26=0,"",'- 6 -'!$E26/E26*100) -> 71.36258661 | G26: =IF(E26=0,"",'- 6 -'!$F26/E26*100) -> 0 | H26: =IF(E26=0,"",'- 6 -'!$G26/E26*100) -> 11.54734411 | I26: =IF(E26=0,"",'- 6 -'!$H26/E26*100) -> 17.09006928
A27: MYSTERY LAKE | B27: 2727566 | C27: =B27/'- 3 -'!$D27*100 -> 5.43585927 | D27: 7975.339181 | E27: =SUM('- 6 -'!$E27:H27) -> 342 | F27: =IF(E27=0,"",'- 6 -'!$E27/E27*100) -> 44.00584795 | G27: =IF(E27=0,"",'- 6 -'!$F27/E27*100) -> 0 | H27: =IF(E27=0,"",'- 6 -'!$G27/E27*100) -> 55.99415205 | I27: =IF(E27=0,"",'- 6 -'!$H27/E27*100) -> 0
A28: PARK WEST | B28: 0 | C28: =B28/'- 3 -'!$D28*100 -> 0 | E28: =SUM('- 6 -'!$E28:H28) -> 0 | F28: =IF(E28=0,"",'- 6 -'!$E28/E28*100) ->  | G28: =IF(E28=0,"",'- 6 -'!$F28/E28*100) ->  | H28: =IF(E28=0,"",'- 6 -'!$G28/E28*100) ->  | I28: =IF(E28=0,"",'- 6 -'!$H28/E28*100) -> 
A29: PEMBINA TRAILS | B29: 29123661 | C29: =B29/'- 3 -'!$D29*100 -> 13.18563329 | D29: 6232.326343 | E29: =SUM('- 6 -'!$E29:H29) -> 4673 | F29: =IF(E29=0,"",'- 6 -'!$E29/E29*100) -> 59.05200086 | G29: =IF(E29=0,"",'- 6 -'!$F29/E29*100) -> 0 | H29: =IF(E29=0,"",'- 6 -'!$G29/E29*100) -> 40.94799914 | I29: =IF(E29=0,"",'- 6 -'!$H29/E29*100) -> 0
A30: PINE CREEK | B30: 0 | C30: =B30/'- 3 -'!$D30*100 -> 0 | E30: =SUM('- 6 -'!$E30:H30) -> 0 | F30: =IF(E30=0,"",'- 6 -'!$E30/E30*100) ->  | G30: =IF(E30=0,"",'- 6 -'!$F30/E30*100) ->  | H30: =IF(E30=0,"",'- 6 -'!$G30/E30*100) ->  | I30: =IF(E30=0,"",'- 6 -'!$H30/E30*100) -> 
A31: PORTAGE LA PRAIRIE | B31: 0 | C31: =B31/'- 3 -'!$D31*100 -> 0 | E31: =SUM('- 6 -'!$E31:H31) -> 0 | F31: =IF(E31=0,"",'- 6 -'!$E31/E31*100) ->  | G31: =IF(E31=0,"",'- 6 -'!$F31/E31*100) ->  | H31: =IF(E31=0,"",'- 6 -'!$G31/E31*100) ->  | I31: =IF(E31=0,"",'- 6 -'!$H31/E31*100) -> 
A32: PRAIRIE ROSE | B32: 3464859 | C32: =B32/'- 3 -'!$D32*100 -> 9.404314104 | D32: 7063.932722 | E32: =SUM('- 6 -'!$E32:H32) -> 490.5 | F32: =IF(E32=0,"",'- 6 -'!$E32/E32*100) -> 61.36595311 | G32: =IF(E32=0,"",'- 6 -'!$F32/E32*100) -> 0 | H32: =IF(E32=0,"",'- 6 -'!$G32/E32*100) -> 38.63404689 | I32: =IF(E32=0,"",'- 6 -'!$H32/E32*100) -> 0
A33: PRAIRIE SPIRIT | B33: 3338420 | C33: =B33/'- 3 -'!$D33*100 -> 10.11868286 | D33: 7273.246187 | E33: =SUM('- 6 -'!$E33:H33) -> 459 | F33: =IF(E33=0,"",'- 6 -'!$E33/E33*100) -> 54.24836601 | G33: =IF(E33=0,"",'- 6 -'!$F33/E33*100) -> 25.05446623 | H33: =IF(E33=0,"",'- 6 -'!$G33/E33*100) -> 20.69716776 | I33: =IF(E33=0,"",'- 6 -'!$H33/E33*100) -> 0
A34: RED RIVER VALLEY | B34: 1793732 | C34: =B34/'- 3 -'!$D34*100 -> 4.736194676 | D34: 8901.895782 | E34: =SUM('- 6 -'!$E34:H34) -> 201.5 | F34: =IF(E34=0,"",'- 6 -'!$E34/E34*100) -> 38.46153846 | G34: =IF(E34=0,"",'- 6 -'!$F34/E34*100) -> 61.53846154 | H34: =IF(E34=0,"",'- 6 -'!$G34/E34*100) -> 0 | I34: =IF(E34=0,"",'- 6 -'!$H34/E34*100) -> 0
A35: RIVER EAST TRANSCONA | B35: 33786987 | C35: =B35/'- 3 -'!$D35*100 -> 13.45507676 | D35: 5233.829603 | E35: =SUM('- 6 -'!$E35:H35) -> 6455.5 | F35: =IF(E35=0,"",'- 6 -'!$E35/E35*100) -> 61.52118349 | G35: =IF(E35=0,"",'- 6 -'!$F35/E35*100) -> 0 | H35: =IF(E35=0,"",'- 6 -'!$G35/E35*100) -> 29.91247773 | I35: =IF(E35=0,"",'- 6 -'!$H35/E35*100) -> 8.566338781
A36: ROLLING RIVER | B36: 0 | C36: =B36/'- 3 -'!$D36*100 -> 0 | E36: =SUM('- 6 -'!$E36:H36) -> 0 | F36: =IF(E36=0,"",'- 6 -'!$E36/E36*100) ->  | G36: =IF(E36=0,"",'- 6 -'!$F36/E36*100) ->  | H36: =IF(E36=0,"",'- 6 -'!$G36/E36*100) ->  | I36: =IF(E36=0,"",'- 6 -'!$H36/E36*100) -> 
A37: SEINE RIVER | B37: 9518571 | C37: =B37/'- 3 -'!$D37*100 -> 14.64193953 | D37: 6256.044035 | E37: =SUM('- 6 -'!$E37:H37) -> 1521.5 | F37: =IF(E37=0,"",'- 6 -'!$E37/E37*100) -> 52.28393033 | G37: =IF(E37=0,"",'- 6 -'!$F37/E37*100) -> 0 | H37: =IF(E37=0,"",'- 6 -'!$G37/E37*100) -> 47.71606967 | I37: =IF(E37=0,"",'- 6 -'!$H37/E37*100) -> 0
A38: SEVEN OAKS | B38: 24859467 | C38: =B38/'- 3 -'!$D38*100 -> 13.8096052 | D38: 7768.583438 | E38: =SUM('- 6 -'!$E38:H38) -> 3200 | F38: =IF(E38=0,"",'- 6 -'!$E38/E38*100) -> 44.953125 | G38: =IF(E38=0,"",'- 6 -'!$F38/E38*100) -> 0 | H38: =IF(E38=0,"",'- 6 -'!$G38/E38*100) -> 44.15625 | I38: =IF(E38=0,"",'- 6 -'!$H38/E38*100) -> 10.890625
A39: SOUTHWEST HORIZON | B39: 0 | C39: =B39/'- 3 -'!$D39*100 -> 0 | E39: =SUM('- 6 -'!$E39:H39) -> 0 | F39: =IF(E39=0,"",'- 6 -'!$E39/E39*100) ->  | G39: =IF(E39=0,"",'- 6 -'!$F39/E39*100) ->  | H39: =IF(E39=0,"",'- 6 -'!$G39/E39*100) ->  | I39: =IF(E39=0,"",'- 6 -'!$H39/E39*100) -> 
A40: ST. JAMES-ASSINIBOIA | B40: 5854089 | C40: =B40/'- 3 -'!$D40*100 -> 4.509428163 | D40: 5873.412527 | E40: =SUM('- 6 -'!$E40:H40) -> 996.71 | F40: =IF(E40=0,"",'- 6 -'!$E40/E40*100) -> 53.74783036 | G40: =IF(E40=0,"",'- 6 -'!$F40/E40*100) -> 0 | H40: =IF(E40=0,"",'- 6 -'!$G40/E40*100) -> 46.25216964 | I40: =IF(E40=0,"",'- 6 -'!$H40/E40*100) -> 0
A41: SUNRISE | B41: 19417786 | C41: =B41/'- 3 -'!$D41*100 -> 24.18892825 | D41: 7697.833895 | E41: =SUM('- 6 -'!$E41:H41) -> 2522.5 | F41: =IF(E41=0,"",'- 6 -'!$E41/E41*100) -> 66.0852329 | G41: =IF(E41=0,"",'- 6 -'!$F41/E41*100) -> 0 | H41: =IF(E41=0,"",'- 6 -'!$G41/E41*100) -> 31.45688801 | I41: =IF(E41=0,"",'- 6 -'!$H41/E41*100) -> 2.457879088
A42: SWAN VALLEY | B42: 2030532 | C42: =B42/'- 3 -'!$D42*100 -> 7.395639537 | D42: 7576.61194 | E42: =SUM('- 6 -'!$E42:H42) -> 268 | F42: =IF(E42=0,"",'- 6 -'!$E42/E42*100) -> 82.46268657 | G42: =IF(E42=0,"",'- 6 -'!$F42/E42*100) -> 17.53731343 | H42: =IF(E42=0,"",'- 6 -'!$G42/E42*100) -> 0 | I42: =IF(E42=0,"",'- 6 -'!$H42/E42*100) -> 0
A43: TURTLE MOUNTAIN | B43: 0 | C43: =B43/'- 3 -'!$D43*100 -> 0 | E43: =SUM('- 6 -'!$E43:H43) -> 0 | F43: =IF(E43=0,"",'- 6 -'!$E43/E43*100) ->  | G43: =IF(E43=0,"",'- 6 -'!$F43/E43*100) ->  | H43: =IF(E43=0,"",'- 6 -'!$G43/E43*100) ->  | I43: =IF(E43=0,"",'- 6 -'!$H43/E43*100) -> 
A44: TURTLE RIVER | B44: 0 | C44: =B44/'- 3 -'!$D44*100 -> 0 | E44: =SUM('- 6 -'!$E44:H44) -> 0 | F44: =IF(E44=0,"",'- 6 -'!$E44/E44*100) ->  | G44: =IF(E44=0,"",'- 6 -'!$F44/E44*100) ->  | H44: =IF(E44=0,"",'- 6 -'!$G44/E44*100) ->  | I44: =IF(E44=0,"",'- 6 -'!$H44/E44*100) -> 
A45: WESTERN | B45: 6974304 | C45: =B45/'- 3 -'!$D45*100 -> 22.73137841 | D45: 6246.577698 | E45: =SUM('- 6 -'!$E45:H45) -> 1116.5 | F45: =IF(E45=0,"",'- 6 -'!$E45/E45*100) -> 68.4729064 | G45: =IF(E45=0,"",'- 6 -'!$F45/E45*100) -> 0 | H45: =IF(E45=0,"",'- 6 -'!$G45/E45*100) -> 31.5270936 | I45: =IF(E45=0,"",'- 6 -'!$H45/E45*100) -> 0
A46: WINNIPEG | B46: 50950724 | C46: =B46/'- 3 -'!$D46*100 -> 10.72444186 | D46: 6036.81564 | E46: =SUM('- 6 -'!$E46:H46) -> 8440 | F46: =IF(E46=0,"",'- 6 -'!$E46/E46*100) -> 59.02843602 | G46: =IF(E46=0,"",'- 6 -'!$F46/E46*100) -> 0 | H46: =IF(E46=0,"",'- 6 -'!$G46/E46*100) -> 33.86848341 | I46: =IF(E46=0,"",'- 6 -'!$H46/E46*100) -> 7.103080569
A48: PROVINCE | B48: =SUM(B11:B46) -> 235463355 | C48: =B48/'- 3 -'!$D48*100 -> 7.872861104 | D48: =B48/E48 -> 6461.724174 | E48: =SUM(E11:E46) -> 36439.71 | F48: =IF(E48=0,"",'- 6 -'!$E48/E48*100) -> 59.74858197 | G48: =IF(E48=0,"",'- 6 -'!$F48/E48*100) -> 1.973122179 | H48: =IF(E48=0,"",'- 6 -'!$G48/E48*100) -> 33.55817047 | I48: =IF(E48=0,"",'- 6 -'!$H48/E48*100) -> 4.72012538
A50: WHITESHELL | B50: 0 | C50: =B50/'- 3 -'!$D50*100 -> 0 | D50: =IF(E50=0,"",B50/E50) ->  | E50: =SUM('- 6 -'!$E50:H50) -> 0 | F50: =IF(E50=0,"",'- 6 -'!$E50/E50*100) ->  | G50: =IF(E50=0,"",'- 6 -'!$F50/E50*100) ->  | H50: =IF(E50=0,"",'- 6 -'!$G50/E50*100) ->  | I50: =IF(E50=0,"",'- 6 -'!$H50/E50*100) -> 
A52: (1) No one language program comprises 90% or more of Regular Instruction enrolment.

Sheet - 21 -
B2: =AEXP_BP -> ANALYSIS OF EXPENSE BY PROGRAM | I2: PAGE 4 OF 16
B3: =OPYEAR -> OPERATING FUND 2024/2025 BUDGET
B5: FUNCTION 200: STUDENT SUPPORT SERVICES
B6: ADMINISTRATION / COORDINATION | E6: CLINICAL AND RELATED SERVICES | H6: SPECIAL PLACEMENT
D8: PER PUPIL | G8: PER PUPIL | I8: %
A9: DIVISION / DISTRICT | B9: AMOUNT | C9: % | E9: AMOUNT | F9: % | H9: AMOUNT
A11: BEAUTIFUL PLAINS | B11: 207743 | C11: =B11/'- 3 -'!$D11*100 -> 0.7281332806 | D11: =B11/'- 7 -'!$E11 -> 92.86678587 | E11: 386411 | F11: =E11/'- 3 -'!$D11*100 -> 1.354359517 | G11: =E11/'- 7 -'!$E11 -> 172.7362539 | H11: 295618 | I11: =H11/'- 3 -'!$D11*100 -> 1.036132645
A12: BORDER LAND | B12: 211042 | C12: =B12/'- 3 -'!$D12*100 -> 0.527314845 | D12: =B12/'- 7 -'!$E12 -> 103.7316294 | E12: 869867 | F12: =E12/'- 3 -'!$D12*100 -> 2.173471547 | G12: =E12/'- 7 -'!$E12 -> 427.5581224 | H12: 0 | I12: =H12/'- 3 -'!$D12*100 -> 0
A13: BRANDON | B13: 228930 | C13: =B13/'- 3 -'!$D13*100 -> 0.1729798886 | D13: =B13/'- 7 -'!$E13 -> 24.19850959 | E13: 3717090 | F13: =E13/'- 3 -'!$D13*100 -> 2.808639383 | G13: =E13/'- 7 -'!$E13 -> 392.9062946 | H13: 681460 | I13: =H13/'- 3 -'!$D13*100 -> 0.5149123088
A14: DSFM | B14: 561057 | C14: =B14/'- 3 -'!$D14*100 -> 0.4732359619 | D14: =B14/'- 7 -'!$E14 -> 90.82972048 | E14: 1792809 | F14: =E14/'- 3 -'!$D14*100 -> 1.512184487 | G14: =E14/'- 7 -'!$E14 -> 290.2384969 | H14: 1095369 | I14: =H14/'- 3 -'!$D14*100 -> 0.9239132608
A15: EVERGREEN | B15: 135346 | C15: =B15/'- 3 -'!$D15*100 -> 0.5451470849 | D15: =B15/'- 7 -'!$E15 -> 96.95272206 | E15: 493877 | F15: =E15/'- 3 -'!$D15*100 -> 1.989239481 | G15: =E15/'- 7 -'!$E15 -> 353.780086 | H15: 30000 | I15: =H15/'- 3 -'!$D15*100 -> 0.1208341033
A16: FLIN FLON | B16: 161351 | C16: =B16/'- 3 -'!$D16*100 -> 0.889832621 | D16: =B16/'- 7 -'!$E16 -> 202.4479297 | E16: 443036 | F16: =E16/'- 3 -'!$D16*100 -> 2.44329372 | G16: =E16/'- 7 -'!$E16 -> 555.8795483 | H16: 247208 | I16: =H16/'- 3 -'!$D16*100 -> 1.363324321
A17: FORT LA BOSSE | B17: 149420 | C17: =B17/'- 3 -'!$D17*100 -> 0.655318255 | D17: =B17/'- 7 -'!$E17 -> 95.84348942 | E17: 399890 | F17: =E17/'- 3 -'!$D17*100 -> 1.753816203 | G17: =E17/'- 7 -'!$E17 -> 256.5041693 | H17: 0 | I17: =H17/'- 3 -'!$D17*100 -> 0
A18: FRONTIER | B18: 347758 | C18: =B18/'- 3 -'!$D18*100 -> 0.1969791062 | D18: =B18/'- 7 -'!$E18 -> 53.48477392 | E18: 2125036 | F18: =E18/'- 3 -'!$D18*100 -> 1.203675233 | G18: =E18/'- 7 -'!$E18 -> 326.8280529 | H18: 0 | I18: =H18/'- 3 -'!$D18*100 -> 0
A19: GARDEN VALLEY | B19: 159740 | C19: =B19/'- 3 -'!$D19*100 -> 0.2715943108 | D19: =B19/'- 7 -'!$E19 -> 37.59472817 | E19: 1363380 | F19: =E19/'- 3 -'!$D19*100 -> 2.318055912 | G19: =E19/'- 7 -'!$E19 -> 320.8707931 | H19: 1435615 | I19: =H19/'- 3 -'!$D19*100 -> 2.440871832
A20: HANOVER | B20: 673400 | C20: =B20/'- 3 -'!$D20*100 -> 0.5822887042 | D20: =B20/'- 7 -'!$E20 -> 79.04683648 | E20: 3184400 | F20: =E20/'- 3 -'!$D20*100 -> 2.753549376 | G20: =E20/'- 7 -'!$E20 -> 373.7997418 | H20: 861400 | I20: =H20/'- 3 -'!$D20*100 -> 0.7448522272
A21: INTERLAKE | B21: 193033 | C21: =B21/'- 3 -'!$D21*100 -> 0.433072426 | D21: =B21/'- 7 -'!$E21 -> 67.44689029 | E21: 989779 | F21: =E21/'- 3 -'!$D21*100 -> 2.220584008 | G21: =E21/'- 7 -'!$E21 -> 345.834731 | H21: 290988 | I21: =H21/'- 3 -'!$D21*100 -> 0.6528359353
A22: KELSEY | B22: 150492 | C22: =B22/'- 3 -'!$D22*100 -> 0.6235828275 | D22: =B22/'- 7 -'!$E22 -> 105.0921788 | E22: 100200 | F22: =E22/'- 3 -'!$D22*100 -> 0.4151915007 | G22: =E22/'- 7 -'!$E22 -> 69.97206704 | H22: 1385049 | I22: =H22/'- 3 -'!$D22*100 -> 5.739127473
A23: LAKESHORE | B23: 174750 | C23: =B23/'- 3 -'!$D23*100 -> 0.9590839686 | D23: =B23/'- 7 -'!$E23 -> 179.2307692 | E23: 331000 | F23: =E23/'- 3 -'!$D23*100 -> 1.816634012 | G23: =E23/'- 7 -'!$E23 -> 339.4871795 | H23: 0 | I23: =H23/'- 3 -'!$D23*100 -> 0
A24: LORD SELKIRK | B24: 350015 | C24: =B24/'- 3 -'!$D24*100 -> 0.5062892973 | D24: =B24/'- 7 -'!$E24 -> 92.91611362 | E24: 2576408 | F24: =E24/'- 3 -'!$D24*100 -> 3.7267197 | G24: =E24/'- 7 -'!$E24 -> 683.9415981 | H24: 469965 | I24: =H24/'- 3 -'!$D24*100 -> 0.6797944363
A25: LOUIS RIEL | B25: 1026882 | C25: =B25/'- 3 -'!$D25*100 -> 0.4218186244 | D25: =B25/'- 7 -'!$E25 -> 60.37996119 | E25: 5146038 | F25: =E25/'- 3 -'!$D25*100 -> 2.113869627 | G25: =E25/'- 7 -'!$E25 -> 302.5835244 | H25: 11232437 | I25: =H25/'- 3 -'!$D25*100 -> 4.614017116
A26: MOUNTAIN VIEW | B26: 156366 | C26: =B26/'- 3 -'!$D26*100 -> 0.3139247004 | D26: =B26/'- 7 -'!$E26 -> 50.2477586 | E26: 757089 | F26: =E26/'- 3 -'!$D26*100 -> 1.519952787 | G26: =E26/'- 7 -'!$E26 -> 243.2883447 | H26: 5000 | I26: =H26/'- 3 -'!$D26*100 -> 0.0100381381
A27: MYSTERY LAKE | B27: 258821 | C27: =B27/'- 3 -'!$D27*100 -> 0.5158131946 | D27: =B27/'- 7 -'!$E27 -> 91.76585297 | E27: 513139 | F27: =E27/'- 3 -'!$D27*100 -> 1.022652207 | G27: =E27/'- 7 -'!$E27 -> 181.9351522 | H27: 3096423 | I27: =H27/'- 3 -'!$D27*100 -> 6.17096696
A28: PARK WEST | B28: 149793 | C28: =B28/'- 3 -'!$D28*100 -> 0.4319431525 | D28: =B28/'- 7 -'!$E28 -> 68.33622263 | E28: 561182 | F28: =E28/'- 3 -'!$D28*100 -> 1.618224631 | G28: =E28/'- 7 -'!$E28 -> 256.0136861 | H28: 0 | I28: =H28/'- 3 -'!$D28*100 -> 0
A29: PEMBINA TRAILS | B29: 680150 | C29: =B29/'- 3 -'!$D29*100 -> 0.3079354785 | D29: =B29/'- 7 -'!$E29 -> 41.06690013 | E29: 4184151 | F29: =E29/'- 3 -'!$D29*100 -> 1.894359392 | G29: =E29/'- 7 -'!$E29 -> 252.6356116 | H29: 739000 | I29: =H29/'- 3 -'!$D29*100 -> 0.3345796054
A30: PINE CREEK | B30: 203788 | C30: =B30/'- 3 -'!$D30*100 -> 1.038290993 | D30: =B30/'- 7 -'!$E30 -> 189.8351188 | E30: 599631 | F30: =E30/'- 3 -'!$D30*100 -> 3.055093853 | G30: =E30/'- 7 -'!$E30 -> 558.575687 | H30: 0 | I30: =H30/'- 3 -'!$D30*100 -> 0
A31: PORTAGE LA PRAIRIE | B31: 190170 | C31: =B31/'- 3 -'!$D31*100 -> 0.3823251007 | D31: =B31/'- 7 -'!$E31 -> 56.26331361 | E31: 1409129 | F31: =E31/'- 3 -'!$D31*100 -> 2.832967276 | G31: =E31/'- 7 -'!$E31 -> 416.902071 | H31: 803565 | I31: =H31/'- 3 -'!$D31*100 -> 1.615518061
A32: PRAIRIE ROSE | B32: 166495 | C32: =B32/'- 3 -'!$D32*100 -> 0.4519004314 | D32: =B32/'- 7 -'!$E32 -> 71.95116681 | E32: 827275 | F32: =E32/'- 3 -'!$D32*100 -> 2.245388326 | G32: =E32/'- 7 -'!$E32 -> 357.508643 | H32: 0 | I32: =H32/'- 3 -'!$D32*100 -> 0
A33: PRAIRIE SPIRIT | B33: 228105 | C33: =B33/'- 3 -'!$D33*100 -> 0.6913815975 | D33: =B33/'- 7 -'!$E33 -> 106.0953488 | E33: 577290 | F33: =E33/'- 3 -'!$D33*100 -> 1.749754203 | G33: =E33/'- 7 -'!$E33 -> 268.5069767 | H33: 0 | I33: =H33/'- 3 -'!$D33*100 -> 0
A34: RED RIVER VALLEY | B34: 267894 | C34: =B34/'- 3 -'!$D34*100 -> 0.707351007 | D34: =B34/'- 7 -'!$E34 -> 114.2892491 | E34: 692475 | F34: =E34/'- 3 -'!$D34*100 -> 1.828420527 | G34: =E34/'- 7 -'!$E34 -> 295.4244881 | H34: 649382 | I34: =H34/'- 3 -'!$D34*100 -> 1.714637176
A35: RIVER EAST TRANSCONA | B35: 1103469 | C35: =B35/'- 3 -'!$D35*100 -> 0.4394372334 | D35: =B35/'- 7 -'!$E35 -> 60.77375117 | E35: 4930637 | F35: =E35/'- 3 -'!$D35*100 -> 1.963539966 | G35: =E35/'- 7 -'!$E35 -> 271.5557085 | H35: 3614600 | I35: =H35/'- 3 -'!$D35*100 -> 1.439451243
A36: ROLLING RIVER | B36: 177325 | C36: =B36/'- 3 -'!$D36*100 -> 0.6347709124 | D36: =B36/'- 7 -'!$E36 -> 101.1840228 | E36: 633270 | F36: =E36/'- 3 -'!$D36*100 -> 2.266918797 | G36: =E36/'- 7 -'!$E36 -> 361.3523538 | H36: 7800 | I36: =H36/'- 3 -'!$D36*100 -> 0.02792168683
A37: SEINE RIVER | B37: 386750 | C37: =B37/'- 3 -'!$D37*100 -> 0.5949180935 | D37: =B37/'- 7 -'!$E37 -> 87.50989931 | E37: 1248850 | F37: =E37/'- 3 -'!$D37*100 -> 1.921043209 | G37: =E37/'- 7 -'!$E37 -> 282.5772146 | H37: 0 | I37: =H37/'- 3 -'!$D37*100 -> 0
A38: SEVEN OAKS | B38: 568590 | C38: =B38/'- 3 -'!$D38*100 -> 0.3158556626 | D38: =B38/'- 7 -'!$E38 -> 48.07355739 | E38: 2138280 | F38: =E38/'- 3 -'!$D38*100 -> 1.187829273 | G38: =E38/'- 7 -'!$E38 -> 180.7888396 | H38: 490910 | I38: =H38/'- 3 -'!$D38*100 -> 0.2727038874
A39: SOUTHWEST HORIZON | B39: 247950 | C39: =B39/'- 3 -'!$D39*100 -> 0.9433495663 | D39: =B39/'- 7 -'!$E39 -> 174.0610741 | E39: 344900 | F39: =E39/'- 3 -'!$D39*100 -> 1.312205144 | G39: =E39/'- 7 -'!$E39 -> 242.1200421 | H39: 0 | I39: =H39/'- 3 -'!$D39*100 -> 0
A40: ST. JAMES-ASSINIBOIA | B40: 254660 | C40: =B40/'- 3 -'!$D40*100 -> 0.1961656162 | D40: =B40/'- 7 -'!$E40 -> 31.60929884 | E40: 3626190 | F40: =E40/'- 3 -'!$D40*100 -> 2.793268655 | G40: =E40/'- 7 -'!$E40 -> 450.0955131 | H40: 390750 | I40: =H40/'- 3 -'!$D40*100 -> 0.3009962873
A41: SUNRISE | B41: 297763 | C41: =B41/'- 3 -'!$D41*100 -> 0.3709263169 | D41: =B41/'- 7 -'!$E41 -> 64.54167118 | E41: 2272653 | F41: =E41/'- 3 -'!$D41*100 -> 2.831066341 | G41: =E41/'- 7 -'!$E41 -> 492.6092988 | H41: 789275 | I41: =H41/'- 3 -'!$D41*100 -> 0.9832076811
A42: SWAN VALLEY | B42: 205261 | C42: =B42/'- 3 -'!$D42*100 -> 0.7476052419 | D42: =B42/'- 7 -'!$E42 -> 148.0959596 | E42: 485882 | F42: =E42/'- 3 -'!$D42*100 -> 1.769688008 | G42: =E42/'- 7 -'!$E42 -> 350.5642136 | H42: 0 | I42: =H42/'- 3 -'!$D42*100 -> 0
A43: TURTLE MOUNTAIN | B43: 113604 | C43: =B43/'- 3 -'!$D43*100 -> 0.7077754684 | D43: =B43/'- 7 -'!$E43 -> 107.8860399 | E43: 452666 | F43: =E43/'- 3 -'!$D43*100 -> 2.820199026 | G43: =E43/'- 7 -'!$E43 -> 429.8822412 | H43: 0 | I43: =H43/'- 3 -'!$D43*100 -> 0
A44: TURTLE RIVER | B44: 101539 | C44: =B44/'- 3 -'!$D44*100 -> 0.7961510259 | D44: =B44/'- 7 -'!$E44 -> 167.9718776 | E44: 203077 | F44: =E44/'- 3 -'!$D44*100 -> 1.592294211 | G44: =E44/'- 7 -'!$E44 -> 335.9421009 | H44: 0 | I44: =H44/'- 3 -'!$D44*100 -> 0
A45: WESTERN | B45: 180902 | C45: =B45/'- 3 -'!$D45*100 -> 0.5896146508 | D45: =B45/'- 7 -'!$E45 -> 79.69251101 | E45: 496169 | F45: =E45/'- 3 -'!$D45*100 -> 1.617165712 | G45: =E45/'- 7 -'!$E45 -> 218.576652 | H45: 339479 | I45: =H45/'- 3 -'!$D45*100 -> 1.106465335
A46: WINNIPEG | B46: 810516 | C46: =B46/'- 3 -'!$D46*100 -> 0.1706027124 | D46: =B46/'- 7 -'!$E46 -> 28.52623799 | E46: 15569397 | F46: =E46/'- 3 -'!$D46*100 -> 3.277148581 | G46: =E46/'- 7 -'!$E46 -> 547.9673741 | H46: 36680669 | I46: =H46/'- 3 -'!$D46*100 -> 7.720787283
A48: PROVINCE | B48: =SUM(B11:B46) -> 11480870 | C48: =B48/'- 3 -'!$D48*100 -> 0.3838699014 | D48: =B48/'- 7 -'!$E48 -> 60.77770724 | E48: =SUM(E11:E46) -> 66442553 | F48: =E48/'- 3 -'!$D48*100 -> 2.221547345 | G48: =E48/'- 7 -'!$E48 -> 351.7351938 | H48: =SUM(H11:H46) -> 65631962 | I48: =H48/'- 3 -'!$D48*100 -> 2.19444474
A50: WHITESHELL | B50: 31888 | C50: =B50/'- 3 -'!$D50*100 -> 0.7556541356 | D50: =B50/'- 7 -'!$E50 -> 184.857971 | E50: 78400 | F50: =E50/'- 3 -'!$D50*100 -> 1.857855125 | G50: =E50/'- 7 -'!$E50 -> 454.4927536 | H50: 0 | I50: =H50/'- 3 -'!$D50*100 -> 0

Sheet - 22 -
B2: =AEXP_BP -> ANALYSIS OF EXPENSE BY PROGRAM | J2: PAGE 5 OF 16
B3: =OPYEAR -> OPERATING FUND 2024/2025 BUDGET
B5: FUNCTION 200: STUDENT SUPPORT SERVICES (CONT'D)
B6: REGULAR PLACEMENT (1) | E6: OTHER RESOURCE SERVICES | H6: COUNSELLING AND GUIDANCE
D8: PER PUPIL | G8: PER PUPIL | J8: PER PUPIL
A9: DIVISION / DISTRICT | B9: AMOUNT | C9: % | E9: AMOUNT | F9: % | H9: AMOUNT | I9: %
A11: BEAUTIFUL PLAINS | B11: 1255383 | C11: =B11/'- 3 -'!$D11*100 -> 4.400081554 | D11: =B11/'- 7 -'!$E11 -> 561.1904336 | E11: 1061126 | F11: =E11/'- 3 -'!$D11*100 -> 3.719216318 | G11: =E11/'- 7 -'!$E11 -> 474.3522575 | H11: 445626 | I11: =H11/'- 3 -'!$D11*100 -> 1.5619064 | J11: =H11/'- 7 -'!$E11 -> 199.2069736
A12: BORDER LAND | B12: 2902994 | C12: =B12/'- 3 -'!$D12*100 -> 7.253493765 | D12: =B12/'- 7 -'!$E12 -> 1426.883264 | E12: 1608878 | F12: =E12/'- 3 -'!$D12*100 -> 4.019983004 | G12: =E12/'- 7 -'!$E12 -> 790.797739 | H12: 700746 | I12: =H12/'- 3 -'!$D12*100 -> 1.750901566 | J12: =H12/'- 7 -'!$E12 -> 344.4315557
A13: BRANDON | B13: 12675490 | C13: =B13/'- 3 -'!$D13*100 -> 9.577621315 | D13: =B13/'- 7 -'!$E13 -> 1339.83299 | E13: 5322880 | F13: =E13/'- 3 -'!$D13*100 -> 4.021976977 | G13: =E13/'- 7 -'!$E13 -> 562.6425665 | H13: 3796820 | I13: =H13/'- 3 -'!$D13*100 -> 2.868883504 | J13: =H13/'- 7 -'!$E13 -> 401.3339675
A14: DSFM | B14: 6590147 | C14: =B14/'- 3 -'!$D14*100 -> 5.558605551 | D14: =B14/'- 7 -'!$E14 -> 1066.881279 | E14: 3917633 | F14: =E14/'- 3 -'!$D14*100 -> 3.304414384 | G14: =E14/'- 7 -'!$E14 -> 634.2270221 | H14: 2010814 | I14: =H14/'- 3 -'!$D14*100 -> 1.696065636 | J14: =H14/'- 7 -'!$E14 -> 325.5314051
A15: EVERGREEN | B15: 1769283 | C15: =B15/'- 3 -'!$D15*100 -> 7.126324161 | D15: =B15/'- 7 -'!$E15 -> 1267.394699 | E15: 1097111 | F15: =E15/'- 3 -'!$D15*100 -> 4.418947464 | G15: =E15/'- 7 -'!$E15 -> 785.8961318 | H15: 458545 | I15: =H15/'- 3 -'!$D15*100 -> 1.84692913 | J15: =H15/'- 7 -'!$E15 -> 328.4706304
A16: FLIN FLON | B16: 1522481 | C16: =B16/'- 3 -'!$D16*100 -> 8.396311511 | D16: =B16/'- 7 -'!$E16 -> 1910.264743 | E16: 877953 | F16: =E16/'- 3 -'!$D16*100 -> 4.841812069 | G16: =E16/'- 7 -'!$E16 -> 1101.572146 | H16: 312754 | I16: =H16/'- 3 -'!$D16*100 -> 1.724803141 | J16: =H16/'- 7 -'!$E16 -> 392.4140527
A17: FORT LA BOSSE | B17: 1027820 | C17: =B17/'- 3 -'!$D17*100 -> 4.507758057 | D17: =B17/'- 7 -'!$E17 -> 659.2815908 | E17: 988650 | F17: =E17/'- 3 -'!$D17*100 -> 4.335968363 | G17: =E17/'- 7 -'!$E17 -> 634.1565106 | H17: 202630 | I17: =H17/'- 3 -'!$D17*100 -> 0.8886838309 | J17: =H17/'- 7 -'!$E17 -> 129.9743425
A18: FRONTIER | B18: 14632421 | C18: =B18/'- 3 -'!$D18*100 -> 8.288180889 | D18: =B18/'- 7 -'!$E18 -> 2250.449246 | E18: 7586227 | F18: =E18/'- 3 -'!$D18*100 -> 4.297034759 | G18: =E18/'- 7 -'!$E18 -> 1166.752845 | H18: 6142071 | I18: =H18/'- 3 -'!$D18*100 -> 3.479027529 | J18: =H18/'- 7 -'!$E18 -> 944.6433405
A19: GARDEN VALLEY | B19: 4349651 | C19: =B19/'- 3 -'!$D19*100 -> 7.395395427 | D19: =B19/'- 7 -'!$E19 -> 1023.688162 | E19: 2319253 | F19: =E19/'- 3 -'!$D19*100 -> 3.943257294 | G19: =E19/'- 7 -'!$E19 -> 545.83502 | H19: 1291001 | I19: =H19/'- 3 -'!$D19*100 -> 2.19499516 | J19: =H19/'- 7 -'!$E19 -> 303.8364321
A20: HANOVER | B20: 6870600 | C20: =B20/'- 3 -'!$D20*100 -> 5.941005006 | D20: =B20/'- 7 -'!$E20 -> 806.5031107 | E20: 9258000 | F20: =E20/'- 3 -'!$D20*100 -> 8.005388808 | G20: =E20/'- 7 -'!$E20 -> 1086.747271 | H20: 2769900 | I20: =H20/'- 3 -'!$D20*100 -> 2.395131395 | J20: =H20/'- 7 -'!$E20 -> 325.1437962
A21: INTERLAKE | B21: 3521329 | C21: =B21/'- 3 -'!$D21*100 -> 7.90015434 | D21: =B21/'- 7 -'!$E21 -> 1230.373515 | E21: 2490168 | F21: =E21/'- 3 -'!$D21*100 -> 5.586729196 | G21: =E21/'- 7 -'!$E21 -> 870.0796646 | H21: 1441803 | I21: =H21/'- 3 -'!$D21*100 -> 3.23470662 | J21: =H21/'- 7 -'!$E21 -> 503.7746331
A22: KELSEY | B22: 1169248 | C22: =B22/'- 3 -'!$D22*100 -> 4.844928461 | D22: =B22/'- 7 -'!$E22 -> 816.5139665 | E22: 1566141 | F22: =E22/'- 3 -'!$D22*100 -> 6.48950531 | G22: =E22/'- 7 -'!$E22 -> 1093.673883 | H22: 688655 | I22: =H22/'- 3 -'!$D22*100 -> 2.853529969 | J22: =H22/'- 7 -'!$E22 -> 480.9043296
A23: LAKESHORE | B23: 1663000 | C23: =B23/'- 3 -'!$D23*100 -> 9.127076623 | D23: =B23/'- 7 -'!$E23 -> 1705.641026 | E23: 631000 | F23: =E23/'- 3 -'!$D23*100 -> 3.463130096 | G23: =E23/'- 7 -'!$E23 -> 647.1794872 | H23: 299000 | I23: =H23/'- 3 -'!$D23*100 -> 1.641007763 | J23: =H23/'- 7 -'!$E23 -> 306.6666667
A24: LORD SELKIRK | B24: 3626013 | C24: =B24/'- 3 -'!$D24*100 -> 5.244951141 | D24: =B24/'- 7 -'!$E24 -> 962.5731351 | E24: 2427795 | F24: =E24/'- 3 -'!$D24*100 -> 3.511754138 | G24: =E24/'- 7 -'!$E24 -> 644.4903106 | H24: 1877537 | I24: =H24/'- 3 -'!$D24*100 -> 2.715817575 | J24: =H24/'- 7 -'!$E24 -> 498.4170427
A25: LOUIS RIEL | B25: 19113057 | C25: =B25/'- 3 -'!$D25*100 -> 7.851187783 | D25: =B25/'- 7 -'!$E25 -> 1123.834715 | E25: 12563087 | F25: =E25/'- 3 -'!$D25*100 -> 5.160616387 | G25: =E25/'- 7 -'!$E25 -> 738.7009467 | H25: 4643426 | I25: =H25/'- 3 -'!$D25*100 -> 1.90740861 | J25: =H25/'- 7 -'!$E25 -> 273.0302816
A26: MOUNTAIN VIEW | B26: 2793054 | C26: =B26/'- 3 -'!$D26*100 -> 5.607412354 | D26: =B26/'- 7 -'!$E26 -> 897.5397667 | E26: 2468124 | F26: =E26/'- 3 -'!$D26*100 -> 4.955073911 | G26: =E26/'- 7 -'!$E26 -> 793.1244577 | H26: 1331708 | I26: =H26/'- 3 -'!$D26*100 -> 2.673573762 | J26: =H26/'- 7 -'!$E26 -> 427.9404865
A27: MYSTERY LAKE | B27: 1921405 | C27: =B27/'- 3 -'!$D27*100 -> 3.829233529 | D27: =B27/'- 7 -'!$E27 -> 681.2405822 | E27: 2849590 | F27: =E27/'- 3 -'!$D27*100 -> 5.679045059 | G27: =E27/'- 7 -'!$E27 -> 1010.331685 | H27: 1376759 | I27: =H27/'- 3 -'!$D27*100 -> 2.743789948 | J27: =H27/'- 7 -'!$E27 -> 488.1345175
A28: PARK WEST | B28: 1562588 | C28: =B28/'- 3 -'!$D28*100 -> 4.505879358 | D28: =B28/'- 7 -'!$E28 -> 712.8594891 | E28: 1873001 | F28: =E28/'- 3 -'!$D28*100 -> 5.400986405 | G28: =E28/'- 7 -'!$E28 -> 854.4712591 | H28: 686850 | I28: =H28/'- 3 -'!$D28*100 -> 1.980600924 | J28: =H28/'- 7 -'!$E28 -> 313.3439781
A29: PEMBINA TRAILS | B29: 18183714 | C29: =B29/'- 3 -'!$D29*100 -> 8.232611441 | D29: =B29/'- 7 -'!$E29 -> 1097.917764 | E29: 16509773 | F29: =E29/'- 3 -'!$D29*100 -> 7.474740643 | G29: =E29/'- 7 -'!$E29 -> 996.8465765 | H29: 4627338 | I29: =H29/'- 3 -'!$D29*100 -> 2.09501072 | J29: =H29/'- 7 -'!$E29 -> 279.3948798
A30: PINE CREEK | B30: 660345 | C30: =B30/'- 3 -'!$D30*100 -> 3.364429042 | D30: =B30/'- 7 -'!$E30 -> 615.1327434 | E30: 941316 | F30: =E30/'- 3 -'!$D30*100 -> 4.795964061 | G30: =E30/'- 7 -'!$E30 -> 876.8663251 | H30: 65345 | I30: =H30/'- 3 -'!$D30*100 -> 0.3329299317 | J30: =H30/'- 7 -'!$E30 -> 60.87098277
A31: PORTAGE LA PRAIRIE | B31: 3172640 | C31: =B31/'- 3 -'!$D31*100 -> 6.378397789 | D31: =B31/'- 7 -'!$E31 -> 938.6508876 | E31: 2196855 | F31: =E31/'- 3 -'!$D31*100 -> 4.416642 | G31: =E31/'- 7 -'!$E31 -> 649.9571006 | H31: 1546685 | I31: =H31/'- 3 -'!$D31*100 -> 3.109515162 | J31: =H31/'- 7 -'!$E31 -> 457.5991124
A32: PRAIRIE ROSE | B32: 1964999 | C32: =B32/'- 3 -'!$D32*100 -> 5.333396773 | D32: =B32/'- 7 -'!$E32 -> 849.1784788 | E32: 2257465 | F32: =E32/'- 3 -'!$D32*100 -> 6.127207468 | G32: =E32/'- 7 -'!$E32 -> 975.56828 | H32: 1066826 | I32: =H32/'- 3 -'!$D32*100 -> 2.895577222 | J32: =H32/'- 7 -'!$E32 -> 461.031115
A33: PRAIRIE SPIRIT | B33: 1470405 | C33: =B33/'- 3 -'!$D33*100 -> 4.456767532 | D33: =B33/'- 7 -'!$E33 -> 683.9093023 | E33: 2133665 | F33: =E33/'- 3 -'!$D33*100 -> 6.467095049 | G33: =E33/'- 7 -'!$E33 -> 992.4023256 | H33: 635065 | I33: =H33/'- 3 -'!$D33*100 -> 1.924869048 | J33: =H33/'- 7 -'!$E33 -> 295.3790698
A34: RED RIVER VALLEY | B34: 2057893 | C34: =B34/'- 3 -'!$D34*100 -> 5.433689018 | D34: =B34/'- 7 -'!$E34 -> 877.9406997 | E34: 1752396 | F34: =E34/'- 3 -'!$D34*100 -> 4.627050532 | G34: =E34/'- 7 -'!$E34 -> 747.609215 | H34: 1193554 | I34: =H34/'- 3 -'!$D34*100 -> 3.151476419 | J34: =H34/'- 7 -'!$E34 -> 509.1953925
A35: RIVER EAST TRANSCONA | B35: 22052865 | C35: =B35/'- 3 -'!$D35*100 -> 8.782167858 | D35: =B35/'- 7 -'!$E35 -> 1214.565457 | E35: 15147697 | F35: =E35/'- 3 -'!$D35*100 -> 6.03230545 | G35: =E35/'- 7 -'!$E35 -> 834.2621028 | H35: 3674000 | I35: =H35/'- 3 -'!$D35*100 -> 1.463106255 | J35: =H35/'- 7 -'!$E35 -> 202.3462026
A36: ROLLING RIVER | B36: 841490 | C36: =B36/'- 3 -'!$D36*100 -> 3.012284647 | D36: =B36/'- 7 -'!$E36 -> 480.1654779 | E36: 1692420 | F36: =E36/'- 3 -'!$D36*100 -> 6.058361695 | G36: =E36/'- 7 -'!$E36 -> 965.7175464 | H36: 552700 | I36: =H36/'- 3 -'!$D36*100 -> 1.978502091 | J36: =H36/'- 7 -'!$E36 -> 315.3780314
A37: SEINE RIVER | B37: 6081838 | C37: =B37/'- 3 -'!$D37*100 -> 9.355385825 | D37: =B37/'- 7 -'!$E37 -> 1376.13712 | E37: 4953362 | F37: =E37/'- 3 -'!$D37*100 -> 7.619507893 | G37: =E37/'- 7 -'!$E37 -> 1120.796923 | H37: 1460700 | I37: =H37/'- 3 -'!$D37*100 -> 2.24692142 | J37: =H37/'- 7 -'!$E37 -> 330.5125014
A38: SEVEN OAKS | B38: 18243520 | C38: =B38/'- 3 -'!$D38*100 -> 10.13440106 | D38: =B38/'- 7 -'!$E38 -> 1542.466286 | E38: 6199170 | F38: =E38/'- 3 -'!$D38*100 -> 3.443681648 | G38: =E38/'- 7 -'!$E38 -> 524.131896 | H38: 3907038 | I38: =H38/'- 3 -'!$D38*100 -> 2.170386529 | J38: =H38/'- 7 -'!$E38 -> 330.3350666
A39: SOUTHWEST HORIZON | B39: 2125450 | C39: =B39/'- 3 -'!$D39*100 -> 8.086478466 | D39: =B39/'- 7 -'!$E39 -> 1492.067392 | E39: 809500 | F39: =E39/'- 3 -'!$D39*100 -> 3.079820423 | G39: =E39/'- 7 -'!$E39 -> 568.2695683 | H39: 759750 | I39: =H39/'- 3 -'!$D39*100 -> 2.890541774 | J39: =H39/'- 7 -'!$E39 -> 533.3450333
A40: ST. JAMES-ASSINIBOIA | B40: 16369525 | C40: =B40/'- 3 -'!$D40*100 -> 12.60951056 | D40: =B40/'- 7 -'!$E40 -> 2031.843272 | E40: 6196474 | F40: =E40/'- 3 -'!$D40*100 -> 4.773168697 | G40: =E40/'- 7 -'!$E40 -> 769.1282432 | H40: 3529890 | I40: =H40/'- 3 -'!$D40*100 -> 2.71908838 | J40: =H40/'- 7 -'!$E40 -> 438.1424169
A41: SUNRISE | B41: 6308613 | C41: =B41/'- 3 -'!$D41*100 -> 7.858701667 | D41: =B41/'- 7 -'!$E41 -> 1367.424515 | E41: 4557783 | F41: =E41/'- 3 -'!$D41*100 -> 5.677675404 | G41: =E41/'- 7 -'!$E41 -> 987.9230519 | H41: 1120206 | I41: =H41/'- 3 -'!$D41*100 -> 1.395451704 | J41: =H41/'- 7 -'!$E41 -> 242.8104476
A42: SWAN VALLEY | B42: 3947944 | C42: =B42/'- 3 -'!$D42*100 -> 14.37927141 | D42: =B42/'- 7 -'!$E42 -> 2848.444444 | E42: 1132355 | F42: =E42/'- 3 -'!$D42*100 -> 4.124283394 | G42: =E42/'- 7 -'!$E42 -> 816.9949495 | H42: 729527 | I42: =H42/'- 3 -'!$D42*100 -> 2.657096133 | J42: =H42/'- 7 -'!$E42 -> 526.3542569
A43: TURTLE MOUNTAIN | B43: 231691 | C43: =B43/'- 3 -'!$D43*100 -> 1.443480917 | D43: =B43/'- 7 -'!$E43 -> 220.0294397 | E43: 1850367 | F43: =E43/'- 3 -'!$D43*100 -> 11.52815368 | G43: =E43/'- 7 -'!$E43 -> 1757.233618 | H43: 231107 | I43: =H43/'- 3 -'!$D43*100 -> 1.439842481 | J43: =H43/'- 7 -'!$E43 -> 219.4748338
A44: TURTLE RIVER | B44: 1045603 | C44: =B44/'- 3 -'!$D44*100 -> 8.19840555 | D44: =B44/'- 7 -'!$E44 -> 1729.698925 | E44: 455562 | F44: =E44/'- 3 -'!$D44*100 -> 3.571988631 | G44: =E44/'- 7 -'!$E44 -> 753.617866 | H44: 82837 | I44: =H44/'- 3 -'!$D44*100 -> 0.6495116411 | J44: =H44/'- 7 -'!$E44 -> 137.0339123
A45: WESTERN | B45: 1353478 | C45: =B45/'- 3 -'!$D45*100 -> 4.411396548 | D45: =B45/'- 7 -'!$E45 -> 596.245815 | E45: 1781870 | F45: =E45/'- 3 -'!$D45*100 -> 5.807656399 | G45: =E45/'- 7 -'!$E45 -> 784.9647577 | H45: 1239236 | I45: =H45/'- 3 -'!$D45*100 -> 4.039047116 | J45: =H45/'- 7 -'!$E45 -> 545.9189427
A46: WINNIPEG | B46: 25228986 | C46: =B46/'- 3 -'!$D46*100 -> 5.310362095 | D46: =B46/'- 7 -'!$E46 -> 887.9381269 | E46: 28947666 | F46: =E46/'- 3 -'!$D46*100 -> 6.0930942 | G46: =E46/'- 7 -'!$E46 -> 1018.817654 | H46: 8881648 | I46: =H46/'- 3 -'!$D46*100 -> 1.869467401 | J46: =H46/'- 7 -'!$E46 -> 312.5909971
A48: PROVINCE | B48: =SUM(B11:B46) -> 220306963 | C48: =B48/'- 3 -'!$D48*100 -> 7.36609788 | D48: =B48/'- 7 -'!$E48 -> 1166.266328 | E48: =SUM(E11:E46) -> 160422313 | F48: =E48/'- 3 -'!$D48*100 -> 5.363818027 | G48: =E48/'- 7 -'!$E48 -> 849.2475199 | H48: =SUM(H11:H46) -> 65780097 | I48: =H48/'- 3 -'!$D48*100 -> 2.199397724 | J48: =H48/'- 7 -'!$E48 -> 348.2282682
A50: WHITESHELL | B50: 286528 | C50: =B50/'- 3 -'!$D50*100 -> 6.789891752 | D50: =B50/'- 7 -'!$E50 -> 1661.031884 | E50: 20000 | F50: =E50/'- 3 -'!$D50*100 -> 0.473942634 | G50: =E50/'- 7 -'!$E50 -> 115.942029 | H50: 124326 | I50: =H50/'- 3 -'!$D50*100 -> 2.946169596 | J50: =H50/'- 7 -'!$E50 -> 720.7304348
A52: (1) Expenses shown are extra costs associated with special needs students in regular classes, not the total cost of educating those students.

Sheet - 23 -
B2: =AEXP_BP -> ANALYSIS OF EXPENSE BY PROGRAM | F2: PAGE 6 OF 16
B3: =OPYEAR -> OPERATING FUND 2024/2025 BUDGET
B5: FUNCTION 300: ADULT LEARNING CENTRES
B6: ADMINISTRATION AND OTHER | D6: INSTRUCTION
A9: DIVISION / DISTRICT | B9: AMOUNT | C9: % | D9: AMOUNT | E9: %
A11: BEAUTIFUL PLAINS | B11: 0 | C11: =B11/'- 3 -'!$D11*100 -> 0 | D11: 0 | E11: =D11/'- 3 -'!$D11*100 -> 0
A12: BORDER LAND | B12: 96304 | C12: =B12/'- 3 -'!$D12*100 -> 0.2406275947 | D12: 263696 | E12: =D12/'- 3 -'!$D12*100 -> 0.6588774527
A13: BRANDON | B13: 0 | C13: =B13/'- 3 -'!$D13*100 -> 0 | D13: 0 | E13: =D13/'- 3 -'!$D13*100 -> 0
A14: DSFM | B14: 98982 | C14: =B14/'- 3 -'!$D14*100 -> 0.08348856173 | D14: 161766 | E14: =D14/'- 3 -'!$D14*100 -> 0.1364451181
A15: EVERGREEN | B15: 0 | C15: =B15/'- 3 -'!$D15*100 -> 0 | D15: 0 | E15: =D15/'- 3 -'!$D15*100 -> 0
A16: FLIN FLON | B16: 18880 | C16: =B16/'- 3 -'!$D16*100 -> 0.1041210769 | D16: 75120 | E16: =D16/'- 3 -'!$D16*100 -> 0.4142783527
A17: FORT LA BOSSE | B17: 0 | C17: =B17/'- 3 -'!$D17*100 -> 0 | D17: 0 | E17: =D17/'- 3 -'!$D17*100 -> 0
A18: FRONTIER | B18: 267324 | C18: =B18/'- 3 -'!$D18*100 -> 0.1514192127 | D18: 2485868 | E18: =D18/'- 3 -'!$D18*100 -> 1.408059791
A19: GARDEN VALLEY | B19: 0 | C19: =B19/'- 3 -'!$D19*100 -> 0 | D19: 0 | E19: =D19/'- 3 -'!$D19*100 -> 0
A20: HANOVER | B20: 0 | C20: =B20/'- 3 -'!$D20*100 -> 0 | D20: 0 | E20: =D20/'- 3 -'!$D20*100 -> 0
A21: INTERLAKE | B21: 0 | C21: =B21/'- 3 -'!$D21*100 -> 0 | D21: 0 | E21: =D21/'- 3 -'!$D21*100 -> 0
A22: KELSEY | B22: 200669 | C22: =B22/'- 3 -'!$D22*100 -> 0.8314976372 | D22: 450231 | E22: =D22/'- 3 -'!$D22*100 -> 1.865589666
A23: LAKESHORE | B23: 65900 | C23: =B23/'- 3 -'!$D23*100 -> 0.3616803063 | D23: 219100 | E23: =D23/'- 3 -'!$D23*100 -> 1.202490973
A24: LORD SELKIRK | B24: 125523 | C24: =B24/'- 3 -'!$D24*100 -> 0.1815663656 | D24: 275754 | E24: =D24/'- 3 -'!$D24*100 -> 0.3988723309
A25: LOUIS RIEL | B25: 0 | C25: =B25/'- 3 -'!$D25*100 -> 0 | D25: 757406 | E25: =D25/'- 3 -'!$D25*100 -> 0.3111243133
A26: MOUNTAIN VIEW | B26: 0 | C26: =B26/'- 3 -'!$D26*100 -> 0 | D26: 0 | E26: =D26/'- 3 -'!$D26*100 -> 0
A27: MYSTERY LAKE | B27: 0 | C27: =B27/'- 3 -'!$D27*100 -> 0 | D27: 0 | E27: =D27/'- 3 -'!$D27*100 -> 0
A28: PARK WEST | B28: 0 | C28: =B28/'- 3 -'!$D28*100 -> 0 | D28: 134634 | E28: =D28/'- 3 -'!$D28*100 -> 0.3882306542
A29: PEMBINA TRAILS | B29: 0 | C29: =B29/'- 3 -'!$D29*100 -> 0 | D29: 0 | E29: =D29/'- 3 -'!$D29*100 -> 0
A30: PINE CREEK | B30: 0 | C30: =B30/'- 3 -'!$D30*100 -> 0 | D30: 0 | E30: =D30/'- 3 -'!$D30*100 -> 0
A31: PORTAGE LA PRAIRIE | B31: 0 | C31: =B31/'- 3 -'!$D31*100 -> 0 | D31: 0 | E31: =D31/'- 3 -'!$D31*100 -> 0
A32: PRAIRIE ROSE | B32: 59314 | C32: =B32/'- 3 -'!$D32*100 -> 0.1609899528 | D32: 236500 | E32: =D32/'- 3 -'!$D32*100 -> 0.6419078772
A33: PRAIRIE SPIRIT | B33: 0 | C33: =B33/'- 3 -'!$D33*100 -> 0 | D33: 0 | E33: =D33/'- 3 -'!$D33*100 -> 0
A34: RED RIVER VALLEY | B34: 0 | C34: =B34/'- 3 -'!$D34*100 -> 0 | D34: 0 | E34: =D34/'- 3 -'!$D34*100 -> 0
A35: RIVER EAST TRANSCONA | B35: 348908 | C35: =B35/'- 3 -'!$D35*100 -> 0.1389465098 | D35: 1388349 | E35: =D35/'- 3 -'!$D35*100 -> 0.5528857119
A36: ROLLING RIVER | B36: 0 | C36: =B36/'- 3 -'!$D36*100 -> 0 | D36: 0 | E36: =D36/'- 3 -'!$D36*100 -> 0
A37: SEINE RIVER | B37: 104864 | C37: =B37/'- 3 -'!$D37*100 -> 0.1613070225 | D37: 217450 | E37: =D37/'- 3 -'!$D37*100 -> 0.3344924097
A38: SEVEN OAKS | B38: 810914 | C38: =B38/'- 3 -'!$D38*100 -> 0.4504683143 | D38: 1690171 | E38: =D38/'- 3 -'!$D38*100 -> 0.9389016359
A39: SOUTHWEST HORIZON | B39: 0 | C39: =B39/'- 3 -'!$D39*100 -> 0 | D39: 0 | E39: =D39/'- 3 -'!$D39*100 -> 0
A40: ST. JAMES-ASSINIBOIA | B40: 0 | C40: =B40/'- 3 -'!$D40*100 -> 0 | D40: 0 | E40: =D40/'- 3 -'!$D40*100 -> 0
A41: SUNRISE | B41: 344792 | C41: =B41/'- 3 -'!$D41*100 -> 0.4295108077 | D41: 685753 | E41: =D41/'- 3 -'!$D41*100 -> 0.8542493008
A42: SWAN VALLEY | B42: 0 | C42: =B42/'- 3 -'!$D42*100 -> 0 | D42: 0 | E42: =D42/'- 3 -'!$D42*100 -> 0
A43: TURTLE MOUNTAIN | B43: 0 | C43: =B43/'- 3 -'!$D43*100 -> 0 | D43: 208540 | E43: =D43/'- 3 -'!$D43*100 -> 1.299245591
A44: TURTLE RIVER | B44: 0 | C44: =B44/'- 3 -'!$D44*100 -> 0 | D44: 0 | E44: =D44/'- 3 -'!$D44*100 -> 0
A45: WESTERN | B45: 207294 | C45: =B45/'- 3 -'!$D45*100 -> 0.6756342076 | D45: 271376 | E45: =D45/'- 3 -'!$D45*100 -> 0.8844969402
A46: WINNIPEG | B46: 93143 | C46: =B46/'- 3 -'!$D46*100 -> 0.01960534825 | D46: 692857 | E46: =D46/'- 3 -'!$D46*100 -> 0.145837076
A48: PROVINCE | B48: =SUM(B11:B46) -> 2842811 | C48: =B48/'- 3 -'!$D48*100 -> 0.09505112228 | D48: =SUM(D11:D46) -> 10214571 | E48: =D48/'- 3 -'!$D48*100 -> 0.3415304208
A50: WHITESHELL | B50: 0 | C50: =B50/'- 3 -'!$D50*100 -> 0 | D50: 0 | E50: =D50/'- 3 -'!$D50*100 -> 0

Sheet - 24 -
B2: =AEXP_BP -> ANALYSIS OF EXPENSE BY PROGRAM | I2: PAGE 7 OF 16
B3: =OPYEAR -> OPERATING FUND 2024/2025 BUDGET
B5: FUNCTION 400: COMMUNITY EDUCATION AND SERVICES
D6: ENGLISH AS AN ADDITIONAL LANGUAGE FOR ADULTS
B7: CONTINUING EDUCATION | F7: COMMUNITY SERVICES & RECREATION | H7: PRE-KINDERGARTEN EDUCATION
A9: DIVISION / DISTRICT | B9: AMOUNT | C9: % | D9: AMOUNT | E9: % | F9: AMOUNT | G9: % | H9: AMOUNT | I9: %
A11: BEAUTIFUL PLAINS | B11: 0 | C11: =B11/'- 3 -'!$D11*100 -> 0 | D11: 0 | E11: =D11/'- 3 -'!$D11*100 -> 0 | F11: 0 | G11: =F11/'- 3 -'!$D11*100 -> 0 | H11: 28560 | I11: =H11/'- 3 -'!$D11*100 -> 0.1001019842
A12: BORDER LAND | B12: 0 | C12: =B12/'- 3 -'!$D12*100 -> 0 | D12: 0 | E12: =D12/'- 3 -'!$D12*100 -> 0 | F12: 0 | G12: =F12/'- 3 -'!$D12*100 -> 0 | H12: 52723 | I12: =H12/'- 3 -'!$D12*100 -> 0.1317350128
A13: BRANDON | B13: 0 | C13: =B13/'- 3 -'!$D13*100 -> 0 | D13: 0 | E13: =D13/'- 3 -'!$D13*100 -> 0 | F13: 214170 | G13: =F13/'- 3 -'!$D13*100 -> 0.161827208 | H13: 201510 | I13: =H13/'- 3 -'!$D13*100 -> 0.152261291
A14: DSFM | B14: 0 | C14: =B14/'- 3 -'!$D14*100 -> 0 | D14: 0 | E14: =D14/'- 3 -'!$D14*100 -> 0 | F14: 0 | G14: =F14/'- 3 -'!$D14*100 -> 0 | H14: 712042 | I14: =H14/'- 3 -'!$D14*100 -> 0.6005876066
A15: EVERGREEN | B15: 0 | C15: =B15/'- 3 -'!$D15*100 -> 0 | D15: 0 | E15: =D15/'- 3 -'!$D15*100 -> 0 | F15: 0 | G15: =F15/'- 3 -'!$D15*100 -> 0 | H15: 0 | I15: =H15/'- 3 -'!$D15*100 -> 0
A16: FLIN FLON | B16: 0 | C16: =B16/'- 3 -'!$D16*100 -> 0 | D16: 0 | E16: =D16/'- 3 -'!$D16*100 -> 0 | F16: 0 | G16: =F16/'- 3 -'!$D16*100 -> 0 | H16: 10041 | I16: =H16/'- 3 -'!$D16*100 -> 0.05537498588
A17: FORT LA BOSSE | B17: 0 | C17: =B17/'- 3 -'!$D17*100 -> 0 | D17: 0 | E17: =D17/'- 3 -'!$D17*100 -> 0 | F17: 81500 | G17: =F17/'- 3 -'!$D17*100 -> 0.3574383468 | H17: 176590 | I17: =H17/'- 3 -'!$D17*100 -> 0.7744789898
A18: FRONTIER | B18: 0 | C18: =B18/'- 3 -'!$D18*100 -> 0 | D18: 0 | E18: =D18/'- 3 -'!$D18*100 -> 0 | F18: 930236 | G18: =F18/'- 3 -'!$D18*100 -> 0.526909678 | H18: 1942240 | I18: =H18/'- 3 -'!$D18*100 -> 1.100134861
A19: GARDEN VALLEY | B19: 0 | C19: =B19/'- 3 -'!$D19*100 -> 0 | D19: 0 | E19: =D19/'- 3 -'!$D19*100 -> 0 | F19: 0 | G19: =F19/'- 3 -'!$D19*100 -> 0 | H19: 54073 | I19: =H19/'- 3 -'!$D19*100 -> 0.09193639144
A20: HANOVER | B20: 0 | C20: =B20/'- 3 -'!$D20*100 -> 0 | D20: 0 | E20: =D20/'- 3 -'!$D20*100 -> 0 | F20: 0 | G20: =F20/'- 3 -'!$D20*100 -> 0 | H20: 126300 | I20: =H20/'- 3 -'!$D20*100 -> 0.1092115583
A21: INTERLAKE | B21: 0 | C21: =B21/'- 3 -'!$D21*100 -> 0 | D21: 0 | E21: =D21/'- 3 -'!$D21*100 -> 0 | F21: 0 | G21: =F21/'- 3 -'!$D21*100 -> 0 | H21: 0 | I21: =H21/'- 3 -'!$D21*100 -> 0
A22: KELSEY | B22: 0 | C22: =B22/'- 3 -'!$D22*100 -> 0 | D22: 0 | E22: =D22/'- 3 -'!$D22*100 -> 0 | F22: 54351 | G22: =F22/'- 3 -'!$D22*100 -> 0.2252103119 | H22: 0 | I22: =H22/'- 3 -'!$D22*100 -> 0
A23: LAKESHORE | B23: 111200 | C23: =B23/'- 3 -'!$D23*100 -> 0.6103012149 | D23: 0 | E23: =D23/'- 3 -'!$D23*100 -> 0 | F23: 0 | G23: =F23/'- 3 -'!$D23*100 -> 0 | H23: 0 | I23: =H23/'- 3 -'!$D23*100 -> 0
A24: LORD SELKIRK | B24: 156710 | C24: =B24/'- 3 -'!$D24*100 -> 0.2266777018 | D24: 0 | E24: =D24/'- 3 -'!$D24*100 -> 0 | F24: 253245 | G24: =F24/'- 3 -'!$D24*100 -> 0.3663135383 | H24: 0 | I24: =H24/'- 3 -'!$D24*100 -> 0
A25: LOUIS RIEL | B25: 120240 | C25: =B25/'- 3 -'!$D25*100 -> 0.0493917231 | D25: 315193 | E25: =D25/'- 3 -'!$D25*100 -> 0.129473764 | F25: 1334585 | G25: =F25/'- 3 -'!$D25*100 -> 0.5482156751 | H25: 996880 | I25: =H25/'- 3 -'!$D25*100 -> 0.4094945187
A26: MOUNTAIN VIEW | B26: 0 | C26: =B26/'- 3 -'!$D26*100 -> 0 | D26: 0 | E26: =D26/'- 3 -'!$D26*100 -> 0 | F26: 0 | G26: =F26/'- 3 -'!$D26*100 -> 0 | H26: 121671 | I26: =H26/'- 3 -'!$D26*100 -> 0.2442700601
A27: MYSTERY LAKE | B27: 0 | C27: =B27/'- 3 -'!$D27*100 -> 0 | D27: 0 | E27: =D27/'- 3 -'!$D27*100 -> 0 | F27: 0 | G27: =F27/'- 3 -'!$D27*100 -> 0 | H27: 41968 | I27: =H27/'- 3 -'!$D27*100 -> 0.08363945797
A28: PARK WEST | B28: 0 | C28: =B28/'- 3 -'!$D28*100 -> 0 | D28: 0 | E28: =D28/'- 3 -'!$D28*100 -> 0 | F28: 0 | G28: =F28/'- 3 -'!$D28*100 -> 0 | H28: 224385 | I28: =H28/'- 3 -'!$D28*100 -> 0.6470366724
A29: PEMBINA TRAILS | B29: 0 | C29: =B29/'- 3 -'!$D29*100 -> 0 | D29: 0 | E29: =D29/'- 3 -'!$D29*100 -> 0 | F29: 146172 | G29: =F29/'- 3 -'!$D29*100 -> 0.0661788499 | H29: 0 | I29: =H29/'- 3 -'!$D29*100 -> 0
A30: PINE CREEK | B30: 0 | C30: =B30/'- 3 -'!$D30*100 -> 0 | D30: 0 | E30: =D30/'- 3 -'!$D30*100 -> 0 | F30: 0 | G30: =F30/'- 3 -'!$D30*100 -> 0 | H30: 14790 | I30: =H30/'- 3 -'!$D30*100 -> 0.07535440645
A31: PORTAGE LA PRAIRIE | B31: 0 | C31: =B31/'- 3 -'!$D31*100 -> 0 | D31: 0 | E31: =D31/'- 3 -'!$D31*100 -> 0 | F31: 0 | G31: =F31/'- 3 -'!$D31*100 -> 0 | H31: 57023 | I31: =H31/'- 3 -'!$D31*100 -> 0.1146412379
A32: PRAIRIE ROSE | B32: 0 | C32: =B32/'- 3 -'!$D32*100 -> 0 | D32: 0 | E32: =D32/'- 3 -'!$D32*100 -> 0 | F32: 0 | G32: =F32/'- 3 -'!$D32*100 -> 0 | H32: 30629 | I32: =H32/'- 3 -'!$D32*100 -> 0.08313317705
A33: PRAIRIE SPIRIT | B33: 0 | C33: =B33/'- 3 -'!$D33*100 -> 0 | D33: 0 | E33: =D33/'- 3 -'!$D33*100 -> 0 | F33: 0 | G33: =F33/'- 3 -'!$D33*100 -> 0 | H33: 31087 | I33: =H33/'- 3 -'!$D33*100 -> 0.09422406226
A34: RED RIVER VALLEY | B34: 0 | C34: =B34/'- 3 -'!$D34*100 -> 0 | D34: 0 | E34: =D34/'- 3 -'!$D34*100 -> 0 | F34: 0 | G34: =F34/'- 3 -'!$D34*100 -> 0 | H34: 59860 | I34: =H34/'- 3 -'!$D34*100 -> 0.1580551684
A35: RIVER EAST TRANSCONA | B35: 424570 | C35: =B35/'- 3 -'!$D35*100 -> 0.1690775783 | D35: 0 | E35: =D35/'- 3 -'!$D35*100 -> 0 | F35: 5248 | G35: =F35/'- 3 -'!$D35*100 -> 0.002089924231 | H35: 265088 | I35: =H35/'- 3 -'!$D35*100 -> 0.1055666605
A36: ROLLING RIVER | B36: 0 | C36: =B36/'- 3 -'!$D36*100 -> 0 | D36: 0 | E36: =D36/'- 3 -'!$D36*100 -> 0 | F36: 0 | G36: =F36/'- 3 -'!$D36*100 -> 0 | H36: 25890 | I36: =H36/'- 3 -'!$D36*100 -> 0.09267852205
A37: SEINE RIVER | B37: 0 | C37: =B37/'- 3 -'!$D37*100 -> 0 | D37: 0 | E37: =D37/'- 3 -'!$D37*100 -> 0 | F37: 0 | G37: =F37/'- 3 -'!$D37*100 -> 0 | H37: 0 | I37: =H37/'- 3 -'!$D37*100 -> 0
A38: SEVEN OAKS | B38: 0 | C38: =B38/'- 3 -'!$D38*100 -> 0 | D38: 883190 | E38: =D38/'- 3 -'!$D38*100 -> 0.4906181302 | F38: 1390658 | G38: =F38/'- 3 -'!$D38*100 -> 0.7725201007 | H38: 583550 | I38: =H38/'- 3 -'!$D38*100 -> 0.3241660457
A39: SOUTHWEST HORIZON | B39: 0 | C39: =B39/'- 3 -'!$D39*100 -> 0 | D39: 0 | E39: =D39/'- 3 -'!$D39*100 -> 0 | F39: 0 | G39: =F39/'- 3 -'!$D39*100 -> 0 | H39: 192500 | I39: =H39/'- 3 -'!$D39*100 -> 0.7323847207
A40: ST. JAMES-ASSINIBOIA | B40: 487788 | C40: =B40/'- 3 -'!$D40*100 -> 0.3757450467 | D40: 0 | E40: =D40/'- 3 -'!$D40*100 -> 0 | F40: 447338 | G40: =F40/'- 3 -'!$D40*100 -> 0.34458625 | H40: 143228 | I40: =H40/'- 3 -'!$D40*100 -> 0.1103291011
A41: SUNRISE | B41: 0 | C41: =B41/'- 3 -'!$D41*100 -> 0 | D41: 0 | E41: =D41/'- 3 -'!$D41*100 -> 0 | F41: 0 | G41: =F41/'- 3 -'!$D41*100 -> 0 | H41: 60630 | I41: =H41/'- 3 -'!$D41*100 -> 0.07552739122
A42: SWAN VALLEY | B42: 0 | C42: =B42/'- 3 -'!$D42*100 -> 0 | D42: 0 | E42: =D42/'- 3 -'!$D42*100 -> 0 | F42: 0 | G42: =F42/'- 3 -'!$D42*100 -> 0 | H42: 100508 | I42: =H42/'- 3 -'!$D42*100 -> 0.3660720139
A43: TURTLE MOUNTAIN | B43: 0 | C43: =B43/'- 3 -'!$D43*100 -> 0 | D43: 0 | E43: =D43/'- 3 -'!$D43*100 -> 0 | F43: 0 | G43: =F43/'- 3 -'!$D43*100 -> 0 | H43: 15323 | I43: =H43/'- 3 -'!$D43*100 -> 0.09546533134
A44: TURTLE RIVER | B44: 0 | C44: =B44/'- 3 -'!$D44*100 -> 0 | D44: 0 | E44: =D44/'- 3 -'!$D44*100 -> 0 | F44: 0 | G44: =F44/'- 3 -'!$D44*100 -> 0 | H44: 29521 | I44: =H44/'- 3 -'!$D44*100 -> 0.2314694298
A45: WESTERN | B45: 0 | C45: =B45/'- 3 -'!$D45*100 -> 0 | D45: 0 | E45: =D45/'- 3 -'!$D45*100 -> 0 | F45: 0 | G45: =F45/'- 3 -'!$D45*100 -> 0 | H45: 47339 | I45: =H45/'- 3 -'!$D45*100 -> 0.1542922022
A46: WINNIPEG | B46: 0 | C46: =B46/'- 3 -'!$D46*100 -> 0 | D46: 3337303 | E46: =D46/'- 3 -'!$D46*100 -> 0.7024573778 | F46: 167301 | G46: =F46/'- 3 -'!$D46*100 -> 0.03521460945 | H46: 5149070 | I46: =H46/'- 3 -'!$D46*100 -> 1.083809954
A48: PROVINCE | B48: =SUM(B11:B46) -> 1300508 | C48: =B48/'- 3 -'!$D48*100 -> 0.04348327938 | D48: =SUM(D11:D46) -> 4535686 | E48: =D48/'- 3 -'!$D48*100 -> 0.151653432 | F48: =SUM(F11:F46) -> 5024804 | G48: =F48/'- 3 -'!$D48*100 -> 0.1680073911 | H48: =SUM(H11:H46) -> 11495019 | I48: =H48/'- 3 -'!$D48*100 -> 0.3843429819
A50: WHITESHELL | B50: 0 | C50: =B50/'- 3 -'!$D50*100 -> 0 | D50: 0 | E50: =D50/'- 3 -'!$D50*100 -> 0 | F50: 85528 | G50: =F50/'- 3 -'!$D50*100 -> 2.02676828 | H50: 188468 | I50: =H50/'- 3 -'!$D50*100 -> 4.466151017

Sheet - 25 -
B2: =AEXP_BP -> ANALYSIS OF EXPENSE BY PROGRAM | J2: PAGE 8 OF 16
B3: =OPYEAR -> OPERATING FUND 2024/2025 BUDGET
B5: FUNCTION 500: DIVISIONAL ADMINISTRATION
E6: INSTRUCTIONAL MGMT. AND ADMINISTRATION | H6: BUSINESS AND ADMIN. SERVICES
B7: BOARD OF TRUSTEES
D8: PER PUPIL | G8: PER PUPIL | J8: PER PUPIL
A9: DIVISION / DISTRICT | B9: AMOUNT | C9: % | E9: AMOUNT | F9: % | H9: AMOUNT | I9: %
A11: BEAUTIFUL PLAINS | B11: 167686 | C11: =B11/'- 3 -'!$D11*100 -> 0.5877346399 | D11: =B11/'- 7 -'!$E11 -> 74.96021457 | E11: 185298 | F11: =E11/'- 3 -'!$D11*100 -> 0.6494641968 | G11: =E11/'- 7 -'!$E11 -> 82.83325883 | H11: 482407 | I11: =H11/'- 3 -'!$D11*100 -> 1.690822755 | J11: =H11/'- 7 -'!$E11 -> 215.6490836
A12: BORDER LAND | B12: 189669 | C12: =B12/'- 3 -'!$D12*100 -> 0.4739117301 | D12: =B12/'- 7 -'!$E12 -> 93.22634554 | E12: 209457 | F12: =E12/'- 3 -'!$D12*100 -> 0.5233545242 | G12: =E12/'- 7 -'!$E12 -> 102.9525682 | H12: 764291 | I12: =H12/'- 3 -'!$D12*100 -> 1.9096767 | J12: =H12/'- 7 -'!$E12 -> 375.665274
A13: BRANDON | B13: 390840 | C13: =B13/'- 3 -'!$D13*100 -> 0.2953193537 | D13: =B13/'- 7 -'!$E13 -> 41.31282702 | E13: 682280 | F13: =E13/'- 3 -'!$D13*100 -> 0.5155319022 | G13: =E13/'- 7 -'!$E13 -> 72.11880979 | H13: 1988220 | I13: =H13/'- 3 -'!$D13*100 -> 1.502302337 | J13: =H13/'- 7 -'!$E13 -> 210.1601395
A14: DSFM | B14: 811051 | C14: =B14/'- 3 -'!$D14*100 -> 0.6840989421 | D14: =B14/'- 7 -'!$E14 -> 131.3013395 | E14: 1889053 | F14: =E14/'- 3 -'!$D14*100 -> 1.593363622 | G14: =E14/'- 7 -'!$E14 -> 305.8194728 | H14: 1513605 | I14: =H14/'- 3 -'!$D14*100 -> 1.276683685 | J14: =H14/'- 7 -'!$E14 -> 245.0380604
A15: EVERGREEN | B15: 177544 | C15: =B15/'- 3 -'!$D15*100 -> 0.7151123346 | D15: =B15/'- 7 -'!$E15 -> 127.1805158 | E15: 143730 | F15: =E15/'- 3 -'!$D15*100 -> 0.578916189 | G15: =E15/'- 7 -'!$E15 -> 102.9584527 | H15: 490610 | I15: =H15/'- 3 -'!$D15*100 -> 1.976080648 | J15: =H15/'- 7 -'!$E15 -> 351.4398281
A16: FLIN FLON | B16: 146624 | C16: =B16/'- 3 -'!$D16*100 -> 0.808614872 | D16: =B16/'- 7 -'!$E16 -> 183.9698871 | E16: 121224 | F16: =E16/'- 3 -'!$D16*100 -> 0.6685367283 | G16: =E16/'- 7 -'!$E16 -> 152.1003764 | H16: 437050 | I16: =H16/'- 3 -'!$D16*100 -> 2.410281603 | J16: =H16/'- 7 -'!$E16 -> 548.3688833
A17: FORT LA BOSSE | B17: 129580 | C17: =B17/'- 3 -'!$D17*100 -> 0.5683050427 | D17: =B17/'- 7 -'!$E17 -> 83.11738294 | E17: 209520 | F17: =E17/'- 3 -'!$D17*100 -> 0.9189016249 | G17: =E17/'- 7 -'!$E17 -> 134.3938422 | H17: 415277 | I17: =H17/'- 3 -'!$D17*100 -> 1.821299685 | J17: =H17/'- 7 -'!$E17 -> 266.3739577
A18: FRONTIER | B18: 1320008 | C18: =B18/'- 3 -'!$D18*100 -> 0.7476865981 | D18: =B18/'- 7 -'!$E18 -> 203.0156875 | E18: 2974537 | F18: =E18/'- 3 -'!$D18*100 -> 1.684854524 | G18: =E18/'- 7 -'!$E18 -> 457.4803137 | H18: 3606307 | I18: =H18/'- 3 -'!$D18*100 -> 2.042705357 | J18: =H18/'- 7 -'!$E18 -> 554.6458013
A19: GARDEN VALLEY | B19: 226950 | C19: =B19/'- 3 -'!$D19*100 -> 0.3858665884 | D19: =B19/'- 7 -'!$E19 -> 53.41256766 | E19: 406193 | F19: =E19/'- 3 -'!$D19*100 -> 0.6906204325 | G19: =E19/'- 7 -'!$E19 -> 95.59731702 | H19: 936827 | I19: =H19/'- 3 -'!$D19*100 -> 1.592818852 | J19: =H19/'- 7 -'!$E19 -> 220.4817604
A20: HANOVER | B20: 306200 | C20: =B20/'- 3 -'!$D20*100 -> 0.2647710146 | D20: =B20/'- 7 -'!$E20 -> 35.94318582 | E20: 696400 | F20: =E20/'- 3 -'!$D20*100 -> 0.6021767947 | G20: =E20/'- 7 -'!$E20 -> 81.74668388 | H20: 1483500 | I20: =H20/'- 3 -'!$D20*100 -> 1.282781842 | J20: =H20/'- 7 -'!$E20 -> 174.1401573
A21: INTERLAKE | B21: 195500 | C21: =B21/'- 3 -'!$D21*100 -> 0.4386071774 | D21: =B21/'- 7 -'!$E21 -> 68.30887491 | E21: 462749 | F21: =E21/'- 3 -'!$D21*100 -> 1.038184311 | G21: =E21/'- 7 -'!$E21 -> 161.6872816 | H21: 727051 | I21: =H21/'- 3 -'!$D21*100 -> 1.631149805 | J21: =H21/'- 7 -'!$E21 -> 254.0359888
A22: KELSEY | B22: 130863 | C22: =B22/'- 3 -'!$D22*100 -> 0.5422475584 | D22: =B22/'- 7 -'!$E22 -> 91.38477654 | E22: 173230 | F22: =E22/'- 3 -'!$D22*100 -> 0.7178006353 | G22: =E22/'- 7 -'!$E22 -> 120.9706704 | H22: 601815 | I22: =H22/'- 3 -'!$D22*100 -> 2.493697335 | J22: =H22/'- 7 -'!$E22 -> 420.2618715
A23: LAKESHORE | B23: 113000 | C23: =B23/'- 3 -'!$D23*100 -> 0.6201801914 | D23: =B23/'- 7 -'!$E23 -> 115.8974359 | E23: 147750 | F23: =E23/'- 3 -'!$D23*100 -> 0.8108993211 | G23: =E23/'- 7 -'!$E23 -> 151.5384615 | H23: 353050 | I23: =H23/'- 3 -'!$D23*100 -> 1.937651474 | J23: =H23/'- 7 -'!$E23 -> 362.1025641
A24: LORD SELKIRK | B24: 355538 | C24: =B24/'- 3 -'!$D24*100 -> 0.5142782 | D24: =B24/'- 7 -'!$E24 -> 94.38226706 | E24: 416893 | F24: =E24/'- 3 -'!$D24*100 -> 0.6030269103 | G24: =E24/'- 7 -'!$E24 -> 110.6697637 | H24: 1130070 | I24: =H24/'- 3 -'!$D24*100 -> 1.634622362 | J24: =H24/'- 7 -'!$E24 -> 299.9920361
A25: LOUIS RIEL | B25: 628924 | C25: =B25/'- 3 -'!$D25*100 -> 0.2583469732 | D25: =B25/'- 7 -'!$E25 -> 36.98030223 | E25: 671327 | F25: =E25/'- 3 -'!$D25*100 -> 0.2757651139 | G25: =E25/'- 7 -'!$E25 -> 39.47356971 | H25: 5434761 | I25: =H25/'- 3 -'!$D25*100 -> 2.232470147 | J25: =H25/'- 7 -'!$E25 -> 319.5602399
A26: MOUNTAIN VIEW | B26: 236108 | C26: =B26/'- 3 -'!$D26*100 -> 0.474016942 | D26: =B26/'- 7 -'!$E26 -> 75.87261801 | E26: 422909 | F26: =E26/'- 3 -'!$D26*100 -> 0.849043789 | G26: =E26/'- 7 -'!$E26 -> 135.9005752 | H26: 802972 | I26: =H26/'- 3 -'!$D26*100 -> 1.612068765 | J26: =H26/'- 7 -'!$E26 -> 258.0327131
A27: MYSTERY LAKE | B27: 310203 | C27: =B27/'- 3 -'!$D27*100 -> 0.6182141342 | D27: =B27/'- 7 -'!$E27 -> 109.9835133 | E27: 583983 | F27: =E27/'- 3 -'!$D27*100 -> 1.16383963 | G27: =E27/'- 7 -'!$E27 -> 207.0531298 | H27: 930862 | I27: =H27/'- 3 -'!$D27*100 -> 1.855146615 | J27: =H27/'- 7 -'!$E27 -> 330.0402418
A28: PARK WEST | B28: 157657 | C28: =B28/'- 3 -'!$D28*100 -> 0.4546197859 | D28: =B28/'- 7 -'!$E28 -> 71.92381387 | E28: 550711 | F28: =E28/'- 3 -'!$D28*100 -> 1.588030452 | G28: =E28/'- 7 -'!$E28 -> 251.2367701 | H28: 517266 | I28: =H28/'- 3 -'!$D28*100 -> 1.491588437 | J28: =H28/'- 7 -'!$E28 -> 235.9790146
A29: PEMBINA TRAILS | B29: 559451 | C29: =B29/'- 3 -'!$D29*100 -> 0.2532894382 | D29: =B29/'- 7 -'!$E29 -> 33.77919333 | E29: 2769210 | F29: =E29/'- 3 -'!$D29*100 -> 1.253749918 | G29: =E29/'- 7 -'!$E29 -> 167.2026325 | H29: 2276128 | I29: =H29/'- 3 -'!$D29*100 -> 1.030508807 | J29: =H29/'- 7 -'!$E29 -> 137.4307451
A30: PINE CREEK | B30: 154240 | C30: =B30/'- 3 -'!$D30*100 -> 0.7858460886 | D30: =B30/'- 7 -'!$E30 -> 143.6795529 | E30: 138641 | F30: =E30/'- 3 -'!$D30*100 -> 0.7063698624 | G30: =E30/'- 7 -'!$E30 -> 129.1485794 | H30: 324799 | I30: =H30/'- 3 -'!$D30*100 -> 1.654836772 | J30: =H30/'- 7 -'!$E30 -> 302.5607825
A31: PORTAGE LA PRAIRIE | B31: 189330 | C31: =B31/'- 3 -'!$D31*100 -> 0.3806363324 | D31: =B31/'- 7 -'!$E31 -> 56.0147929 | E31: 313404 | F31: =E31/'- 3 -'!$D31*100 -> 0.6300794861 | G31: =E31/'- 7 -'!$E31 -> 92.72307692 | H31: 584928 | I31: =H31/'- 3 -'!$D31*100 -> 1.175961805 | J31: =H31/'- 7 -'!$E31 -> 173.0556213
A32: PRAIRIE ROSE | B32: 243970 | C32: =B32/'- 3 -'!$D32*100 -> 0.6621829379 | D32: =B32/'- 7 -'!$E32 -> 105.4321521 | E32: 229100 | F32: =E32/'- 3 -'!$D32*100 -> 0.6218228105 | G32: =E32/'- 7 -'!$E32 -> 99.00605013 | H32: 663760 | I32: =H32/'- 3 -'!$D32*100 -> 1.801576205 | J32: =H32/'- 7 -'!$E32 -> 286.8452895
A33: PRAIRIE SPIRIT | B33: 188900 | C33: =B33/'- 3 -'!$D33*100 -> 0.572552043 | D33: =B33/'- 7 -'!$E33 -> 87.86046512 | E33: 257880 | F33: =E33/'- 3 -'!$D33*100 -> 0.7816290145 | G33: =E33/'- 7 -'!$E33 -> 119.944186 | H33: 466755 | I33: =H33/'- 3 -'!$D33*100 -> 1.414724875 | J33: =H33/'- 7 -'!$E33 -> 217.0953488
A34: RED RIVER VALLEY | B34: 254408 | C34: =B34/'- 3 -'!$D34*100 -> 0.6717423869 | D34: =B34/'- 7 -'!$E34 -> 108.5358362 | E34: 330911 | F34: =E34/'- 3 -'!$D34*100 -> 0.8737419617 | G34: =E34/'- 7 -'!$E34 -> 141.1736348 | H34: 688447 | I34: =H34/'- 3 -'!$D34*100 -> 1.81778494 | J34: =H34/'- 7 -'!$E34 -> 293.706058
A35: RIVER EAST TRANSCONA | B35: 525227 | C35: =B35/'- 3 -'!$D35*100 -> 0.2091624684 | D35: =B35/'- 7 -'!$E35 -> 28.92697031 | E35: 1727454 | F35: =E35/'- 3 -'!$D35*100 -> 0.6879283483 | G35: =E35/'- 7 -'!$E35 -> 95.13983588 | H35: 2964099 | I35: =H35/'- 3 -'!$D35*100 -> 1.180400595 | J35: =H35/'- 7 -'!$E35 -> 163.2482789
A36: ROLLING RIVER | B36: 149000 | C36: =B36/'- 3 -'!$D36*100 -> 0.5333758125 | D36: =B36/'- 7 -'!$E36 -> 85.021398 | E36: 181335 | F36: =E36/'- 3 -'!$D36*100 -> 0.6491255232 | G36: =E36/'- 7 -'!$E36 -> 103.4721826 | H36: 598085 | I36: =H36/'- 3 -'!$D36*100 -> 2.140966932 | J36: =H36/'- 7 -'!$E36 -> 341.275321
A37: SEINE RIVER | B37: 286414 | C37: =B37/'- 3 -'!$D37*100 -> 0.4405762659 | D37: =B37/'- 7 -'!$E37 -> 64.80687861 | E37: 439000 | F37: =E37/'- 3 -'!$D37*100 -> 0.6752916433 | G37: =E37/'- 7 -'!$E37 -> 99.33250368 | H37: 1060650 | I37: =H37/'- 3 -'!$D37*100 -> 1.631544605 | J37: =H37/'- 7 -'!$E37 -> 239.9932119
A38: SEVEN OAKS | B38: 500990 | C38: =B38/'- 3 -'!$D38*100 -> 0.2783033969 | D38: =B38/'- 7 -'!$E38 -> 42.35806383 | E38: 1458190 | F38: =E38/'- 3 -'!$D38*100 -> 0.810034592 | G38: =E38/'- 7 -'!$E38 -> 123.2880998 | H38: 2211710 | I38: =H38/'- 3 -'!$D38*100 -> 1.228620144 | J38: =H38/'- 7 -'!$E38 -> 186.9972522
A39: SOUTHWEST HORIZON | B39: 160900 | C39: =B39/'- 3 -'!$D39*100 -> 0.6121594887 | D39: =B39/'- 7 -'!$E39 -> 112.951913 | E39: 227600 | F39: =E39/'- 3 -'!$D39*100 -> 0.8659260387 | G39: =E39/'- 7 -'!$E39 -> 159.7753598 | H39: 412300 | I39: =H39/'- 3 -'!$D39*100 -> 1.568634911 | J39: =H39/'- 7 -'!$E39 -> 289.4348894
A40: ST. JAMES-ASSINIBOIA | B40: 449584 | C40: =B40/'- 3 -'!$D40*100 -> 0.3463163527 | D40: =B40/'- 7 -'!$E40 -> 55.80395433 | E40: 1221542 | F40: =E40/'- 3 -'!$D40*100 -> 0.9409586866 | G40: =E40/'- 7 -'!$E40 -> 151.6221084 | H40: 1744632 | I40: =H40/'- 3 -'!$D40*100 -> 1.343897005 | J40: =H40/'- 7 -'!$E40 -> 216.5498871
A41: SUNRISE | B41: 359120 | C41: =B41/'- 3 -'!$D41*100 -> 0.4473593392 | D41: =B41/'- 7 -'!$E41 -> 77.84111846 | E41: 411892 | F41: =E41/'- 3 -'!$D41*100 -> 0.513097942 | G41: =E41/'- 7 -'!$E41 -> 89.27972255 | H41: 1510510 | I41: =H41/'- 3 -'!$D41*100 -> 1.881657261 | J41: =H41/'- 7 -'!$E41 -> 327.4108594
A42: SWAN VALLEY | B42: 188320 | C42: =B42/'- 3 -'!$D42*100 -> 0.6859024323 | D42: =B42/'- 7 -'!$E42 -> 135.8730159 | E42: 249720 | F42: =E42/'- 3 -'!$D42*100 -> 0.9095345974 | G42: =E42/'- 7 -'!$E42 -> 180.1731602 | H42: 464265 | I42: =H42/'- 3 -'!$D42*100 -> 1.690954188 | J42: =H42/'- 7 -'!$E42 -> 334.9675325
A43: TURTLE MOUNTAIN | B43: 85927 | C43: =B43/'- 3 -'!$D43*100 -> 0.535342265 | D43: =B43/'- 7 -'!$E43 -> 81.60208927 | E43: 121271 | F43: =E43/'- 3 -'!$D43*100 -> 0.7555424001 | G43: =E43/'- 7 -'!$E43 -> 115.1671415 | H43: 263193 | I43: =H43/'- 3 -'!$D43*100 -> 1.639744629 | J43: =H43/'- 7 -'!$E43 -> 249.9458689
A44: TURTLE RIVER | B44: 107317 | C44: =B44/'- 3 -'!$D44*100 -> 0.8414553979 | D44: =B44/'- 7 -'!$E44 -> 177.5301902 | E44: 55969 | F44: =E44/'- 3 -'!$D44*100 -> 0.4388439591 | G44: =E44/'- 7 -'!$E44 -> 92.5872622 | H44: 290019 | I44: =H44/'- 3 -'!$D44*100 -> 2.273992499 | J44: =H44/'- 7 -'!$E44 -> 479.7667494
A45: WESTERN | B45: 131724 | C45: =B45/'- 3 -'!$D45*100 -> 0.4293285882 | D45: =B45/'- 7 -'!$E45 -> 58.02819383 | E45: 229914 | F45: =E45/'- 3 -'!$D45*100 -> 0.7493596689 | G45: =E45/'- 7 -'!$E45 -> 101.2837004 | H45: 497665 | I45: =H45/'- 3 -'!$D45*100 -> 1.622041631 | J45: =H45/'- 7 -'!$E45 -> 219.2356828
A46: WINNIPEG | B46: 1068527 | C46: =B46/'- 3 -'!$D46*100 -> 0.2249105564 | D46: =B46/'- 7 -'!$E46 -> 37.60697568 | E46: 3245619 | F46: =E46/'- 3 -'!$D46*100 -> 0.6831591294 | G46: =E46/'- 7 -'!$E46 -> 114.2300707 | H46: 7258986 | I46: =H46/'- 3 -'!$D46*100 -> 1.527918883 | J46: =H46/'- 7 -'!$E46 -> 255.481153
A48: PROVINCE | B48: =SUM(B11:B46) -> 11597294 | C48: =B48/'- 3 -'!$D48*100 -> 0.387762609 | D48: =B48/'- 7 -'!$E48 -> 61.39403543 | E48: =SUM(E11:E46) -> 24555896 | F48: =E48/'- 3 -'!$D48*100 -> 0.8210413824 | G48: =E48/'- 7 -'!$E48 -> 129.9945961 | H48: =SUM(H11:H46) -> 46896872 | I48: =H48/'- 3 -'!$D48*100 -> 1.568025562 | J48: =H48/'- 7 -'!$E48 -> 248.2637951
A50: WHITESHELL | B50: 60500 | C50: =B50/'- 3 -'!$D50*100 -> 1.433676468 | D50: =B50/'- 7 -'!$E50 -> 350.7246377 | E50: 26582 | F50: =E50/'- 3 -'!$D50*100 -> 0.6299171548 | G50: =E50/'- 7 -'!$E50 -> 154.0985507 | H50: 83212 | I50: =H50/'- 3 -'!$D50*100 -> 1.971885723 | J50: =H50/'- 7 -'!$E50 -> 482.3884058

Sheet - 26 -
B2: =AEXP_BP -> ANALYSIS OF EXPENSE BY PROGRAM | E2: PAGE 9 OF 16
B3: =OPYEAR -> OPERATING FUND 2024/2025 BUDGET
B5: FUNCTION 500: (CONT'D)
B6: MANAGEMENT INFORMATION SERVICES
D8: PER PUPIL
A9: DIVISION / DISTRICT | B9: AMOUNT | C9: %
A11: BEAUTIFUL PLAINS | B11: 16160 | C11: =B11/'- 3 -'!$D11*100 -> 0.05664033837 | D11: =B11/'- 7 -'!$E11 -> 7.223960662
A12: BORDER LAND | B12: 63399 | C12: =B12/'- 3 -'!$D12*100 -> 0.1584103347 | D12: =B12/'- 7 -'!$E12 -> 31.16195625
A13: BRANDON | B13: 357420 | C13: =B13/'- 3 -'!$D13*100 -> 0.2700671462 | D13: =B13/'- 7 -'!$E13 -> 37.78024417
A14: DSFM | B14: 133854 | C14: =B14/'- 3 -'!$D14*100 -> 0.112902123 | D14: =B14/'- 7 -'!$E14 -> 21.66967243
A15: EVERGREEN | B15: 45000 | C15: =B15/'- 3 -'!$D15*100 -> 0.181251155 | D15: =B15/'- 7 -'!$E15 -> 32.23495702
A16: FLIN FLON | B16: 43964 | C16: =B16/'- 3 -'!$D16*100 -> 0.2424565162 | D16: =B16/'- 7 -'!$E16 -> 55.16185696
A17: FORT LA BOSSE | B17: 98560 | C17: =B17/'- 3 -'!$D17*100 -> 0.4322591836 | D17: =B17/'- 7 -'!$E17 -> 63.22001283
A18: FRONTIER | B18: 970399 | C18: =B18/'- 3 -'!$D18*100 -> 0.5496590377 | D18: =B18/'- 7 -'!$E18 -> 149.2462319
A19: GARDEN VALLEY | B19: 172100 | C19: =B19/'- 3 -'!$D19*100 -> 0.2926091204 | D19: =B19/'- 7 -'!$E19 -> 40.50364792
A20: HANOVER | B20: 117000 | C20: =B20/'- 3 -'!$D20*100 -> 0.1011698521 | D20: =B20/'- 7 -'!$E20 -> 13.73400634
A21: INTERLAKE | B21: 58000 | C21: =B21/'- 3 -'!$D21*100 -> 0.1301238685 | D21: =B21/'- 7 -'!$E21 -> 20.26554857
A22: KELSEY | B22: 40000 | C22: =B22/'- 3 -'!$D22*100 -> 0.16574511 | D22: =B22/'- 7 -'!$E22 -> 27.93296089
A23: LAKESHORE | B23: 20000 | C23: =B23/'- 3 -'!$D23*100 -> 0.1097664056 | D23: =B23/'- 7 -'!$E23 -> 20.51282051
A24: LORD SELKIRK | B24: 177417 | C24: =B24/'- 3 -'!$D24*100 -> 0.2566299395 | D24: =B24/'- 7 -'!$E24 -> 47.09769047
A25: LOUIS RIEL | B25: 1376218 | C25: =B25/'- 3 -'!$D25*100 -> 0.5653175182 | D25: =B25/'- 7 -'!$E25 -> 80.92067972
A26: MOUNTAIN VIEW | B26: 34000 | C26: =B26/'- 3 -'!$D26*100 -> 0.06825933907 | D26: =B26/'- 7 -'!$E26 -> 10.92580096
A27: MYSTERY LAKE | B27: 218601 | C27: =B27/'- 3 -'!$D27*100 -> 0.4356573855 | D27: =B27/'- 7 -'!$E27 -> 77.50571717
A28: PARK WEST | B28: 85050 | C28: =B28/'- 3 -'!$D28*100 -> 0.2452502127 | D28: =B28/'- 7 -'!$E28 -> 38.80018248
A29: PEMBINA TRAILS | B29: 1088477 | C29: =B29/'- 3 -'!$D29*100 -> 0.4928040665 | D29: =B29/'- 7 -'!$E29 -> 65.72135008
A30: PINE CREEK | B30: 23968 | C30: =B30/'- 3 -'!$D30*100 -> 0.1221159171 | D30: =B30/'- 7 -'!$E30 -> 22.32696786
A31: PORTAGE LA PRAIRIE | B31: 70800 | C31: =B31/'- 3 -'!$D31*100 -> 0.14233905 | D31: =B31/'- 7 -'!$E31 -> 20.94674556
A32: PRAIRIE ROSE | B32: 65000 | C32: =B32/'- 3 -'!$D32*100 -> 0.1764228838 | D32: =B32/'- 7 -'!$E32 -> 28.08988764
A33: PRAIRIE SPIRIT | B33: 40750 | C33: =B33/'- 3 -'!$D33*100 -> 0.123512418 | D33: =B33/'- 7 -'!$E33 -> 18.95348837
A34: RED RIVER VALLEY | B34: 54627 | C34: =B34/'- 3 -'!$D34*100 -> 0.1442378831 | D34: =B34/'- 7 -'!$E34 -> 23.30503413
A35: RIVER EAST TRANSCONA | B35: 1570551 | C35: =B35/'- 3 -'!$D35*100 -> 0.6254444723 | D35: =B35/'- 7 -'!$E35 -> 86.49837528
A36: ROLLING RIVER | B36: 36000 | C36: =B36/'- 3 -'!$D36*100 -> 0.1288693238 | D36: =B36/'- 7 -'!$E36 -> 20.54208274
A37: SEINE RIVER | B37: 225600 | C37: =B37/'- 3 -'!$D37*100 -> 0.3470291452 | D37: =B37/'- 7 -'!$E37 -> 51.04649847
A38: SEVEN OAKS | B38: 844020 | C38: =B38/'- 3 -'!$D38*100 -> 0.4688589254 | D38: =B38/'- 7 -'!$E38 -> 71.36081167
A39: SOUTHWEST HORIZON | B39: 59400 | C39: =B39/'- 3 -'!$D39*100 -> 0.2259929995 | D39: =B39/'- 7 -'!$E39 -> 41.6988417
A40: ST. JAMES-ASSINIBOIA | B40: 521974 | C40: =B40/'- 3 -'!$D40*100 -> 0.4020786592 | D40: =B40/'- 7 -'!$E40 -> 64.78925686
A41: SUNRISE | B41: 138818 | C41: =B41/'- 3 -'!$D41*100 -> 0.1729269569 | D41: =B41/'- 7 -'!$E41 -> 30.08951989
A42: SWAN VALLEY | B42: 21000 | C42: =B42/'- 3 -'!$D42*100 -> 0.07648657114 | D42: =B42/'- 7 -'!$E42 -> 15.15151515
A43: TURTLE MOUNTAIN | B43: 21582 | C43: =B43/'- 3 -'!$D43*100 -> 0.1344601436 | D43: =B43/'- 7 -'!$E43 -> 20.4957265
A44: TURTLE RIVER | B44: 8500 | C44: =B44/'- 3 -'!$D44*100 -> 0.06664713775 | D44: =B44/'- 7 -'!$E44 -> 14.06120761
A45: WESTERN | B45: 58000 | C45: =B45/'- 3 -'!$D45*100 -> 0.1890396444 | D45: =B45/'- 7 -'!$E45 -> 25.55066079
A46: WINNIPEG | B46: 1003075 | C46: =B46/'- 3 -'!$D46*100 -> 0.211133791 | D46: =B46/'- 7 -'!$E46 -> 35.30338225
A48: PROVINCE | B48: =SUM(B11:B46) -> 9879284 | C48: =B48/'- 3 -'!$D48*100 -> 0.3303198952 | D48: =B48/'- 7 -'!$E48 -> 52.29919254
A50: WHITESHELL | B50: 9600 | C50: =B50/'- 3 -'!$D50*100 -> 0.2274924643 | D50: =B50/'- 7 -'!$E50 -> 55.65217391

Sheet - 27 -
B2: =AEXP_BP -> ANALYSIS OF EXPENSE BY PROGRAM | J2: PAGE 10 OF 16
B3: =OPYEAR -> OPERATING FUND 2024/2025 BUDGET
B5: FUNCTION 600: INSTRUCTIONAL & OTHER SUPPORT SERVICES
B6: CURRICULUM CONSULTING AND DEVELOPMENT ADMINISTRATION | E6: CURRICULUM CONSULTING AND DEVELOPMENT | H6: LIBRARY / MEDIA CENTRE
D8: PER PUPIL | G8: PER PUPIL | J8: PER PUPIL
A9: DIVISION / DISTRICT | B9: AMOUNT | C9: % | E9: AMOUNT | F9: % | H9: AMOUNT | I9: %
A11: BEAUTIFUL PLAINS | B11: 0 | C11: =B11/'- 3 -'!$D11*100 -> 0 | D11: =B11/'- 7 -'!$C11 -> 0 | E11: 142521 | F11: =E11/'- 3 -'!$D11*100 -> 0.4995320337 | G11: =E11/'- 7 -'!$E11 -> 63.71077336 | H11: 284064 | I11: =H11/'- 3 -'!$D11*100 -> 0.9956362054 | J11: =H11/'- 7 -'!$E11 -> 126.984354
A12: BORDER LAND | B12: 0 | C12: =B12/'- 3 -'!$D12*100 -> 0 | D12: =B12/'- 7 -'!$C12 -> 0 | E12: 0 | F12: =E12/'- 3 -'!$D12*100 -> 0 | G12: =E12/'- 7 -'!$E12 -> 0 | H12: 309128 | I12: =H12/'- 3 -'!$D12*100 -> 0.7723949897 | J12: =H12/'- 7 -'!$E12 -> 151.9429835
A13: BRANDON | B13: 143950 | C13: =B13/'- 3 -'!$D13*100 -> 0.1087688593 | D13: =B13/'- 7 -'!$C13 -> 15.21589768 | E13: 652640 | F13: =E13/'- 3 -'!$D13*100 -> 0.4931358689 | G13: =E13/'- 7 -'!$E13 -> 68.98578299 | H13: 956472 | I13: =H13/'- 3 -'!$D13*100 -> 0.7227118332 | J13: =H13/'- 7 -'!$E13 -> 101.1016331
A14: DSFM | B14: 262336 | C14: =B14/'- 3 -'!$D14*100 -> 0.2212731136 | D14: =B14/'- 7 -'!$C14 -> 42.46966984 | E14: 2266117 | F14: =E14/'- 3 -'!$D14*100 -> 1.91140661 | G14: =E14/'- 7 -'!$E14 -> 366.8625 | H14: 873577 | I14: =H14/'- 3 -'!$D14*100 -> 0.7368378826 | J14: =H14/'- 7 -'!$E14 -> 141.4236962
A15: EVERGREEN | B15: 43920 | C15: =B15/'- 3 -'!$D15*100 -> 0.1769011273 | D15: =B15/'- 7 -'!$C15 -> 31.46131805 | E15: 292910 | F15: =E15/'- 3 -'!$D15*100 -> 1.179783907 | G15: =E15/'- 7 -'!$E15 -> 209.8209169 | H15: 155437 | I15: =H15/'- 3 -'!$D15*100 -> 0.6260696839 | J15: =H15/'- 7 -'!$E15 -> 111.3445559
A16: FLIN FLON | B16: 0 | C16: =B16/'- 3 -'!$D16*100 -> 0 | D16: =B16/'- 7 -'!$C16 -> 0 | E16: 0 | F16: =E16/'- 3 -'!$D16*100 -> 0 | G16: =E16/'- 7 -'!$E16 -> 0 | H16: 182170 | I16: =H16/'- 3 -'!$D16*100 -> 1.004647065 | J16: =H16/'- 7 -'!$E16 -> 228.5696361
A17: FORT LA BOSSE | B17: 0 | C17: =B17/'- 3 -'!$D17*100 -> 0 | D17: =B17/'- 7 -'!$C17 -> 0 | E17: 69200 | F17: =E17/'- 3 -'!$D17*100 -> 0.3034936638 | G17: =E17/'- 7 -'!$E17 -> 44.38742784 | H17: 246930 | I17: =H17/'- 3 -'!$D17*100 -> 1.082972405 | J17: =H17/'- 7 -'!$E17 -> 158.3899936
A18: FRONTIER | B18: 0 | C18: =B18/'- 3 -'!$D18*100 -> 0 | D18: =B18/'- 7 -'!$C18 -> 0 | E18: 7091171 | F18: =E18/'- 3 -'!$D18*100 -> 4.016622264 | G18: =E18/'- 7 -'!$E18 -> 1090.613811 | H18: 2300775 | I18: =H18/'- 3 -'!$D18*100 -> 1.303218339 | J18: =H18/'- 7 -'!$E18 -> 353.8565057
A19: GARDEN VALLEY | B19: 58379 | C19: =B19/'- 3 -'!$D19*100 -> 0.09925757024 | D19: =B19/'- 7 -'!$C19 -> 13.73946811 | E19: 378300 | F19: =E19/'- 3 -'!$D19*100 -> 0.6431959921 | G19: =E19/'- 7 -'!$E19 -> 89.03271358 | H19: 473412 | I19: =H19/'- 3 -'!$D19*100 -> 0.8049080122 | J19: =H19/'- 7 -'!$E19 -> 111.4172747
A20: HANOVER | B20: 0 | C20: =B20/'- 3 -'!$D20*100 -> 0 | D20: =B20/'- 7 -'!$C20 -> 0 | E20: 233800 | F20: =E20/'- 3 -'!$D20*100 -> 0.2021667642 | G20: =E20/'- 7 -'!$E20 -> 27.44453574 | H20: 1015500 | I20: =H20/'- 3 -'!$D20*100 -> 0.878102434 | J20: =H20/'- 7 -'!$E20 -> 119.2041319
A21: INTERLAKE | B21: 0 | C21: =B21/'- 3 -'!$D21*100 -> 0 | D21: =B21/'- 7 -'!$C21 -> 0 | E21: 0 | F21: =E21/'- 3 -'!$D21*100 -> 0 | G21: =E21/'- 7 -'!$E21 -> 0 | H21: 452665 | I21: =H21/'- 3 -'!$D21*100 -> 1.015560706 | J21: =H21/'- 7 -'!$E21 -> 158.1638714
A22: KELSEY | B22: 28905 | C22: =B22/'- 3 -'!$D22*100 -> 0.1197715601 | D22: =B22/'- 7 -'!$C22 -> 20.18505587 | E22: 197896 | F22: =E22/'- 3 -'!$D22*100 -> 0.8200073574 | G22: =E22/'- 7 -'!$E22 -> 138.1955307 | H22: 225653 | I22: =H22/'- 3 -'!$D22*100 -> 0.9350220329 | J22: =H22/'- 7 -'!$E22 -> 157.5789106
A23: LAKESHORE | B23: 0 | C23: =B23/'- 3 -'!$D23*100 -> 0 | D23: =B23/'- 7 -'!$C23 -> 0 | E23: 82000 | F23: =E23/'- 3 -'!$D23*100 -> 0.4500422628 | G23: =E23/'- 7 -'!$E23 -> 84.1025641 | H23: 118000 | I23: =H23/'- 3 -'!$D23*100 -> 0.6476217928 | J23: =H23/'- 7 -'!$E23 -> 121.025641
A24: LORD SELKIRK | B24: 0 | C24: =B24/'- 3 -'!$D24*100 -> 0 | D24: =B24/'- 7 -'!$C24 -> 0 | E24: 128960 | F24: =E24/'- 3 -'!$D24*100 -> 0.1865379135 | G24: =E24/'- 7 -'!$E24 -> 34.23413857 | H24: 648908 | I24: =H24/'- 3 -'!$D24*100 -> 0.9386317025 | J24: =H24/'- 7 -'!$E24 -> 172.2612158
A25: LOUIS RIEL | B25: 593052 | C25: =B25/'- 3 -'!$D25*100 -> 0.2436116115 | D25: =B25/'- 7 -'!$C25 -> 34.8710531 | E25: 2106407 | F25: =E25/'- 3 -'!$D25*100 -> 0.8652617372 | G25: =E25/'- 7 -'!$E25 -> 123.8552949 | H25: 4950797 | I25: =H25/'- 3 -'!$D25*100 -> 2.033669283 | J25: =H25/'- 7 -'!$E25 -> 291.1034868
A26: MOUNTAIN VIEW | B26: 22620 | C26: =B26/'- 3 -'!$D26*100 -> 0.04541253676 | D26: =B26/'- 7 -'!$C26 -> 7.268871108 | E26: 318490 | F26: =E26/'- 3 -'!$D26*100 -> 0.6394093206 | G26: =E26/'- 7 -'!$E26 -> 102.3458337 | H26: 587659 | I26: =H26/'- 3 -'!$D26*100 -> 1.179800439 | J26: =H26/'- 7 -'!$E26 -> 188.8425078
A27: MYSTERY LAKE | B27: 0 | C27: =B27/'- 3 -'!$D27*100 -> 0 | D27: =B27/'- 7 -'!$C27 -> 0 | E27: 785766 | F27: =E27/'- 3 -'!$D27*100 -> 1.56597985 | G27: =E27/'- 7 -'!$E27 -> 278.5959687 | H27: 984317 | I27: =H27/'- 3 -'!$D27*100 -> 1.961678907 | J27: =H27/'- 7 -'!$E27 -> 348.9928912
A28: PARK WEST | B28: 50584 | C28: =B28/'- 3 -'!$D28*100 -> 0.1458640419 | D28: =B28/'- 7 -'!$C28 -> 23.07664234 | E28: 1016 | F28: =E28/'- 3 -'!$D28*100 -> 0.002929737991 | G28: =E28/'- 7 -'!$E28 -> 0.4635036496 | H28: 340829 | I28: =H28/'- 3 -'!$D28*100 -> 0.9828146356 | J28: =H28/'- 7 -'!$E28 -> 155.4876825
A29: PEMBINA TRAILS | B29: 462227 | C29: =B29/'- 3 -'!$D29*100 -> 0.2092716201 | D29: =B29/'- 7 -'!$C29 -> 27.90888782 | E29: 581755 | F29: =E29/'- 3 -'!$D29*100 -> 0.2633874944 | G29: =E29/'- 7 -'!$E29 -> 35.12589059 | H29: 4374773 | I29: =H29/'- 3 -'!$D29*100 -> 1.98066282 | J29: =H29/'- 7 -'!$E29 -> 264.1452119
A30: PINE CREEK | B30: 0 | C30: =B30/'- 3 -'!$D30*100 -> 0 | D30: =B30/'- 7 -'!$C30 -> 0 | E30: 0 | F30: =E30/'- 3 -'!$D30*100 -> 0 | G30: =E30/'- 7 -'!$E30 -> 0 | H30: 359256 | I30: =H30/'- 3 -'!$D30*100 -> 1.830393688 | J30: =H30/'- 7 -'!$E30 -> 334.6585934
A31: PORTAGE LA PRAIRIE | B31: 93500 | C31: =B31/'- 3 -'!$D31*100 -> 0.1879760053 | D31: =B31/'- 7 -'!$C31 -> 27.66272189 | E31: 124090 | F31: =E31/'- 3 -'!$D31*100 -> 0.2494753208 | G31: =E31/'- 7 -'!$E31 -> 36.71301775 | H31: 403045 | I31: =H31/'- 3 -'!$D31*100 -> 0.810297209 | J31: =H31/'- 7 -'!$E31 -> 119.2440828
A32: PRAIRIE ROSE | B32: 0 | C32: =B32/'- 3 -'!$D32*100 -> 0 | D32: =B32/'- 7 -'!$C32 -> 0 | E32: 157851 | F32: =E32/'- 3 -'!$D32*100 -> 0.428438902 | G32: =E32/'- 7 -'!$E32 -> 68.21564391 | H32: 385272 | I32: =H32/'- 3 -'!$D32*100 -> 1.045704574 | J32: =H32/'- 7 -'!$E32 -> 166.4961106
A33: PRAIRIE SPIRIT | B33: 0 | C33: =B33/'- 3 -'!$D33*100 -> 0 | D33: =B33/'- 7 -'!$C33 -> 0 | E33: 226825 | F33: =E33/'- 3 -'!$D33*100 -> 0.6875019436 | G33: =E33/'- 7 -'!$E33 -> 105.5 | H33: 460650 | I33: =H33/'- 3 -'!$D33*100 -> 1.396220744 | J33: =H33/'- 7 -'!$E33 -> 214.255814
A34: RED RIVER VALLEY | B34: 8316 | C34: =B34/'- 3 -'!$D34*100 -> 0.02195768093 | D34: =B34/'- 7 -'!$C34 -> 3.54778157 | E34: 174793 | F34: =E34/'- 3 -'!$D34*100 -> 0.4615258444 | G34: =E34/'- 7 -'!$E34 -> 74.57039249 | H34: 234305 | I34: =H34/'- 3 -'!$D34*100 -> 0.6186621488 | J34: =H34/'- 7 -'!$E34 -> 99.95947099
A35: RIVER EAST TRANSCONA | B35: 478037 | C35: =B35/'- 3 -'!$D35*100 -> 0.190369876 | D35: =B35/'- 7 -'!$C35 -> 26.32797268 | E35: 1465994 | F35: =E35/'- 3 -'!$D35*100 -> 0.5838064754 | G35: =E35/'- 7 -'!$E35 -> 80.73987994 | H35: 4735559 | I35: =H35/'- 3 -'!$D35*100 -> 1.885853563 | J35: =H35/'- 7 -'!$E35 -> 260.811753
A36: ROLLING RIVER | B36: 24215 | C36: =B36/'- 3 -'!$D36*100 -> 0.08668251879 | D36: =B36/'- 7 -'!$C36 -> 13.81740371 | E36: 104450 | F36: =E36/'- 3 -'!$D36*100 -> 0.3739000243 | G36: =E36/'- 7 -'!$E36 -> 59.60057061 | H36: 250610 | I36: =H36/'- 3 -'!$D36*100 -> 0.897109479 | J36: =H36/'- 7 -'!$E36 -> 143.0014265
A37: SEINE RIVER | B37: 123800 | C37: =B37/'- 3 -'!$D37*100 -> 0.1904353199 | D37: =B37/'- 7 -'!$C37 -> 28.01221858 | E37: 395800 | F37: =E37/'- 3 -'!$D37*100 -> 0.6088392538 | G37: =E37/'- 7 -'!$E37 -> 89.55764227 | H37: 595300 | I37: =H37/'- 3 -'!$D37*100 -> 0.9157200803 | J37: =H37/'- 7 -'!$E37 -> 134.6984953
A38: SEVEN OAKS | B38: 188010 | C38: =B38/'- 3 -'!$D38*100 -> 0.1044408504 | D38: =B38/'- 7 -'!$C38 -> 15.89600507 | E38: 977830 | F38: =E38/'- 3 -'!$D38*100 -> 0.5431913023 | G38: =E38/'- 7 -'!$E38 -> 82.67427605 | H38: 2180906 | I38: =H38/'- 3 -'!$D38*100 -> 1.21150831 | J38: =H38/'- 7 -'!$E38 -> 184.3928134
A39: SOUTHWEST HORIZON | B39: 0 | C39: =B39/'- 3 -'!$D39*100 -> 0 | D39: =B39/'- 7 -'!$C39 -> 0 | E39: 159750 | F39: =E39/'- 3 -'!$D39*100 -> 0.6077842033 | G39: =E39/'- 7 -'!$E39 -> 112.1446121 | H39: 278400 | I39: =H39/'- 3 -'!$D39*100 -> 1.059199513 | J39: =H39/'- 7 -'!$E39 -> 195.4369954
A40: ST. JAMES-ASSINIBOIA | B40: 49861 | C40: =B40/'- 3 -'!$D40*100 -> 0.03840812766 | D40: =B40/'- 7 -'!$C40 -> 6.188923464 | E40: 1165740 | F40: =E40/'- 3 -'!$D40*100 -> 0.8979741829 | G40: =E40/'- 7 -'!$E40 -> 144.695767 | H40: 1378861 | I40: =H40/'- 3 -'!$D40*100 -> 1.062142141 | J40: =H40/'- 7 -'!$E40 -> 171.1490984
A41: SUNRISE | B41: 0 | C41: =B41/'- 3 -'!$D41*100 -> 0 | D41: =B41/'- 7 -'!$C41 -> 0 | E41: 608905 | F41: =E41/'- 3 -'!$D41*100 -> 0.7585189865 | G41: =E41/'- 7 -'!$E41 -> 131.9833099 | H41: 713182 | I41: =H41/'- 3 -'!$D41*100 -> 0.8884178777 | J41: =H41/'- 7 -'!$E41 -> 154.5858892
A42: SWAN VALLEY | B42: 22283 | C42: =B42/'- 3 -'!$D42*100 -> 0.08115953642 | D42: =B42/'- 7 -'!$C42 -> 16.07720058 | E42: 0 | F42: =E42/'- 3 -'!$D42*100 -> 0 | G42: =E42/'- 7 -'!$E42 -> 0 | H42: 296017 | I42: =H42/'- 3 -'!$D42*100 -> 1.078158349 | J42: =H42/'- 7 -'!$E42 -> 213.5764791
A43: TURTLE MOUNTAIN | B43: 0 | C43: =B43/'- 3 -'!$D43*100 -> 0 | D43: =B43/'- 7 -'!$C43 -> 0 | E43: 70129 | F43: =E43/'- 3 -'!$D43*100 -> 0.4369175894 | G43: =E43/'- 7 -'!$E43 -> 66.59924027 | H43: 246953 | I43: =H43/'- 3 -'!$D43*100 -> 1.538566206 | J43: =H43/'- 7 -'!$E43 -> 234.5232669
A44: TURTLE RIVER | B44: 0 | C44: =B44/'- 3 -'!$D44*100 -> 0 | D44: =B44/'- 7 -'!$C44 -> 0 | E44: 0 | F44: =E44/'- 3 -'!$D44*100 -> 0 | G44: =E44/'- 7 -'!$E44 -> 0 | H44: 120276 | I44: =H44/'- 3 -'!$D44*100 -> 0.94306484 | J44: =H44/'- 7 -'!$E44 -> 198.9677419
A45: WESTERN | B45: 0 | C45: =B45/'- 3 -'!$D45*100 -> 0 | D45: =B45/'- 7 -'!$C45 -> 0 | E45: 0 | F45: =E45/'- 3 -'!$D45*100 -> 0 | G45: =E45/'- 7 -'!$E45 -> 0 | H45: 358843 | I45: =H45/'- 3 -'!$D45*100 -> 1.169578502 | J45: =H45/'- 7 -'!$E45 -> 158.0806167
A46: WINNIPEG | B46: 913134 | C46: =B46/'- 3 -'!$D46*100 -> 0.1922024207 | D46: =B46/'- 7 -'!$C46 -> 32.13789463 | E46: 2181127 | F46: =E46/'- 3 -'!$D46*100 -> 0.4590978862 | G46: =E46/'- 7 -'!$E46 -> 76.76510752 | H46: 2317664 | I46: =H46/'- 3 -'!$D46*100 -> 0.4878370876 | J46: =H46/'- 7 -'!$E46 -> 81.57054869
A48: PROVINCE | B48: =SUM(B11:B46) -> 3567129 | C48: =B48/'- 3 -'!$D48*100 -> 0.1192691371 | D48: =B48/'- 7 -'!$C48 -> 18.88375376 | E48: =SUM(E11:E46) -> 23142233 | F48: =E48/'- 3 -'!$D48*100 -> 0.7737746965 | G48: =E48/'- 7 -'!$E48 -> 122.5109127 | H48: =SUM(H11:H46) -> 34796165 | I48: =H48/'- 3 -'!$D48*100 -> 1.163431032 | J48: =H48/'- 7 -'!$E48 -> 184.2047797
A50: WHITESHELL | B50: 3736 | C50: =B50/'- 3 -'!$D50*100 -> 0.08853248403 | D50: =B50/'- 7 -'!$C50 -> 21.65797101 | E50: 15000 | F50: =E50/'- 3 -'!$D50*100 -> 0.3554569755 | G50: =E50/'- 7 -'!$E50 -> 86.95652174 | H50: 15812 | I50: =H50/'- 3 -'!$D50*100 -> 0.3746990464 | J50: =H50/'- 7 -'!$E50 -> 91.66376812

Sheet - 28 -
B2: =AEXP_BP -> ANALYSIS OF EXPENSE BY PROGRAM | G2: PAGE 11 OF 16
B3: =OPYEAR -> OPERATING FUND 2024/2025 BUDGET
B5: FUNCTION 600: INSTRUCTIONAL & OTHER SUPPORT SERVICES
B6: PROFESSIONAL AND STAFF DEVELOPMENT
E7: OTHER (1)
D8: PER PUPIL | G8: PER PUPIL
A9: DIVISION / DISTRICT | B9: AMOUNT | C9: % | E9: AMOUNT | F9: %
A11: BEAUTIFUL PLAINS | B11: 173420 | C11: =B11/'- 3 -'!$D11*100 -> 0.6078321461 | D11: =B11/'- 7 -'!$E11 -> 77.52346893 | E11: 26571 | F11: =E11/'- 3 -'!$D11*100 -> 0.09313059597 | G11: =E11/'- 7 -'!$E11 -> 11.87796156
A12: BORDER LAND | B12: 363515 | C12: =B12/'- 3 -'!$D12*100 -> 0.9082877147 | D12: =B12/'- 7 -'!$E12 -> 178.6753502 | E12: 175427 | F12: =E12/'- 3 -'!$D12*100 -> 0.4383263109 | G12: =E12/'- 7 -'!$E12 -> 86.22609978
A13: BRANDON | B13: 1638301 | C13: =B13/'- 3 -'!$D13*100 -> 1.237902959 | D13: =B13/'- 7 -'!$E13 -> 173.172771 | E13: 1127170 | F13: =E13/'- 3 -'!$D13*100 -> 0.8516915258 | G13: =E13/'- 7 -'!$E13 -> 119.1448655
A14: DSFM | B14: 701302 | C14: =B14/'- 3 -'!$D14*100 -> 0.5915287155 | D14: =B14/'- 7 -'!$E14 -> 113.5340342 | E14: 293000 | F14: =E14/'- 3 -'!$D14*100 -> 0.247137344 | G14: =E14/'- 7 -'!$E14 -> 47.43387588
A15: EVERGREEN | B15: 196573 | C15: =B15/'- 3 -'!$D15*100 -> 0.7917574064 | D15: =B15/'- 7 -'!$E15 -> 140.8116046 | E15: 3600 | F15: =E15/'- 3 -'!$D15*100 -> 0.0145000924 | G15: =E15/'- 7 -'!$E15 -> 2.578796562
A16: FLIN FLON | B16: 102494 | C16: =B16/'- 3 -'!$D16*100 -> 0.5652428845 | D16: =B16/'- 7 -'!$E16 -> 128.5997491 | E16: 40498 | F16: =E16/'- 3 -'!$D16*100 -> 0.223341916 | G16: =E16/'- 7 -'!$E16 -> 50.81304893
A17: FORT LA BOSSE | B17: 105840 | C17: =B17/'- 3 -'!$D17*100 -> 0.4641874187 | D17: =B17/'- 7 -'!$E17 -> 67.88967287 | E17: 233500 | F17: =E17/'- 3 -'!$D17*100 -> 1.024071828 | G17: =E17/'- 7 -'!$E17 -> 149.7754971
A18: FRONTIER | B18: 1322192 | C18: =B18/'- 3 -'!$D18*100 -> 0.748923672 | D18: =B18/'- 7 -'!$E18 -> 203.3515841 | E18: 3441043 | F18: =E18/'- 3 -'!$D18*100 -> 1.949095562 | G18: =E18/'- 7 -'!$E18 -> 529.2283913
A19: GARDEN VALLEY | B19: 535941 | C19: =B19/'- 3 -'!$D19*100 -> 0.9112215258 | D19: =B19/'- 7 -'!$E19 -> 126.1334432 | E19: 635566 | F19: =E19/'- 3 -'!$D19*100 -> 1.080606672 | G19: =E19/'- 7 -'!$E19 -> 149.5801365
A20: HANOVER | B20: 644200 | C20: =B20/'- 3 -'!$D20*100 -> 0.5570394761 | D20: =B20/'- 7 -'!$E20 -> 75.61920413 | E20: 301300 | F20: =E20/'- 3 -'!$D20*100 -> 0.2605339866 | G20: =E20/'- 7 -'!$E20 -> 35.36800094
A21: INTERLAKE | B21: 522532 | C21: =B21/'- 3 -'!$D21*100 -> 1.172308366 | D21: =B21/'- 7 -'!$E21 -> 182.5758211 | E21: 435653 | F21: =E21/'- 3 -'!$D21*100 -> 0.977394029 | G21: =E21/'- 7 -'!$E21 -> 152.2197764
A22: KELSEY | B22: 70814 | C22: =B22/'- 3 -'!$D22*100 -> 0.2934268556 | D22: =B22/'- 7 -'!$E22 -> 49.45111732 | E22: 661000 | F22: =E22/'- 3 -'!$D22*100 -> 2.738937943 | G22: =E22/'- 7 -'!$E22 -> 461.5921788
A23: LAKESHORE | B23: 187000 | C23: =B23/'- 3 -'!$D23*100 -> 1.026315892 | D23: =B23/'- 7 -'!$E23 -> 191.7948718 | E23: 112000 | F23: =E23/'- 3 -'!$D23*100 -> 0.6146918712 | G23: =E23/'- 7 -'!$E23 -> 114.8717949
A24: LORD SELKIRK | B24: 396235 | C24: =B24/'- 3 -'!$D24*100 -> 0.5731455501 | D24: =B24/'- 7 -'!$E24 -> 105.1858243 | E24: 287753 | F24: =E24/'- 3 -'!$D24*100 -> 0.4162286307 | G24: =E24/'- 7 -'!$E24 -> 76.38784178
A25: LOUIS RIEL | B25: 1496932 | C25: =B25/'- 3 -'!$D25*100 -> 0.6149039492 | D25: =B25/'- 7 -'!$E25 -> 88.01858058 | E25: 2302051 | F25: =E25/'- 3 -'!$D25*100 -> 0.9456276244 | G25: =E25/'- 7 -'!$E25 -> 135.3590286
A26: MOUNTAIN VIEW | B26: 600401 | C26: =B26/'- 3 -'!$D26*100 -> 1.205381631 | D26: =B26/'- 7 -'!$E26 -> 192.9371124 | E26: 310165 | F26: =E26/'- 3 -'!$D26*100 -> 0.6226958207 | G26: =E26/'- 7 -'!$E26 -> 99.67061924
A27: MYSTERY LAKE | B27: 139000 | C27: =B27/'- 3 -'!$D27*100 -> 0.2770178388 | D27: =B27/'- 7 -'!$E27 -> 49.28291585 | E27: 9000 | F27: =E27/'- 3 -'!$D27*100 -> 0.01793640683 | G27: =E27/'- 7 -'!$E27 -> 3.190980163
A28: PARK WEST | B28: 364865 | C28: =B28/'- 3 -'!$D28*100 -> 1.052124854 | D28: =B28/'- 7 -'!$E28 -> 166.4530109 | E28: 242000 | F28: =E28/'- 3 -'!$D28*100 -> 0.6978312932 | G28: =E28/'- 7 -'!$E28 -> 110.4014599
A29: PEMBINA TRAILS | B29: 1695895 | C29: =B29/'- 3 -'!$D29*100 -> 0.7678103923 | D29: =B29/'- 7 -'!$E29 -> 102.3967516 | E29: 1977667 | F29: =E29/'- 3 -'!$D29*100 -> 0.8953816569 | G29: =E29/'- 7 -'!$E29 -> 119.4099143
A30: PINE CREEK | B30: 101333 | C30: =B30/'- 3 -'!$D30*100 -> 0.5162872257 | D30: =B30/'- 7 -'!$E30 -> 94.39496973 | E30: 83909 | F30: =E30/'- 3 -'!$D30*100 -> 0.4275127039 | G30: =E30/'- 7 -'!$E30 -> 78.1639497
A31: PORTAGE LA PRAIRIE | B31: 430897 | C31: =B31/'- 3 -'!$D31*100 -> 0.8662919437 | D31: =B31/'- 7 -'!$E31 -> 127.4843195 | E31: 1438873 | F31: =E31/'- 3 -'!$D31*100 -> 2.892765761 | G31: =E31/'- 7 -'!$E31 -> 425.702071
A32: PRAIRIE ROSE | B32: 423915 | C32: =B32/'- 3 -'!$D32*100 -> 1.150589335 | D32: =B32/'- 7 -'!$E32 -> 183.1957649 | E32: 125750 | F32: =E32/'- 3 -'!$D32*100 -> 0.3413104252 | G32: =E32/'- 7 -'!$E32 -> 54.34312878
A33: PRAIRIE SPIRIT | B33: 183940 | C33: =B33/'- 3 -'!$D33*100 -> 0.5575183843 | D33: =B33/'- 7 -'!$E33 -> 85.55348837 | E33: 182000 | F33: =E33/'- 3 -'!$D33*100 -> 0.5516382839 | G33: =E33/'- 7 -'!$E33 -> 84.65116279
A34: RED RIVER VALLEY | B34: 219906 | C34: =B34/'- 3 -'!$D34*100 -> 0.5806428309 | D34: =B34/'- 7 -'!$E34 -> 93.8165529 | E34: 256775 | F34: =E34/'- 3 -'!$D34*100 -> 0.6779922463 | G34: =E34/'- 7 -'!$E34 -> 109.5456485
A35: RIVER EAST TRANSCONA | B35: 1961173 | C35: =B35/'- 3 -'!$D35*100 -> 0.7810028532 | D35: =B35/'- 7 -'!$E35 -> 108.0119513 | E35: 676813 | F35: =E35/'- 3 -'!$D35*100 -> 0.2695289421 | G35: =E35/'- 7 -'!$E35 -> 37.27559619
A36: ROLLING RIVER | B36: 126000 | C36: =B36/'- 3 -'!$D36*100 -> 0.4510426334 | D36: =B36/'- 7 -'!$E36 -> 71.89728959 | E36: 37750 | F36: =E36/'- 3 -'!$D36*100 -> 0.1351338048 | G36: =E36/'- 7 -'!$E36 -> 21.54065621
A37: SEINE RIVER | B37: 406500 | C37: =B37/'- 3 -'!$D37*100 -> 0.6252985262 | D37: =B37/'- 7 -'!$E37 -> 91.97873063 | E37: 66500 | F37: =E37/'- 3 -'!$D37*100 -> 0.1022936088 | G37: =E37/'- 7 -'!$E37 -> 15.04695101
A38: SEVEN OAKS | B38: 1234280 | C38: =B38/'- 3 -'!$D38*100 -> 0.6856510443 | D38: =B38/'- 7 -'!$E38 -> 104.3567956 | E38: 3153720 | F38: =E38/'- 3 -'!$D38*100 -> 1.751913189 | G38: =E38/'- 7 -'!$E38 -> 266.642993
A39: SOUTHWEST HORIZON | B39: 78500 | C39: =B39/'- 3 -'!$D39*100 -> 0.2986607822 | D39: =B39/'- 7 -'!$E39 -> 55.10705511 | E39: 29900 | F39: =E39/'- 3 -'!$D39*100 -> 0.113757419 | G39: =E39/'- 7 -'!$E39 -> 20.98982099
A40: ST. JAMES-ASSINIBOIA | B40: 1857003 | C40: =B40/'- 3 -'!$D40*100 -> 1.430456836 | D40: =B40/'- 7 -'!$E40 -> 230.4977726 | E40: 546989 | F40: =E40/'- 3 -'!$D40*100 -> 0.4213478137 | G40: =E40/'- 7 -'!$E40 -> 67.89420703
A41: SUNRISE | B41: 421690 | C41: =B41/'- 3 -'!$D41*100 -> 0.5253034076 | D41: =B41/'- 7 -'!$E41 -> 91.40348976 | E41: 43050 | F41: =E41/'- 3 -'!$D41*100 -> 0.05362781118 | G41: =E41/'- 7 -'!$E41 -> 9.331310285
A42: SWAN VALLEY | B42: 176753 | C42: =B42/'- 3 -'!$D42*100 -> 0.6437729004 | D42: =B42/'- 7 -'!$E42 -> 127.527417 | E42: 183486 | F42: =E42/'- 3 -'!$D42*100 -> 0.668295952 | G42: =E42/'- 7 -'!$E42 -> 132.3852814
A43: TURTLE MOUNTAIN | B43: 75601 | C43: =B43/'- 3 -'!$D43*100 -> 0.4710092355 | D43: =B43/'- 7 -'!$E43 -> 71.79582146 | E43: 196126 | F43: =E43/'- 3 -'!$D43*100 -> 1.221903908 | G43: =E43/'- 7 -'!$E43 -> 186.2545109
A44: TURTLE RIVER | B44: 38129 | C44: =B44/'- 3 -'!$D44*100 -> 0.2989633783 | D44: =B44/'- 7 -'!$E44 -> 63.07526882 | E44: 80001 | F44: =E44/'- 3 -'!$D44*100 -> 0.6272750196 | G44: =E44/'- 7 -'!$E44 -> 132.3424318
A45: WESTERN | B45: 186937 | C45: =B45/'- 3 -'!$D45*100 -> 0.6092845518 | D45: =B45/'- 7 -'!$E45 -> 82.35110132 | E45: 249977 | F45: =E45/'- 3 -'!$D45*100 -> 0.8147510894 | G45: =E45/'- 7 -'!$E45 -> 110.1220264
A46: WINNIPEG | B46: 2626789 | C46: =B46/'- 3 -'!$D46*100 -> 0.5529037408 | D46: =B46/'- 7 -'!$E46 -> 92.45025165 | E46: 7360064 | F46: =E46/'- 3 -'!$D46*100 -> 1.549194442 | G46: =E46/'- 7 -'!$E46 -> 259.0386091
A48: PROVINCE | B48: =SUM(B11:B46) -> 21806798 | C48: =B48/'- 3 -'!$D48*100 -> 0.7291236116 | D48: =B48/'- 7 -'!$E48 -> 115.4413546 | E48: =SUM(E11:E46) -> 27326647 | F48: =E48/'- 3 -'!$D48*100 -> 0.9136831346 | G48: =E48/'- 7 -'!$E48 -> 144.6624647
A50: WHITESHELL | B50: 46126 | C50: =B50/'- 3 -'!$D50*100 -> 1.093053897 | D50: =B50/'- 7 -'!$E50 -> 267.3971014 | E50: 54850 | F50: =E50/'- 3 -'!$D50*100 -> 1.299787674 | G50: =E50/'- 7 -'!$E50 -> 317.9710145
A52: (1) Includes nutritional programs and other food services, health services, and other activities related to instructional and other support not included. in previous programs.

Sheet - 29 -
B2: =AEXP_BP -> ANALYSIS OF EXPENSE BY PROGRAM | G2: PAGE 12 OF 16
B3: =OPYEAR -> OPERATING FUND 2024/2025 BUDGET
B6: FUNCTION 700: TRANSPORTATION OF PUPILS
F7: ALLOWANCES IN LIEU OF TRANSPORTATION
B8: ADMINISTRATION | D8: REGULAR
A9: DIVISION / DISTRICT | B9: AMOUNT | C9: % | D9: AMOUNT | E9: % | F9: AMOUNT | G9: %
A11: BEAUTIFUL PLAINS | B11: 107448 | C11: =B11/'- 3 -'!$D11*100 -> 0.3766021706 | D11: 1425789 | E11: =D11/'- 3 -'!$D11*100 -> 4.997349716 | F11: 9500 | G11: =F11/'- 3 -'!$D11*100 -> 0.03329722862
A12: BORDER LAND | B12: 159164 | C12: =B12/'- 3 -'!$D12*100 -> 0.3976911704 | D12: 2457222 | E12: =D12/'- 3 -'!$D12*100 -> 6.139676643 | F12: 0 | G12: =F12/'- 3 -'!$D12*100 -> 0
A13: BRANDON | B13: 253680 | C13: =B13/'- 3 -'!$D13*100 -> 0.1916810297 | D13: 2696210 | E13: =D13/'- 3 -'!$D13*100 -> 2.037260758 | F13: 1850 | G13: =F13/'- 3 -'!$D13*100 -> 0.001397863075
A14: DSFM | B14: 292501 | C14: =B14/'- 3 -'!$D14*100 -> 0.2467164514 | D14: 12127199 | E14: =D14/'- 3 -'!$D14*100 -> 10.22895478 | F14: 420343 | G14: =F14/'- 3 -'!$D14*100 -> 0.3545476198
A15: EVERGREEN | B15: 235120 | C15: =B15/'- 3 -'!$D15*100 -> 0.9470171457 | D15: 1719678 | E15: =D15/'- 3 -'!$D15*100 -> 6.926524971 | F15: 15000 | G15: =F15/'- 3 -'!$D15*100 -> 0.06041705166
A16: FLIN FLON | B16: 0 | C16: =B16/'- 3 -'!$D16*100 -> 0 | D16: 414783 | E16: =D16/'- 3 -'!$D16*100 -> 2.287481602 | F16: 375 | G16: =F16/'- 3 -'!$D16*100 -> 0.002068082831
A17: FORT LA BOSSE | B17: 81765 | C17: =B17/'- 3 -'!$D17*100 -> 0.3586005697 | D17: 1623631 | E17: =D17/'- 3 -'!$D17*100 -> 7.120834116 | F17: 1500 | G17: =F17/'- 3 -'!$D17*100 -> 0.00657861988
A18: FRONTIER | B18: 550064 | C18: =B18/'- 3 -'!$D18*100 -> 0.3115704457 | D18: 9770950 | E18: =D18/'- 3 -'!$D18*100 -> 5.534518249 | F18: 112685 | G18: =F18/'- 3 -'!$D18*100 -> 0.06382769218
A19: GARDEN VALLEY | B19: 175692 | C19: =B19/'- 3 -'!$D19*100 -> 0.2987163369 | D19: 2727095 | E19: =D19/'- 3 -'!$D19*100 -> 4.636681401 | F19: 18000 | G19: =F19/'- 3 -'!$D19*100 -> 0.03060409161
A20: HANOVER | B20: 323300 | C20: =B20/'- 3 -'!$D20*100 -> 0.2795573776 | D20: 4227700 | E20: =D20/'- 3 -'!$D20*100 -> 3.655690458 | F20: 2000 | G20: =F20/'- 3 -'!$D20*100 -> 0.001729399181
A21: INTERLAKE | B21: 174658 | C21: =B21/'- 3 -'!$D21*100 -> 0.3918478384 | D21: 2666942 | E21: =D21/'- 3 -'!$D21*100 -> 5.983324312 | F21: 0 | G21: =F21/'- 3 -'!$D21*100 -> 0
A22: KELSEY | B22: 92269 | C22: =B22/'- 3 -'!$D22*100 -> 0.382328389 | D22: 460937 | E22: =D22/'- 3 -'!$D22*100 -> 1.909951345 | F22: 3500 | G22: =F22/'- 3 -'!$D22*100 -> 0.01450269713
A23: LAKESHORE | B23: 112800 | C23: =B23/'- 3 -'!$D23*100 -> 0.6190825274 | D23: 1755300 | E23: =D23/'- 3 -'!$D23*100 -> 9.633648584 | F23: 4500 | G23: =F23/'- 3 -'!$D23*100 -> 0.02469744125
A24: LORD SELKIRK | B24: 280644 | C24: =B24/'- 3 -'!$D24*100 -> 0.4059456125 | D24: 2801207 | E24: =D24/'- 3 -'!$D24*100 -> 4.051886701 | F24: 5000 | G24: =F24/'- 3 -'!$D24*100 -> 0.007232394287
A25: LOUIS RIEL | B25: 581472 | C25: =B25/'- 3 -'!$D25*100 -> 0.2388548238 | D25: 6231481 | E25: =D25/'- 3 -'!$D25*100 -> 2.559743713 | F25: 0 | G25: =F25/'- 3 -'!$D25*100 -> 0
A26: MOUNTAIN VIEW | B26: 230724 | C26: =B26/'- 3 -'!$D26*100 -> 0.4632078749 | D26: 3070631 | E26: =D26/'- 3 -'!$D26*100 -> 6.164683606 | F26: 10500 | G26: =F26/'- 3 -'!$D26*100 -> 0.02108009001
A27: MYSTERY LAKE | B27: 0 | C27: =B27/'- 3 -'!$D27*100 -> 0 | D27: 57500 | E27: =D27/'- 3 -'!$D27*100 -> 0.1145937103 | F27: 270000 | G27: =F27/'- 3 -'!$D27*100 -> 0.5380922048
A28: PARK WEST | B28: 61247 | C28: =B28/'- 3 -'!$D28*100 -> 0.1766118728 | D28: 2052278 | E28: =D28/'- 3 -'!$D28*100 -> 5.917949631 | F28: 0 | G28: =F28/'- 3 -'!$D28*100 -> 0
A29: PEMBINA TRAILS | B29: 632385 | C29: =B29/'- 3 -'!$D29*100 -> 0.2863100457 | D29: 4268101 | E29: =D29/'- 3 -'!$D29*100 -> 1.932367454 | F29: 115000 | G29: =F29/'- 3 -'!$D29*100 -> 0.05206583846
A30: PINE CREEK | B30: 191016 | C30: =B30/'- 3 -'!$D30*100 -> 0.9732182084 | D30: 1525795 | E30: =D30/'- 3 -'!$D30*100 -> 7.773859134 | F30: 0 | G30: =F30/'- 3 -'!$D30*100 -> 0
A31: PORTAGE LA PRAIRIE | B31: 182220 | C31: =B31/'- 3 -'!$D31*100 -> 0.3663421142 | D31: 1209098 | E31: =D31/'- 3 -'!$D31*100 -> 2.430817241 | F31: 5000 | G31: =F31/'- 3 -'!$D31*100 -> 0.01005219279
A32: PRAIRIE ROSE | B32: 182178 | C32: =B32/'- 3 -'!$D32*100 -> 0.4944672019 | D32: 2473550 | E32: =D32/'- 3 -'!$D32*100 -> 6.713704988 | F32: 0 | G32: =F32/'- 3 -'!$D32*100 -> 0
A33: PRAIRIE SPIRIT | B33: 138225 | C33: =B33/'- 3 -'!$D33*100 -> 0.4189571527 | D33: 2602117 | E33: =D33/'- 3 -'!$D33*100 -> 7.886963496 | F33: 0 | G33: =F33/'- 3 -'!$D33*100 -> 0
A34: RED RIVER VALLEY | B34: 187212 | C34: =B34/'- 3 -'!$D34*100 -> 0.4943171431 | D34: 2932845 | E34: =D34/'- 3 -'!$D34*100 -> 7.743924329 | F34: 80000 | G34: =F34/'- 3 -'!$D34*100 -> 0.2112331017
A35: RIVER EAST TRANSCONA | B35: 593680 | C35: =B35/'- 3 -'!$D35*100 -> 0.2364226786 | D35: 5471028 | E35: =D35/'- 3 -'!$D35*100 -> 2.178741232 | F35: 70000 | G35: =F35/'- 3 -'!$D35*100 -> 0.02787627594
A36: ROLLING RIVER | B36: 72955 | C36: =B36/'- 3 -'!$D36*100 -> 0.2611572644 | D36: 1896450 | E36: =D36/'- 3 -'!$D36*100 -> 6.788728588 | F36: 9500 | G36: =F36/'- 3 -'!$D36*100 -> 0.03400718267
A37: SEINE RIVER | B37: 249250 | C37: =B37/'- 3 -'!$D37*100 -> 0.3834087519 | D37: 3921100 | E37: =D37/'- 3 -'!$D37*100 -> 6.031631122 | F37: 2000 | G37: =F37/'- 3 -'!$D37*100 -> 0.003076499514
A38: SEVEN OAKS | B38: 370230 | C38: =B38/'- 3 -'!$D38*100 -> 0.2056653159 | D38: 4120491 | E38: =D38/'- 3 -'!$D38*100 -> 2.288961141 | F38: 0 | G38: =F38/'- 3 -'!$D38*100 -> 0
A39: SOUTHWEST HORIZON | B39: 138000 | C39: =B39/'- 3 -'!$D39*100 -> 0.5250342414 | D39: 2229200 | E39: =D39/'- 3 -'!$D39*100 -> 8.481205296 | F39: 900 | G39: =F39/'- 3 -'!$D39*100 -> 0.003424136357
A40: ST. JAMES-ASSINIBOIA | B40: 181005 | C40: =B40/'- 3 -'!$D40*100 -> 0.1394288752 | D40: 2876448 | E40: =D40/'- 3 -'!$D40*100 -> 2.215739395 | F40: 2400 | G40: =F40/'- 3 -'!$D40*100 -> 0.001848729596
A41: SUNRISE | B41: 467106 | C41: =B41/'- 3 -'!$D41*100 -> 0.5818785684 | D41: 5636017 | E41: =D41/'- 3 -'!$D41*100 -> 7.020842172 | F41: 38000 | G41: =F41/'- 3 -'!$D41*100 -> 0.04733697619
A42: SWAN VALLEY | B42: 146538 | C42: =B42/'- 3 -'!$D42*100 -> 0.5337232934 | D42: 1968624 | E42: =D42/'- 3 -'!$D42*100 -> 7.170157125 | F42: 0 | G42: =F42/'- 3 -'!$D42*100 -> 0
A43: TURTLE MOUNTAIN | B43: 84225 | C43: =B43/'- 3 -'!$D43*100 -> 0.5247384672 | D43: 1204146 | E43: =D43/'- 3 -'!$D43*100 -> 7.502068582 | F43: 0 | G43: =F43/'- 3 -'!$D43*100 -> 0
A44: TURTLE RIVER | B44: 70907 | C44: =B44/'- 3 -'!$D44*100 -> 0.5559704231 | D44: 1308731 | E44: =D44/'- 3 -'!$D44*100 -> 10.26155003 | F44: 0 | G44: =F44/'- 3 -'!$D44*100 -> 0
A45: WESTERN | B45: 96996 | C45: =B45/'- 3 -'!$D45*100 -> 0.3161394715 | D45: 1093383 | E45: =D45/'- 3 -'!$D45*100 -> 3.563667819 | F45: 15000 | G45: =F45/'- 3 -'!$D45*100 -> 0.0488895632
A46: WINNIPEG | B46: 769266 | C46: =B46/'- 3 -'!$D46*100 -> 0.1619201425 | D46: 7045515 | E46: =D46/'- 3 -'!$D46*100 -> 1.482986109 | F46: 0 | G46: =F46/'- 3 -'!$D46*100 -> 0
A48: PROVINCE | B48: =SUM(B11:B46) -> 8465942 | C48: =B48/'- 3 -'!$D48*100 -> 0.2830639421 | D48: =SUM(D11:D46) -> 112069172 | E48: =D48/'- 3 -'!$D48*100 -> 3.747101222 | F48: =SUM(F11:F46) -> 1212553 | G48: =F48/'- 3 -'!$D48*100 -> 0.04054245023
A50: WHITESHELL | B50: 0 | C50: =B50/'- 3 -'!$D50*100 -> 0 | D50: 0 | E50: =D50/'- 3 -'!$D50*100 -> 0 | F50: 4000 | G50: =F50/'- 3 -'!$D50*100 -> 0.0947885268

Sheet - 30 -
B2: =AEXP_BP -> ANALYSIS OF EXPENSE BY PROGRAM | F2: PAGE 13 OF 16
B3: =OPYEAR -> OPERATING FUND 2024/2025 BUDGET
B6: FUNCTION 700: TRANSPORTATION (CONT'D)
B7: BOARDING OF STUDENTS | D7: FIELD TRIPS AND OTHER
A9: DIVISION / DISTRICT | B9: AMOUNT | C9: % | D9: AMOUNT | E9: %
A11: BEAUTIFUL PLAINS | B11: 0 | C11: =B11/'- 3 -'!$D11*100 -> 0 | D11: 160000 | E11: =D11/'- 3 -'!$D11*100 -> 0.5607954294
A12: BORDER LAND | B12: 0 | C12: =B12/'- 3 -'!$D12*100 -> 0 | D12: 333120 | E12: =D12/'- 3 -'!$D12*100 -> 0.8323420038
A13: BRANDON | B13: 0 | C13: =B13/'- 3 -'!$D13*100 -> 0 | D13: 86300 | E13: =D13/'- 3 -'!$D13*100 -> 0.06520842346
A14: DSFM | B14: 845991 | C14: =B14/'- 3 -'!$D14*100 -> 0.7135698595 | D14: 0 | E14: =D14/'- 3 -'!$D14*100 -> 0
A15: EVERGREEN | B15: 0 | C15: =B15/'- 3 -'!$D15*100 -> 0 | D15: 88325 | E15: =D15/'- 3 -'!$D15*100 -> 0.3557557392
A16: FLIN FLON | B16: 0 | C16: =B16/'- 3 -'!$D16*100 -> 0 | D16: 153282 | E16: =D16/'- 3 -'!$D16*100 -> 0.8453329933
A17: FORT LA BOSSE | B17: 0 | C17: =B17/'- 3 -'!$D17*100 -> 0 | D17: 36750 | E17: =D17/'- 3 -'!$D17*100 -> 0.1611761871
A18: FRONTIER | B18: 3127364 | C18: =B18/'- 3 -'!$D18*100 -> 1.771419681 | D18: 1284460 | E18: =D18/'- 3 -'!$D18*100 -> 0.7275512934
A19: GARDEN VALLEY | B19: 0 | C19: =B19/'- 3 -'!$D19*100 -> 0 | D19: 152500 | E19: =D19/'- 3 -'!$D19*100 -> 0.2592846651
A20: HANOVER | B20: 0 | C20: =B20/'- 3 -'!$D20*100 -> 0 | D20: 432400 | E20: =D20/'- 3 -'!$D20*100 -> 0.3738961029
A21: INTERLAKE | B21: 0 | C21: =B21/'- 3 -'!$D21*100 -> 0 | D21: 140000 | E21: =D21/'- 3 -'!$D21*100 -> 0.3140920964
A22: KELSEY | B22: 0 | C22: =B22/'- 3 -'!$D22*100 -> 0 | D22: 48000 | E22: =D22/'- 3 -'!$D22*100 -> 0.1988941321
A23: LAKESHORE | B23: 0 | C23: =B23/'- 3 -'!$D23*100 -> 0 | D23: 30000 | E23: =D23/'- 3 -'!$D23*100 -> 0.1646496083
A24: LORD SELKIRK | B24: 0 | C24: =B24/'- 3 -'!$D24*100 -> 0 | D24: 100500 | E24: =D24/'- 3 -'!$D24*100 -> 0.1453711252
A25: LOUIS RIEL | B25: 0 | C25: =B25/'- 3 -'!$D25*100 -> 0 | D25: 140529 | E25: =D25/'- 3 -'!$D25*100 -> 0.05772596021
A26: MOUNTAIN VIEW | B26: 0 | C26: =B26/'- 3 -'!$D26*100 -> 0 | D26: 176742 | E26: =D26/'- 3 -'!$D26*100 -> 0.3548321208
A27: MYSTERY LAKE | B27: 0 | C27: =B27/'- 3 -'!$D27*100 -> 0 | D27: 172000 | E27: =D27/'- 3 -'!$D27*100 -> 0.3427846638
A28: PARK WEST | B28: 0 | C28: =B28/'- 3 -'!$D28*100 -> 0 | D28: 117262 | E28: =D28/'- 3 -'!$D28*100 -> 0.3381367483
A29: PEMBINA TRAILS | B29: 0 | C29: =B29/'- 3 -'!$D29*100 -> 0 | D29: 250000 | E29: =D29/'- 3 -'!$D29*100 -> 0.1131866053
A30: PINE CREEK | B30: 0 | C30: =B30/'- 3 -'!$D30*100 -> 0 | D30: 59896 | E30: =D30/'- 3 -'!$D30*100 -> 0.3051675138
A31: PORTAGE LA PRAIRIE | B31: 0 | C31: =B31/'- 3 -'!$D31*100 -> 0 | D31: 37600 | E31: =D31/'- 3 -'!$D31*100 -> 0.07559248981
A32: PRAIRIE ROSE | B32: 0 | C32: =B32/'- 3 -'!$D32*100 -> 0 | D32: 83121 | E32: =D32/'- 3 -'!$D32*100 -> 0.2256068696
A33: PRAIRIE SPIRIT | B33: 0 | C33: =B33/'- 3 -'!$D33*100 -> 0 | D33: 88500 | E33: =D33/'- 3 -'!$D33*100 -> 0.268241693
A34: RED RIVER VALLEY | B34: 0 | C34: =B34/'- 3 -'!$D34*100 -> 0 | D34: 157008 | E34: =D34/'- 3 -'!$D34*100 -> 0.4145660855
A35: RIVER EAST TRANSCONA | B35: 0 | C35: =B35/'- 3 -'!$D35*100 -> 0 | D35: 297156 | E35: =D35/'- 3 -'!$D35*100 -> 0.1183371808
A36: ROLLING RIVER | B36: 0 | C36: =B36/'- 3 -'!$D36*100 -> 0 | D36: 97500 | E36: =D36/'- 3 -'!$D36*100 -> 0.3490210853
A37: SEINE RIVER | B37: 0 | C37: =B37/'- 3 -'!$D37*100 -> 0 | D37: 53934 | E37: =D37/'- 3 -'!$D37*100 -> 0.08296396239
A38: SEVEN OAKS | B38: 0 | C38: =B38/'- 3 -'!$D38*100 -> 0 | D38: 432400 | E38: =D38/'- 3 -'!$D38*100 -> 0.2402011793
A39: SOUTHWEST HORIZON | B39: 0 | C39: =B39/'- 3 -'!$D39*100 -> 0 | D39: 15900 | E39: =D39/'- 3 -'!$D39*100 -> 0.06049307564
A40: ST. JAMES-ASSINIBOIA | B40: 0 | C40: =B40/'- 3 -'!$D40*100 -> 0 | D40: 141949 | E40: =D40/'- 3 -'!$D40*100 -> 0.1093438822
A41: SUNRISE | B41: 0 | C41: =B41/'- 3 -'!$D41*100 -> 0 | D41: 158000 | E41: =D41/'- 3 -'!$D41*100 -> 0.1968221641
A42: SWAN VALLEY | B42: 0 | C42: =B42/'- 3 -'!$D42*100 -> 0 | D42: 118159 | E42: =D42/'- 3 -'!$D42*100 -> 0.4303607981
A43: TURTLE MOUNTAIN | B43: 0 | C43: =B43/'- 3 -'!$D43*100 -> 0 | D43: 30000 | E43: =D43/'- 3 -'!$D43*100 -> 0.1869059545
A44: TURTLE RIVER | B44: 0 | C44: =B44/'- 3 -'!$D44*100 -> 0 | D44: 52800 | E44: =D44/'- 3 -'!$D44*100 -> 0.413996338
A45: WESTERN | B45: 0 | C45: =B45/'- 3 -'!$D45*100 -> 0 | D45: 100641 | E45: =D45/'- 3 -'!$D45*100 -> 0.3280196354
A46: WINNIPEG | B46: 0 | C46: =B46/'- 3 -'!$D46*100 -> 0 | D46: 448261 | E46: =D46/'- 3 -'!$D46*100 -> 0.09435290911
A48: PROVINCE | B48: =SUM(B11:B46) -> 3973355 | C48: =B48/'- 3 -'!$D48*100 -> 0.1328515515 | D48: =SUM(D11:D46) -> 6274995 | E48: =D48/'- 3 -'!$D48*100 -> 0.2098082908
A50: WHITESHELL | B50: 0 | C50: =B50/'- 3 -'!$D50*100 -> 0 | D50: 44750 | E50: =D50/'- 3 -'!$D50*100 -> 1.060446644

Sheet - 31 -
B2: =AEXP_BP -> ANALYSIS OF EXPENSE BY PROGRAM | G2: PAGE 14 OF 16
B3: =OPYEAR -> OPERATING FUND 2024/2025 BUDGET
B6: FUNCTION 800: OPERATIONS AND MAINTENANCE
D7: SCHOOL BUILDINGS
B8: ADMINISTRATION | D8: MAINTENANCE | F8: REPAIRS
A9: DIVISION / DISTRICT | B9: AMOUNT | C9: % | D9: AMOUNT | E9: % | F9: AMOUNT | G9: %
A11: BEAUTIFUL PLAINS | B11: 102600 | C11: =B11/'- 3 -'!$D11*100 -> 0.3596100691 | D11: 2063522 | E11: =D11/'- 3 -'!$D11*100 -> 7.232585663 | F11: 316200 | G11: =F11/'- 3 -'!$D11*100 -> 1.108271967
A12: BORDER LAND | B12: 146802 | C12: =B12/'- 3 -'!$D12*100 -> 0.3668031666 | D12: 3367835 | E12: =D12/'- 3 -'!$D12*100 -> 8.41495717 | F12: 308000 | G12: =F12/'- 3 -'!$D12*100 -> 0.7695765405
A13: BRANDON | B13: 614487 | C13: =B13/'- 3 -'!$D13*100 -> 0.4643073987 | D13: 9515230 | E13: =D13/'- 3 -'!$D13*100 -> 7.189723606 | F13: 863010 | G13: =F13/'- 3 -'!$D13*100 -> 0.6520917906
A14: DSFM | B14: 562471 | C14: =B14/'- 3 -'!$D14*100 -> 0.4744286315 | D14: 11264430 | E14: =D14/'- 3 -'!$D14*100 -> 9.501233148 | F14: 300000 | G14: =F14/'- 3 -'!$D14*100 -> 0.2530416492
A15: EVERGREEN | B15: 60948 | C15: =B15/'- 3 -'!$D15*100 -> 0.2454865643 | D15: 2702442 | E15: =D15/'- 3 -'!$D15*100 -> 10.88490519 | F15: 160000 | G15: =F15/'- 3 -'!$D15*100 -> 0.644448551
A16: FLIN FLON | B16: 121131 | C16: =B16/'- 3 -'!$D16*100 -> 0.6680238437 | D16: 2210186 | E16: =D16/'- 3 -'!$D16*100 -> 12.18892725 | F16: 80000 | G16: =F16/'- 3 -'!$D16*100 -> 0.4411910039
A17: FORT LA BOSSE | B17: 81465 | C17: =B17/'- 3 -'!$D17*100 -> 0.3572848457 | D17: 1881912 | E17: =D17/'- 3 -'!$D17*100 -> 8.253589131 | F17: 70000 | G17: =F17/'- 3 -'!$D17*100 -> 0.3070022611
A18: FRONTIER | B18: 1233880 | C18: =B18/'- 3 -'!$D18*100 -> 0.6989014761 | D18: 22280592 | E18: =D18/'- 3 -'!$D18*100 -> 12.62030233 | F18: 2263415 | G18: =F18/'- 3 -'!$D18*100 -> 1.28205667
A19: GARDEN VALLEY | B19: 232600 | C19: =B19/'- 3 -'!$D19*100 -> 0.3954728727 | D19: 5143960 | E19: =D19/'- 3 -'!$D19*100 -> 8.745901283 | F19: 325000 | G19: =F19/'- 3 -'!$D19*100 -> 0.5525738764
A20: HANOVER | B20: 252400 | C20: =B20/'- 3 -'!$D20*100 -> 0.2182501766 | D20: 7496300 | E20: =D20/'- 3 -'!$D20*100 -> 6.482047539 | F20: 901500 | G20: =F20/'- 3 -'!$D20*100 -> 0.7795266807
A21: INTERLAKE | B21: 192986 | C21: =B21/'- 3 -'!$D21*100 -> 0.4329669808 | D21: 3369126 | E21: =D21/'- 3 -'!$D21*100 -> 7.558684631 | F21: 300000 | G21: =F21/'- 3 -'!$D21*100 -> 0.6730544922
A22: KELSEY | B22: 85548 | C22: =B22/'- 3 -'!$D22*100 -> 0.3544790668 | D22: 2648040 | E22: =D22/'- 3 -'!$D22*100 -> 10.97249203 | F22: 67757 | G22: =F22/'- 3 -'!$D22*100 -> 0.2807597855
A23: LAKESHORE | B23: 83095 | C23: =B23/'- 3 -'!$D23*100 -> 0.4560519735 | D23: 1518350 | E23: =D23/'- 3 -'!$D23*100 -> 8.333191094 | F23: 135000 | G23: =F23/'- 3 -'!$D23*100 -> 0.7409232376
A24: LORD SELKIRK | B24: 155040 | C24: =B24/'- 3 -'!$D24*100 -> 0.2242620821 | D24: 6254882 | E24: =D24/'- 3 -'!$D24*100 -> 9.047554569 | F24: 305800 | G24: =F24/'- 3 -'!$D24*100 -> 0.4423332346
A25: LOUIS RIEL | B25: 814867 | C25: =B25/'- 3 -'!$D25*100 -> 0.3347279211 | D25: 21179944 | E25: =D25/'- 3 -'!$D25*100 -> 8.700215647 | F25: 430020 | G25: =F25/'- 3 -'!$D25*100 -> 0.1766419558
A26: MOUNTAIN VIEW | B26: 164918 | C26: =B26/'- 3 -'!$D26*100 -> 0.3310939318 | D26: 5716600 | E26: =D26/'- 3 -'!$D26*100 -> 11.47680405 | F26: 301010 | G26: =F26/'- 3 -'!$D26*100 -> 0.6043159898
A27: MYSTERY LAKE | B27: 233377 | C27: =B27/'- 3 -'!$D27*100 -> 0.4651049796 | D27: 5235821 | E27: =D27/'- 3 -'!$D27*100 -> 10.43464617 | F27: 535000 | G27: =F27/'- 3 -'!$D27*100 -> 1.066219739
A28: PARK WEST | B28: 82218 | C28: =B28/'- 3 -'!$D28*100 -> 0.2370838565 | D28: 3531434 | E28: =D28/'- 3 -'!$D28*100 -> 10.18324444 | F28: 156017 | G28: =F28/'- 3 -'!$D28*100 -> 0.4498906813
A29: PEMBINA TRAILS | B29: 1371656 | C29: =B29/'- 3 -'!$D29*100 -> 0.6210123453 | D29: 19531734 | E29: =D29/'- 3 -'!$D29*100 -> 8.842922672 | F29: 1159000 | G29: =F29/'- 3 -'!$D29*100 -> 0.5247331024
A30: PINE CREEK | B30: 171969 | C30: =B30/'- 3 -'!$D30*100 -> 0.8761745722 | D30: 1409445 | E30: =D30/'- 3 -'!$D30*100 -> 7.181060946 | F30: 119273 | G30: =F30/'- 3 -'!$D30*100 -> 0.6076907451
A31: PORTAGE LA PRAIRIE | B31: 87155 | C31: =B31/'- 3 -'!$D31*100 -> 0.1752197726 | D31: 4231750 | E31: =D31/'- 3 -'!$D31*100 -> 8.507673372 | F31: 380000 | G31: =F31/'- 3 -'!$D31*100 -> 0.7639666524
A32: PRAIRIE ROSE | B32: 171805 | C32: =B32/'- 3 -'!$D32*100 -> 0.4663128239 | D32: 3027380 | E32: =D32/'- 3 -'!$D32*100 -> 8.216909384 | F32: 322100 | G32: =F32/'- 3 -'!$D32*100 -> 0.8742432442
A33: PRAIRIE SPIRIT | B33: 136250 | C33: =B33/'- 3 -'!$D33*100 -> 0.412970968 | D33: 3151685 | E33: =D33/'- 3 -'!$D33*100 -> 9.552692883 | F33: 282800 | G33: =F33/'- 3 -'!$D33*100 -> 0.8571610257
A34: RED RIVER VALLEY | B34: 76439 | C34: =B34/'- 3 -'!$D34*100 -> 0.2018305883 | D34: 2797131 | E34: =D34/'- 3 -'!$D34*100 -> 7.385583214 | F34: 323644 | G34: =F34/'- 3 -'!$D34*100 -> 0.8545540748
A35: RIVER EAST TRANSCONA | B35: 1194590 | C35: =B35/'- 3 -'!$D35*100 -> 0.4757245783 | D35: 23617611 | E35: =D35/'- 3 -'!$D35*100 -> 9.405300591 | F35: 84000 | G35: =F35/'- 3 -'!$D35*100 -> 0.03345153113
A36: ROLLING RIVER | B36: 78495 | C36: =B36/'- 3 -'!$D36*100 -> 0.2809888215 | D36: 2935500 | E36: =D36/'- 3 -'!$D36*100 -> 10.50821945 | F36: 110000 | G36: =F36/'- 3 -'!$D36*100 -> 0.3937673783
A37: SEINE RIVER | B37: 139350 | C37: =B37/'- 3 -'!$D37*100 -> 0.2143551036 | D37: 5092550 | E37: =D37/'- 3 -'!$D37*100 -> 7.8336138 | F37: 265000 | G37: =F37/'- 3 -'!$D37*100 -> 0.4076361856
A38: SEVEN OAKS | B38: 857020 | C38: =B38/'- 3 -'!$D38*100 -> 0.4760805149 | D38: 13170910 | E38: =D38/'- 3 -'!$D38*100 -> 7.316531253 | F38: 1139000 | G38: =F38/'- 3 -'!$D38*100 -> 0.6327223478
A39: SOUTHWEST HORIZON | B39: 126100 | C39: =B39/'- 3 -'!$D39*100 -> 0.4797595495 | D39: 2315500 | E39: =D39/'- 3 -'!$D39*100 -> 8.809541927 | F39: 162000 | G39: =F39/'- 3 -'!$D39*100 -> 0.6163445442
A40: ST. JAMES-ASSINIBOIA | B40: 518863 | C40: =B40/'- 3 -'!$D40*100 -> 0.3996822434 | D40: 10000247 | E40: =D40/'- 3 -'!$D40*100 -> 7.703230247 | F40: 1008422 | G40: =F40/'- 3 -'!$D40*100 -> 0.7767914985
A41: SUNRISE | B41: 212282 | C41: =B41/'- 3 -'!$D41*100 -> 0.2644417889 | D41: 6093417 | E41: =D41/'- 3 -'!$D41*100 -> 7.59062988 | F41: 625000 | G41: =F41/'- 3 -'!$D41*100 -> 0.7785686873
A42: SWAN VALLEY | B42: 114713 | C42: =B42/'- 3 -'!$D42*100 -> 0.417809716 | D42: 2295223 | E42: =D42/'- 3 -'!$D42*100 -> 8.359701775 | F42: 181145 | G42: =F42/'- 3 -'!$D42*100 -> 0.6597695205
A43: TURTLE MOUNTAIN | B43: 75889 | C43: =B43/'- 3 -'!$D43*100 -> 0.4728035326 | D43: 874698 | E43: =D43/'- 3 -'!$D43*100 -> 5.449542152 | F43: 130283 | G43: =F43/'- 3 -'!$D43*100 -> 0.8116889489
A44: TURTLE RIVER | B44: 63443 | C44: =B44/'- 3 -'!$D44*100 -> 0.4974463953 | D44: 1122799 | E44: =D44/'- 3 -'!$D44*100 -> 8.803687014 | F44: 49520 | G44: =F44/'- 3 -'!$D44*100 -> 0.3882783837
A45: WESTERN | B45: 104069 | C45: =B45/'- 3 -'!$D45*100 -> 0.3391925302 | D45: 2646229 | E45: =D45/'- 3 -'!$D45*100 -> 8.62486533 | F45: 139540 | G45: =F45/'- 3 -'!$D45*100 -> 0.45480331
A46: WINNIPEG | B46: 1687174 | C46: =B46/'- 3 -'!$D46*100 -> 0.3551274259 | D46: 49063974 | E46: =D46/'- 3 -'!$D46*100 -> 10.32730637 | F46: 6532779 | G46: =F46/'- 3 -'!$D46*100 -> 1.37506208
A48: PROVINCE | B48: =SUM(B11:B46) -> 12408095 | C48: =B48/'- 3 -'!$D48*100 -> 0.4148722357 | D48: =SUM(D11:D46) -> 270758389 | E48: =D48/'- 3 -'!$D48*100 -> 9.052972126 | F48: =SUM(F11:F46) -> 20831235 | G48: =F48/'- 3 -'!$D48*100 -> 0.6965050667
A50: WHITESHELL | B50: 35274 | C50: =B50/'- 3 -'!$D50*100 -> 0.8358926236 | D50: 515538 | E50: =D50/'- 3 -'!$D50*100 -> 12.21677188 | F50: 14000 | G50: =F50/'- 3 -'!$D50*100 -> 0.3317598438

Sheet - 32 -
B2: =AEXP_BP -> ANALYSIS OF EXPENSE BY PROGRAM | F2: PAGE 15 OF 16
B3: =OPYEAR -> OPERATING FUND 2024/2025 BUDGET
B6: FUNCTION 800: (CONT'D)
B8: OTHER BUILDINGS | D8: GROUNDS
A9: DIVISION / DISTRICT | B9: AMOUNT | C9: % | D9: AMOUNT | E9: %
A11: BEAUTIFUL PLAINS | B11: 78857 | C11: =B11/'- 3 -'!$D11*100 -> 0.2763915324 | D11: 35100 | E11: =D11/'- 3 -'!$D11*100 -> 0.1230244973
A12: BORDER LAND | B12: 353148 | C12: =B12/'- 3 -'!$D12*100 -> 0.8823844679 | D12: 158089 | E12: =D12/'- 3 -'!$D12*100 -> 0.3950051484
A13: BRANDON | B13: 347008 | C13: =B13/'- 3 -'!$D13*100 -> 0.2621998217 | D13: 293890 | E13: =D13/'- 3 -'!$D13*100 -> 0.2220637726
A14: DSFM | B14: 469078 | C14: =B14/'- 3 -'!$D14*100 -> 0.3956542357 | D14: 790000 | E14: =D14/'- 3 -'!$D14*100 -> 0.6663430095
A15: EVERGREEN | B15: 129242 | C15: =B15/'- 3 -'!$D15*100 -> 0.5205613727 | D15: 141600 | E15: =D15/'- 3 -'!$D15*100 -> 0.5703369676
A16: FLIN FLON | B16: 19849 | C16: =B16/'- 3 -'!$D16*100 -> 0.109465003 | D16: 32431 | E16: =D16/'- 3 -'!$D16*100 -> 0.1788533181
A17: FORT LA BOSSE | B17: 110325 | C17: =B17/'- 3 -'!$D17*100 -> 0.4838574922 | D17: 57000 | E17: =D17/'- 3 -'!$D17*100 -> 0.2499875554
A18: FRONTIER | B18: 4302112 | C18: =B18/'- 3 -'!$D18*100 -> 2.436827266 | D18: 74690 | E18: =D18/'- 3 -'!$D18*100 -> 0.0423063436
A19: GARDEN VALLEY | B19: 105000 | C19: =B19/'- 3 -'!$D19*100 -> 0.1785238677 | D19: 65000 | E19: =D19/'- 3 -'!$D19*100 -> 0.1105147753
A20: HANOVER | B20: 1836300 | C20: =B20/'- 3 -'!$D20*100 -> 1.587847858 | D20: 550800 | E20: =D20/'- 3 -'!$D20*100 -> 0.4762765344
A21: INTERLAKE | B21: 171388 | C21: =B21/'- 3 -'!$D21*100 -> 0.3845115444 | D21: 136000 | E21: =D21/'- 3 -'!$D21*100 -> 0.3051180365
A22: KELSEY | B22: 87308 | C22: =B22/'- 3 -'!$D22*100 -> 0.3617718517 | D22: 25000 | E22: =D22/'- 3 -'!$D22*100 -> 0.1035906938
A23: LAKESHORE | B23: 58500 | C23: =B23/'- 3 -'!$D23*100 -> 0.3210667363 | D23: 19082 | E23: =D23/'- 3 -'!$D23*100 -> 0.1047281275
A24: LORD SELKIRK | B24: 167294 | C24: =B24/'- 3 -'!$D24*100 -> 0.241987234 | D24: 171500 | E24: =D24/'- 3 -'!$D24*100 -> 0.2480711241
A25: LOUIS RIEL | B25: 626000 | C25: =B25/'- 3 -'!$D25*100 -> 0.2571458638 | D25: 685000 | E25: =D25/'- 3 -'!$D25*100 -> 0.2813816561
A26: MOUNTAIN VIEW | B26: 215716 | C26: =B26/'- 3 -'!$D26*100 -> 0.4330773996 | D26: 115100 | E26: =D26/'- 3 -'!$D26*100 -> 0.231077939
A27: MYSTERY LAKE | B27: 136356 | C27: =B27/'- 3 -'!$D27*100 -> 0.2717485211 | D27: 156760 | E27: =D27/'- 3 -'!$D27*100 -> 0.3124123483
A28: PARK WEST | B28: 80950 | C28: =B28/'- 3 -'!$D28*100 -> 0.2334274512 | D28: 97000 | E28: =D28/'- 3 -'!$D28*100 -> 0.2797092373
A29: PEMBINA TRAILS | B29: 719791 | C29: =B29/'- 3 -'!$D29*100 -> 0.3258827994 | D29: 1040516 | E29: =D29/'- 3 -'!$D29*100 -> 0.4710898954
A30: PINE CREEK | B30: 52115 | C30: =B30/'- 3 -'!$D30*100 -> 0.2655236573 | D30: 49500 | E30: =D30/'- 3 -'!$D30*100 -> 0.2522003461
A31: PORTAGE LA PRAIRIE | B31: 105530 | C31: =B31/'- 3 -'!$D31*100 -> 0.2121615811 | D31: 237000 | E31: =D31/'- 3 -'!$D31*100 -> 0.4764739385
A32: PRAIRIE ROSE | B32: 140025 | C32: =B32/'- 3 -'!$D32*100 -> 0.3800556047 | D32: 153150 | E32: =D32/'- 3 -'!$D32*100 -> 0.4156794562
A33: PRAIRIE SPIRIT | B33: 116760 | C33: =B33/'- 3 -'!$D33*100 -> 0.353897176 | D33: 46450 | E33: =D33/'- 3 -'!$D33*100 -> 0.1407890016
A34: RED RIVER VALLEY | B34: 121521 | C34: =B34/'- 3 -'!$D34*100 -> 0.320865722 | D34: 139186 | E34: =D34/'- 3 -'!$D34*100 -> 0.3675086312
A35: RIVER EAST TRANSCONA | B35: 304098 | C35: =B35/'- 3 -'!$D35*100 -> 0.1211017109 | D35: 0 | E35: =D35/'- 3 -'!$D35*100 -> 0
A36: ROLLING RIVER | B36: 175750 | C36: =B36/'- 3 -'!$D36*100 -> 0.6291328795 | D36: 86000 | E36: =D36/'- 3 -'!$D36*100 -> 0.3078544958
A37: SEINE RIVER | B37: 266765 | C37: =B37/'- 3 -'!$D37*100 -> 0.4103511964 | D37: 258000 | E37: =D37/'- 3 -'!$D37*100 -> 0.3968684373
A38: SEVEN OAKS | B38: 854060 | C38: =B38/'- 3 -'!$D38*100 -> 0.4744362145 | D38: 537230 | E38: =D38/'- 3 -'!$D38*100 -> 0.2984349666
A39: SOUTHWEST HORIZON | B39: 94200 | C39: =B39/'- 3 -'!$D39*100 -> 0.3583929387 | D39: 70100 | E39: =D39/'- 3 -'!$D39*100 -> 0.2667021762
A40: ST. JAMES-ASSINIBOIA | B40: 628977 | C40: =B40/'- 3 -'!$D40*100 -> 0.4845034979 | D40: 451639 | E40: =D40/'- 3 -'!$D40*100 -> 0.3478993275
A41: SUNRISE | B41: 529616 | C41: =B41/'- 3 -'!$D41*100 -> 0.6597478942 | D41: 330800 | E41: =D41/'- 3 -'!$D41*100 -> 0.4120808348
A42: SWAN VALLEY | B42: 168040 | C42: =B42/'- 3 -'!$D42*100 -> 0.6120382579 | D42: 141452 | E42: =D42/'- 3 -'!$D42*100 -> 0.5151989744
A43: TURTLE MOUNTAIN | B43: 147618 | C43: =B43/'- 3 -'!$D43*100 -> 0.9196894396 | D43: 26028 | E43: =D43/'- 3 -'!$D43*100 -> 0.1621596061
A44: TURTLE RIVER | B44: 43022 | C44: =B44/'- 3 -'!$D44*100 -> 0.3373286071 | D44: 37800 | E44: =D44/'- 3 -'!$D44*100 -> 0.296383742
A45: WESTERN | B45: 57200 | C45: =B45/'- 3 -'!$D45*100 -> 0.186432201 | D45: 129500 | E45: =D45/'- 3 -'!$D45*100 -> 0.4220798957
A46: WINNIPEG | B46: 3018733 | C46: =B46/'- 3 -'!$D46*100 -> 0.6354026792 | D46: 1796483 | E46: =D46/'- 3 -'!$D46*100 -> 0.3781354997
A48: PROVINCE | B48: =SUM(B11:B46) -> 16838252 | C48: =B48/'- 3 -'!$D48*100 -> 0.5629972411 | D48: =SUM(D11:D46) -> 9134876 | E48: =D48/'- 3 -'!$D48*100 -> 0.305430159
A50: WHITESHELL | B50: 5000 | C50: =B50/'- 3 -'!$D50*100 -> 0.1184856585 | D50: 20000 | E50: =D50/'- 3 -'!$D50*100 -> 0.473942634

Sheet - 33 -
B2: =AEXP_BP -> ANALYSIS OF EXPENSE BY PROGRAM | F2: PAGE 16 OF 16
B3: =OPYEAR -> OPERATING FUND 2024/2025 BUDGET
B6: FUNCTION 900: FISCAL
D7: HEALTH AND EDUCATION LEVY
B8: DEBT SERVICES
A9: DIVISION / DISTRICT | B9: AMOUNT | C9: % | D9: AMOUNT | E9: %
A11: BEAUTIFUL PLAINS | B11: 19000 | C11: =B11/'- 3 -'!$D11*100 -> 0.06659445725 | D11: 473959 | E11: =D11/'- 3 -'!$D11*100 -> 1.661212756
A12: BORDER LAND | B12: 65000 | C12: =B12/'- 3 -'!$D12*100 -> 0.1624106335 | D12: 609760 | E12: =D12/'- 3 -'!$D12*100 -> 1.52356166
A13: BRANDON | B13: 18700 | C13: =B13/'- 3 -'!$D13*100 -> 0.01412975109 | D13: 2258862 | E13: =D13/'- 3 -'!$D13*100 -> 1.706799882
A14: DSFM | B14: 5000 | C14: =B14/'- 3 -'!$D14*100 -> 0.00421736082 | D14: 1730155 | E14: =D14/'- 3 -'!$D14*100 -> 1.459337582
A15: EVERGREEN | B15: 0 | C15: =B15/'- 3 -'!$D15*100 -> 0 | D15: 375000 | E15: =D15/'- 3 -'!$D15*100 -> 1.510426291
A16: FLIN FLON | B16: 20000 | C16: =B16/'- 3 -'!$D16*100 -> 0.110297751 | D16: 285064 | E16: =D16/'- 3 -'!$D16*100 -> 1.572095904
A17: FORT LA BOSSE | B17: 100000 | C17: =B17/'- 3 -'!$D17*100 -> 0.4385746587 | D17: 382000 | E17: =D17/'- 3 -'!$D17*100 -> 1.675355196
A18: FRONTIER | B18: 500000 | C18: =B18/'- 3 -'!$D18*100 -> 0.283212904 | D18: 1332375 | E18: =D18/'- 3 -'!$D18*100 -> 0.754691586
A19: GARDEN VALLEY | B19: 0 | C19: =B19/'- 3 -'!$D19*100 -> 0 | D19: 970800 | E19: =D19/'- 3 -'!$D19*100 -> 1.650580674
A20: HANOVER | B20: 442300 | C20: =B20/'- 3 -'!$D20*100 -> 0.3824566288 | D20: 1947100 | E20: =D20/'- 3 -'!$D20*100 -> 1.683656572
A21: INTERLAKE | B21: 90000 | C21: =B21/'- 3 -'!$D21*100 -> 0.2019163477 | D21: 751000 | E21: =D21/'- 3 -'!$D21*100 -> 1.684879746
A22: KELSEY | B22: 10000 | C22: =B22/'- 3 -'!$D22*100 -> 0.04143627751 | D22: 392771 | E22: =D22/'- 3 -'!$D22*100 -> 1.627496815
A23: LAKESHORE | B23: 5000 | C23: =B23/'- 3 -'!$D23*100 -> 0.02744160139 | D23: 260000 | E23: =D23/'- 3 -'!$D23*100 -> 1.426963272
A24: LORD SELKIRK | B24: 200000 | C24: =B24/'- 3 -'!$D24*100 -> 0.2892957715 | D24: 1102700 | E24: =D24/'- 3 -'!$D24*100 -> 1.595032236
A25: LOUIS RIEL | B25: 215250 | C25: =B25/'- 3 -'!$D25*100 -> 0.08841956419 | D25: 4023641 | E25: =D25/'- 3 -'!$D25*100 -> 1.65281572
A26: MOUNTAIN VIEW | B26: 161600 | C26: =B26/'- 3 -'!$D26*100 -> 0.3244326234 | D26: 769913 | E26: =D26/'- 3 -'!$D26*100 -> 1.545698604
A27: MYSTERY LAKE | B27: 10000 | C27: =B27/'- 3 -'!$D27*100 -> 0.01992934092 | D27: 804823 | E27: =D27/'- 3 -'!$D27*100 -> 1.603959195
A28: PARK WEST | B28: 92600 | C28: =B28/'- 3 -'!$D28*100 -> 0.2670213957 | D28: 434000 | E28: =D28/'- 3 -'!$D28*100 -> 1.251482567
A29: PEMBINA TRAILS | B29: 9000 | C29: =B29/'- 3 -'!$D29*100 -> 0.004074717792 | D29: 3737398 | E29: =D29/'- 3 -'!$D29*100 -> 1.69209357
A30: PINE CREEK | B30: 0 | C30: =B30/'- 3 -'!$D30*100 -> 0 | D30: 324864 | E30: =D30/'- 3 -'!$D30*100 -> 1.655167944
A31: PORTAGE LA PRAIRIE | B31: 15000 | C31: =B31/'- 3 -'!$D31*100 -> 0.03015657838 | D31: 817000 | E31: =D31/'- 3 -'!$D31*100 -> 1.642528303
A32: PRAIRIE ROSE | B32: 160000 | C32: =B32/'- 3 -'!$D32*100 -> 0.434271714 | D32: 599997 | E32: =D32/'- 3 -'!$D32*100 -> 1.628510785
A33: PRAIRIE SPIRIT | B33: 45000 | C33: =B33/'- 3 -'!$D33*100 -> 0.1363940812 | D33: 521000 | E33: =D33/'- 3 -'!$D33*100 -> 1.579140362
A34: RED RIVER VALLEY | B34: 130000 | C34: =B34/'- 3 -'!$D34*100 -> 0.3432537903 | D34: 620005 | E34: =D34/'- 3 -'!$D34*100 -> 1.637069741
A35: RIVER EAST TRANSCONA | B35: 59000 | C35: =B35/'- 3 -'!$D35*100 -> 0.0234957183 | D35: 3681993 | E35: =D35/'- 3 -'!$D35*100 -> 1.466289327
A36: ROLLING RIVER | B36: 258000 | C36: =B36/'- 3 -'!$D36*100 -> 0.9235634874 | D36: 450000 | E36: =D36/'- 3 -'!$D36*100 -> 1.610866548
A37: SEINE RIVER | B37: 60000 | C37: =B37/'- 3 -'!$D37*100 -> 0.09229498542 | D37: 1100000 | E37: =D37/'- 3 -'!$D37*100 -> 1.692074733
A38: SEVEN OAKS | B38: 244163 | C38: =B38/'- 3 -'!$D38*100 -> 0.1356342288 | D38: 2946110 | E38: =D38/'- 3 -'!$D38*100 -> 1.636584404
A39: SOUTHWEST HORIZON | B39: 25000 | C39: =B39/'- 3 -'!$D39*100 -> 0.0951148988 | D39: 423200 | E39: =D39/'- 3 -'!$D39*100 -> 1.610105007
A40: ST. JAMES-ASSINIBOIA | B40: 126945 | C40: =B40/'- 3 -'!$D40*100 -> 0.09778624106 | D40: 2166290 | E40: =D40/'- 3 -'!$D40*100 -> 1.668701848
A41: SUNRISE | B41: 1859143 | C41: =B41/'- 3 -'!$D41*100 -> 2.31595284 | D41: 0 | E41: =D41/'- 3 -'!$D41*100 -> 0
A42: SWAN VALLEY | B42: 5000 | C42: =B42/'- 3 -'!$D42*100 -> 0.01821108837 | D42: 450600 | E42: =D42/'- 3 -'!$D42*100 -> 1.641183284
A43: TURTLE MOUNTAIN | B43: 56000 | C43: =B43/'- 3 -'!$D43*100 -> 0.348891115 | D43: 240000 | E43: =D43/'- 3 -'!$D43*100 -> 1.495247636
A44: TURTLE RIVER | B44: 3000 | C44: =B44/'- 3 -'!$D44*100 -> 0.02352251921 | D44: 202989 | E44: =D44/'- 3 -'!$D44*100 -> 1.591604217
A45: WESTERN | B45: 60000 | C45: =B45/'- 3 -'!$D45*100 -> 0.1955582528 | D45: 517469 | E45: =D45/'- 3 -'!$D45*100 -> 1.686588892
A46: WINNIPEG | B46: 146712 | C46: =B46/'- 3 -'!$D46*100 -> 0.03088090198 | D46: 8078147 | E46: =D46/'- 3 -'!$D46*100 -> 1.700341251
A48: PROVINCE | B48: =SUM(B11:B46) -> 5216413 | C48: =B48/'- 3 -'!$D48*100 -> 0.174413955 | D48: =SUM(D11:D46) -> 45780985 | E48: =D48/'- 3 -'!$D48*100 -> 1.530715198
A50: WHITESHELL | B50: 0 | C50: =B50/'- 3 -'!$D50*100 -> 0 | D50: 0 | E50: =D50/'- 3 -'!$D50*100 -> 0

Sheet - 34 -
D2: =IF(Lang=1,BA2,BB2) -> ANALYSIS OF TRANSPORTATION EXPENSES | BA2: ANALYSIS OF TRANSPORTATION EXPENSES | BB2: ANALYSE DES DÉPENSES DE TRANSPORT
D3: =OPYEAR -> OPERATING FUND 2024/2025 BUDGET
B6: REGULAR TRANSPORTATION
B7: (PROGRAM 720)
C8: TRANSPORTED PUPILS | D8: PER PUPIL | E8: TOTAL KM (ROUTES) | F8: COST PER KM | G8: LOADED KM | H8: COST PER KM
A9: DIVISION / DISTRICT | B9: AMOUNT
A11: BEAUTIFUL PLAINS | B11: ='- 29 -'!$D11 -> 1425789 | C11: 725 | D11: =IF(AND(CELL("type",C11)="v",C11>0),B11/C11,"") -> 1966.605517 | E11: 575484 | F11: =IF(AND(CELL("type",E11)="v",E11>0),B11/E11,"") -> 2.477547595 | G11: 437750 | H11: =IF(AND(CELL("type",G11)="v",G11>0),B11/G11,"") -> 3.257085094
A12: BORDER LAND | B12: ='- 29 -'!$D12 -> 2457222 | C12: 1310 | D12: =IF(AND(CELL("type",C12)="v",C12>0),B12/C12,"") -> 1875.741985 | E12: 1075000 | F12: =IF(AND(CELL("type",E12)="v",E12>0),B12/E12,"") -> 2.285787907 | G12: 700000 | H12: =IF(AND(CELL("type",G12)="v",G12>0),B12/G12,"") -> 3.510317143
A13: BRANDON | B13: ='- 29 -'!$D13 -> 2696210 | C13: 3356 | D13: 803.3998808 | E13: 840000 | F13: 3.20977381 | G13: 523000 | H13: 5.155277247
A14: DSFM | B14: ='- 29 -'!$D14 -> 12127199 | C14: 4678 | D14: 2592.389696 | E14: 3333162 | F14: 3.638346711 | G14: 1753323 | H14: 6.916694186
A15: EVERGREEN | B15: ='- 29 -'!$D15 -> 1719678 | C15: 968 | D15: 1776.52686 | E15: 793724 | F15: 2.166594433 | G15: 436711 | H15: 3.937794102
A16: FLIN FLON | B16: ='- 29 -'!$D16 -> 414783 | C16: 199 | D16: 2084.336683 | E16: 49959 | F16: 8.302468024 | G16: 31476 | H16: 13.17775448
A17: FORT LA BOSSE | B17: ='- 29 -'!$D17 -> 1623631 | C17: 725 | D17: 2239.491034 | E17: 996435 | F17: 1.629439953 | G17: 651761 | H17: 2.49114476
A18: FRONTIER | B18: ='- 29 -'!$D18 -> 9770950 | C18: 4993 | D18: 1956.929702 | E18: 1339000 | F18: 7.297199403 | G18: 812105 | H18: 12.03163384
A19: GARDEN VALLEY | B19: ='- 29 -'!$D19 -> 2727095 | C19: 2950 | D19: 924.4389831 | E19: 830000 | F19: 3.285656627 | G19: 466000 | H19: 5.852135193
A20: HANOVER | B20: ='- 29 -'!$D20 -> 4227700 | C20: 4830 | D20: 875.300207 | E20: 1377776 | F20: 3.068495895 | G20: 856324 | H20: 4.937033179
A21: INTERLAKE | B21: ='- 29 -'!$D21 -> 2666942 | C21: 1784 | D21: 1494.922646 | E21: 969618 | F21: 2.750507932 | G21: 511872 | H21: 5.210173637
A22: KELSEY | B22: ='- 29 -'!$D22 -> 460937 | C22: 380 | D22: 1212.992105 | E22: 160000 | F22: 2.88085625 | G22: 110000 | H22: 4.190336364
A23: LAKESHORE | B23: ='- 29 -'!$D23 -> 1755300 | C23: 657 | D23: 2671.689498 | E23: 860000 | F23: 2.041046512 | G23: 514000 | H23: 3.414980545
A24: LORD SELKIRK | B24: ='- 29 -'!$D24 -> 2801207 | C24: 2551 | D24: 1098.081929 | E24: 1071000 | F24: 2.615506069 | G24: 712400 | H24: 3.932070466
A25: LOUIS RIEL | B25: ='- 29 -'!$D25 -> 6231481 | C25: 3041 | D25: 2049.155212 | E25: 1043628 | F25: 5.970979123 | G25: 471630 | H25: 13.21264763
A26: MOUNTAIN VIEW | B26: ='- 29 -'!$D26 -> 3070631 | C26: 1533 | D26: 2003.020874 | E26: 1226708 | F26: 2.503147448 | G26: 929902 | H26: 3.302101727
A27: MYSTERY LAKE | B27: ='- 29 -'!$D27 -> 57500 | C27: N/A | D27: =IF(AND(CELL("type",C27)="v",C27>0),B27/C27,"") ->  | E27: N/A | F27: =IF(AND(CELL("type",E27)="v",E27>0),B27/E27,"") ->  | G27: N/A
A28: PARK WEST | B28: ='- 29 -'!$D28 -> 2052278 | C28: 840 | D28: 2443.188095 | E28: 1000000 | F28: 2.052278 | G28: 700000 | H28: 2.931825714
A29: PEMBINA TRAILS | B29: ='- 29 -'!$D29 -> 4268101 | C29: 0 | E29: 0 | G29: 0
A30: PINE CREEK | B30: ='- 29 -'!$D30 -> 1525795 | C30: 580 | D30: 2630.681034 | E30: 659088 | F30: 2.315009528 | G30: 411056 | H30: 3.711890837
A31: PORTAGE LA PRAIRIE | B31: ='- 29 -'!$D31 -> 1209098 | C31: 1620 | D31: 746.3567901 | E31: 581077 | F31: 2.080787916 | G31: 380827 | H31: 3.174927198
A32: PRAIRIE ROSE | B32: ='- 29 -'!$D32 -> 2473550 | C32: 1549 | D32: 1596.868948 | E32: 1192651 | F32: 2.073993146 | G32: 731575 | H32: 3.381129754
A33: PRAIRIE SPIRIT | B33: ='- 29 -'!$D33 -> 2602117 | C33: 1110 | D33: 2344.24955 | E33: 1429413 | F33: 1.820409497 | G33: 876936 | H33: 2.967282675
A34: RED RIVER VALLEY | B34: ='- 29 -'!$D34 -> 2932845 | C34: 1372 | D34: 2137.642128 | E34: 1352377 | F34: 2.168659331 | G34: 918380 | H34: 3.193498334
A35: RIVER EAST TRANSCONA | B35: ='- 29 -'!$D35 -> 5471028 | C35: 4524 | D35: 1209.334218 | E35: 1149122 | F35: 4.761050611 | G35: 775667 | H35: 7.053320562
A36: ROLLING RIVER | B36: ='- 29 -'!$D36 -> 1896450 | C36: 950 | D36: 1996.263158 | E36: 832650 | F36: 2.277607638 | G36: 530700 | H36: 3.573487846
A37: SEINE RIVER | B37: ='- 29 -'!$D37 -> 3921100 | C37: 3040 | D37: 1289.835526 | E37: 1621972 | F37: 2.417489328 | G37: 924856 | H37: 4.239687043
A38: SEVEN OAKS | B38: ='- 29 -'!$D38 -> 4120491 | C38: 2947 | D38: 1398.198507 | E38: 849090 | F38: 4.852831855 | G38: 468720 | H38: 8.79094342
A39: SOUTHWEST HORIZON | B39: ='- 29 -'!$D39 -> 2229200 | C39: 680 | D39: 3278.235294 | E39: 939900 | F39: 2.371741675 | G39: 559600 | H39: 3.983559685
A40: ST. JAMES-ASSINIBOIA | B40: ='- 29 -'!$D40 -> 2876448 | C40: 1709 | D40: 1683.117613 | E40: 569985 | F40: 5.046532803 | G40: 282360 | H40: 10.18716532
A41: SUNRISE | B41: ='- 29 -'!$D41 -> 5636017 | C41: 3660 | D41: 1539.895355 | E41: 2209106 | F41: 2.551265987 | G41: 1400030 | H41: 4.025640165
A42: SWAN VALLEY | B42: ='- 29 -'!$D42 -> 1968624 | C42: 1231 | D42: 1599.207149 | E42: 735916 | F42: 2.675066176 | G42: 631679 | H42: 3.116494295
A43: TURTLE MOUNTAIN | B43: ='- 29 -'!$D43 -> 1204146 | C43: 484 | D43: 2487.904959 | E43: 599329 | F43: 2.009156907 | G43: 406112 | H43: 2.9650589
A44: TURTLE RIVER | B44: ='- 29 -'!$D44 -> 1308731 | C44: 388 | D44: 3373.018041 | E44: 673806 | F44: 1.942296447 | G44: 467016 | H44: 2.80232583
A45: WESTERN | B45: ='- 29 -'!$D45 -> 1093383 | C45: 1200 | D45: 911.1525 | E45: 290000 | F45: 3.770286207 | G45: 165000 | H45: 6.626563636
A46: WINNIPEG | B46: ='- 29 -'!$D46 -> 7045515 | C46: 1703 | D46: 4137.119789 | E46: 484530 | F46: 14.54092626 | G46: 437505 | H46: 16.10385024
A48: PROVINCE | B48: =SUM(B11:B46) -> 112069172 | C48: =SUM(C11:C46) -> 64267 | D48: =B48/C48 -> 1743.805872 | E48: =SUM(E11:E46) -> 33711506 | F48: =B48/E48 -> 3.324359701 | G48: =SUM(G11:G46) -> 20986273 | H48: =B48/G48 -> 5.340117895
A50: WHITESHELL | B50: ='- 29 -'!$D50 -> 0 | C50: N/A | D50: =IF(AND(CELL("type",C50)="v",C50>0),B50/C50,"") ->  | E50: N/A | F50: =IF(AND(CELL("type",E50)="v",E50>0),B50/E50,"") ->  | G50: N/A | H50: =IF(AND(CELL("type",G50)="v",G50>0),B50/G50,"") -> 

Sheet - 35 -
B2: =IF(Lang=1,BA2,BB2) -> ANALYSIS OF TRANSPORTATION EXPENSES (CONT'D) | BA2: ANALYSIS OF TRANSPORTATION EXPENSES (CONT'D) | BB2: ANALYSE DES DÉPENSES DE TRANSPORT (SUITE)
B3: =OPYEAR -> OPERATING FUND 2024/2025 BUDGET
B6: ADMINISTRATION, REGULAR AND OTHER
B7: (PROGRAMS 710, 720 AND 790)
C8: TOTAL KM (LOG BOOK) | D8: COST PER KM
A9: DIVISION / DISTRICT | B9: AMOUNT
A11: BEAUTIFUL PLAINS | B11: =SUM('- 29 -'!$B11,'- 29 -'!$D11,'- 30 -'!$D11) -> 1693237 | C11: 635766 | D11: =IF(AND(CELL("type",C11)="v",C11>0),B11/C11,"") -> 2.663302221
A12: BORDER LAND | B12: =SUM('- 29 -'!$B12,'- 29 -'!$D12,'- 30 -'!$D12) -> 2949506 | C12: 1080000 | D12: =IF(AND(CELL("type",C12)="v",C12>0),B12/C12,"") -> 2.731024074
A13: BRANDON | B13: =SUM('- 29 -'!$B13,'- 29 -'!$D13,'- 30 -'!$D13) -> 3036190 | C13: 910000 | D13: 3.336472527
A14: DSFM | B14: =SUM('- 29 -'!$B14,'- 29 -'!$D14,'- 30 -'!$D14) -> 12419700 | C14: N/A
A15: EVERGREEN | B15: =SUM('- 29 -'!$B15,'- 29 -'!$D15,'- 30 -'!$D15) -> 2043123 | C15: 793724 | D15: 2.574097545
A16: FLIN FLON | B16: =SUM('- 29 -'!$B16,'- 29 -'!$D16,'- 30 -'!$D16) -> 568065 | C16: 114957 | D16: 4.94154336
A17: FORT LA BOSSE | B17: =SUM('- 29 -'!$B17,'- 29 -'!$D17,'- 30 -'!$D17) -> 1742146 | C17: 1046125 | D17: 1.665332537
A18: FRONTIER | B18: =SUM('- 29 -'!$B18,'- 29 -'!$D18,'- 30 -'!$D18) -> 11605474 | C18: 1449000 | D18: 8.009298827
A19: GARDEN VALLEY | B19: =SUM('- 29 -'!$B19,'- 29 -'!$D19,'- 30 -'!$D19) -> 3055287 | C19: 760000 | D19: 4.020114474
A20: HANOVER | B20: =SUM('- 29 -'!$B20,'- 29 -'!$D20,'- 30 -'!$D20) -> 4983400 | C20: 1560287 | D20: 3.193899584
A21: INTERLAKE | B21: =SUM('- 29 -'!$B21,'- 29 -'!$D21,'- 30 -'!$D21) -> 2981600 | C21: 800000 | D21: 3.727
A22: KELSEY | B22: =SUM('- 29 -'!$B22,'- 29 -'!$D22,'- 30 -'!$D22) -> 601206 | C22: 136000 | D22: 4.420632353
A23: LAKESHORE | B23: =SUM('- 29 -'!$B23,'- 29 -'!$D23,'- 30 -'!$D23) -> 1898100 | C23: 810000 | D23: 2.343333333
A24: LORD SELKIRK | B24: =SUM('- 29 -'!$B24,'- 29 -'!$D24,'- 30 -'!$D24) -> 3182351 | C24: 1071000 | D24: 2.97138282
A25: LOUIS RIEL | B25: =SUM('- 29 -'!$B25,'- 29 -'!$D25,'- 30 -'!$D25) -> 6953482 | C25: 1801408 | D25: 3.860026157
A26: MOUNTAIN VIEW | B26: =SUM('- 29 -'!$B26,'- 29 -'!$D26,'- 30 -'!$D26) -> 3478097 | C26: 1301708 | D26: 2.671948701
A27: MYSTERY LAKE | B27: =SUM('- 29 -'!$B27,'- 29 -'!$D27,'- 30 -'!$D27) -> 229500 | C27: N/A
A28: PARK WEST | B28: =SUM('- 29 -'!$B28,'- 29 -'!$D28,'- 30 -'!$D28) -> 2230787 | C28: 950000 | D28: 2.348196842
A29: PEMBINA TRAILS | B29: =SUM('- 29 -'!$B29,'- 29 -'!$D29,'- 30 -'!$D29) -> 5150486 | C29: 0
A30: PINE CREEK | B30: =SUM('- 29 -'!$B30,'- 29 -'!$D30,'- 30 -'!$D30) -> 1776707 | C30: 653747 | D30: 2.717728724
A31: PORTAGE LA PRAIRIE | B31: =SUM('- 29 -'!$B31,'- 29 -'!$D31,'- 30 -'!$D31) -> 1428918 | C31: 531310 | D31: 2.689424253
A32: PRAIRIE ROSE | B32: =SUM('- 29 -'!$B32,'- 29 -'!$D32,'- 30 -'!$D32) -> 2738849 | C32: 1089247 | D32: 2.514442546
A33: PRAIRIE SPIRIT | B33: =SUM('- 29 -'!$B33,'- 29 -'!$D33,'- 30 -'!$D33) -> 2828842 | C33: 1474413 | D33: 1.91862253
A34: RED RIVER VALLEY | B34: =SUM('- 29 -'!$B34,'- 29 -'!$D34,'- 30 -'!$D34) -> 3277065 | C34: 1484365 | D34: 2.20772182
A35: RIVER EAST TRANSCONA | B35: =SUM('- 29 -'!$B35,'- 29 -'!$D35,'- 30 -'!$D35) -> 6361864 | C35: 1195125 | D35: 5.323178747
A36: ROLLING RIVER | B36: =SUM('- 29 -'!$B36,'- 29 -'!$D36,'- 30 -'!$D36) -> 2066905 | C36: 870120 | D36: 2.375425229
A37: SEINE RIVER | B37: =SUM('- 29 -'!$B37,'- 29 -'!$D37,'- 30 -'!$D37) -> 4224284 | C37: 1630972 | D37: 2.590040785
A38: SEVEN OAKS | B38: =SUM('- 29 -'!$B38,'- 29 -'!$D38,'- 30 -'!$D38) -> 4923121 | C38: 1168000 | D38: 4.215000856
A39: SOUTHWEST HORIZON | B39: =SUM('- 29 -'!$B39,'- 29 -'!$D39,'- 30 -'!$D39) -> 2383100 | C39: 939900 | D39: 2.535482498
A40: ST. JAMES-ASSINIBOIA | B40: =SUM('- 29 -'!$B40,'- 29 -'!$D40,'- 30 -'!$D40) -> 3199402 | C40: 670000 | D40: 4.775226866
A41: SUNRISE | B41: =SUM('- 29 -'!$B41,'- 29 -'!$D41,'- 30 -'!$D41) -> 6261123 | C41: 2241019 | D41: 2.793873234
A42: SWAN VALLEY | B42: =SUM('- 29 -'!$B42,'- 29 -'!$D42,'- 30 -'!$D42) -> 2233321 | C42: 682562 | D42: 3.271967968
A43: TURTLE MOUNTAIN | B43: =SUM('- 29 -'!$B43,'- 29 -'!$D43,'- 30 -'!$D43) -> 1318371 | C43: 504567 | D43: 2.612875991
A44: TURTLE RIVER | B44: =SUM('- 29 -'!$B44,'- 29 -'!$D44,'- 30 -'!$D44) -> 1432438 | C44: 754241 | D44: 1.899178114
A45: WESTERN | B45: =SUM('- 29 -'!$B45,'- 29 -'!$D45,'- 30 -'!$D45) -> 1291020 | C45: 325000 | D45: 3.972369231
A46: WINNIPEG | B46: =SUM('- 29 -'!$B46,'- 29 -'!$D46,'- 30 -'!$D46) -> 8263042 | C46: 992035 | D46: 8.329385556
A48: PROVINCE | B48: =SUM(B11:B46) -> 126810109 | C48: =SUM(C11:C46) -> 32426598 | D48: =B48/C48 -> 3.910681873
A50: WHITESHELL | B50: =SUM('- 29 -'!$B50,'- 29 -'!$D50,'- 30 -'!$D50) -> 44750 | C50: N/A | D50: =IF(AND(CELL("type",C50)="v",C50>0),B50/C50,"") -> 

Sheet - 36 -
A2: =IF(Lang=1,BA2,BB2) -> ANALYSIS OF OPERATIONS AND MAINTENANCE EXPENSES FOR SCHOOL BUILDINGS | BA2: ANALYSIS OF OPERATIONS AND MAINTENANCE EXPENSES FOR SCHOOL BUILDINGS | BB2: ANALYSE DES DÉPENSES DE FONCTIONNEMENT ET D'ENTRETIEN DES BÂTIMENTS SCOLAIRES
A3: =OPYEAR -> OPERATING FUND 2024/2025 BUDGET
F6: REPAIRS AND REPLACEMENTS
B7: MAINTENANCE | I7: TOTAL
C8: COST PER PUPIL | D8: COST PER SQ FT (1) | E8: SQ FT PER PUPIL (2) | G8: COST PER SQ FT (1) | I8: AREA
A9: DIVISION / DISTRICT | B9: AMOUNT | F9: AMOUNT | I9: at September 30, 2023 | J9: 0 | K9: 0 | L9: 0 | M9: 0
A11: BEAUTIFUL PLAINS | B11: ='- 31 -'!D11 -> 2063522 | C11: =B11/'- 7 -'!E11 -> 922.4506035 | D11: =B11/I11 -> 6.731349126 | E11: =I11/'- 7 -'!E11 -> 137.0379973 | F11: ='- 31 -'!F11 -> 316200 | G11: =F11/I11 -> 1.031465908 | I11: 306554
A12: BORDER LAND | B12: ='- 31 -'!D12 -> 3367835 | C12: =B12/'- 7 -'!E12 -> 1655.362497 | D12: 7.899318627 | E12: =I12/'- 7 -'!E12 -> 209.5576309 | F12: ='- 31 -'!F12 -> 308000 | G12: 0.7224196367 | I12: 426345
A13: BRANDON | B13: ='- 31 -'!D13 -> 9515230 | C13: =B13/'- 7 -'!E13 -> 1005.785106 | D13: 8.388162882 | E13: =I13/'- 7 -'!E13 -> 119.9052904 | F13: ='- 31 -'!F13 -> 863010 | G13: 0.7607875426 | I13: 1134364
A14: DSFM | B14: ='- 31 -'!D14 -> 11264430 | C14: =B14/'- 7 -'!E14 -> 1823.602643 | D14: 10.42048531 | E14: =I14/'- 7 -'!E14 -> 175.0016998 | F14: ='- 31 -'!F14 -> 300000 | G14: 0.2775236381 | I14: 1080989
A15: EVERGREEN | B15: ='- 31 -'!D15 -> 2702442 | C15: =B15/'- 7 -'!E15 -> 1935.846705 | D15: 9.278643383 | E15: =I15/'- 7 -'!E15 -> 208.6346705 | F15: ='- 31 -'!F15 -> 160000 | G15: 0.5493486785 | I15: 291254
A16: FLIN FLON | B16: ='- 31 -'!D16 -> 2210186 | C16: =B16/'- 7 -'!E16 -> 2773.131744 | D16: 10.53749076 | E16: =I16/'- 7 -'!E16 -> 263.1681305 | F16: ='- 31 -'!F16 -> 80000 | G16: 0.3814155284 | I16: 209745
A17: FORT LA BOSSE | B17: ='- 31 -'!D17 -> 1881912 | C17: =B17/'- 7 -'!E17 -> 1207.127646 | D17: 7.12696976 | E17: =I17/'- 7 -'!E17 -> 169.3745991 | F17: ='- 31 -'!F17 -> 70000 | G17: 0.2650962868 | I17: 264055
A18: FRONTIER | B18: ='- 31 -'!D18 -> 22280592 | C18: =B18/'- 7 -'!E18 -> 3426.729006 | D18: 16.7686017 | E18: =I18/'- 7 -'!E18 -> 204.3538911 | F18: ='- 31 -'!F18 -> 2263415 | G18: 1.703469307 | I18: 1328709
A19: GARDEN VALLEY | B19: ='- 31 -'!D19 -> 5143960 | C19: =B19/'- 7 -'!E19 -> 1210.628383 | D19: 7.159872112 | E19: =I19/'- 7 -'!E19 -> 169.0851965 | F19: ='- 31 -'!F19 -> 325000 | G19: 0.4523671328 | I19: 718443
A20: HANOVER | B20: ='- 31 -'!D20 -> 7496300 | C20: =B20/'- 7 -'!E20 -> 879.9506984 | D20: 6.683082475 | E20: =I20/'- 7 -'!E20 -> 131.6683883 | F20: ='- 31 -'!F20 -> 901500 | G20: 0.803703007 | I20: 1121683
A21: INTERLAKE | B21: ='- 31 -'!D21 -> 3369126 | C21: =B21/'- 7 -'!E21 -> 1177.192872 | D21: 7.42959023 | E21: =I21/'- 7 -'!E21 -> 158.4465409 | F21: ='- 31 -'!F21 -> 300000 | G21: 0.6615594279 | I21: 453474
A22: KELSEY | B22: ='- 31 -'!D22 -> 2648040 | C22: =B22/'- 7 -'!E22 -> 1849.189944 | D22: 7.768064584 | E22: =I22/'- 7 -'!E22 -> 238.0502793 | F22: ='- 31 -'!F22 -> 67757 | G22: 0.1987661637 | I22: 340888
A23: LAKESHORE | B23: ='- 31 -'!D23 -> 1518350 | C23: =B23/'- 7 -'!E23 -> 1557.282051 | D23: 6.509371677 | E23: =I23/'- 7 -'!E23 -> 239.2369231 | F23: ='- 31 -'!F23 -> 135000 | G23: 0.5787632472 | I23: 233256
A24: LORD SELKIRK | B24: ='- 31 -'!D24 -> 6254882 | C24: =B24/'- 7 -'!E24 -> 1660.4412 | D24: 8.79836661 | E24: =I24/'- 7 -'!E24 -> 188.7215291 | F24: ='- 31 -'!F24 -> 305800 | G24: 0.4301504823 | I24: 710914
A25: LOUIS RIEL | B25: ='- 31 -'!D25 -> 21179944 | C25: =B25/'- 7 -'!E25 -> 1245.366261 | D25: 9.128695989 | E25: =I25/'- 7 -'!E25 -> 136.4232375 | F25: ='- 31 -'!F25 -> 430020 | G25: 0.185341465 | I25: 2320150
A26: MOUNTAIN VIEW | B26: ='- 31 -'!D26 -> 5716600 | C26: =B26/'- 7 -'!E26 -> 1837.012757 | D26: 7.426055757 | E26: =I26/'- 7 -'!E26 -> 247.3739516 | F26: ='- 31 -'!F26 -> 301010 | G26: 0.3910221186 | I26: 769803
A27: MYSTERY LAKE | B27: ='- 31 -'!D27 -> 5235821 | C27: =B27/'- 7 -'!E27 -> 1856.377883 | D27: 11.15235973 | E27: =I27/'- 7 -'!E27 -> 166.456062 | F27: ='- 31 -'!F27 -> 535000 | G27: 1.139556233 | I27: 469481 | L27: AREA
A28: PARK WEST | B28: ='- 31 -'!D28 -> 3531434 | C28: =B28/'- 7 -'!E28 -> 1611.055657 | D28: 7.949973773 | E28: =I28/'- 7 -'!E28 -> 202.6491788 | F28: ='- 31 -'!F28 -> 156017 | G28: 0.3512258924 | I28: 444207 | K28: 50000 | L28: Waywayseecapo Included | N28: 50000
A29: PEMBINA TRAILS | B29: ='- 31 -'!D29 -> 19531734 | C29: =B29/'- 7 -'!E29 -> 1179.310107 | D29: 10.53223451 | E29: =I29/'- 7 -'!E29 -> 111.971501 | F29: ='- 31 -'!F29 -> 1159000 | G29: 0.6249757343 | I29: 1854472
A30: PINE CREEK | B30: ='- 31 -'!D30 -> 1409445 | C30: =B30/'- 7 -'!E30 -> 1312.943642 | D30: 6.718105034 | E30: =I30/'- 7 -'!E30 -> 195.4336283 | F30: ='- 31 -'!F30 -> 119273 | G30: 0.5685135225 | I30: 209798
A31: PORTAGE LA PRAIRIE | B31: ='- 31 -'!D31 -> 4231750 | C31: =B31/'- 7 -'!E31 -> 1251.997041 | D31: 7.144798779 | E31: =I31/'- 7 -'!E31 -> 175.2319527 | F31: ='- 31 -'!F31 -> 380000 | G31: 0.6415841049 | I31: 592284
A32: PRAIRIE ROSE | B32: ='- 31 -'!D32 -> 3027380 | C32: =B32/'- 7 -'!E32 -> 1308.288678 | D32: 7.897787749 | E32: =I32/'- 7 -'!E32 -> 165.6525497 | F32: ='- 31 -'!F32 -> 322100 | G32: 0.840290097 | I32: 383320
A33: PRAIRIE SPIRIT | B33: ='- 31 -'!D33 -> 3151685 | C33: =B33/'- 7 -'!E33 -> 1465.9 | D33: 6.394283929 | E33: =I33/'- 7 -'!E33 -> 229.2516279 | F33: ='- 31 -'!F33 -> 282800 | G33: 0.5737576868 | I33: 492891
A34: RED RIVER VALLEY | B34: ='- 31 -'!D34 -> 2797131 | C34: =B34/'- 7 -'!E34 -> 1193.315273 | D34: 7.274023046 | E34: =I34/'- 7 -'!E34 -> 164.0516212 | F34: ='- 31 -'!F34 -> 323644 | G34: 0.8416459274 | I34: 384537
A35: RIVER EAST TRANSCONA | B35: ='- 31 -'!D35 -> 23617611 | C35: =B35/'- 7 -'!E35 -> 1300.744121 | D35: 9.520896087 | E35: =I35/'- 7 -'!E35 -> 136.6199262 | F35: ='- 31 -'!F35 -> 84000 | G35: 0.03386266593 | I35: 2480608
A36: ROLLING RIVER | B36: ='- 31 -'!D36 -> 2935500 | C36: =B36/'- 7 -'!E36 -> 1675.035663 | D36: 9.143179291 | E36: =I36/'- 7 -'!E36 -> 183.2005706 | F36: ='- 31 -'!F36 -> 110000 | G36: 0.3426161547 | I36: 321059
A37: SEINE RIVER | B37: ='- 31 -'!D37 -> 5092550 | C37: =B37/'- 7 -'!E37 -> 1152.290983 | D37: 8.372723521 | E37: =I37/'- 7 -'!E37 -> 137.6243919 | F37: ='- 31 -'!F37 -> 265000 | G37: 0.4356897297 | I37: 608231
A38: SEVEN OAKS | B38: ='- 31 -'!D38 -> 13170910 | C38: =B38/'- 7 -'!E38 -> 1113.583598 | D38: 9.017619773 | E38: =I38/'- 7 -'!E38 -> 123.4897485 | F38: ='- 31 -'!F38 -> 1139000 | G38: 0.7798298615 | I38: 1460575
A39: SOUTHWEST HORIZON | B39: ='- 31 -'!D39 -> 2315500 | C39: =B39/'- 7 -'!E39 -> 1625.482625 | D39: 7.351190382 | E39: =I39/'- 7 -'!E39 -> 221.1182871 | F39: ='- 31 -'!F39 -> 162000 | G39: 0.5143134709 | I39: 314983
A40: ST. JAMES-ASSINIBOIA | B40: ='- 31 -'!D40 -> 10000247 | C40: =B40/'- 7 -'!E40 -> 1241.265986 | D40: 6.834738065 | E40: =I40/'- 7 -'!E40 -> 181.6113469 | F40: ='- 31 -'!F40 -> 1008422 | G40: 0.6892129994 | I40: 1463150
A41: SUNRISE | B41: ='- 31 -'!D41 -> 6093417 | C41: =B41/'- 7 -'!E41 -> 1320.779668 | D41: 7.998415653 | E41: =I41/'- 7 -'!E41 -> 165.1301615 | F41: ='- 31 -'!F41 -> 625000 | G41: 0.8203951548 | I41: 761828
A42: SWAN VALLEY | B42: ='- 31 -'!D42 -> 2295223 | C42: =B42/'- 7 -'!E42 -> 1656.005051 | D42: 7.895313838 | E42: =I42/'- 7 -'!E42 -> 209.7453102 | F42: ='- 31 -'!F42 -> 181145 | G42: 0.6231188103 | I42: 290707
A43: TURTLE MOUNTAIN | B43: ='- 31 -'!D43 -> 874698 | C43: =B43/'- 7 -'!E43 -> 830.6723647 | D43: =B43/I43 -> 4.790293431 | E43: =I43/'- 7 -'!E43 -> 173.4074074 | F43: ='- 31 -'!F43 -> 130283 | G43: =F43/I43 -> 0.7134963143 | I43: 182598
A44: TURTLE RIVER | B44: ='- 31 -'!D44 -> 1122799 | C44: =B44/'- 7 -'!E44 -> 1857.401158 | D44: =B44/I44 -> 6.131928326 | E44: =I44/'- 7 -'!E44 -> 302.9065343 | F44: ='- 31 -'!F44 -> 49520 | G44: =F44/I44 -> 0.270442965 | I44: 183107
A45: WESTERN | B45: ='- 31 -'!D45 -> 2646229 | C45: =B45/'- 7 -'!E45 -> 1165.739648 | D45: =B45/I45 -> 11.56300769 | E45: =I45/'- 7 -'!E45 -> 100.8162996 | F45: ='- 31 -'!F45 -> 139540 | G45: =F45/I45 -> 0.609736381 | I45: 228853
A46: WINNIPEG | B46: ='- 31 -'!D46 -> 49063974 | C46: =B46/'- 7 -'!E46 -> 1726.814275 | D46: =B46/I46 -> 9.500492704 | E46: =I46/'- 7 -'!E46 -> 181.760497 | F46: ='- 31 -'!F46 -> 6532779 | G46: =F46/I46 -> 1.264973343 | I46: 5164361
A48: PROVINCE | B48: =SUM(B11:B46) -> 270758389 | C48: =B48/'- 7 -'!E48 -> 1433.347307 | D48: =B48/I48 -> 9.024775449 | E48: =I48/'- 7 -'!E48 -> 158.8235979 | F48: =SUM(F11:F46) -> 20831235 | G48: =F48/I48 -> 0.6943357098 | I48: =SUM(I11:I46) -> 30001676
A50: WHITESHELL | B50: ='- 31 -'!D50 -> 515538 | C50: =B50/'- 7 -'!E50 -> 2988.626087 | D50: =B50/I50 -> 6.956764634 | E50: =I50/'- 7 -'!E50 -> 429.6 | F50: ='- 31 -'!F50 -> 14000 | G50: N/A | I50: 74106
A52: ="(1) Based on area (square footage) of active school buildings as at September 29, "&FAllYR-1&". Includes rented and leased space." -> (1) Based on area (square footage) of active school buildings as at September 29, 2023. Includes rented and leased space.
A53: (2) Square footage (as per note above) divided by total FTE enrolment (from page 7).

Sheet - 37 -
E2: =IF(Lang=1,BA2,BB2) -> ANALYSIS OF INFORMATION TECHNOLOGY EXPENSES | BA2: ANALYSIS OF INFORMATION TECHNOLOGY EXPENSES | BB2: ANALYSE DES DÉPENSES DE TECHNOLOGIE DE L'INFORMATION
E3: =OPYEAR -> OPERATING FUND 2024/2025 BUDGET
B6: INFORMATION TECHNOLOGY EXPENSES (1)
B7: SALARIES | E7: SERVICES | H7: EQUIPMENT
D8: PER PUPIL | G8: PER PUPIL | J8: PER PUPIL
A9: DIVISION / DISTRICT | B9: AMOUNT | C9: % | E9: AMOUNT | F9: % | H9: AMOUNT | I9: %
A11: BEAUTIFUL PLAINS | B11: 214344 | C11: =B11/'- 3 -'!$D11*100 -> 0.751269597 | D11: =B11/'- 7 -'!$E11 -> 95.81761287 | E11: 205809 | F11: =E11/'- 3 -'!$D11*100 -> 0.7213546659 | G11: =E11/'- 7 -'!$E11 -> 92.00223514 | H11: 291682 | I11: =H11/'- 3 -'!$D11*100 -> 1.022337078 | J11: =H11/'- 7 -'!$E11 -> 130.3898078
A12: BORDER LAND | B12: 353434 | C12: =B12/'- 3 -'!$D12*100 -> 0.8830990747 | D12: =B12/'- 7 -'!$E12 -> 173.7203244 | E12: 257491 | F12: =E12/'- 3 -'!$D12*100 -> 0.6433734837 | G12: =E12/'- 7 -'!$E12 -> 126.5623003 | H12: 544820 | I12: =H12/'- 3 -'!$D12*100 -> 1.361300944 | J12: =H12/'- 7 -'!$E12 -> 267.7906119
A13: BRANDON | B13: 616150 | C13: =B13/'- 3 -'!$D13*100 -> 0.4655639643 | D13: =B13/'- 7 -'!$E13 -> 65.12869299 | E13: 764140 | F13: =E13/'- 3 -'!$D13*100 -> 0.5773854543 | G13: =E13/'- 7 -'!$E13 -> 80.77162941 | H13: 1154226 | I13: =H13/'- 3 -'!$D13*100 -> 0.8721350843 | J13: =H13/'- 7 -'!$E13 -> 122.0047566
A14: DSFM | B14: 472114 | C14: =B14/'- 3 -'!$D14*100 -> 0.3982150172 | D14: =B14/'- 7 -'!$E14 -> 76.43070607 | E14: 983156 | F14: =E14/'- 3 -'!$D14*100 -> 0.8292647188 | G14: =E14/'- 7 -'!$E14 -> 159.1634801 | H14: 547500 | I14: =H14/'- 3 -'!$D14*100 -> 0.4618010098 | J14: =H14/'- 7 -'!$E14 -> 88.63497285
A15: EVERGREEN | B15: 162740 | C15: =B15/'- 3 -'!$D15*100 -> 0.6554847324 | D15: =B15/'- 7 -'!$E15 -> 116.5759312 | E15: 234250 | F15: =E15/'- 3 -'!$D15*100 -> 0.9435129567 | G15: =E15/'- 7 -'!$E15 -> 167.8008596 | H15: 56000 | I15: =H15/'- 3 -'!$D15*100 -> 0.2255569929 | J15: =H15/'- 7 -'!$E15 -> 40.11461318
A16: FLIN FLON | B16: 55344 | C16: =B16/'- 3 -'!$D16*100 -> 0.3052159365 | D16: =B16/'- 7 -'!$E16 -> 69.44040151 | E16: 189909 | F16: =E16/'- 3 -'!$D16*100 -> 1.04732678 | G16: =E16/'- 7 -'!$E16 -> 238.2797992 | H16: 52000 | I16: =H16/'- 3 -'!$D16*100 -> 0.2867741526 | J16: =H16/'- 7 -'!$E16 -> 65.2446675
A17: FORT LA BOSSE | B17: 75500 | C17: =B17/'- 3 -'!$D17*100 -> 0.3311238673 | D17: =B17/'- 7 -'!$E17 -> 48.42847979 | E17: 163075 | F17: =E17/'- 3 -'!$D17*100 -> 0.7152056246 | G17: =E17/'- 7 -'!$E17 -> 104.6023092 | H17: 138300 | I17: =H17/'- 3 -'!$D17*100 -> 0.6065487529 | J17: =H17/'- 7 -'!$E17 -> 88.71071199
A18: FRONTIER | B18: 417043 | C18: =B18/'- 3 -'!$D18*100 -> 0.2362239183 | D18: =B18/'- 7 -'!$E18 -> 64.14072593 | E18: 0 | F18: =E18/'- 3 -'!$D18*100 -> 0 | G18: =E18/'- 7 -'!$E18 -> 0 | H18: 2204226 | I18: =H18/'- 3 -'!$D18*100 -> 1.248530493 | J18: =H18/'- 7 -'!$E18 -> 339.0073823
A19: GARDEN VALLEY | B19: 604000 | C19: =B19/'- 3 -'!$D19*100 -> 1.026937296 | D19: =B19/'- 7 -'!$E19 -> 142.1510944 | E19: 238000 | F19: =E19/'- 3 -'!$D19*100 -> 0.4046541002 | G19: =E19/'- 7 -'!$E19 -> 56.01317957 | H19: 624400 | I19: =H19/'- 3 -'!$D19*100 -> 1.061621934 | J19: =H19/'- 7 -'!$E19 -> 146.9522241
A20: HANOVER | B20: 800300 | C20: =B20/'- 3 -'!$D20*100 -> 0.6920190822 | D20: =B20/'- 7 -'!$E20 -> 93.94295105 | E20: 499000 | F20: =E20/'- 3 -'!$D20*100 -> 0.4314850956 | G20: =E20/'- 7 -'!$E20 -> 58.57495011 | H20: 1887900 | I20: =H20/'- 3 -'!$D20*100 -> 1.632466357 | J20: =H20/'- 7 -'!$E20 -> 221.6105177
A21: INTERLAKE | B21: 339255 | C21: =B21/'- 3 -'!$D21*100 -> 0.7611236726 | D21: =B21/'- 7 -'!$E21 -> 118.5377358 | E21: 160400 | F21: =E21/'- 3 -'!$D21*100 -> 0.3598598019 | G21: =E21/'- 7 -'!$E21 -> 56.04472397 | H21: 370655 | I21: =H21/'- 3 -'!$D21*100 -> 0.8315700427 | J21: =H21/'- 7 -'!$E21 -> 129.5090846
A22: KELSEY | B22: 99750 | C22: =B22/'- 3 -'!$D22*100 -> 0.4133268682 | D22: =B22/'- 7 -'!$E22 -> 69.65782123 | E22: 90000 | F22: =E22/'- 3 -'!$D22*100 -> 0.3729264976 | G22: =E22/'- 7 -'!$E22 -> 62.84916201 | H22: 94500 | I22: =H22/'- 3 -'!$D22*100 -> 0.3915728225 | J22: =H22/'- 7 -'!$E22 -> 65.99162011
A23: LAKESHORE | B23: 112000 | C23: =B23/'- 3 -'!$D23*100 -> 0.6146918712 | D23: =B23/'- 7 -'!$E23 -> 114.8717949 | E23: 111400 | F23: =E23/'- 3 -'!$D23*100 -> 0.611398879 | G23: =E23/'- 7 -'!$E23 -> 114.2564103 | H23: 150000 | I23: =H23/'- 3 -'!$D23*100 -> 0.8232480417 | J23: =H23/'- 7 -'!$E23 -> 153.8461538
A24: LORD SELKIRK | B24: 499737 | C24: =B24/'- 3 -'!$D24*100 -> 0.7228590048 | D24: =B24/'- 7 -'!$E24 -> 132.6617998 | E24: 461805 | F24: =E24/'- 3 -'!$D24*100 -> 0.6679911688 | G24: =E24/'- 7 -'!$E24 -> 122.5922485 | H24: 816956 | I24: =H24/'- 3 -'!$D24*100 -> 1.181709582 | J24: =H24/'- 7 -'!$E24 -> 216.8717813
A25: LOUIS RIEL | B25: 1108848 | C25: =B25/'- 3 -'!$D25*100 -> 0.4554883016 | D25: =B25/'- 7 -'!$E25 -> 65.19950609 | E25: 1992033 | F25: =E25/'- 3 -'!$D25*100 -> 0.818279627 | G25: =E25/'- 7 -'!$E25 -> 117.1301817 | H25: 1749130 | I25: =H25/'- 3 -'!$D25*100 -> 0.7185008702 | J25: =H25/'- 7 -'!$E25 -> 102.847651
A26: MOUNTAIN VIEW | B26: 485873 | C26: =B26/'- 3 -'!$D26*100 -> 0.9754520545 | D26: =B26/'- 7 -'!$E26 -> 156.1338732 | E26: 590398 | F26: =E26/'- 3 -'!$D26*100 -> 1.185299331 | G26: =E26/'- 7 -'!$E26 -> 189.7226775 | H26: 444358 | I26: =H26/'- 3 -'!$D26*100 -> 0.8921053939 | J26: =H26/'- 7 -'!$E26 -> 142.7931489
A27: MYSTERY LAKE | B27: 145554 | C27: =B27/'- 3 -'!$D27*100 -> 0.2900795288 | D27: =B27/'- 7 -'!$E27 -> 51.60665851 | E27: 266100 | F27: =E27/'- 3 -'!$D27*100 -> 0.5303197619 | G27: =E27/'- 7 -'!$E27 -> 94.34664681 | H27: 173300 | I27: =H27/'- 3 -'!$D27*100 -> 0.3453754781 | J27: =H27/'- 7 -'!$E27 -> 61.4440958
A28: PARK WEST | B28: 303749 | C28: =B28/'- 3 -'!$D28*100 -> 0.8758907333 | D28: =B28/'- 7 -'!$E28 -> 138.5716241 | E28: 238700 | F28: =E28/'- 3 -'!$D28*100 -> 0.6883154119 | G28: =E28/'- 7 -'!$E28 -> 108.8959854 | H28: 373241 | I28: =H28/'- 3 -'!$D28*100 -> 1.076277891 | J28: =H28/'- 7 -'!$E28 -> 170.2741788
A29: PEMBINA TRAILS | B29: 1721799 | C29: =B29/'- 3 -'!$D29*100 -> 0.7795383356 | D29: =B29/'- 7 -'!$E29 -> 103.9608139 | E29: 1870225 | F29: =E29/'- 3 -'!$D29*100 -> 0.8467376759 | G29: =E29/'- 7 -'!$E29 -> 112.9226543 | H29: 1026080 | I29: =H29/'- 3 -'!$D29*100 -> 0.464554048 | J29: =H29/'- 7 -'!$E29 -> 61.95387031
A30: PINE CREEK | B30: 178230 | C30: =B30/'- 3 -'!$D30*100 -> 0.9080740947 | D30: =B30/'- 7 -'!$E30 -> 166.0270144 | E30: 143090 | F30: =E30/'- 3 -'!$D30*100 -> 0.7290373238 | G30: =E30/'- 7 -'!$E30 -> 133.2929669 | H30: 130297 | I30: =H30/'- 3 -'!$D30*100 -> 0.6638575454 | J30: =H30/'- 7 -'!$E30 -> 121.3758733
A31: PORTAGE LA PRAIRIE | B31: 494560 | C31: =B31/'- 3 -'!$D31*100 -> 0.9942824937 | D31: =B31/'- 7 -'!$E31 -> 146.3195266 | E31: 335135 | F31: =E31/'- 3 -'!$D31*100 -> 0.6737683264 | G31: =E31/'- 7 -'!$E31 -> 99.15236686 | H31: 223500 | I31: =H31/'- 3 -'!$D31*100 -> 0.4493330179 | J31: =H31/'- 7 -'!$E31 -> 66.12426036
A32: PRAIRIE ROSE | B32: 333270 | C32: =B32/'- 3 -'!$D32*100 -> 0.9045608383 | D32: =B32/'- 7 -'!$E32 -> 144.0233362 | E32: 189500 | F32: =E32/'- 3 -'!$D32*100 -> 0.5143405613 | G32: =E32/'- 7 -'!$E32 -> 81.89282627 | H32: 267817 | I32: =H32/'- 3 -'!$D32*100 -> 0.7269084227 | J32: =H32/'- 7 -'!$E32 -> 115.7376837
A33: PRAIRIE SPIRIT | B33: 305540 | C33: =B33/'- 3 -'!$D33*100 -> 0.9260855014 | D33: =B33/'- 7 -'!$E33 -> 142.1116279 | E33: 335205 | F33: =E33/'- 3 -'!$D33*100 -> 1.015999511 | G33: =E33/'- 7 -'!$E33 -> 155.9093023 | H33: 163750 | I33: =H33/'- 3 -'!$D33*100 -> 0.4963229065 | J33: =H33/'- 7 -'!$E33 -> 76.1627907
A34: RED RIVER VALLEY | B34: 231633 | C34: =B34/'- 3 -'!$D34*100 -> 0.6116069632 | D34: =B34/'- 7 -'!$E34 -> 98.81953925 | E34: 202874 | F34: =E34/'- 3 -'!$D34*100 -> 0.5356713036 | G34: =E34/'- 7 -'!$E34 -> 86.5503413 | H34: 248706 | I34: =H34/'- 3 -'!$D34*100 -> 0.6566867475 | J34: =H34/'- 7 -'!$E34 -> 106.1032423
A35: RIVER EAST TRANSCONA | B35: 1123897 | C35: =B35/'- 3 -'!$D35*100 -> 0.4475723272 | D35: =B35/'- 7 -'!$E35 -> 61.8988269 | E35: 1014279 | F35: =E35/'- 3 -'!$D35*100 -> 0.4039188755 | G35: =E35/'- 7 -'!$E35 -> 55.86159608 | H35: 2929779 | I35: =H35/'- 3 -'!$D35*100 -> 1.166733255 | J35: =H35/'- 7 -'!$E35 -> 161.3580988
A36: ROLLING RIVER | B36: 224350 | C36: =B36/'- 3 -'!$D36*100 -> 0.8031064666 | D36: =B36/'- 7 -'!$E36 -> 128.0171184 | E36: 236725 | F36: =E36/'- 3 -'!$D36*100 -> 0.8474052967 | G36: =E36/'- 7 -'!$E36 -> 135.0784593 | H36: 312775 | I36: =H36/'- 3 -'!$D36*100 -> 1.119641743 | J36: =H36/'- 7 -'!$E36 -> 178.4736091
A37: SEINE RIVER | B37: 349200 | C37: =B37/'- 3 -'!$D37*100 -> 0.5371568151 | D37: =B37/'- 7 -'!$E37 -> 79.01346306 | E37: 859100 | F37: =E37/'- 3 -'!$D37*100 -> 1.321510366 | G37: =E37/'- 7 -'!$E37 -> 194.3885055 | H37: 673700 | I37: =H37/'- 3 -'!$D37*100 -> 1.036318861 | J37: =H37/'- 7 -'!$E37 -> 152.4380586
A38: SEVEN OAKS | B38: 373530 | C38: =B38/'- 3 -'!$D38*100 -> 0.2074984886 | D38: =B38/'- 7 -'!$E38 -> 31.58148383 | E38: 916554 | F38: =E38/'- 3 -'!$D38*100 -> 0.5091520621 | G38: =E38/'- 7 -'!$E38 -> 77.49346861 | H38: 1840261 | I38: =H38/'- 3 -'!$D38*100 -> 1.022277665 | J38: =H38/'- 7 -'!$E38 -> 155.5917142
A39: SOUTHWEST HORIZON | B39: 155500 | C39: =B39/'- 3 -'!$D39*100 -> 0.5916146705 | D39: =B39/'- 7 -'!$E39 -> 109.1611092 | E39: 130900 | F39: =E39/'- 3 -'!$D39*100 -> 0.4980216101 | G39: =E39/'- 7 -'!$E39 -> 91.89189189 | H39: 117100 | I39: =H39/'- 3 -'!$D39*100 -> 0.445518186 | J39: =H39/'- 7 -'!$E39 -> 82.2042822
A40: ST. JAMES-ASSINIBOIA | B40: 776098 | C40: =B40/'- 3 -'!$D40*100 -> 0.5978313924 | D40: =B40/'- 7 -'!$E40 -> 96.33202549 | E40: 693820 | F40: =E40/'- 3 -'!$D40*100 -> 0.5344523201 | G40: =E40/'- 7 -'!$E40 -> 86.11938946 | H40: 858424 | I40: =H40/'- 3 -'!$D40*100 -> 0.6612474394 | J40: =H40/'- 7 -'!$E40 -> 106.5506194
A41: SUNRISE | B41: 525833 | C41: =B41/'- 3 -'!$D41*100 -> 0.6550353737 | D41: =B41/'- 7 -'!$E41 -> 113.977024 | E41: 839393 | F41: =E41/'- 3 -'!$D41*100 -> 1.04564017 | G41: =E41/'- 7 -'!$E41 -> 181.9427766 | H41: 183567 | I41: =H41/'- 3 -'!$D41*100 -> 0.2286712292 | J41: =H41/'- 7 -'!$E41 -> 39.78909721
A42: SWAN VALLEY | B42: 273468 | C42: =B42/'- 3 -'!$D42*100 -> 0.9960299827 | D42: =B42/'- 7 -'!$E42 -> 197.3073593 | E42: 364187 | F42: =E42/'- 3 -'!$D42*100 -> 1.326448328 | G42: =E42/'- 7 -'!$E42 -> 262.7611833 | H42: 138400 | I42: =H42/'- 3 -'!$D42*100 -> 0.504082926 | J42: =H42/'- 7 -'!$E42 -> 99.85569986
A43: TURTLE MOUNTAIN | B43: 76919 | C43: =B43/'- 3 -'!$D43*100 -> 0.4792206371 | D43: =B43/'- 7 -'!$E43 -> 73.04748338 | E43: 106301 | F43: =E43/'- 3 -'!$D43*100 -> 0.6622763289 | G43: =E43/'- 7 -'!$E43 -> 100.9506173 | H43: 121932 | I43: =H43/'- 3 -'!$D43*100 -> 0.7596605613 | J43: =H43/'- 7 -'!$E43 -> 115.7948718
A44: TURTLE RIVER | B44: 143612 | C44: =B44/'- 3 -'!$D44*100 -> 1.126038676 | D44: =B44/'- 7 -'!$E44 -> 237.5715467 | E44: 75950 | F44: =E44/'- 3 -'!$D44*100 -> 0.5955117779 | G44: =E44/'- 7 -'!$E44 -> 125.6410256 | H44: 130428 | I44: =H44/'- 3 -'!$D44*100 -> 1.022665045 | J44: =H44/'- 7 -'!$E44 -> 215.7617866
A45: WESTERN | B45: 322149 | C45: =B45/'- 3 -'!$D45*100 -> 1.049981593 | D45: =B45/'- 7 -'!$E45 -> 141.915859 | E45: 143310 | F45: =E45/'- 3 -'!$D45*100 -> 0.4670908868 | G45: =E45/'- 7 -'!$E45 -> 63.13215859 | H45: 208081 | I45: =H45/'- 3 -'!$D45*100 -> 0.6781992801 | J45: =H45/'- 7 -'!$E45 -> 91.66563877
A46: WINNIPEG | B46: 1099800 | C46: =B46/'- 3 -'!$D46*100 -> 0.2314931021 | D46: =B46/'- 7 -'!$E46 -> 38.70763383 | E46: 1808726 | F46: =E46/'- 3 -'!$D46*100 -> 0.3807124864 | G46: =E46/'- 7 -'!$E46 -> 63.6583958 | H46: 2873026 | I46: =H46/'- 3 -'!$D46*100 -> 0.6047333162 | J46: =H46/'- 7 -'!$E46 -> 101.1166016
A48: PROVINCE | B48: =SUM(B11:B46) -> 15575123 | C48: =B48/'- 3 -'!$D48*100 -> 0.5207637514 | D48: =B48/'- 7 -'!$E48 -> 82.45196278 | E48: =SUM(E11:E46) -> 17710940 | F48: =E48/'- 3 -'!$D48*100 -> 0.5921760974 | G48: =E48/'- 7 -'!$E48 -> 93.75860246 | H48: =SUM(H11:H46) -> 24120817 | I48: =H48/'- 3 -'!$D48*100 -> 0.8064942503 | J48: =H48/'- 7 -'!$E48 -> 127.6913643
A50: WHITESHELL | B50: 0 | C50: =B50/'- 3 -'!$D50*100 -> 0 | D50: =B50/'- 7 -'!$E50 -> 0 | E50: 54118 | F50: =E50/'- 3 -'!$D50*100 -> 1.282441373 | G50: =E50/'- 7 -'!$E50 -> 313.7275362 | H50: 19000 | I50: =H50/'- 3 -'!$D50*100 -> 0.4502455023 | J50: =H50/'- 7 -'!$E50 -> 110.1449275
A52: (1) Excludes information technology expenses in Function 300 (Adult Learning Centres) and Function 400 (Community Education and Services) and Management Information Services in Function 500. Total expenses for Management Information Services are included on page 38 and form part of total Information Technology Expenses.

Sheet - 38 -
B2: =+'- 37 -'!E2 -> ANALYSIS OF INFORMATION TECHNOLOGY EXPENSES
B3: =OPYEAR -> OPERATING FUND 2024/2025 BUDGET
B5: INFORMATION TECHNOLOGY EXPENSES (1)
B6: MANAGEMENT INFORMATION SERVICES (2)
E7: TOTAL
D8: PER PUPIL | G8: PER PUPIL
A9: DIVISION / DISTRICT | B9: AMOUNT | C9: % | E9: AMOUNT | F9: %
A11: BEAUTIFUL PLAINS | B11: ='- 26 -'!B11 -> 16160 | C11: ='- 26 -'!C11 -> 0.05664033837 | D11: ='- 26 -'!D11 -> 7.223960662 | E11: =SUM('- 37 -'!B11,'- 37 -'!E11,'- 37 -'!H11,B11) -> 727995 | F11: =E11/'- 3 -'!D11*100 -> 2.551601679 | G11: =E11/'- 7 -'!E11 -> 325.4336165
A12: BORDER LAND | B12: ='- 26 -'!B12 -> 63399 | C12: ='- 26 -'!C12 -> 0.1584103347 | D12: ='- 26 -'!D12 -> 31.16195625 | E12: =SUM('- 37 -'!B12,'- 37 -'!E12,'- 37 -'!H12,B12) -> 1219144 | F12: =E12/'- 3 -'!D12*100 -> 3.046183837 | G12: =E12/'- 7 -'!E12 -> 599.2351929
A13: BRANDON | B13: ='- 26 -'!B13 -> 357420 | C13: ='- 26 -'!C13 -> 0.2700671462 | D13: ='- 26 -'!D13 -> 37.78024417 | E13: =SUM('- 37 -'!B13,'- 37 -'!E13,'- 37 -'!H13,B13) -> 2891936 | F13: =E13/'- 3 -'!D13*100 -> 2.185151649 | G13: =E13/'- 7 -'!E13 -> 305.6853232
A14: DSFM | B14: ='- 26 -'!B14 -> 133854 | C14: ='- 26 -'!C14 -> 0.112902123 | D14: ='- 26 -'!D14 -> 21.66967243 | E14: =SUM('- 37 -'!B14,'- 37 -'!E14,'- 37 -'!H14,B14) -> 2136624 | F14: =E14/'- 3 -'!D14*100 -> 1.802182869 | G14: =E14/'- 7 -'!E14 -> 345.8988315
A15: EVERGREEN | B15: ='- 26 -'!B15 -> 45000 | C15: ='- 26 -'!C15 -> 0.181251155 | D15: ='- 26 -'!D15 -> 32.23495702 | E15: =SUM('- 37 -'!B15,'- 37 -'!E15,'- 37 -'!H15,B15) -> 497990 | F15: =E15/'- 3 -'!D15*100 -> 2.005805837 | G15: =E15/'- 7 -'!E15 -> 356.726361
A16: FLIN FLON | B16: ='- 26 -'!B16 -> 43964 | C16: ='- 26 -'!C16 -> 0.2424565162 | D16: ='- 26 -'!D16 -> 55.16185696 | E16: =SUM('- 37 -'!B16,'- 37 -'!E16,'- 37 -'!H16,B16) -> 341217 | F16: =E16/'- 3 -'!D16*100 -> 1.881773385 | G16: =E16/'- 7 -'!E16 -> 428.1267252
